Workbook

Sheet 57 Topics
A1: Highline Excel 2013 Class Video #35:
A2: Excel 2013 PivotTables: Basic To Advanced 55 Examples
A4: Topics # | B4: Topic
A5: PivotTables:
A6: 1 | B6: 3 Reports with Formulas
A7: 2 | B7: What is a PivotTable do?
B8: Summarize data
B9: Calculation with criteria
B10: Create Reports that contain calculations with conditions/criteria
A11: 3 | B11: Proper Data Set: 1) Field names in 1st row. 2) Records in rows (try not to have empty cells). 3) Empty cells surrounding data set (Excel Row & Column Headers okay too).
A12: 4 | B12: Visualize: 1) SalesRep field (Criteria1) in Row Header area. 2) Region field (Criteria2) in Column Header area. 3) Sales field (field you are making calculation on) in Value area
A13: 5 | B13: Create from Insert Tab
A14: 6 | B14: Keyboard: Alt, N, V
A15: 7 | B15: Drag and drop from Field List
A16: 8 | B16: Format to Show Field Names: Design, Report Layout, Show in Tabular Form (Format Tip #1)
A17: 9 | B17: Number Formatting must be done on Field, not with Format Cells dialog Box (Format Tip #2)
A18: 10 | B18: Create PivotTable Style (Format Tip #3)
B19: Limited Formatting
A20: 11 | B20: Set PivotTable Style as Default
A21: 12 | B21: Why Called Pivot? Pivot the report
A22: 13 | B22: Pivot Data is stored in a cache
A23: 14 | B23: Change Source Data
B24: Formulas Update Automatically
B25: PivotTables update after "Refreshing"
B26: Analyze PivotTableTools Tab
B27: Pivot: Alt + F5
B28: All Pivots on sheet: Ctrl + Alt + F5
A29: 15 | B29: Copy A PivotTable Report
A30: 16 | B30: Filter a Field
A31: 17 | B31: Change Function
A32: 18 | B32: Only 11 functions
B33: See list
B34: Formulas in cells can make many more calculations
A35: 19 | B35: One Stop Shopping for Calculations: Value Field Settings
A36: 20 | B36: Text Data defaults to Count
A37: 21 | B37: Number Data defaults to SUM
A38: 22 | B38: Counting counts criteria: Counting records, Numbers or Text
A39: 23 | B39: Mixed Data Defaults to Count
A40: 24 | B40: Review: 5 steps to creating PivotTable: 1) Click in single cell in Proper Data Set. 2) Alt, N, V, Enter. 3) Drag, Drag, Drag.
A41: 25 | B41: Report we saw back in Subtotal video
A42: 26 | B42: Collapse and Expand criteria in Row Labels
A43: 27 | B43: Report with three calculations
A44: 28 | B44: Formulas vs PivotTables:
B46: PivotTables | C46: Formulas
B47: Fast and easy to create calculations with criteria. | C47: Usually more complicated to create calculations with criteria.
B48: Requires "Refresh" when Source Data Changes. | C48: Automatically updates when Source Data Changes.
B49: You can Pivot a report and add and remove whole categories of criteria and calculations update. | C49: It is extremely difficult if not impossible to Pivot a report and add and remove whole categories of criteria.
B50: Change the function easily. | C50: Changing a function is more difficult with formulas.
B51: 11 Functions | C51: 450 functions
B52: Formatting is limited. | C52: Formatting is less limited.
A54: 29 | B54: Extracting data to new sheet with Double Click
A55: 30 | B55: PivotChart
A56: 31 | B56: Group Dates: Right-click Date in Pivot and point to Group.
A57: 32 | B57: Group Times: Right-click Time in Pivot and point to Group.
A58: 33 | B58: Old Excel 2003 dialog box to group or ungroup a field in a second way:
B59: Keyboard: Alt, D, P.
B60: This creates a separate cache of data.
A61: 34 | B61: Grouping can't be done with Data Mismatch
A62: 35 | B62: Group Numbers: Decimal create ambiguous categories (lower limit is NOT included, upper limit IS included (same as FREQUENCY function)). Integer creates unambiguous categories.
A63: 36 | B63: Recommended PivotTable
A64: 37 | B64: Recommended Chart: Amazing because it summarizes
A65: 38 | B65: Report Filter: Adds new criteria to report
A66: 39 | B66: Show Report Filter: PivotTableTools Analyze Ribbon Tab, PivotTable group, Options, "Show Report Filter Pages".
A67: 40 | B67: Slicers: Fancy Filters: PivotTableTools Analyze Ribbon Tab, Filter group
A68: 41 | B68: Use Filter and Slicer together to extract data
A69: 42 | B69: Timelines: PivotTableTools Analyze Ribbon Tab, Filter group
A70: 43 | B70: Show Values As: % of Grand Total
A71: 44 | B71: Show Values As: % of Column
A72: 45 | B72: Show Values As: % of Row
A73: 46 | B73: Connect One Slicer to Many PivotTables
A74: 47 | B74: Show Values As: Running Total
A75: 48 | B75: Show Values As: Difference From
A76: 49 | B76: Show Values As: % Difference From
A77: 50 | B77: Show Values As: % of Parent
A78: 51 | B78: Show Values As: % of Parent Row Total
A79: 52 | B79: Show Values As: % of Parent Column Total
A80: 53 | B80: Show Values As: Rank
A81: 54 | B81: Sort based on Value Field
A82: 55 | B82: Create Formula in PivotTable: Sales - Expense
A83: 56 | B83: Check Data Model to get 1 new PivotTable function: Unique Count. This will remove the Product function and in its place will be the Unique Count function
A84: 57 | B84: Use Data Model and Relationships to replace VLOOKUP

Sheet ST PT C
B1: 11 Functions available in a PivotTable | F1: 11 Functions for SUBTOTAL function
B2: What you see in Value Field Settings dialog box | C2: Function | D2: What it does | F2: Function_num (includes hidden values) | G2: Function_num (ignores hidden values) | H2: What you see in Subtotal "Use function" drop-down | I2: Function | J2: What it does
A3: 1 | B3: Average | C3: AVERAGE | D3: Calculates arithmetic mean | F3: 1 | G3: 101 | H3: Average | I3: AVERAGE | J3: Calculates arithmetic mean
A4: 2 | B4: Count Numbers | C4: COUNT | D4: Counts numbers | F4: 2 | G4: 102 | H4: Count Numbers | I4: COUNT | J4: Counts numbers
A5: 3 | B5: Count | C5: COUNTA | D5: Counts non empty cells | F5: 3 | G5: 103 | H5: Count | I5: COUNTA | J5: Counts non empty cells
A6: 4 | B6: Max | C6: MAX | D6: Finds largest value | F6: 4 | G6: 104 | H6: Max | I6: MAX | J6: Finds largest value
A7: 5 | B7: Min | C7: MIN | D7: Finds smallest value | F7: 5 | G7: 105 | H7: Min | I7: MIN | J7: Finds smallest value
A8: 6 | B8: Stdev | C8: STDEV | D8: Standard Deviation for a sample | F8: 6 | G8: 106 | H8: Product | I8: PRODUCT | J8: Multiplies
A9: 7 | B9: Stdevp | C9: STDEVP | D9: Standard Deviation for a population | F9: 7 | G9: 107 | H9: Stdev | I9: STDEV | J9: Standard Deviation for a sample
A10: 8 | B10: Sum | C10: SUM | D10: Adds | F10: 8 | G10: 108 | H10: Stdevp | I10: STDEVP | J10: Standard Deviation for a population
A11: 9 | B11: Var | C11: VAR | D11: Variation for a sample | F11: 9 | G11: 109 | H11: Sum | I11: SUM | J11: Adds
A12: 10 | B12: Varp | C12: VARP | D12: Variation for a population | F12: 10 | G12: 110 | H12: Var | I12: VAR | J12: Variation for a sample
A13: 11a | B13: Product (if Data Model is NOT checked in Create PivotTable dialog box) | C13: PRODUCT | D13: Multiplies | F13: 11 | G13: 111 | H13: Varp | I13: VARP | J13: Variation for a population
A14: 11b | B14: Unique Count (if Data Model IS checked in Create PivotTable dialog box) | C14: Array Formula | D14: Counts unique items

Sheet Data(1)
A1: 1 | B1: 3 Reports with Formulas
A2: 2 | B2: What is a PivotTable do?
B3: Summarize data
B4: Calculation with criteria
B5: Create Reports that contain calculations with conditions/criteria
A6: 3 | B6: Proper Data Set: 1) Field names in 1st row. 2) Records in rows (try not to have empty cells). 3) Empty cells surrounding data set (Excel Row & Column Headers okay too).
A7: 4 | B7: Visualize: 1) SalesRep field (Criteria1) in Row Header area. 2) Region field (Criteria2) in Column Header area. 3) Sales field (field you are making calculation on) in Value area
A8: 5 | B8: Create from Insert Tab
A9: 6 | B9: Keyboard: Alt, N, V
A10: 7 | B10: Drag and drop from Field List
A11: 8 | B11: Format to Show Field Names: Design, Report Layout, Show in Tabular Form (Format Tip #1)
A12: 9 | B12: Number Formatting must be done on Field, not with Format Cells dialog Box (Format Tip #2)
A13: 10 | B13: Create PivotTable Style (Format Tip #3)
B14: Limited Formatting
A15: 11 | B15: Set PivotTable Style as Default
A16: 12 | B16: Why Called Pivot? Pivot the report
A17: 13 | B17: Pivot Data is stored in a cache
A18: 14 | B18: Change Source Data
B19: Formulas Update Automatically
B20: PivotTables update after "Refreshing"
B21: Analyze PivotTableTools Tab
B22: Pivot: Alt + F5
B23: All Pivots on sheet: Ctrl + Alt + F5
A24: 15 | B24: Copy A PivotTable Report
A25: 16 | B25: Filter a Field
A26: 17 | B26: Change Function
A27: 18 | B27: Only 11 functions
B28: See list
B29: Formulas in cells can make many more calculations
A30: 19 | B30: One Stop Shopping for Calculations: Value Field Settings
A31: 20 | B31: Text Data defaults to Count
A32: 21 | B32: Number Data defaults to SUM
A33: 22 | B33: Counting counts criteria: Counting records, Numbers or Text
A34: 23 | B34: Mixed Data Defaults to Count
A35: 24 | B35: Review: 5 steps to creating PivotTable
A36: 25 | B36: Report we saw back in Subtotal video
A37: 26 | B37: Collapse and Expand criteria in Row Labels
A38: 27 | B38: Report with three calculations
A39: 28 | B39: Formulas vs PivotTables:
A40: 29 | B40: Extracting data to new sheet with Double Click
A41: 30 | B41: PivotChart
A43: Date | B43: Product | C43: Region | D43: SalesRep | E43: Customer | F43: Units | G43: Sales | H43: COGS | K43: SalesRep/Region | L43: East | M43: MidWest | N43: South | O43: West
A44: 2011-01-01 | B44: Quad | C44: East | D44: Sioux | E44: AA | F44: 16 | G44: 432.17 | H44: 232.99 | K44: Sioux | L44: =SUMIFS($G$44:$G$148,$C$44:$C$148,L$43,$D$44:$D$148,$K44) -> 1329.8 | M44: 2303.39 | N44: 4791.8 | O44: 4168.15
A45: 2011-01-02 | B45: Bellen | C45: South | D45: Gault | E45: KBTB | F45: 24 | G45: 528.5 | H45: 240.35 | K45: Gault | L45: 3722.46 | M45: 1286.03 | N45: 2040.69 | O45: 4376.02
A46: 2011-01-02 | B46: Quad | C46: West | D46: Pham | E46: AST | F46: 30 | G46: 810.71 | H46: 435.64 | K46: Pham | L46: 4944.9 | M46: 3200.41 | N46: 1954.58 | O46: 9790.96
A47: 2011-01-02 | B47: Bellen | C47: West | D47: Pham | E47: SFWK | F47: 19 | G47: 418.54 | H47: 190.05 | K47: Chin | L47: 4399.03 | M47: 3495.53 | N47: 2228.68 | O47: 2006.31
A48: 2011-01-03 | B48: Sunshine | C48: East | D48: Pham | E48: FM | F48: 38 | G48: 722.22 | H48: 304.06 | K48: Franks | L48: 6823.04 | M48: 2096.81 | N48: 3029.98 | O48: 1608.96
A49: 2011-01-03 | B49: Carlota | C49: MidWest | D49: Chin | E49: FM | F49: 20 | G49: 460.28 | H49: 220.63 | K49: Smith | L49: 3695.64 | M49: 3315.97 | N49: 5769.22 | O49: 2828.02
A50: 2011-01-03 | B50: Sunset | C50: South | D50: Pham | E50: WSD | F50: 23 | G50: 483.58 | H50: 213.57
A51: 2011-01-03 | B51: Sunshine | C51: South | D51: Sioux | E51: PCC | F51: 6 | G51: 114.53 | H51: 48.26 | J51: Region | K51: SalesRep | L51: Total | N51: Region | O51: Count | P51: Max | Q51: Min
A52: 2011-01-04 | B52: Sunset | C52: MidWest | D52: Sioux | E52: BBT | F52: 29 | G52: 609.12 | H52: 269.16 | J52: East | K52: Sioux | L52: =SUMIFS($G$44:$G$148,$C$44:$C$148,LOOKUP("Ω",J$52:J52),$D$44:$D$148,$K52) -> 1329.8 | N52: East | O52: =COUNTIFS($C$44:$C$148,N52) -> 30 | P52: =_xlfn.AGGREGATE(M$89,6,$G$44:$G$148/($C$44:$C$148=$N52),1) -> 1674.82 | Q52: 198.06
A53: 2011-01-05 | B53: Sunset | C53: South | D53: Pham | E53: TTT | F53: 57 | G53: 1197.9 | H53: 527.98 | K53: Gault | L53: =SUMIFS($G$44:$G$148,$C$44:$C$148,LOOKUP("Ω",J$52:J53),$D$44:$D$148,$K53) -> 3722.46 | N53: MidWest | O53: =COUNTIFS($C$44:$C$148,N53) -> 24 | P53: 1647.26 | Q53: 152.76
A54: 2011-01-05 | B54: Sunshine | C54: West | D54: Franks | E54: ET | F54: 12 | G54: 228.89 | H54: 96.02 | K54: Pham | L54: =SUMIFS($G$44:$G$148,$C$44:$C$148,LOOKUP("Ω",J$52:J54),$D$44:$D$148,$K54) -> 4944.9 | N54: South | O54: =COUNTIFS($C$44:$C$148,N54) -> 27 | P54: 1512.19 | Q54: 114.53
A55: 2011-01-05 | B55: Carlota | C55: West | D55: Franks | E55: ITTW | F55: 60 | G55: 1380.07 | H55: 660.4 | K55: Chin | L55: =SUMIFS($G$44:$G$148,$C$44:$C$148,LOOKUP("Ω",J$52:J55),$D$44:$D$148,$K55) -> 4399.03 | N55: West | O55: =COUNTIFS($C$44:$C$148,N55) -> 24 | P55: 5000.6 | Q55: 132.34
A56: 2011-01-06 | B56: Sunshine | C56: East | D56: Franks | E56: PSA | F56: 54 | G56: 1026.96 | H56: 432.75 | K56: Franks | L56: =SUMIFS($G$44:$G$148,$C$44:$C$148,LOOKUP("Ω",J$52:J56),$D$44:$D$148,$K56) -> 6823.04
A57: 2011-01-06 | B57: Sunshine | C57: South | D57: Smith | E57: QT | F57: 40 | G57: 760.24 | H57: 320.2 | K57: Smith | L57: =SUMIFS($G$44:$G$148,$C$44:$C$148,LOOKUP("Ω",J$52:J57),$D$44:$D$148,$K57) -> 3695.64
A58: 2011-01-06 | B58: Carlota | C58: West | D58: Sioux | E58: KPSA | F58: 18 | G58: 414.11 | H58: 198.71 | J58: MidWest | K58: Sioux | L58: =SUMIFS($G$44:$G$148,$C$44:$C$148,LOOKUP("Ω",J$52:J58),$D$44:$D$148,$K58) -> 2303.39
A59: 2011-01-06 | B59: Quad | C59: West | D59: Sioux | E59: PCC | F59: 64 | G59: 1728.81 | H59: 928.38 | K59: Gault | L59: =SUMIFS($G$44:$G$148,$C$44:$C$148,LOOKUP("Ω",J$52:J59),$D$44:$D$148,$K59) -> 1286.03
A60: 2011-01-07 | B60: Carlota | C60: MidWest | D60: Franks | E60: HHH | F60: 12 | G60: 276.06 | H60: 132.56 | K60: Pham | L60: =SUMIFS($G$44:$G$148,$C$44:$C$148,LOOKUP("Ω",J$52:J60),$D$44:$D$148,$K60) -> 3200.41
A61: 2011-01-07 | B61: Sunset | C61: MidWest | D61: Sioux | E61: PCC | F61: 22 | G61: 462.22 | H61: 203.57 | K61: Chin | L61: =SUMIFS($G$44:$G$148,$C$44:$C$148,LOOKUP("Ω",J$52:J61),$D$44:$D$148,$K61) -> 3495.53
A62: 2011-01-07 | B62: Sunset | C62: West | D62: Pham | E62: T | F62: 61 | G62: 1281.1 | H62: 565.15 | K62: Franks | L62: =SUMIFS($G$44:$G$148,$C$44:$C$148,LOOKUP("Ω",J$52:J62),$D$44:$D$148,$K62) -> 2096.81
A63: 2011-01-07 | B63: Sunset | C63: West | D63: Pham | E63: WT | F63: 53 | G63: 1113.7 | H63: 490.31 | K63: Smith | L63: =SUMIFS($G$44:$G$148,$C$44:$C$148,LOOKUP("Ω",J$52:J63),$D$44:$D$148,$K63) -> 3315.97
A64: 2011-01-07 | B64: Bellen | C64: West | D64: Smith | E64: T | F64: 27 | G64: 594.09 | H64: 270.42 | J64: South | K64: Sioux | L64: =SUMIFS($G$44:$G$148,$C$44:$C$148,LOOKUP("Ω",J$52:J64),$D$44:$D$148,$K64) -> 4791.8
A65: 2011-01-08 | B65: Quad | C65: West | D65: Chin | E65: HII | F65: 16 | G65: 432.67 | H65: 232.2 | K65: Gault | L65: =SUMIFS($G$44:$G$148,$C$44:$C$148,LOOKUP("Ω",J$52:J65),$D$44:$D$148,$K65) -> 2040.69
A66: 2011-01-09 | B66: Carlota | C66: East | D66: Franks | E66: WSD | F66: 38 | G66: 874.45 | H66: 418.69 | K66: Pham | L66: =SUMIFS($G$44:$G$148,$C$44:$C$148,LOOKUP("Ω",J$52:J66),$D$44:$D$148,$K66) -> 1954.58
A67: 2011-01-09 | B67: Bellen | C67: East | D67: Pham | E67: EPP | F67: 40 | G67: 880.38 | H67: 400.89 | K67: Chin | L67: =SUMIFS($G$44:$G$148,$C$44:$C$148,LOOKUP("Ω",J$52:J67),$D$44:$D$148,$K67) -> 2228.68
A68: 2011-01-09 | B68: Sunshine | C68: East | D68: Smith | E68: PCC | F68: 42 | G68: 798.53 | H68: 336.16 | K68: Franks | L68: =SUMIFS($G$44:$G$148,$C$44:$C$148,LOOKUP("Ω",J$52:J68),$D$44:$D$148,$K68) -> 3029.98
A69: 2011-01-09 | B69: Bellen | C69: South | D69: Chin | E69: WSD | F69: 26 | G69: 572.42 | H69: 260.27 | K69: Smith | L69: =SUMIFS($G$44:$G$148,$C$44:$C$148,LOOKUP("Ω",J$52:J69),$D$44:$D$148,$K69) -> 5769.22
A70: 2011-01-09 | B70: Bellen | C70: South | D70: Sioux | E70: QT | F70: 15 | G70: 330.61 | H70: 150.43 | J70: West | K70: Sioux | L70: =SUMIFS($G$44:$G$148,$C$44:$C$148,LOOKUP("Ω",J$52:J70),$D$44:$D$148,$K70) -> 4168.15
A71: 2011-01-10 | B71: Sunset | C71: East | D71: Gault | E71: TRU | F71: 27 | G71: 567.18 | H71: 250.66 | K71: Gault | L71: =SUMIFS($G$44:$G$148,$C$44:$C$148,LOOKUP("Ω",J$52:J71),$D$44:$D$148,$K71) -> 4376.02
A72: 2011-01-10 | B72: Carlota | C72: East | D72: Pham | E72: AA | F72: 63 | G72: 1449.21 | H72: 693.64 | K72: Pham | L72: =SUMIFS($G$44:$G$148,$C$44:$C$148,LOOKUP("Ω",J$52:J72),$D$44:$D$148,$K72) -> 9790.96
A73: 2011-01-10 | B73: Quad | C73: East | D73: Smith | E73: DFR | F73: 17 | G73: 459.29 | H73: 246.75 | K73: Chin | L73: =SUMIFS($G$44:$G$148,$C$44:$C$148,LOOKUP("Ω",J$52:J73),$D$44:$D$148,$K73) -> 2006.31
A74: 2011-01-10 | B74: Sunset | C74: East | D74: Smith | E74: MBG | F74: 17 | G74: 357.55 | H74: 157.95 | K74: Franks | L74: =SUMIFS($G$44:$G$148,$C$44:$C$148,LOOKUP("Ω",J$52:J74),$D$44:$D$148,$K74) -> 1608.96
A75: 2011-01-10 | B75: Bellen | C75: MidWest | D75: Gault | E75: FM | F75: 7 | G75: 154.34 | H75: 70 | K75: Smith | L75: =SUMIFS($G$44:$G$148,$C$44:$C$148,LOOKUP("Ω",J$52:J75),$D$44:$D$148,$K75) -> 2828.02
A76: 2011-01-10 | B76: Sunshine | C76: MidWest | D76: Smith | E76: TTT | F76: 8 | G76: 152.76 | H76: 64.12
A77: 2011-01-10 | B77: Sunshine | C77: South | D77: Chin | E77: TRU | F77: 30 | G77: 570.22 | H77: 240.67
A78: 2011-01-10 | B78: Sunset | C78: South | D78: Sioux | E78: MBG | F78: 47 | G78: 987.62 | H78: 435.15
A79: 2011-01-10 | B79: Quad | C79: West | D79: Smith | E79: KBTB | F79: 65 | G79: 1755.71 | H79: 942.93
A80: 2011-01-11 | B80: Quad | C80: East | D80: Franks | E80: ITW | F80: 14 | G80: 378.27 | H80: 203.62
A81: 2011-01-11 | B81: Quad | C81: East | D81: Smith | E81: BBT | F81: 49 | G81: 1323.81 | H81: 711.49
A82: 2011-01-12 | B82: Sunset | C82: MidWest | D82: Gault | E82: ITW | F82: 19 | G82: 399.02 | H82: 176.55
A83: 2011-01-12 | B83: Bellen | C83: South | D83: Chin | E83: WT | F83: 7 | G83: 154.95 | H83: 70.62
A84: 2011-01-13 | B84: Bellen | C84: MidWest | D84: Pham | E84: PLOT | F84: 57 | G84: 1254.57 | H84: 570.77
A85: 2011-01-13 | B85: Sunshine | C85: MidWest | D85: Pham | E85: PSA | F85: 33 | G85: 627.32 | H85: 264.54
A86: 2011-01-13 | B86: Bellen | C86: MidWest | D86: Pham | E86: PSA | F86: 40 | G86: 880.6 | H86: 400.47
A87: 2011-01-13 | B87: Carlota | C87: South | D87: Smith | E87: FM | F87: 52 | G87: 1196.03 | H87: 572.81
A88: 2011-01-14 | B88: Carlota | C88: East | D88: Franks | E88: JAQ | F88: 34 | G88: 782.32 | H88: 374.76 | M88: Function # | N88: Function #
A89: 2011-01-15 | B89: Sunset | C89: East | D89: Gault | E89: AST | F89: 63 | G89: 1323.35 | H89: 583.36 | M89: 14 | N89: 15
A90: 2011-01-15 | B90: Sunshine | C90: MidWest | D90: Chin | E90: YTR | F90: 11 | G90: 209.92 | H90: 88.73
A91: 2011-01-16 | B91: Bellen | C91: MidWest | D91: Sioux | E91: YTR | F91: 56 | G91: 1232.05 | H91: 560.29
A92: 2011-01-16 | B92: Carlota | C92: South | D92: Smith | E92: QT | F92: 31 | G92: 713.28 | H92: 341.34
A93: 2011-01-17 | B93: Quad | C93: East | D93: Franks | E93: HII | F93: 62 | G93: 1674.82 | H93: 899.56
A94: 2011-01-17 | B94: Quad | C94: East | D94: Gault | E94: SFWK | F94: 43 | G94: 1161.25 | H94: 623.75
A95: 2011-01-17 | B95: Carlota | C95: East | D95: Sioux | E95: PCC | F95: 39 | G95: 897.63 | H95: 429.68
A96: 2011-01-17 | B96: Quad | C96: MidWest | D96: Chin | E96: EPP | F96: 61 | G96: 1647.26 | H96: 885.17
A97: 2011-01-17 | B97: Sunshine | C97: MidWest | D97: Franks | E97: HHH | F97: 59 | G97: 1121.96 | H97: 472.38
A98: 2011-01-17 | B98: Bellen | C98: MidWest | D98: Smith | E98: PCC | F98: 16 | G98: 352.2 | H98: 160.66
A99: 2011-01-17 | B99: Quad | C99: West | D99: Chin | E99: PCC | F99: 10 | G99: 270.78 | H99: 145.73
A100: 2011-01-18 | B100: Sunshine | C100: East | D100: Franks | E100: AA | F100: 24 | G100: 456.41 | H100: 192.14
A101: 2011-01-18 | B101: Bellen | C101: East | D101: Franks | E101: DFGH | F101: 20 | G101: 441 | H101: 200.54
A102: 2011-01-18 | B102: Sunset | C102: East | D102: Gault | E102: MNGD | F102: 12 | G102: 252.44 | H102: 111.66
A103: 2011-01-18 | B103: Bellen | C103: East | D103: Pham | E103: DFR | F103: 59 | G103: 1298.92 | H103: 590.75
A104: 2011-01-18 | B104: Sunshine | C104: MidWest | D104: Chin | E104: PCC | F104: 62 | G104: 1178.07 | H104: 496.92
A105: 2011-01-18 | B105: Quad | C105: MidWest | D105: Smith | E105: PLOT | F105: 17 | G105: 459.95 | H105: 247.23
A106: 2011-01-18 | B106: Carlota | C106: South | D106: Smith | E106: YTR | F106: 53 | G106: 1219.7 | H106: 583.68
A107: 2011-01-18 | B107: Sunshine | C107: West | D107: Sioux | E107: AST | F107: 8 | G107: 152.24 | H107: 64.99
A108: 2011-01-19 | B108: Bellen | C108: South | D108: Sioux | E108: T | F108: 35 | G108: 770.8 | H108: 350.53
A109: 2011-01-20 | B109: Carlota | C109: East | D109: Chin | E109: ET | F109: 59 | G109: 1357.25 | H109: 649.15
A110: 2011-01-20 | B110: Bellen | C110: East | D110: Gault | E110: PSA | F110: 10 | G110: 220.18 | H110: 100.84
A111: 2011-01-20 | B111: Sunshine | C111: West | D111: Sioux | E111: YTR | F111: 58 | G111: 1102.81 | H111: 464.06
A112: 2011-01-21 | B112: Quad | C112: East | D112: Chin | E112: FM | F112: 58 | G112: 1566.83 | H112: 841.43
A113: 2011-01-21 | B113: Sunshine | C113: MidWest | D113: Pham | E113: DFR | F113: 23 | G113: 437.92 | H113: 184.33
A114: 2011-01-21 | B114: Sunshine | C114: MidWest | D114: Smith | E114: QT | F114: 64 | G114: 1216.12 | H114: 512.86
A115: 2011-01-21 | B115: Sunset | C115: South | D115: Pham | E115: HHH | F115: 13 | G115: 273.1 | H115: 120.64
A116: 2011-01-21 | B116: Bellen | C116: South | D116: Smith | E116: TRU | F116: 11 | G116: 242.26 | H116: 110.91
A117: 2011-01-21 | B117: Quad | C117: West | D117: Gault | E117: ITW | F117: 56 | G117: 1512.6 | H117: 812.83
A118: 2011-01-22 | B118: Quad | C118: South | D118: Franks | E118: FM | F118: 29 | G118: 783.75 | H118: 421.2
A119: 2011-01-22 | B119: Carlota | C119: South | D119: Smith | E119: KBTB | F119: 29 | G119: 667.99 | H119: 319.45
A120: 2011-01-22 | B120: Bellen | C120: West | D120: Pham | E120: AST | F120: 53 | G120: 1166.31 | H120: 530.24
A121: 2011-01-22 | B121: Bellen | C121: West | D121: Sioux | E121: YTR | F121: 35 | G121: 770.18 | H121: 350.66
A122: 2011-01-22 | B122: Bellen | C122: West | D122: Smith | E122: WT | F122: 6 | G122: 132.34 | H122: 60.58
A123: 2011-01-23 | B123: Quad | C123: East | D123: Franks | E123: PCC | F123: 44 | G123: 1188.81 | H123: 638.04
A124: 2011-01-23 | B124: Bellen | C124: East | D124: Gault | E124: DFGH | F124: 9 | G124: 198.06 | H124: 90.45
A125: 2011-01-23 | B125: Quad | C125: East | D125: Pham | E125: WT | F125: 22 | G125: 594.17 | H125: 319.41
A126: 2011-01-23 | B126: Sunshine | C126: South | D126: Chin | E126: T | F126: 49 | G126: 931.09 | H126: 392.91
A127: 2011-01-24 | B127: Carlota | C127: MidWest | D127: Franks | E127: BBT | F127: 13 | G127: 299.64 | H127: 143.78
A128: 2011-01-24 | B128: Quad | C128: West | D128: Gault | E128: HII | F128: 63 | G128: 1701.68 | H128: 913.74
A129: 2011-01-25 | B129: Sunshine | C129: MidWest | D129: Franks | E129: JAQ | F129: 21 | G129: 399.15 | H129: 168.95
A130: 2011-01-26 | B130: Bellen | C130: East | D130: Chin | E130: KPSA | F130: 17 | G130: 374.81 | H130: 170.37
A131: 2011-01-26 | B131: Bellen | C131: MidWest | D131: Gault | E131: PSA | F131: 21 | G131: 462.17 | H131: 210.81
A132: 2011-01-26 | B132: Sunset | C132: South | D132: Sioux | E132: DFGH | F132: 44 | G132: 924.29 | H132: 407.31
A133: 2011-01-26 | B133: Bellen | C133: West | D133: Pham | E133: FRED | F133: 61 | G133: 5000.6 | H133: 610.16
A134: 2011-01-27 | B134: Carlota | C134: West | D134: Gault | E134: QT | F134: 10 | G134: 230.25 | H134: 110.43
A135: 2011-01-28 | B135: Sunset | C135: East | D135: Smith | E135: ZAT | F135: 36 | G135: 756.46 | H135: 333.2
A136: 2011-01-28 | B136: Quad | C136: MidWest | D136: Smith | E136: YTR | F136: 42 | G136: 1134.94 | H136: 609.54
A137: 2011-01-28 | B137: Carlota | C137: South | D137: Franks | E137: MNGD | F137: 46 | G137: 1058.01 | H137: 506.64
A138: 2011-01-28 | B138: Quad | C138: South | D138: Franks | E138: YTR | F138: 44 | G138: 1188.22 | H138: 638.79
A139: 2011-01-28 | B139: Quad | C139: South | D139: Gault | E139: KBTB | F139: 56 | G139: 1512.19 | H139: 812.26
A140: 2011-01-28 | B140: Bellen | C140: South | D140: Sioux | E140: QT | F140: 25 | G140: 550.39 | H140: 250.46
A141: 2011-01-28 | B141: Sunshine | C141: South | D141: Smith | E141: FRED | F141: 51 | G141: 969.72 | H141: 408.08
A142: 2011-01-28 | B142: Sunset | C142: West | D142: Chin | E142: FM | F142: 62 | G142: 1302.86 | H142: 574.25
A143: 2011-01-28 | B143: Carlota | C143: West | D143: Smith | E143: LOP | F143: 15 | G143: 345.88 | H143: 165.74
A144: 2011-01-29 | B144: Bellen | C144: East | D144: Chin | E144: AST | F144: 50 | G144: 1100.14 | H144: 500.16
A145: 2011-01-29 | B145: Quad | C145: MidWest | D145: Gault | E145: PLOT | F145: 10 | G145: 270.5 | H145: 145.57
A146: 2011-01-30 | B146: Sunshine | C146: South | D146: Sioux | E146: TTT | F146: 23 | G146: 437.81 | H146: 184.16
A147: 2011-01-30 | B147: Quad | C147: South | D147: Sioux | E147: TTT | F147: 25 | G147: 675.75 | H147: 362.89
A148: 2011-01-30 | B148: Sunshine | C148: West | D148: Gault | E148: DFR | F148: 49 | G148: 931.49 | H148: 392.84

Sheet Data(2)
A1: 31 | B1: Group Dates: Right-click Date in Pivot and point to Group.
A2: 32 | B2: Group Times: Right-click Time in Pivot and point to Group.
A3: 33 | B3: Old Excel 2003 dialog box to group or ungroup a field in a second way:
B4: Keyboard: Alt, D, P.
B5: This creates a separate cache of data.
A11: Invoice Number | B11: Date | C11: Time | D11: Internal Toy ID Number | E11: Toy Item Number | F11: Toy Company | G11: Toy Name | H11: Suggested Age | I11: Price Per Toy | J11: Units Sold | K11: Total Line Revenue | L11: Total COGS | M11: Payment | N11: Cashier ID | O11: Member? | P11: Coupon? | Q11: Purchaser Age | R11: Parking Validation? | T11: Date | U11: Product | V11: Region | W11: SalesRep | X11: Customer | Y11: Units | Z11: Sales | AA11: COGS | AD11: SalesIntegers | AF11: SalesDecimals
A12: 654522 | B12: 2010-01-07 | C12: 10:25:37.200 | D12: D255/FE | E12: 192 | F12: Duplo | G12: Policemen | H12: 6 and up | I12: 9.95 | J12: 1 | K12: 9.95 | L12: 5.17 | M12: Cash | N12: V.W.|880-4523 | O12: No | P12: No | Q12: 39 | R12: No | T12: 2011-01-01 | U12: Quad | V12: East | W12: Sioux | X12: AA | Y12: 16 | Z12: 432.17 | AA12: 232.99 | AD12: 11 | AF12: 11.61
A13: 654526 | B13: 2010-01-07 | C13: 12:00:00 | D13: L217/SN | E13: 255 | F13: Duplo | G13: Farming Scene | H13: 7 and up | I13: 24.95 | J13: 5 | K13: 124.75 | L13: 81.1 | M13: Visa | N13: B.X.|880-9149 | O13: No | P13: No | Q13: 29 | R13: No | U13: Bellen | V13: South | W13: Gault | X13: KBTB | Y13: 24 | Z13: 528.5 | AA13: 240.35 | AD13: 18 | AF13: 18.15
A14: 654568 | B14: 2010-01-07 | C14: 14:19:12 | D14: L195/AE | E14: 195 | F14: Lego | G14: Airplane | H14: 8 and up | I14: 5.95 | J14: 1 | K14: 5.95 | L14: 3.09 | M14: Cash | N14: Z.Q.|880-4240 | O14: No | P14: Yes | Q14: 46 | R14: Yes | T14: 1/2/11 | U14: Quad | V14: West | W14: Pham | X14: AST | Y14: 30 | Z14: 810.71 | AA14: 435.64 | AD14: 12 | AF14: 12.88
A15: 654576 | B15: 2010-01-25 | C15: 12:57:00 | D15: L256/PE | E15: 256 | F15: Lego | G15: Police Officers and Motorcycle | H15: 9 and up | I15: 9.95 | J15: 1 | K15: 9.95 | L15: 4.48 | M15: Discover | N15: D.U.|880-2953 | O15: No | P15: No | Q15: 36 | R15: No | T15: 2011-01-02 | U15: Bellen | V15: West | W15: Pham | X15: SFWK | Y15: 19 | Z15: 418.54 | AA15: 190.05 | AD15: 8 | AF15: 8.14
A16: 654613 | B16: 2010-02-05 | C16: 14:51:36 | D16: D250/AT | E16: 192 | F16: Duplo | G16: Policemen | H16: 6 and up | I16: 9.95 | J16: 1 | K16: 9.95 | L16: 5.17 | M16: Cash | N16: D.Z.|880-1179 | O16: No | P16: No | Q16: 33 | R16: No | T16: 2011-01-03 | U16: Sunshine | V16: East | W16: Pham | X16: FM | Y16: 38 | Z16: 722.22 | AA16: 304.06 | AD16: 12 | AF16: 12.64
A17: 654624 | B17: 2010-02-05 | C17: 14:36:00 | D17: D250/AT | E17: 192 | F17: Duplo | G17: Policemen | H17: 6 and up | I17: 9.95 | J17: 5 | K17: 49.75 | L17: 25.85 | M17: Cash | N17: L.W.|880-4986 | O17: No | P17: No | Q17: 47 | R17: No | T17: 2011-01-03 | U17: Carlota | V17: MidWest | W17: Chin | X17: FM | Y17: 20 | Z17: 460.28 | AA17: 220.63 | AD17: 19 | AF17: 19.84
A18: 654650 | B18: 2010-02-06 | C18: 14:33:36 | D18: D250/AT | E18: 192 | F18: Duplo | G18: Policemen | H18: 6 and up | I18: 9.95 | J18: 1 | K18: 9.95 | L18: 5.17 | M18: Mastercard | N18: D.S.|880-7532 | O18: No | P18: No | Q18: 34 | R18: No | T18: 2011-01-03 | U18: Sunset | V18: South | W18: Pham | X18: WSD | Y18: 23 | Z18: 483.58 | AA18: 213.57 | AD18: 7 | AF18: 7.39
A19: 654650 | B19: 2010-02-06 | C19: 14:33:36 | D19: L195/AE | E19: 195 | F19: Lego | G19: Airplane | H19: 8 and up | I19: 5.95 | J19: 2 | K19: 11.9 | L19: 6.18 | M19: Mastercard | N19: D.S.|880-7532 | O19: No | P19: No | Q19: 34 | R19: No | T19: 2011-01-03 | U19: Sunshine | V19: South | W19: Sioux | X19: PCC | Y19: 6 | Z19: 114.53 | AA19: 48.26 | AD19: 3 | AF19: 3.4
A20: 654668 | B20: 2010-02-11 | C20: 13:42:46.800 | D20: L195/AE | E20: 195 | F20: Lego | G20: Airplane | H20: 8 and up | I20: 5.95 | J20: 1 | K20: 5.95 | L20: 3.09 | M20: Check | N20: D.W.|880-7199 | O20: No | P20: No | Q20: 47 | R20: Yes | T20: 2011-01-04 | U20: Sunset | V20: MidWest | W20: Sioux | X20: BBT | Y20: 29 | Z20: 609.12 | AA20: 269.16 | AD20: 18 | AF20: 18.12
A21: 654673 | B21: 2010-02-20 | C21: 15:27:18 | D21: L256/PE | E21: 256 | F21: Lego | G21: Police Officers and Motorcycle | H21: 9 and up | I21: 9.95 | J21: 4 | K21: 39.8 | L21: 17.92 | M21: Cash | N21: W.B.|880-9647 | O21: No | P21: No | Q21: 32 | R21: No | T21: 2011-01-05 | U21: Sunset | V21: South | W21: Pham | X21: TTT | Y21: 57 | Z21: 1197.9 | AA21: 527.98 | AD21: 13 | AF21: 13.94
A22: 654693 | B22: 2010-03-11 | C22: 15:45:36 | D22: D254/FE | E22: 192 | F22: Duplo | G22: Policemen | H22: 6 and up | I22: 9.95 | J22: 1 | K22: 9.95 | L22: 5.17 | M22: Cash | N22: B.Y.|880-6845 | O22: No | P22: No | Q22: 36 | R22: No | T22: 2011-01-05 | U22: Sunshine | V22: West | W22: Franks | X22: ET | Y22: 12 | Z22: 228.89 | AA22: 96.02 | AD22: 2 | AF22: 2.88
A23: 654693 | B23: 2010-03-11 | C23: 15:45:36 | D23: L195/AE | E23: 195 | F23: Lego | G23: Airplane | H23: 8 and up | I23: 5.95 | J23: 1 | K23: 5.95 | L23: 3.09 | M23: Cash | N23: B.Y.|880-6845 | O23: No | P23: No | Q23: 36 | R23: No | T23: 2011-01-05 | U23: Carlota | V23: West | W23: Franks | X23: ITTW | Y23: 60 | Z23: 1380.07 | AA23: 660.4 | AD23: 15 | AF23: 15.77
A24: 654733 | B24: 2010-03-11 | C24: 13:59:24 | D24: L256/PE | E24: 256 | F24: Lego | G24: Police Officers and Motorcycle | H24: 9 and up | I24: 9.95 | J24: 2 | K24: 19.9 | L24: 8.96 | M24: Visa | N24: P.N.|880-3021 | O24: No | P24: No | Q24: 36 | R24: No
A25: 654754 | B25: 2010-03-27 | C25: 12:08:24 | D25: D255/FE | E25: 192 | F25: Duplo | G25: Policemen | H25: 6 and up | I25: 9.95 | J25: 1 | K25: 9.95 | L25: 5.17 | M25: Mastercard | N25: P.N.|880-3021 | O25: No | P25: No | Q25: 33 | R25: No | T25: Date | U25: Product | V25: Region | W25: SalesRep | X25: Customer | Y25: Units | Z25: Sales | AA25: COGS
A26: 654799 | B26: 2010-04-03 | C26: 15:27:36 | D26: D255/FE | E26: 192 | F26: Duplo | G26: Policemen | H26: 6 and up | I26: 9.95 | J26: 3 | K26: 29.85 | L26: 15.51 | M26: Cash | N26: A.U.|880-2167 | O26: Yes | P26: No | Q26: 47 | R26: No | T26: 2011-01-01 | U26: Quad | V26: East | W26: Sioux | X26: AA | Y26: 16 | Z26: 432.17 | AA26: 232.99
A27: 654827 | B27: 2010-04-09 | C27: 15:58:33.600 | D27: D254/FE | E27: 192 | F27: Duplo | G27: Policemen | H27: 6 and up | I27: 9.95 | J27: 2 | K27: 19.9 | L27: 10.34 | M27: Mastercard | N27: A.U.|880-2167 | O27: No | P27: No | Q27: 35 | R27: Yes | U27: Bellen | V27: South | W27: Gault | X27: KBTB | Y27: 24 | Z27: 528.5 | AA27: 240.35
A28: 654834 | B28: 2010-04-09 | C28: 12:06:00 | D28: D254/FE | E28: 192 | F28: Duplo | G28: Policemen | H28: 6 and up | I28: 9.95 | J28: 2 | K28: 19.9 | L28: 10.34 | M28: Visa | N28: Z.Q.|880-4240 | O28: Yes | P28: Yes | Q28: 49 | R28: No | T28: 1/2/11 | U28: Quad | V28: West | W28: Pham | X28: AST | Y28: 30 | Z28: 810.71 | AA28: 435.64
A29: 654860 | B29: 2010-04-09 | C29: 17:12:36 | D29: L195/AE | E29: 195 | F29: Lego | G29: Airplane | H29: 8 and up | I29: 5.95 | J29: 2 | K29: 11.9 | L29: 6.18 | M29: Gift Card | N29: B.B.|880-9330 | O29: No | P29: Yes | Q29: 30 | R29: No | T29: 2011-01-02 | U29: Bellen | V29: West | W29: Pham | X29: SFWK | Y29: 19 | Z29: 418.54 | AA29: 190.05
A30: 654883 | B30: 2010-04-09 | C30: 12:59:16.800 | D30: L217/SN | E30: 255 | F30: Duplo | G30: Farming Scene | H30: 7 and up | I30: 24.95 | J30: 3 | K30: 74.85 | L30: 48.66 | M30: Visa | N30: Z.Q.|880-4240 | O30: No | P30: No | Q30: 42 | R30: Yes | T30: 2011-01-03 | U30: Sunshine | V30: East | W30: Pham | X30: FM | Y30: 38 | Z30: 722.22 | AA30: 304.06
A31: 654908 | B31: 2010-04-14 | C31: 19:54:00 | D31: D218/FN | E31: 192 | F31: Duplo | G31: Policemen | H31: 6 and up | I31: 9.95 | J31: 1 | K31: 9.95 | L31: 5.17 | M31: Mastercard | N31: L.C.|880-6872 | O31: No | P31: No | Q31: 39 | R31: No | T31: 2011-01-03 | U31: Carlota | V31: MidWest | W31: Chin | X31: FM | Y31: 20 | Z31: 460.28 | AA31: 220.63
A32: 654932 | B32: 2010-04-14 | C32: 12:42:00 | D32: D250/AT | E32: 192 | F32: Duplo | G32: Policemen | H32: 6 and up | I32: 9.95 | J32: 1 | K32: 9.95 | L32: 5.17 | M32: Mastercard | N32: U.O.|880-3720 | O32: No | P32: No | Q32: 36 | R32: Yes | T32: 2011-01-03 | U32: Sunset | V32: South | W32: Pham | X32: WSD | Y32: 23 | Z32: 483.58 | AA32: 213.57
A33: 654979 | B33: 2010-04-17 | C33: 14:16:30 | D33: D254/FE | E33: 192 | F33: Duplo | G33: Policemen | H33: 6 and up | I33: 9.95 | J33: 2 | K33: 19.9 | L33: 10.34 | M33: Cash | N33: D.W.|880-7199 | O33: No | P33: Yes | Q33: 39 | R33: No | T33: 2011-01-03 | U33: Sunshine | V33: South | W33: Sioux | X33: PCC | Y33: 6 | Z33: 114.53 | AA33: 48.26
A34: 655029 | B34: 2010-04-22 | C34: 13:39:36 | D34: L256/PE | E34: 256 | F34: Lego | G34: Police Officers and Motorcycle | H34: 9 and up | I34: 9.95 | J34: 1 | K34: 9.95 | L34: 4.48 | M34: Discover | N34: S.V.|880-5987 | O34: No | P34: Yes | Q34: 63 | R34: No | T34: 2011-01-04 | U34: Sunset | V34: MidWest | W34: Sioux | X34: BBT | Y34: 29 | Z34: 609.12 | AA34: 269.16
A35: 655035 | B35: 2010-04-24 | C35: 17:16:48 | D35: L340/FS | E35: 340 | F35: Lego | G35: Fire Trucks | H35: 6 and up | I35: 34.95 | J35: 2 | K35: 69.9 | L35: 39.84 | M35: Mastercard | N35: V.W.|880-4523 | O35: Yes | P35: Yes | Q35: 38 | R35: No | T35: 2011-01-05 | U35: Sunset | V35: South | W35: Pham | X35: TTT | Y35: 57 | Z35: 1197.9 | AA35: 527.98
A36: 655083 | B36: 2010-04-25 | C36: 16:52:12 | D36: L256/PE | E36: 256 | F36: Lego | G36: Police Officers and Motorcycle | H36: 9 and up | I36: 9.95 | J36: 2 | K36: 19.9 | L36: 8.96 | M36: Visa | N36: N.W.|880-6237 | O36: No | P36: Yes | Q36: 33 | R36: No | T36: 2011-01-05 | U36: Sunshine | V36: West | W36: Franks | X36: ET | Y36: 12 | Z36: 228.89 | AA36: 96.02
A37: 655105 | B37: 2010-05-01 | C37: 15:27:36 | D37: L256/PE | E37: 256 | F37: Lego | G37: Police Officers and Motorcycle | H37: 9 and up | I37: 9.95 | J37: 1 | K37: 9.95 | L37: 4.48 | M37: Visa | N37: U.W.|880-9683 | O37: No | P37: No | Q37: 33 | R37: No | T37: 2011-01-05 | U37: Carlota | V37: West | W37: Franks | X37: ITTW | Y37: 60 | Z37: 1380.07 | AA37: 660.4
A38: 655105 | B38: 2010-05-01 | C38: 15:27:36 | D38: L256/PE | E38: 256 | F38: Lego | G38: Police Officers and Motorcycle | H38: 9 and up | I38: 9.95 | J38: 2 | K38: 19.9 | L38: 8.96 | M38: Visa | N38: U.W.|880-9683 | O38: No | P38: No | Q38: 33 | R38: No
A39: 655112 | B39: 2010-05-04 | C39: 14:47:13.200 | D39: D255/FE | E39: 192 | F39: Duplo | G39: Policemen | H39: 6 and up | I39: 9.95 | J39: 1 | K39: 9.95 | L39: 5.17 | M39: Visa | N39: H.B.|880-3254 | O39: Yes | P39: Yes | Q39: 31 | R39: No
A40: 655124 | B40: 2010-05-06 | C40: 12:39:57.600 | D40: D255/FE | E40: 192 | F40: Duplo | G40: Policemen | H40: 6 and up | I40: 9.95 | J40: 1 | K40: 9.95 | L40: 5.17 | M40: Visa | N40: Z.Q.|880-4240 | O40: No | P40: No | Q40: 45 | R40: No
A41: 655165 | B41: 2010-05-30 | C41: 17:40:12 | D41: D250/AT | E41: 192 | F41: Duplo | G41: Policemen | H41: 6 and up | I41: 9.95 | J41: 2 | K41: 19.9 | L41: 10.34 | M41: Cash | N41: D.U.|880-2953 | O41: Yes | P41: Yes | Q41: 29 | R41: No
A42: 655189 | B42: 2010-05-30 | C42: 16:21:00 | D42: L195/AE | E42: 195 | F42: Lego | G42: Airplane | H42: 8 and up | I42: 5.95 | J42: 2 | K42: 11.9 | L42: 6.18 | M42: Visa | N42: B.B.|880-9330 | O42: No | P42: No | Q42: 49 | R42: No
A43: 655232 | B43: 2010-05-30 | C43: 11:17:24 | D43: D250/AT | E43: 192 | F43: Duplo | G43: Policemen | H43: 6 and up | I43: 9.95 | J43: 1 | K43: 9.95 | L43: 5.17 | M43: Cash | N43: H.B.|880-3254 | O43: No | P43: Yes | Q43: 42 | R43: No
A44: 655232 | B44: 2010-05-30 | C44: 11:17:24 | D44: L256/PE | E44: 256 | F44: Lego | G44: Police Officers and Motorcycle | H44: 9 and up | I44: 9.95 | J44: 2 | K44: 19.9 | L44: 8.96 | M44: Cash | N44: H.B.|880-3254 | O44: No | P44: Yes | Q44: 42 | R44: No
A45: 655281 | B45: 2010-06-01 | C45: 15:27:36 | D45: D255/FE | E45: 192 | F45: Duplo | G45: Policemen | H45: 6 and up | I45: 9.95 | J45: 4 | K45: 39.8 | L45: 20.68 | M45: Mastercard | N45: W.C.|880-4861 | O45: No | P45: No | Q45: 34 | R45: Yes
A46: 655298 | B46: 2010-06-09 | C46: 16:28:48 | D46: D255/FE | E46: 192 | F46: Duplo | G46: Policemen | H46: 6 and up | I46: 9.95 | J46: 1 | K46: 9.95 | L46: 5.17 | M46: Discover | N46: V.W.|880-8599 | O46: No | P46: No | Q46: 36 | R46: No
A47: 655323 | B47: 2010-06-13 | C47: 12:18:36 | D47: D255/FE | E47: 192 | F47: Duplo | G47: Policemen | H47: 6 and up | I47: 9.95 | J47: 1 | K47: 9.95 | L47: 5.17 | M47: Mastercard | N47: N.C.|880-3850 | O47: No | P47: No | Q47: 41 | R47: No
A48: 655358 | B48: 2010-06-13 | C48: 19:16:12 | D48: L195/AE | E48: 195 | F48: Lego | G48: Airplane | H48: 8 and up | I48: 5.95 | J48: 2 | K48: 11.9 | L48: 6.18 | M48: Cash | N48: W.C.|880-4861 | O48: No | P48: No | Q48: 32 | R48: Yes
A49: 655358 | B49: 2010-06-13 | C49: 19:16:12 | D49: D254/FE | E49: 192 | F49: Duplo | G49: Policemen | H49: 6 and up | I49: 9.95 | J49: 1 | K49: 9.95 | L49: 5.17 | M49: Cash | N49: W.C.|880-4861 | O49: No | P49: No | Q49: 32 | R49: Yes
A50: 655373 | B50: 2010-06-21 | C50: 12:27:39.600 | D50: L195/AE | E50: 195 | F50: Lego | G50: Airplane | H50: 8 and up | I50: 5.95 | J50: 1 | K50: 5.95 | L50: 3.09 | M50: Visa | N50: N.W.|880-6237 | O50: No | P50: No | Q50: 43 | R50: No
A51: 655385 | B51: 2010-06-21 | C51: 16:05:24 | D51: L256/PE | E51: 256 | F51: Lego | G51: Police Officers and Motorcycle | H51: 9 and up | I51: 9.95 | J51: 2 | K51: 19.9 | L51: 8.96 | M51: Mastercard | N51: W.B.|880-9647 | O51: No | P51: No | Q51: 46 | R51: No
A52: 655412 | B52: 2010-06-24 | C52: 11:39:10.800 | D52: D254/FE | E52: 192 | F52: Duplo | G52: Policemen | H52: 6 and up | I52: 9.95 | J52: 5 | K52: 49.75 | L52: 25.85 | M52: Mastercard | N52: H.B.|880-3254 | O52: No | P52: No | Q52: 65 | R52: No
A53: 655412 | B53: 2010-06-24 | C53: 11:39:10.800 | D53: D250/AT | E53: 192 | F53: Duplo | G53: Policemen | H53: 6 and up | I53: 9.95 | J53: 2 | K53: 19.9 | L53: 10.34 | M53: Mastercard | N53: H.B.|880-3254 | O53: No | P53: No | Q53: 65 | R53: No
A54: 655420 | B54: 2010-06-26 | C54: 16:09:36 | D54: L256/PE | E54: 256 | F54: Lego | G54: Police Officers and Motorcycle | H54: 9 and up | I54: 9.95 | J54: 2 | K54: 19.9 | L54: 8.96 | M54: Mastercard | N54: A.U.|880-2167 | O54: No | P54: No | Q54: 56 | R54: Yes
A55: 655467 | B55: 2010-07-04 | C55: 13:46:48 | D55: L195/AE | E55: 195 | F55: Lego | G55: Airplane | H55: 8 and up | I55: 5.95 | J55: 1 | K55: 5.95 | L55: 3.09 | M55: Cash | N55: Y.P.|880-6894 | O55: No | P55: No | Q55: 34 | R55: Yes
A56: 655505 | B56: 2010-07-09 | C56: 09:10:12 | D56: D254/FE | E56: 192 | F56: Duplo | G56: Policemen | H56: 6 and up | I56: 9.95 | J56: 2 | K56: 19.9 | L56: 10.34 | M56: Gift Card | N56: N.C.|880-3850 | O56: No | P56: No | Q56: 30 | R56: Yes
A57: 655526 | B57: 2010-07-09 | C57: 12:57:36 | D57: D250/AT | E57: 192 | F57: Duplo | G57: Policemen | H57: 6 and up | I57: 9.95 | J57: 3 | K57: 29.85 | L57: 15.51 | M57: Mastercard | N57: Z.Q.|880-4240 | O57: No | P57: No | Q57: 24 | R57: Yes
A58: 655557 | B58: 2010-07-10 | C58: 16:00:00 | D58: L195/AE | E58: 195 | F58: Lego | G58: Airplane | H58: 8 and up | I58: 5.95 | J58: 4 | K58: 23.8 | L58: 12.36 | M58: Visa | N58: V.W.|880-8599 | O58: No | P58: No | Q58: 37 | R58: No
A59: 655557 | B59: 2010-07-10 | C59: 16:00:00 | D59: D255/FE | E59: 192 | F59: Duplo | G59: Policemen | H59: 6 and up | I59: 9.95 | J59: 2 | K59: 19.9 | L59: 10.34 | M59: Visa | N59: V.W.|880-8599 | O59: No | P59: No | Q59: 37 | R59: No
A60: 655570 | B60: 2010-07-18 | C60: 14:46:12 | D60: D255/FE | E60: 192 | F60: Duplo | G60: Policemen | H60: 6 and up | I60: 9.95 | J60: 1 | K60: 9.95 | L60: 5.17 | M60: Cash | N60: L.W.|880-4986 | O60: No | P60: Yes | Q60: 37 | R60: No
A61: 655577 | B61: 2010-07-19 | C61: 11:24:00 | D61: L256/PE | E61: 256 | F61: Lego | G61: Police Officers and Motorcycle | H61: 9 and up | I61: 9.95 | J61: 4 | K61: 39.8 | L61: 17.92 | M61: Mastercard | N61: V.W.|880-8599 | O61: No | P61: No | Q61: 12 | R61: No
A62: 655613 | B62: 2010-07-25 | C62: 12:04:22.800 | D62: D250/AT | E62: 192 | F62: Duplo | G62: Policemen | H62: 6 and up | I62: 9.95 | J62: 2 | K62: 19.9 | L62: 10.34 | M62: Visa | N62: L.W.|880-4986 | O62: No | P62: No | Q62: 64 | R62: No
A63: 655623 | B63: 2010-07-29 | C63: 10:13:48 | D63: D250/AT | E63: 192 | F63: Duplo | G63: Policemen | H63: 6 and up | I63: 9.95 | J63: 1 | K63: 9.95 | L63: 5.17 | M63: Visa | N63: D.U.|880-2953 | O63: No | P63: No | Q63: 43 | R63: No
A64: 655643 | B64: 2010-07-30 | C64: 11:49:48 | D64: L195/AE | E64: 195 | F64: Lego | G64: Airplane | H64: 8 and up | I64: 5.95 | J64: 3 | K64: 17.85 | L64: 9.27 | M64: Gift Card | N64: N.C.|880-3850 | O64: No | P64: No | Q64: 48 | R64: No
A65: 655661 | B65: 2010-08-09 | C65: 16:56:24 | D65: D250/AT | E65: 192 | F65: Duplo | G65: Policemen | H65: 6 and up | I65: 9.95 | J65: 1 | K65: 9.95 | L65: 5.17 | M65: Mastercard | N65: C.X.|880-3590 | O65: Yes | P65: Yes | Q65: 34 | R65: No
A66: 655661 | B66: 2010-08-09 | C66: 16:56:24 | D66: D254/FE | E66: 192 | F66: Duplo | G66: Policemen | H66: 6 and up | I66: 9.95 | J66: 1 | K66: 9.95 | L66: 5.17 | M66: Mastercard | N66: C.X.|880-3590 | O66: Yes | P66: Yes | Q66: 34 | R66: No
A67: 655673 | B67: 2010-08-16 | C67: 15:42:36 | D67: D255/FE | E67: 192 | F67: Duplo | G67: Policemen | H67: 6 and up | I67: 9.95 | J67: 1 | K67: 9.95 | L67: 5.17 | M67: Cash | N67: D.U.|880-2953 | O67: No | P67: No | Q67: 50 | R67: Yes
A68: 655676 | B68: 2010-08-18 | C68: 18:27:36 | D68: D254/FE | E68: 192 | F68: Duplo | G68: Policemen | H68: 6 and up | I68: 9.95 | J68: 1 | K68: 9.95 | L68: 5.17 | M68: Cash | N68: D.Z.|880-1179 | O68: No | P68: No | Q68: 38 | R68: No
A69: 655676 | B69: 2010-08-18 | C69: 18:27:36 | D69: D254/FE | E69: 192 | F69: Duplo | G69: Policemen | H69: 6 and up | I69: 9.95 | J69: 4 | K69: 39.8 | L69: 20.68 | M69: Cash | N69: D.Z.|880-1179 | O69: No | P69: No | Q69: 38 | R69: No
A70: 655679 | B70: 2010-08-24 | C70: 16:49:12 | D70: D250/AT | E70: 192 | F70: Duplo | G70: Policemen | H70: 6 and up | I70: 9.95 | J70: 3 | K70: 29.85 | L70: 15.51 | M70: Gift Card | N70: S.V.|880-5987 | O70: No | P70: No | Q70: 41 | R70: No
A71: 655716 | B71: 2010-09-02 | C71: 16:19:04.800 | D71: D250/AT | E71: 192 | F71: Duplo | G71: Policemen | H71: 6 and up | I71: 9.95 | J71: 1 | K71: 9.95 | L71: 5.17 | M71: Cash | N71: U.W.|880-9683 | O71: Yes | P71: No | Q71: 21 | R71: No
A72: 655731 | B72: 2010-09-05 | C72: 18:17:24 | D72: D254/FE | E72: 192 | F72: Duplo | G72: Policemen | H72: 6 and up | I72: 9.95 | J72: 1 | K72: 9.95 | L72: 5.17 | M72: Visa | N72: Z.T.|880-7477 | O72: No | P72: Yes | Q72: 31 | R72: No
A73: 655768 | B73: 2010-09-12 | C73: 14:41:34.800 | D73: L256/PE | E73: 256 | F73: Lego | G73: Police Officers and Motorcycle | H73: 9 and up | I73: 9.95 | J73: 1 | K73: 9.95 | L73: 4.48 | M73: Mastercard | N73: H.B.|880-3254 | O73: No | P73: No | Q73: 40 | R73: No
A74: 655793 | B74: 2010-09-12 | C74: 17:33:00 | D74: D255/FE | E74: 192 | F74: Duplo | G74: Policemen | H74: 6 and up | I74: 9.95 | J74: 3 | K74: 29.85 | L74: 15.51 | M74: Cash | N74: A.U.|880-2167 | O74: Yes | P74: Yes | Q74: 48 | R74: No
A75: 655793 | B75: 2010-09-12 | C75: 17:33:00 | D75: D254/FE | E75: 192 | F75: Duplo | G75: Policemen | H75: 6 and up | I75: 9.95 | J75: 1 | K75: 9.95 | L75: 5.17 | M75: Cash | N75: A.U.|880-2167 | O75: Yes | P75: Yes | Q75: 48 | R75: No
A76: 655833 | B76: 2010-09-21 | C76: 18:36:36 | D76: L195/AE | E76: 195 | F76: Lego | G76: Airplane | H76: 8 and up | I76: 5.95 | J76: 2 | K76: 11.9 | L76: 6.18 | M76: Discover | N76: H.B.|880-3254 | O76: No | P76: No | Q76: 32 | R76: Yes
A77: 655833 | B77: 2010-09-21 | C77: 18:36:36 | D77: D250/AT | E77: 192 | F77: Duplo | G77: Policemen | H77: 6 and up | I77: 9.95 | J77: 2 | K77: 19.9 | L77: 10.34 | M77: Discover | N77: H.B.|880-3254 | O77: No | P77: No | Q77: 32 | R77: Yes
A78: 655842 | B78: 2010-10-04 | C78: 13:49:12 | D78: D250/AT | E78: 192 | F78: Duplo | G78: Policemen | H78: 6 and up | I78: 9.95 | J78: 2 | K78: 19.9 | L78: 10.34 | M78: Cash | N78: D.W.|880-7199 | O78: No | P78: No | Q78: 44 | R78: No
A79: 655845 | B79: 2010-10-14 | C79: 20:37:48 | D79: L195/AE | E79: 195 | F79: Lego | G79: Airplane | H79: 8 and up | I79: 5.95 | J79: 1 | K79: 5.95 | L79: 3.09 | M79: Mastercard | N79: N.C.|880-3850 | O79: No | P79: No | Q79: 34 | R79: No
A80: 655894 | B80: 2010-10-16 | C80: 16:01:48 | D80: D255/FE | E80: 192 | F80: Duplo | G80: Policemen | H80: 6 and up | I80: 9.95 | J80: 1 | K80: 9.95 | L80: 5.17 | M80: Discover | N80: D.S.|880-7532 | O80: No | P80: No | Q80: 40 | R80: No
A81: 655933 | B81: 2010-10-16 | C81: 10:30:00 | D81: L195/AE | E81: 195 | F81: Lego | G81: Airplane | H81: 8 and up | I81: 5.95 | J81: 2 | K81: 11.9 | L81: 6.18 | M81: Cash | N81: U.W.|880-9683 | O81: No | P81: No | Q81: 31 | R81: No
A82: 655965 | B82: 2010-10-21 | C82: 11:27:28.800 | D82: L196/AR | E82: 196 | F82: Lego | G82: Antique Car | H82: 8 and up | I82: 7.95 | J82: 2 | K82: 15.9 | L82: 8.9 | M82: Visa | N82: W.C.|880-4861 | O82: No | P82: No | Q82: 45 | R82: No
A83: 655965 | B83: 2010-10-21 | C83: 11:27:28.800 | D83: D254/FE | E83: 192 | F83: Duplo | G83: Policemen | H83: 6 and up | I83: 9.95 | J83: 1 | K83: 9.95 | L83: 5.17 | M83: Visa | N83: W.C.|880-4861 | O83: No | P83: No | Q83: 45 | R83: No
A84: 655976 | B84: 2010-11-01 | C84: 08:55:48 | D84: D250/AT | E84: 192 | F84: Duplo | G84: Policemen | H84: 6 and up | I84: 9.95 | J84: 1 | K84: 9.95 | L84: 5.17 | M84: Check | N84: D.W.|880-7199 | O84: No | P84: No | Q84: 34 | R84: No
A85: 656007 | B85: 2010-11-01 | C85: 20:07:48 | D85: D254/FE | E85: 192 | F85: Duplo | G85: Policemen | H85: 6 and up | I85: 9.95 | J85: 1 | K85: 9.95 | L85: 5.17 | M85: Mastercard | N85: Z.T.|880-7477 | O85: No | P85: No | Q85: 43 | R85: No
A86: 656032 | B86: 2010-11-01 | C86: 19:55:48 | D86: L194/FY | E86: 194 | F86: Lego | G86: Family | H86: 4 and up | I86: 14.95 | J86: 1 | K86: 14.95 | L86: 8.37 | M86: Visa | N86: W.B.|880-9647 | O86: No | P86: No | Q86: 43 | R86: No
A87: 656032 | B87: 2010-11-01 | C87: 19:55:48 | D87: D254/FE | E87: 192 | F87: Duplo | G87: Policemen | H87: 6 and up | I87: 9.95 | J87: 1 | K87: 9.95 | L87: 5.17 | M87: Visa | N87: W.B.|880-9647 | O87: No | P87: No | Q87: 43 | R87: No
A88: 656077 | B88: 2010-11-02 | C88: 19:21:00 | D88: L256/PE | E88: 256 | F88: Lego | G88: Police Officers and Motorcycle | H88: 9 and up | I88: 9.95 | J88: 1 | K88: 9.95 | L88: 4.48 | M88: Cash | N88: U.W.|880-9683 | O88: Yes | P88: No | Q88: 37 | R88: No
A89: 656123 | B89: 2010-11-02 | C89: 15:27:36 | D89: L256/PE | E89: 256 | F89: Lego | G89: Police Officers and Motorcycle | H89: 9 and up | I89: 9.95 | J89: 1 | K89: 9.95 | L89: 4.48 | M89: Gift Card | N89: V.W.|880-8599 | O89: No | P89: Yes | Q89: 38 | R89: Yes
A90: 656125 | B90: 2010-11-02 | C90: 11:49:12 | D90: D250/AT | E90: 192 | F90: Duplo | G90: Policemen | H90: 6 and up | I90: 9.95 | J90: 1 | K90: 9.95 | L90: 5.17 | M90: Cash | N90: U.O.|880-3720 | O90: No | P90: No | Q90: 37 | R90: No
A91: 656125 | B91: 2010-11-02 | C91: 11:49:12 | D91: L195/AE | E91: 195 | F91: Lego | G91: Airplane | H91: 8 and up | I91: 5.95 | J91: 1 | K91: 5.95 | L91: 3.09 | M91: Cash | N91: U.O.|880-3720 | O91: No | P91: No | Q91: 37 | R91: No
A92: 656171 | B92: 2010-11-02 | C92: 15:14:24 | D92: L256/PE | E92: 256 | F92: Lego | G92: Police Officers and Motorcycle | H92: 9 and up | I92: 9.95 | J92: 3 | K92: 29.85 | L92: 13.44 | M92: Visa | N92: S.V.|880-5987 | O92: No | P92: No | Q92: 50 | R92: No
A93: 656171 | B93: 2010-11-02 | C93: 15:14:24 | D93: L256/PE | E93: 256 | F93: Lego | G93: Police Officers and Motorcycle | H93: 9 and up | I93: 9.95 | J93: 1 | K93: 9.95 | L93: 4.48 | M93: Visa | N93: S.V.|880-5987 | O93: No | P93: No | Q93: 50 | R93: No
A94: 656207 | B94: 2010-11-02 | C94: 13:25:48 | D94: D255/FE | E94: 192 | F94: Duplo | G94: Policemen | H94: 6 and up | I94: 9.95 | J94: 1 | K94: 9.95 | L94: 5.17 | M94: Cash | N94: N.C.|880-3850 | O94: No | P94: No | Q94: 50 | R94: No
A95: 656246 | B95: 2010-11-02 | C95: 10:59:16.800 | D95: L195/AE | E95: 195 | F95: Lego | G95: Airplane | H95: 8 and up | I95: 5.95 | J95: 1 | K95: 5.95 | L95: 3.09 | M95: Visa | N95: A.U.|880-2167 | O95: No | P95: Yes | Q95: 43 | R95: No
A96: 656246 | B96: 2010-11-02 | C96: 10:59:16.800 | D96: L256/PE | E96: 256 | F96: Lego | G96: Police Officers and Motorcycle | H96: 9 and up | I96: 9.95 | J96: 1 | K96: 9.95 | L96: 4.48 | M96: Visa | N96: A.U.|880-2167 | O96: No | P96: Yes | Q96: 43 | R96: No
A97: 656287 | B97: 2010-11-03 | C97: 15:33:28.800 | D97: D255/FE | E97: 192 | F97: Duplo | G97: Policemen | H97: 6 and up | I97: 9.95 | J97: 1 | K97: 9.95 | L97: 5.17 | M97: Check | N97: C.X.|880-3590 | O97: No | P97: No | Q97: 43 | R97: No
A98: 656300 | B98: 2010-11-03 | C98: 17:16:12 | D98: D255/FE | E98: 192 | F98: Duplo | G98: Policemen | H98: 6 and up | I98: 9.95 | J98: 1 | K98: 9.95 | L98: 5.17 | M98: Cash | N98: N.C.|880-3850 | O98: No | P98: No | Q98: 27 | R98: No
A99: 656314 | B99: 2010-11-03 | C99: 12:48:36 | D99: D255/FE | E99: 192 | F99: Duplo | G99: Policemen | H99: 6 and up | I99: 9.95 | J99: 4 | K99: 39.8 | L99: 20.68 | M99: Visa | N99: D.S.|880-7532 | O99: No | P99: Yes | Q99: 26 | R99: No
A100: 656314 | B100: 2010-11-03 | C100: 12:48:36 | D100: L195/AE | E100: 195 | F100: Lego | G100: Airplane | H100: 8 and up | I100: 5.95 | J100: 5 | K100: 29.75 | L100: 15.45 | M100: Visa | N100: D.S.|880-7532 | O100: No | P100: Yes | Q100: 26 | R100: No
A101: 656314 | B101: 2010-11-03 | C101: 12:48:36 | D101: L195/AE | E101: 195 | F101: Lego | G101: Airplane | H101: 8 and up | I101: 5.95 | J101: 1 | K101: 5.95 | L101: 3.09 | M101: Visa | N101: D.S.|880-7532 | O101: No | P101: Yes | Q101: 26 | R101: No
A102: 656364 | B102: 2010-11-04 | C102: 16:56:24 | D102: L195/AE | E102: 195 | F102: Lego | G102: Airplane | H102: 8 and up | I102: 5.95 | J102: 1 | K102: 5.95 | L102: 3.09 | M102: Visa | N102: C.X.|880-3590 | O102: No | P102: No | Q102: 38 | R102: Yes
A103: 656380 | B103: 2010-11-05 | C103: 15:40:12 | D103: D250/AT | E103: 192 | F103: Duplo | G103: Policemen | H103: 6 and up | I103: 9.95 | J103: 1 | K103: 9.95 | L103: 5.17 | M103: Cash | N103: Z.T.|880-7477 | O103: No | P103: No | Q103: 29 | R103: No
A104: 656416 | B104: 2010-11-05 | C104: 16:06:36 | D104: L256/PE | E104: 256 | F104: Lego | G104: Police Officers and Motorcycle | H104: 9 and up | I104: 9.95 | J104: 4 | K104: 39.8 | L104: 17.92 | M104: Cash | N104: C.X.|880-3590 | O104: Yes | P104: No | Q104: 14 | R104: No
A105: 656416 | B105: 2010-11-05 | C105: 16:06:36 | D105: D254/FE | E105: 192 | F105: Duplo | G105: Policemen | H105: 6 and up | I105: 9.95 | J105: 1 | K105: 9.95 | L105: 5.17 | M105: Cash | N105: C.X.|880-3590 | O105: Yes | P105: No | Q105: 14 | R105: No
A106: 656444 | B106: 2010-11-05 | C106: 15:19:48 | D106: D250/AT | E106: 192 | F106: Duplo | G106: Policemen | H106: 6 and up | I106: 9.95 | J106: 1 | K106: 9.95 | L106: 5.17 | M106: Cash | N106: B.Y.|880-6845 | O106: No | P106: Yes | Q106: 44 | R106: Yes
A107: 656478 | B107: 2010-11-05 | C107: 20:51:36 | D107: L195/AE | E107: 195 | F107: Lego | G107: Airplane | H107: 8 and up | I107: 5.95 | J107: 1 | K107: 5.95 | L107: 3.09 | M107: Visa | N107: W.B.|880-9647 | O107: No | P107: Yes | Q107: 32 | R107: No
A108: 656495 | B108: 2010-11-05 | C108: 13:37:12 | D108: L195/AE | E108: 195 | F108: Lego | G108: Airplane | H108: 8 and up | I108: 5.95 | J108: 2 | K108: 11.9 | L108: 6.18 | M108: Check | N108: D.U.|880-2953 | O108: No | P108: No | Q108: 30 | R108: No
A109: 656518 | B109: 2010-11-05 | C109: 13:12:00 | D109: L256/PE | E109: 256 | F109: Lego | G109: Police Officers and Motorcycle | H109: 9 and up | I109: 9.95 | J109: 1 | K109: 9.95 | L109: 4.48 | M109: Visa | N109: B.B.|880-9330 | O109: No | P109: No | Q109: 19 | R109: No
A110: 656533 | B110: 2010-11-05 | C110: 11:01:58.800 | D110: L256/PE | E110: 256 | F110: Lego | G110: Police Officers and Motorcycle | H110: 9 and up | I110: 9.95 | J110: 1 | K110: 9.95 | L110: 4.48 | M110: Cash | N110: V.W.|880-4523 | O110: No | P110: No | Q110: 50 | R110: No
A111: 656547 | B111: 2010-11-06 | C111: 20:00:00 | D111: L195/AE | E111: 195 | F111: Lego | G111: Airplane | H111: 8 and up | I111: 5.95 | J111: 2 | K111: 11.9 | L111: 6.18 | M111: Visa | N111: D.U.|880-2953 | O111: Yes | P111: No | Q111: 11 | R111: No
A112: 656588 | B112: 2010-11-06 | C112: 13:24:36 | D112: L256/PE | E112: 256 | F112: Lego | G112: Police Officers and Motorcycle | H112: 9 and up | I112: 9.95 | J112: 1 | K112: 9.95 | L112: 4.48 | M112: Visa | N112: H.B.|880-3254 | O112: Yes | P112: Yes | Q112: 41 | R112: Yes
A113: 656617 | B113: 2010-11-06 | C113: 10:52:12 | D113: D250/AT | E113: 192 | F113: Duplo | G113: Policemen | H113: 6 and up | I113: 9.95 | J113: 2 | K113: 19.9 | L113: 10.34 | M113: Visa | N113: A.U.|880-2167 | O113: No | P113: No | Q113: 38 | R113: No
A114: 656617 | B114: 2010-11-06 | C114: 10:52:12 | D114: D255/FE | E114: 192 | F114: Duplo | G114: Policemen | H114: 6 and up | I114: 9.95 | J114: 1 | K114: 9.95 | L114: 5.17 | M114: Visa | N114: A.U.|880-2167 | O114: No | P114: No | Q114: 38 | R114: No
A115: 656628 | B115: 2010-11-06 | C115: 10:15:00 | D115: L330/GN | E115: 330 | F115: Lego | G115: Gas Station | H115: 8 and up | I115: 32.95 | J115: 1 | K115: 32.95 | L115: 19.11 | M115: Discover | N115: U.O.|880-3720 | O115: No | P115: No | Q115: 37 | R115: No
A116: 656637 | B116: 2010-11-06 | C116: 11:00:39.600 | D116: D254/FE | E116: 192 | F116: Duplo | G116: Policemen | H116: 6 and up | I116: 9.95 | J116: 1 | K116: 9.95 | L116: 5.17 | M116: Visa | N116: B.Y.|880-6845 | O116: No | P116: No | Q116: 30 | R116: No
A117: 656648 | B117: 2010-11-06 | C117: 13:24:36 | D117: L195/AE | E117: 195 | F117: Lego | G117: Airplane | H117: 8 and up | I117: 5.95 | J117: 1 | K117: 5.95 | L117: 3.09 | M117: Visa | N117: W.B.|880-9647 | O117: No | P117: No | Q117: 11 | R117: No
A118: 656657 | B118: 2010-11-06 | C118: 15:04:12 | D118: D254/FE | E118: 192 | F118: Duplo | G118: Policemen | H118: 6 and up | I118: 9.95 | J118: 1 | K118: 9.95 | L118: 5.17 | M118: Cash | N118: U.W.|880-9683 | O118: No | P118: No | Q118: 22 | R118: No
A119: 656657 | B119: 2010-11-06 | C119: 15:04:12 | D119: L212/SD | E119: 212 | F119: Lego | G119: Scooter and Stand | H119: 6 and up | I119: 4.95 | J119: 1 | K119: 4.95 | L119: 2.23 | M119: Cash | N119: U.W.|880-9683 | O119: No | P119: No | Q119: 22 | R119: No
A120: 656657 | B120: 2010-11-06 | C120: 15:04:12 | D120: D218/FN | E120: 192 | F120: Duplo | G120: Policemen | H120: 6 and up | I120: 9.95 | J120: 1 | K120: 9.95 | L120: 5.17 | M120: Cash | N120: U.W.|880-9683 | O120: No | P120: No | Q120: 22 | R120: No
A121: 656671 | B121: 2010-11-07 | C121: 13:21:36 | D121: D255/FE | E121: 192 | F121: Duplo | G121: Policemen | H121: 6 and up | I121: 9.95 | J121: 1 | K121: 9.95 | L121: 5.17 | M121: Gift Card | N121: S.V.|880-5987 | O121: No | P121: No | Q121: 37 | R121: No
A122: 656692 | B122: 2010-11-08 | C122: 15:22:12 | D122: L256/PE | E122: 256 | F122: Lego | G122: Police Officers and Motorcycle | H122: 9 and up | I122: 9.95 | J122: 1 | K122: 9.95 | L122: 4.48 | M122: Visa | N122: L.W.|880-4986 | O122: No | P122: No | Q122: 11 | R122: No
A123: 656737 | B123: 2010-11-08 | C123: 19:04:48 | D123: D250/AT | E123: 192 | F123: Duplo | G123: Policemen | H123: 6 and up | I123: 9.95 | J123: 2 | K123: 19.9 | L123: 10.34 | M123: Visa | N123: D.S.|880-7532 | O123: No | P123: No | Q123: 40 | R123: No
A124: 656757 | B124: 2010-11-08 | C124: 09:24:36 | D124: D255/FE | E124: 192 | F124: Duplo | G124: Policemen | H124: 6 and up | I124: 9.95 | J124: 1 | K124: 9.95 | L124: 5.17 | M124: Cash | N124: S.Y.|880-3139 | O124: No | P124: No | Q124: 36 | R124: Yes
A125: 656757 | B125: 2010-11-08 | C125: 09:24:36 | D125: D254/FE | E125: 192 | F125: Duplo | G125: Policemen | H125: 6 and up | I125: 9.95 | J125: 2 | K125: 19.9 | L125: 10.34 | M125: Cash | N125: S.Y.|880-3139 | O125: No | P125: No | Q125: 36 | R125: Yes
A126: 656770 | B126: 2010-11-09 | C126: 14:56:24 | D126: D255/FE | E126: 192 | F126: Duplo | G126: Policemen | H126: 6 and up | I126: 9.95 | J126: 1 | K126: 9.95 | L126: 5.17 | M126: Mastercard | N126: H.B.|880-3254 | O126: No | P126: No | Q126: 66 | R126: No
A127: 656807 | B127: 2010-11-10 | C127: 11:28:48 | D127: L210/CS | E127: 210 | F127: Lego | G127: Cowboys with Horses | H127: 6 and up | I127: 9.45 | J127: 1 | K127: 9.45 | L127: 4.63 | M127: Visa | N127: P.N.|880-3021 | O127: No | P127: No | Q127: 48 | R127: No
A128: 656822 | B128: 2010-11-10 | C128: 08:07:48 | D128: D254/FE | E128: 192 | F128: Duplo | G128: Policemen | H128: 6 and up | I128: 9.95 | J128: 2 | K128: 19.9 | L128: 10.34 | M128: Mastercard | N128: B.B.|880-9330 | O128: No | P128: No | Q128: 57 | R128: No
A129: 656847 | B129: 2010-11-10 | C129: 12:25:12 | D129: D198/LX | E129: 192 | F129: Duplo | G129: Policemen | H129: 6 and up | I129: 9.95 | J129: 2 | K129: 19.9 | L129: 10.34 | M129: Visa | N129: S.Y.|880-3139 | O129: Yes | P129: No | Q129: 38 | R129: No
A130: 656854 | B130: 2010-11-10 | C130: 11:12:00 | D130: L195/AE | E130: 195 | F130: Lego | G130: Airplane | H130: 8 and up | I130: 5.95 | J130: 1 | K130: 5.95 | L130: 3.09 | M130: Mastercard | N130: V.W.|880-4523 | O130: No | P130: Yes | Q130: 31 | R130: No
A131: 656893 | B131: 2010-11-10 | C131: 15:20:24 | D131: L212/SD | E131: 212 | F131: Lego | G131: Scooter and Stand | H131: 6 and up | I131: 4.95 | J131: 1 | K131: 4.95 | L131: 2.23 | M131: Visa | N131: U.O.|880-3720 | O131: No | P131: No | Q131: 45 | R131: No
A132: 656931 | B132: 2010-11-11 | C132: 09:09:00 | D132: D254/FE | E132: 192 | F132: Duplo | G132: Policemen | H132: 6 and up | I132: 9.95 | J132: 1 | K132: 9.95 | L132: 5.17 | M132: Visa | N132: A.U.|880-2167 | O132: No | P132: No | Q132: 30 | R132: No
A133: 656952 | B133: 2010-11-11 | C133: 11:40:55.200 | D133: L195/AE | E133: 195 | F133: Lego | G133: Airplane | H133: 8 and up | I133: 5.95 | J133: 3 | K133: 17.85 | L133: 9.27 | M133: Cash | N133: N.C.|880-3850 | O133: No | P133: No | Q133: 38 | R133: No
A134: 656956 | B134: 2010-11-11 | C134: 12:48:36 | D134: L256/PE | E134: 256 | F134: Lego | G134: Police Officers and Motorcycle | H134: 9 and up | I134: 9.95 | J134: 1 | K134: 9.95 | L134: 4.48 | M134: Mastercard | N134: V.W.|880-8599 | O134: No | P134: No | Q134: 24 | R134: No
A135: 656991 | B135: 2010-11-11 | C135: 15:47:24 | D135: D255/FE | E135: 192 | F135: Duplo | G135: Policemen | H135: 6 and up | I135: 9.95 | J135: 4 | K135: 39.8 | L135: 20.68 | M135: Visa | N135: V.W.|880-4523 | O135: No | P135: Yes | Q135: 43 | R135: No
A136: 656991 | B136: 2010-11-11 | C136: 15:47:24 | D136: D198/LX | E136: 192 | F136: Duplo | G136: Policemen | H136: 6 and up | I136: 9.95 | J136: 2 | K136: 19.9 | L136: 10.34 | M136: Visa | N136: V.W.|880-4523 | O136: No | P136: Yes | Q136: 43 | R136: No
A137: 657009 | B137: 2010-11-11 | C137: 12:02:24 | D137: D255/FE | E137: 192 | F137: Duplo | G137: Policemen | H137: 6 and up | I137: 9.95 | J137: 2 | K137: 19.9 | L137: 10.34 | M137: Cash | N137: V.W.|880-8599 | O137: No | P137: No | Q137: 36 | R137: No
A138: 657052 | B138: 2010-11-11 | C138: 19:45:36 | D138: D254/FE | E138: 192 | F138: Duplo | G138: Policemen | H138: 6 and up | I138: 9.95 | J138: 1 | K138: 9.95 | L138: 5.17 | M138: Check | N138: B.B.|880-9330 | O138: No | P138: Yes | Q138: 34 | R138: Yes
A139: 657052 | B139: 2010-11-11 | C139: 19:45:36 | D139: L256/PE | E139: 256 | F139: Lego | G139: Police Officers and Motorcycle | H139: 9 and up | I139: 9.95 | J139: 1 | K139: 9.95 | L139: 4.48 | M139: Check | N139: B.B.|880-9330 | O139: No | P139: Yes | Q139: 34 | R139: Yes
A140: 657055 | B140: 2010-11-12 | C140: 11:37:12 | D140: D250/AT | E140: 192 | F140: Duplo | G140: Policemen | H140: 6 and up | I140: 9.95 | J140: 2 | K140: 19.9 | L140: 10.34 | M140: Check | N140: D.S.|880-7532 | O140: No | P140: No | Q140: 36 | R140: No
A141: 657055 | B141: 2010-11-12 | C141: 11:37:12 | D141: D250/AT | E141: 192 | F141: Duplo | G141: Policemen | H141: 6 and up | I141: 9.95 | J141: 2 | K141: 19.9 | L141: 10.34 | M141: Check | N141: D.S.|880-7532 | O141: No | P141: No | Q141: 36 | R141: No
A142: 657055 | B142: 2010-11-12 | C142: 11:37:12 | D142: L256/PE | E142: 256 | F142: Lego | G142: Police Officers and Motorcycle | H142: 9 and up | I142: 9.95 | J142: 1 | K142: 9.95 | L142: 4.48 | M142: Check | N142: D.S.|880-7532 | O142: No | P142: No | Q142: 36 | R142: No
A143: 657093 | B143: 2010-11-12 | C143: 13:33:50.400 | D143: D250/AT | E143: 192 | F143: Duplo | G143: Policemen | H143: 6 and up | I143: 9.95 | J143: 5 | K143: 49.75 | L143: 25.85 | M143: Visa | N143: Y.P.|880-6894 | O143: Yes | P143: No | Q143: 31 | R143: Yes
A144: 657101 | B144: 2010-11-13 | C144: 09:53:24 | D144: L195/AE | E144: 195 | F144: Lego | G144: Airplane | H144: 8 and up | I144: 5.95 | J144: 1 | K144: 5.95 | L144: 3.09 | M144: Gift Card | N144: Z.T.|880-7477 | O144: Yes | P144: No | Q144: 41 | R144: Yes
A145: 657140 | B145: 2010-11-13 | C145: 16:50:56.400 | D145: L340/FS | E145: 340 | F145: Lego | G145: Fire Trucks | H145: 6 and up | I145: 34.95 | J145: 2 | K145: 69.9 | L145: 39.84 | M145: Visa | N145: B.Y.|880-6845 | O145: No | P145: No | Q145: 34 | R145: No
A146: 657140 | B146: 2010-11-13 | C146: 16:50:56.400 | D146: D255/FE | E146: 192 | F146: Duplo | G146: Policemen | H146: 6 and up | I146: 9.95 | J146: 1 | K146: 9.95 | L146: 5.17 | M146: Visa | N146: B.Y.|880-6845 | O146: No | P146: No | Q146: 34 | R146: No
A147: 657187 | B147: 2010-11-13 | C147: 10:39:36 | D147: D250/AT | E147: 192 | F147: Duplo | G147: Policemen | H147: 6 and up | I147: 9.95 | J147: 2 | K147: 19.9 | L147: 10.34 | M147: Gift Card | N147: Z.Q.|880-4240 | O147: No | P147: No | Q147: 31 | R147: Yes
A148: 657232 | B148: 2010-11-13 | C148: 20:11:24 | D148: L195/AE | E148: 195 | F148: Lego | G148: Airplane | H148: 8 and up | I148: 5.95 | J148: 3 | K148: 17.85 | L148: 9.27 | M148: Visa | N148: C.X.|880-3590 | O148: No | P148: No | Q148: 31 | R148: Yes
A149: 657255 | B149: 2010-11-14 | C149: 17:18:36 | D149: D254/FE | E149: 192 | F149: Duplo | G149: Policemen | H149: 6 and up | I149: 9.95 | J149: 1 | K149: 9.95 | L149: 5.17 | M149: Check | N149: U.O.|880-3720 | O149: No | P149: No | Q149: 27 | R149: Yes
A150: 657291 | B150: 2010-11-14 | C150: 12:37:48 | D150: L256/PE | E150: 256 | F150: Lego | G150: Police Officers and Motorcycle | H150: 9 and up | I150: 9.95 | J150: 1 | K150: 9.95 | L150: 4.48 | M150: Cash | N150: Z.T.|880-7477 | O150: No | P150: No | Q150: 49 | R150: No
A151: 657306 | B151: 2010-11-14 | C151: 09:50:56.400 | D151: D254/FE | E151: 192 | F151: Duplo | G151: Policemen | H151: 6 and up | I151: 9.95 | J151: 4 | K151: 39.8 | L151: 20.68 | M151: Visa | N151: N.C.|880-3850 | O151: No | P151: No | Q151: 69 | R151: Yes
A152: 657316 | B152: 2010-11-15 | C152: 16:45:36 | D152: L252/LR | E152: 255 | F152: Duplo | G152: Farming Scene | H152: 7 and up | I152: 24.95 | J152: 1 | K152: 24.95 | L152: 16.22 | M152: Mastercard | N152: P.N.|880-3021 | O152: No | P152: No | Q152: 20 | R152: No
A153: 657320 | B153: 2010-11-15 | C153: 08:24:10.800 | D153: D250/AT | E153: 192 | F153: Duplo | G153: Policemen | H153: 6 and up | I153: 9.95 | J153: 1 | K153: 9.95 | L153: 5.17 | M153: Mastercard | N153: B.X.|880-9149 | O153: No | P153: No | Q153: 30 | R153: Yes
A154: 657336 | B154: 2010-11-15 | C154: 08:29:42 | D154: D255/FE | E154: 192 | F154: Duplo | G154: Policemen | H154: 6 and up | I154: 9.95 | J154: 1 | K154: 9.95 | L154: 5.17 | M154: Mastercard | N154: H.B.|880-3254 | O154: No | P154: No | Q154: 37 | R154: Yes
A155: 657336 | B155: 2010-11-15 | C155: 08:29:42 | D155: D250/AT | E155: 192 | F155: Duplo | G155: Policemen | H155: 6 and up | I155: 9.95 | J155: 1 | K155: 9.95 | L155: 5.17 | M155: Mastercard | N155: H.B.|880-3254 | O155: No | P155: No | Q155: 37 | R155: Yes
A156: 657366 | B156: 2010-11-16 | C156: 08:44:42 | D156: L256/PE | E156: 256 | F156: Lego | G156: Police Officers and Motorcycle | H156: 9 and up | I156: 9.95 | J156: 2 | K156: 19.9 | L156: 8.96 | M156: Mastercard | N156: B.X.|880-9149 | O156: No | P156: No | Q156: 42 | R156: No
A157: 657415 | B157: 2010-11-16 | C157: 11:59:56.400 | D157: D250/AT | E157: 192 | F157: Duplo | G157: Policemen | H157: 6 and up | I157: 9.95 | J157: 2 | K157: 19.9 | L157: 10.34 | M157: Visa | N157: S.V.|880-5987 | O157: No | P157: No | Q157: 41 | R157: Yes
A158: 657415 | B158: 2010-11-16 | C158: 11:59:56.400 | D158: D255/FE | E158: 192 | F158: Duplo | G158: Policemen | H158: 6 and up | I158: 9.95 | J158: 2 | K158: 19.9 | L158: 10.34 | M158: Visa | N158: S.V.|880-5987 | O158: No | P158: No | Q158: 41 | R158: Yes
A159: 657447 | B159: 2010-11-17 | C159: 13:42:00 | D159: L195/AE | E159: 195 | F159: Lego | G159: Airplane | H159: 8 and up | I159: 5.95 | J159: 4 | K159: 23.8 | L159: 12.36 | M159: Mastercard | N159: L.W.|880-4986 | O159: No | P159: Yes | Q159: 40 | R159: Yes
A160: 657482 | B160: 2010-11-17 | C160: 10:13:48 | D160: L256/PE | E160: 256 | F160: Lego | G160: Police Officers and Motorcycle | H160: 9 and up | I160: 9.95 | J160: 2 | K160: 19.9 | L160: 8.96 | M160: Discover | N160: D.W.|880-7199 | O160: No | P160: No | Q160: 39 | R160: Yes
A161: 657512 | B161: 2010-11-17 | C161: 11:34:12 | D161: D192/PN | E161: 192 | F161: Duplo | G161: Policemen | H161: 6 and up | I161: 9.95 | J161: 1 | K161: 9.95 | L161: 5.17 | M161: Cash | N161: N.C.|880-3850 | O161: No | P161: No | Q161: 31 | R161: No
A162: 657529 | B162: 2010-11-17 | C162: 15:44:24 | D162: D255/FE | E162: 192 | F162: Duplo | G162: Policemen | H162: 6 and up | I162: 9.95 | J162: 5 | K162: 49.75 | L162: 25.85 | M162: Mastercard | N162: B.Y.|880-6845 | O162: No | P162: No | Q162: 40 | R162: No
A163: 657533 | B163: 2010-11-17 | C163: 16:32:24 | D163: D254/FE | E163: 192 | F163: Duplo | G163: Policemen | H163: 6 and up | I163: 9.95 | J163: 2 | K163: 19.9 | L163: 10.34 | M163: Mastercard | N163: B.B.|880-9330 | O163: Yes | P163: No | Q163: 38 | R163: No
A164: 657533 | B164: 2010-11-17 | C164: 16:32:24 | D164: L195/AE | E164: 195 | F164: Lego | G164: Airplane | H164: 8 and up | I164: 5.95 | J164: 3 | K164: 17.85 | L164: 9.27 | M164: Mastercard | N164: B.B.|880-9330 | O164: Yes | P164: No | Q164: 38 | R164: No
A165: 657533 | B165: 2010-11-17 | C165: 16:32:24 | D165: D254/FE | E165: 192 | F165: Duplo | G165: Policemen | H165: 6 and up | I165: 9.95 | J165: 1 | K165: 9.95 | L165: 5.17 | M165: Mastercard | N165: B.B.|880-9330 | O165: Yes | P165: No | Q165: 38 | R165: No
A166: 657563 | B166: 2010-11-17 | C166: 13:18:36 | D166: L256/PE | E166: 256 | F166: Lego | G166: Police Officers and Motorcycle | H166: 9 and up | I166: 9.95 | J166: 1 | K166: 9.95 | L166: 4.48 | M166: Visa | N166: D.W.|880-7199 | O166: No | P166: No | Q166: 25 | R166: No
A167: 657591 | B167: 2010-11-18 | C167: 19:45:00 | D167: L194/FY | E167: 194 | F167: Lego | G167: Family | H167: 4 and up | I167: 14.95 | J167: 1 | K167: 14.95 | L167: 8.37 | M167: Visa | N167: W.C.|880-4861 | O167: No | P167: No | Q167: 26 | R167: No
A168: 657607 | B168: 2010-11-18 | C168: 13:44:24 | D168: D250/AT | E168: 192 | F168: Duplo | G168: Policemen | H168: 6 and up | I168: 9.95 | J168: 2 | K168: 19.9 | L168: 10.34 | M168: Visa | N168: D.S.|880-7532 | O168: Yes | P168: No | Q168: 44 | R168: No
A169: 657635 | B169: 2010-11-18 | C169: 13:05:52.800 | D169: D255/FE | E169: 192 | F169: Duplo | G169: Policemen | H169: 6 and up | I169: 9.95 | J169: 1 | K169: 9.95 | L169: 5.17 | M169: Cash | N169: D.U.|880-2953 | O169: No | P169: No | Q169: 50 | R169: No
A170: 657663 | B170: 2010-11-19 | C170: 14:05:24 | D170: L330/GN | E170: 330 | F170: Lego | G170: Gas Station | H170: 8 and up | I170: 32.95 | J170: 4 | K170: 131.8 | L170: 76.44 | M170: Visa | N170: D.W.|880-7199 | O170: No | P170: No | Q170: 28 | R170: No
A171: 657663 | B171: 2010-11-19 | C171: 14:05:24 | D171: D255/FE | E171: 192 | F171: Duplo | G171: Policemen | H171: 6 and up | I171: 9.95 | J171: 5 | K171: 49.75 | L171: 25.85 | M171: Visa | N171: D.W.|880-7199 | O171: No | P171: No | Q171: 28 | R171: No
A172: 657686 | B172: 2010-11-19 | C172: 12:06:00 | D172: L195/AE | E172: 195 | F172: Lego | G172: Airplane | H172: 8 and up | I172: 5.95 | J172: 2 | K172: 11.9 | L172: 6.18 | M172: Mastercard | N172: S.Y.|880-3139 | O172: No | P172: No | Q172: 60 | R172: No
A173: 657703 | B173: 2010-11-20 | C173: 11:39:00 | D173: L256/PE | E173: 256 | F173: Lego | G173: Police Officers and Motorcycle | H173: 9 and up | I173: 9.95 | J173: 1 | K173: 9.95 | L173: 4.48 | M173: Discover | N173: U.W.|880-9683 | O173: No | P173: No | Q173: 31 | R173: No
A174: 657712 | B174: 2010-11-20 | C174: 18:11:24 | D174: L195/AE | E174: 195 | F174: Lego | G174: Airplane | H174: 8 and up | I174: 5.95 | J174: 2 | K174: 11.9 | L174: 6.18 | M174: Visa | N174: U.W.|880-9683 | O174: No | P174: No | Q174: 42 | R174: No
A175: 657751 | B175: 2010-11-20 | C175: 10:41:24 | D175: D250/AT | E175: 192 | F175: Duplo | G175: Policemen | H175: 6 and up | I175: 9.95 | J175: 5 | K175: 49.75 | L175: 25.85 | M175: Mastercard | N175: H.B.|880-3254 | O175: No | P175: No | Q175: 48 | R175: No
A176: 657751 | B176: 2010-11-20 | C176: 10:41:24 | D176: D250/AT | E176: 192 | F176: Duplo | G176: Policemen | H176: 6 and up | I176: 9.95 | J176: 2 | K176: 19.9 | L176: 10.34 | M176: Mastercard | N176: H.B.|880-3254 | O176: No | P176: No | Q176: 48 | R176: No
A177: 657769 | B177: 2010-11-20 | C177: 18:34:12 | D177: L256/PE | E177: 256 | F177: Lego | G177: Police Officers and Motorcycle | H177: 9 and up | I177: 9.95 | J177: 3 | K177: 29.85 | L177: 13.44 | M177: Cash | N177: S.V.|880-5987 | O177: No | P177: No | Q177: 30 | R177: No
A178: 657815 | B178: 2010-11-20 | C178: 12:12:00 | D178: D250/AT | E178: 192 | F178: Duplo | G178: Policemen | H178: 6 and up | I178: 9.95 | J178: 2 | K178: 19.9 | L178: 10.34 | M178: Cash | N178: P.N.|880-3021 | O178: No | P178: No | Q178: 44 | R178: No
A179: 657839 | B179: 2010-11-21 | C179: 15:01:48 | D179: L195/AE | E179: 195 | F179: Lego | G179: Airplane | H179: 8 and up | I179: 5.95 | J179: 3 | K179: 17.85 | L179: 9.27 | M179: Mastercard | N179: N.W.|880-6237 | O179: No | P179: No | Q179: 35 | R179: No
A180: 657858 | B180: 2010-11-21 | C180: 12:19:12 | D180: D250/AT | E180: 192 | F180: Duplo | G180: Policemen | H180: 6 and up | I180: 9.95 | J180: 2 | K180: 19.9 | L180: 10.34 | M180: Gift Card | N180: N.C.|880-3850 | O180: No | P180: No | Q180: 50 | R180: No
A181: 657884 | B181: 2010-11-21 | C181: 15:37:12 | D181: D250/AT | E181: 192 | F181: Duplo | G181: Policemen | H181: 6 and up | I181: 9.95 | J181: 1 | K181: 9.95 | L181: 5.17 | M181: Discover | N181: V.W.|880-4523 | O181: No | P181: No | Q181: 30 | R181: No
A182: 657887 | B182: 2010-11-21 | C182: 13:09:36 | D182: L256/PE | E182: 256 | F182: Lego | G182: Police Officers and Motorcycle | H182: 9 and up | I182: 9.95 | J182: 1 | K182: 9.95 | L182: 4.48 | M182: Cash | N182: D.S.|880-7532 | O182: No | P182: No | Q182: 38 | R182: No
A183: 657921 | B183: 2010-11-22 | C183: 08:58:48 | D183: D254/FE | E183: 192 | F183: Duplo | G183: Policemen | H183: 6 and up | I183: 9.95 | J183: 2 | K183: 19.9 | L183: 10.34 | M183: Cash | N183: Y.P.|880-6894 | O183: No | P183: No | Q183: 30 | R183: Yes
A184: 657945 | B184: 2010-11-22 | C184: 13:39:54 | D184: L256/PE | E184: 256 | F184: Lego | G184: Police Officers and Motorcycle | H184: 9 and up | I184: 9.95 | J184: 1 | K184: 9.95 | L184: 4.48 | M184: Cash | N184: S.Y.|880-3139 | O184: No | P184: No | Q184: 30 | R184: No
A185: 657946 | B185: 2010-11-22 | C185: 19:31:48 | D185: L256/PE | E185: 256 | F185: Lego | G185: Police Officers and Motorcycle | H185: 9 and up | I185: 9.95 | J185: 3 | K185: 29.85 | L185: 13.44 | M185: Cash | N185: V.W.|880-8599 | O185: No | P185: No | Q185: 31 | R185: No
A186: 657946 | B186: 2010-11-22 | C186: 19:31:48 | D186: L330/GN | E186: 330 | F186: Lego | G186: Gas Station | H186: 8 and up | I186: 32.95 | J186: 4 | K186: 131.8 | L186: 76.44 | M186: Cash | N186: V.W.|880-8599 | O186: No | P186: No | Q186: 31 | R186: No
A187: 657946 | B187: 2010-11-22 | C187: 19:31:48 | D187: L195/AE | E187: 195 | F187: Lego | G187: Airplane | H187: 8 and up | I187: 5.95 | J187: 2 | K187: 11.9 | L187: 6.18 | M187: Cash | N187: V.W.|880-8599 | O187: No | P187: No | Q187: 31 | R187: No
A188: 657967 | B188: 2010-11-23 | C188: 13:55:51.600 | D188: D254/FE | E188: 192 | F188: Duplo | G188: Policemen | H188: 6 and up | I188: 9.95 | J188: 5 | K188: 49.75 | L188: 25.85 | M188: Mastercard | N188: C.X.|880-3590 | O188: No | P188: No | Q188: 36 | R188: No
A189: 657971 | B189: 2010-11-23 | C189: 10:58:12 | D189: L195/AE | E189: 195 | F189: Lego | G189: Airplane | H189: 8 and up | I189: 5.95 | J189: 2 | K189: 11.9 | L189: 6.18 | M189: Discover | N189: H.B.|880-3254 | O189: No | P189: No | Q189: 50 | R189: Yes
A190: 657973 | B190: 2010-11-23 | C190: 10:14:16.800 | D190: D254/FE | E190: 192 | F190: Duplo | G190: Policemen | H190: 6 and up | I190: 9.95 | J190: 1 | K190: 9.95 | L190: 5.17 | M190: Check | N190: B.Y.|880-6845 | O190: Yes | P190: No | Q190: 25 | R190: No
A191: 657985 | B191: 2010-11-23 | C191: 15:29:52.800 | D191: D254/FE | E191: 192 | F191: Duplo | G191: Policemen | H191: 6 and up | I191: 9.95 | J191: 1 | K191: 9.95 | L191: 5.17 | M191: Cash | N191: U.W.|880-9683 | O191: No | P191: No | Q191: 30 | R191: No
A192: 658025 | B192: 2010-11-23 | C192: 09:24:36 | D192: L256/PE | E192: 256 | F192: Lego | G192: Police Officers and Motorcycle | H192: 9 and up | I192: 9.95 | J192: 3 | K192: 29.85 | L192: 13.44 | M192: Discover | N192: Z.T.|880-7477 | O192: No | P192: No | Q192: 44 | R192: No
A193: 658054 | B193: 2010-11-24 | C193: 14:09:00 | D193: L195/AE | E193: 195 | F193: Lego | G193: Airplane | H193: 8 and up | I193: 5.95 | J193: 2 | K193: 11.9 | L193: 6.18 | M193: Visa | N193: H.B.|880-3254 | O193: No | P193: No | Q193: 29 | R193: No
A194: 658088 | B194: 2010-11-24 | C194: 16:13:55.200 | D194: D250/AT | E194: 192 | F194: Duplo | G194: Policemen | H194: 6 and up | I194: 9.95 | J194: 1 | K194: 9.95 | L194: 5.17 | M194: Mastercard | N194: D.U.|880-2953 | O194: No | P194: No | Q194: 38 | R194: No
A195: 658095 | B195: 2010-11-24 | C195: 18:35:24 | D195: D254/FE | E195: 192 | F195: Duplo | G195: Policemen | H195: 6 and up | I195: 9.95 | J195: 4 | K195: 39.8 | L195: 20.68 | M195: Mastercard | N195: L.C.|880-6872 | O195: Yes | P195: Yes | Q195: 30 | R195: Yes
A196: 658095 | B196: 2010-11-24 | C196: 18:35:24 | D196: D255/FE | E196: 192 | F196: Duplo | G196: Policemen | H196: 6 and up | I196: 9.95 | J196: 1 | K196: 9.95 | L196: 5.17 | M196: Mastercard | N196: L.C.|880-6872 | O196: Yes | P196: Yes | Q196: 30 | R196: Yes
A197: 658135 | B197: 2010-11-25 | C197: 16:22:12 | D197: L194/FY | E197: 194 | F197: Lego | G197: Family | H197: 4 and up | I197: 14.95 | J197: 1 | K197: 14.95 | L197: 8.37 | M197: Visa | N197: U.O.|880-3720 | O197: No | P197: No | Q197: 49 | R197: No
A198: 658157 | B198: 2010-11-26 | C198: 16:59:24 | D198: D255/FE | E198: 192 | F198: Duplo | G198: Policemen | H198: 6 and up | I198: 9.95 | J198: 5 | K198: 49.75 | L198: 25.85 | M198: Visa | N198: Z.Q.|880-4240 | O198: No | P198: No | Q198: 34 | R198: No
A199: 658183 | B199: 2010-11-26 | C199: 15:34:12 | D199: D254/FE | E199: 192 | F199: Duplo | G199: Policemen | H199: 6 and up | I199: 9.95 | J199: 1 | K199: 9.95 | L199: 5.17 | M199: Discover | N199: B.X.|880-9149 | O199: No | P199: No | Q199: 39 | R199: No
A200: 658183 | B200: 2010-11-26 | C200: 15:34:12 | D200: D250/AT | E200: 192 | F200: Duplo | G200: Policemen | H200: 6 and up | I200: 9.95 | J200: 4 | K200: 39.8 | L200: 20.68 | M200: Discover | N200: B.X.|880-9149 | O200: No | P200: No | Q200: 39 | R200: No
A201: 658221 | B201: 2010-11-26 | C201: 15:21:25.200 | D201: D254/FE | E201: 192 | F201: Duplo | G201: Policemen | H201: 6 and up | I201: 9.95 | J201: 1 | K201: 9.95 | L201: 5.17 | M201: Visa | N201: L.C.|880-6872 | O201: No | P201: No | Q201: 11 | R201: No
A202: 658267 | B202: 2010-11-26 | C202: 18:50:24 | D202: L195/AE | E202: 195 | F202: Lego | G202: Airplane | H202: 8 and up | I202: 5.95 | J202: 2 | K202: 11.9 | L202: 6.18 | M202: Visa | N202: N.C.|880-3850 | O202: No | P202: No | Q202: 34 | R202: No
A203: 658278 | B203: 2010-11-26 | C203: 19:56:24 | D203: L256/PE | E203: 256 | F203: Lego | G203: Police Officers and Motorcycle | H203: 9 and up | I203: 9.95 | J203: 1 | K203: 9.95 | L203: 4.48 | M203: Visa | N203: L.W.|880-4986 | O203: No | P203: No | Q203: 36 | R203: No
A204: 658280 | B204: 2010-11-26 | C204: 11:15:00 | D204: D254/FE | E204: 192 | F204: Duplo | G204: Policemen | H204: 6 and up | I204: 9.95 | J204: 5 | K204: 49.75 | L204: 25.85 | M204: Discover | N204: S.Y.|880-3139 | O204: No | P204: No | Q204: 32 | R204: No
A205: 658330 | B205: 2010-11-26 | C205: 19:00:36 | D205: L195/AE | E205: 195 | F205: Lego | G205: Airplane | H205: 8 and up | I205: 5.95 | J205: 2 | K205: 11.9 | L205: 6.18 | M205: Cash | N205: U.O.|880-3720 | O205: No | P205: No | Q205: 36 | R205: No
... 806 more rows

Sheet Data(3)
A1: 34 | B1: Grouping can't be done with Data Mismatch
A2: 35 | B2: Group Numbers: Decimal create ambiguous categories (lower limit is NOT included, upper limit IS included (same as FREQUENCY function)). Integer creates unambiguous categories.
B6: Date | C6: Product | D6: Region | E6: SalesRep | F6: Customer | G6: Units | H6: Sales | I6: COGS | L6: SalesIntegers | N6: SalesDecimals
B7: 2011-01-01 | C7: Quad | D7: East | E7: Sioux | F7: AA | G7: 16 | H7: 432.17 | I7: 232.99 | L7: 11 | N7: 11.61
C8: Bellen | D8: South | E8: Gault | F8: KBTB | G8: 24 | H8: 528.5 | I8: 240.35 | L8: 18 | N8: 18.15
B9: 1/2/11 | C9: Quad | D9: West | E9: Pham | F9: AST | G9: 30 | H9: 810.71 | I9: 435.64 | L9: 12 | N9: 12.88
B10: 2011-01-02 | C10: Bellen | D10: West | E10: Pham | F10: SFWK | G10: 19 | H10: 418.54 | I10: 190.05 | L10: 8 | N10: 8.14
B11: 2011-01-03 | C11: Sunshine | D11: East | E11: Pham | F11: FM | G11: 38 | H11: 722.22 | I11: 304.06 | L11: 12 | N11: 12.64
B12: 2011-01-03 | C12: Carlota | D12: MidWest | E12: Chin | F12: FM | G12: 20 | H12: 460.28 | I12: 220.63 | L12: 19 | N12: 19.84
B13: 2011-01-03 | C13: Sunset | D13: South | E13: Pham | F13: WSD | G13: 23 | H13: 483.58 | I13: 213.57 | L13: 7 | N13: 7.39
B14: 2011-01-03 | C14: Sunshine | D14: South | E14: Sioux | F14: PCC | G14: 6 | H14: 114.53 | I14: 48.26 | L14: 3 | N14: 3.4
B15: 2011-01-04 | C15: Sunset | D15: MidWest | E15: Sioux | F15: BBT | G15: 29 | H15: 609.12 | I15: 269.16 | L15: 18 | N15: 18.12
B16: 2011-01-05 | C16: Sunset | D16: South | E16: Pham | F16: TTT | G16: 57 | H16: 1197.9 | I16: 527.98 | L16: 13 | N16: 13.94
B17: 2011-01-05 | C17: Sunshine | D17: West | E17: Franks | F17: ET | G17: 12 | H17: 228.89 | I17: 96.02 | L17: 2 | N17: 2.88
B18: 2011-01-05 | C18: Carlota | D18: West | E18: Franks | F18: ITTW | G18: 60 | H18: 1380.07 | I18: 660.4 | L18: 15 | N18: 15.77
B20: Date | C20: Product | D20: Region | E20: SalesRep | F20: Customer | G20: Units | H20: Sales | I20: COGS
B21: 2011-01-01 | C21: Quad | D21: East | E21: Sioux | F21: AA | G21: 16 | H21: 432.17 | I21: 232.99
B22: 2011-01-01 | C22: Bellen | D22: South | E22: Gault | F22: KBTB | G22: 24 | H22: 528.5 | I22: 240.35
B23: 2011-01-02 | C23: Quad | D23: West | E23: Pham | F23: AST | G23: 30 | H23: 810.71 | I23: 435.64
B24: 2011-01-02 | C24: Bellen | D24: West | E24: Pham | F24: SFWK | G24: 19 | H24: 418.54 | I24: 190.05
B25: 2011-01-03 | C25: Sunshine | D25: East | E25: Pham | F25: FM | G25: 38 | H25: 722.22 | I25: 304.06
B26: 2011-01-03 | C26: Carlota | D26: MidWest | E26: Chin | F26: FM | G26: 20 | H26: 460.28 | I26: 220.63
B27: 2011-01-03 | C27: Sunset | D27: South | E27: Pham | F27: WSD | G27: 23 | H27: 483.58 | I27: 213.57
B28: 2011-01-03 | C28: Sunshine | D28: South | E28: Sioux | F28: PCC | G28: 6 | H28: 114.53 | I28: 48.26
B29: 2011-01-04 | C29: Sunset | D29: MidWest | E29: Sioux | F29: BBT | G29: 29 | H29: 609.12 | I29: 269.16
B30: 2011-01-05 | C30: Sunset | D30: South | E30: Pham | F30: TTT | G30: 57 | H30: 1197.9 | I30: 527.98
B31: 2011-01-05 | C31: Sunshine | D31: West | E31: Franks | F31: ET | G31: 12 | H31: 228.89 | I31: 96.02
B32: 2011-01-05 | C32: Carlota | D32: West | E32: Franks | F32: ITTW | G32: 60 | H32: 1380.07 | I32: 660.4

Sheet Data(4)
A1: 36 | B1: Recommended PivotTable
A2: 37 | B2: Recommended Chart: Amazing because it summarizes
A3: 38 | B3: Report Filter: Adds new criteria to report
A4: 39 | B4: Show Report Filter: PivotTableTools Analyze Ribbon Tab, PivotTable group, Options, "Show Report Filter Pages".
A5: 40 | B5: Slicers: Fancy Filters: PivotTableTools Analyze Ribbon Tab, Filter group
A6: 41 | B6: Use Filter and Slicer together to extract data
A7: 42 | B7: Timelines: PivotTableTools Analyze Ribbon Tab, Filter group
A9: Date | B9: SalesRep | C9: Region | D9: Product | E9: Units | F9: Price | G9: Revenue
A10: 2013-08-31 | B10: Christy Olson | C10: West | D10: Doublers | E10: 2 | F10: 79.95 | G10: 159.9
A11: 2014-11-27 | B11: Dan Peterson | C11: MidWest | D11: Sunshine | E11: 2 | F11: 19.95 | G11: 39.9
A12: 2013-11-07 | B12: Mable Lindsey | C12: West | D12: Crested Beaut | E12: 3 | F12: 25 | G12: 75
A13: 2014-06-02 | B13: Kyle Carr | C13: MidWest | D13: Quad | E13: 3 | F13: 33 | G13: 99
A14: 2013-08-01 | B14: Rachel Gomez | C14: MidWest | D14: Carlota | E14: 2 | F14: 22.95 | G14: 45.9
A15: 2014-11-14 | B15: Isabel Cross | C15: East | D15: Majectic Beaut | E15: 1 | F15: 28 | G15: 28
A16: 2013-11-13 | B16: Billie Chandler | C16: MidWest | D16: Sunset | E16: 3 | F16: 23.5 | G16: 70.5
A17: 2014-11-04 | B17: Sylvester Morales | C17: West | D17: Carlota | E17: 2 | F17: 22.95 | G17: 45.9
A18: 2014-11-26 | B18: Rachel Gomez | C18: MidWest | D18: Bellen | E18: 1 | F18: 22.95 | G18: 22.95
A19: 2014-07-08 | B19: Beth Tucker | C19: West | D19: Sunbell | E19: 2 | F19: 25 | G19: 50
A20: 2014-12-06 | B20: Shari Silva | C20: South | D20: Quad | E20: 2 | F20: 33 | G20: 66
A21: 2013-12-14 | B21: Drew Rogers | C21: MidWest | D21: Sunset | E21: 1 | F21: 23.5 | G21: 23.5
A22: 2013-12-01 | B22: Arturo Francis | C22: East | D22: Carlota | E22: 4 | F22: 21.95 | G22: 87.8
A23: 2014-11-11 | B23: Mable Lindsey | C23: West | D23: Quad | E23: 2 | F23: 34 | G23: 68
A24: 2014-03-13 | B24: Shari Silva | C24: South | D24: Sunshine | E24: 1 | F24: 19.95 | G24: 19.95
A25: 2013-02-01 | B25: Rachel Gomez | C25: MidWest | D25: Sunbell | E25: 1 | F25: 24 | G25: 24
A26: 2013-01-10 | B26: Jenny Garcia | C26: MidWest | D26: Doublers | E26: 1 | F26: 79.95 | G26: 79.95
A27: 2014-11-15 | B27: Colleen Warren | C27: West | D27: Quad | E27: 9 | F27: 34 | G27: 306
A28: 2013-12-12 | B28: Pauline Beck | C28: West | D28: Sunshine | E28: 1 | F28: 19.95 | G28: 19.95
A29: 2014-11-22 | B29: Shari Silva | C29: South | D29: Carlota | E29: 3 | F29: 22.95 | G29: 68.85
A30: 2014-07-10 | B30: Jenny Garcia | C30: MidWest | D30: Quad | E30: 3 | F30: 33 | G30: 99
A31: 2013-12-27 | B31: Ben Perez | C31: West | D31: Quad | E31: 2 | F31: 34 | G31: 68
A32: 2013-09-28 | B32: Cassandra Franklin | C32: MidWest | D32: FlatTop | E32: 1 | F32: 27.5 | G32: 27.5
A33: 2013-11-01 | B33: Elaine Ellis | C33: South | D33: Carlota | E33: 2 | F33: 22.95 | G33: 45.9
A34: 2013-10-31 | B34: Beth Tucker | C34: West | D34: Aspen | E34: 24 | F34: 19.95 | G34: 478.8
A35: 2014-06-16 | B35: Cassandra Franklin | C35: MidWest | D35: Sunset | E35: 2 | F35: 23.5 | G35: 47
A36: 2013-11-21 | B36: Colleen Warren | C36: West | D36: Sunbell | E36: 3 | F36: 25 | G36: 75
A37: 2014-11-23 | B37: Cassandra Franklin | C37: MidWest | D37: Sunshine | E37: 3 | F37: 19.95 | G37: 59.85
A38: 2013-01-25 | B38: Cassandra Franklin | C38: MidWest | D38: Sunbell | E38: 2 | F38: 24 | G38: 48
A39: 2013-04-25 | B39: Nellie Joseph | C39: East | D39: Sunbell | E39: 1 | F39: 23 | G39: 23
A40: 2014-11-09 | B40: Guillermo Potter | C40: MidWest | D40: Aspen | E40: 1 | F40: 20 | G40: 20
A41: 2013-11-22 | B41: Lynette Brewer | C41: MidWest | D41: Sunshine | E41: 3 | F41: 19.95 | G41: 59.85
A42: 2013-12-05 | B42: Rachel Gomez | C42: MidWest | D42: Majectic Beaut | E42: 15 | F42: 27.55 | G42: 413.25
A43: 2014-11-16 | B43: Lance Yates | C43: MidWest | D43: Sunshine | E43: 2 | F43: 19.95 | G43: 39.9
A44: 2014-03-26 | B44: Arturo Francis | C44: East | D44: Sunshine | E44: 3 | F44: 18.95 | G44: 56.85
A45: 2013-12-29 | B45: Lula Daniels | C45: MidWest | D45: FlatTop | E45: 3 | F45: 27.5 | G45: 82.5
A46: 2013-11-29 | B46: Bethany Pena | C46: MidWest | D46: Crested Beaut | E46: 3 | F46: 24 | G46: 72
A47: 2013-06-17 | B47: Robert Munoz | C47: MidWest | D47: Aspen | E47: 4 | F47: 20 | G47: 80
A48: 2014-11-18 | B48: Shari Silva | C48: South | D48: Sunshine | E48: 3 | F48: 19.95 | G48: 59.85
A49: 2014-11-20 | B49: Cindy Becker | C49: South | D49: Carlota | E49: 1 | F49: 22.95 | G49: 22.95
A50: 2013-11-11 | B50: Guillermo Potter | C50: MidWest | D50: Sunshine | E50: 3 | F50: 19.95 | G50: 59.85
A51: 2013-12-23 | B51: Sandra Floyd | C51: MidWest | D51: Aspen | E51: 2 | F51: 20 | G51: 40
A52: 2013-12-05 | B52: Billie Chandler | C52: MidWest | D52: Sunshine | E52: 2 | F52: 19.95 | G52: 39.9
A53: 2013-12-06 | B53: Isabel Cross | C53: East | D53: Sunshine | E53: 1 | F53: 18.95 | G53: 18.95
A54: 2013-01-28 | B54: Bernadette Page | C54: MidWest | D54: Sunshine | E54: 2 | F54: 19.95 | G54: 39.9
A55: 2013-12-01 | B55: Andrew Meyer | C55: West | D55: Majectic Beaut | E55: 3 | F55: 30 | G55: 90
A56: 2013-01-25 | B56: Lee Mack | C56: MidWest | D56: Carlota | E56: 1 | F56: 22.95 | G56: 22.95
A57: 2014-04-18 | B57: Bobbie Ryan | C57: East | D57: Crested Beaut | E57: 2 | F57: 23 | G57: 46
A58: 2014-11-25 | B58: Trevor Jones | C58: West | D58: FlatTop | E58: 3 | F58: 27.5 | G58: 82.5
A59: 2013-03-03 | B59: Eric Rose | C59: West | D59: Sunbell | E59: 2 | F59: 25 | G59: 50
A60: 2013-12-03 | B60: Donna Reid | C60: West | D60: Bellen | E60: 2 | F60: 22.95 | G60: 45.9
A61: 2013-11-02 | B61: Ivan Adkins | C61: West | D61: Carlota | E61: 1 | F61: 22.95 | G61: 22.95
A62: 2014-11-09 | B62: Billie Chandler | C62: MidWest | D62: FlatTop | E62: 1 | F62: 27.5 | G62: 27.5
A63: 2013-11-16 | B63: Jenny Garcia | C63: MidWest | D63: Crested Beaut | E63: 11 | F63: 22.8 | G63: 250.8
A64: 2013-11-09 | B64: Andrew Meyer | C64: West | D64: Quad | E64: 2 | F64: 34 | G64: 68
A65: 2013-11-09 | B65: Brooke Horton | C65: MidWest | D65: Doublers | E65: 2 | F65: 79.95 | G65: 159.9
A66: 2013-12-05 | B66: Max Rodgers | C66: West | D66: Sunshine | E66: 3 | F66: 19.95 | G66: 59.85
A67: 2013-11-23 | B67: Eric Rose | C67: West | D67: Sunbell | E67: 2 | F67: 25 | G67: 50
A68: 2014-12-16 | B68: Rachel Gomez | C68: MidWest | D68: FlatTop | E68: 18 | F68: 26.13 | G68: 470.34
A69: 2014-12-24 | B69: Max Rodgers | C69: West | D69: Quad | E69: 2 | F69: 34 | G69: 68
A70: 2013-04-07 | B70: Robert Munoz | C70: MidWest | D70: Sunbell | E70: 15 | F70: 22.8 | G70: 342
A71: 2013-12-04 | B71: Don Gonzales | C71: South | D71: Majectic Beaut | E71: 1 | F71: 29 | G71: 29
A72: 2014-07-30 | B72: Cecilia Manning | C72: South | D72: Bellen | E72: 2 | F72: 22.95 | G72: 45.9
A73: 2013-12-25 | B73: Cindy Becker | C73: South | D73: Bellen | E73: 1 | F73: 22.95 | G73: 22.95
A74: 2014-11-29 | B74: Brooke Horton | C74: MidWest | D74: Sunbell | E74: 2 | F74: 24 | G74: 48
A75: 2014-10-21 | B75: Ivan Adkins | C75: West | D75: V-Rang | E75: 3 | F75: 19 | G75: 57
A76: 2013-09-10 | B76: Christina Fuller | C76: West | D76: Aspen | E76: 2 | F76: 21 | G76: 42
A77: 2014-12-01 | B77: Peter Hodges | C77: MidWest | D77: Sunshine | E77: 2 | F77: 19.95 | G77: 39.9
A78: 2014-11-17 | B78: Ben Perez | C78: West | D78: Bellen | E78: 1 | F78: 22.95 | G78: 22.95
A79: 2014-12-02 | B79: Andrew Meyer | C79: West | D79: Carlota | E79: 4 | F79: 22.95 | G79: 91.8
A80: 2014-11-30 | B80: Peter Hodges | C80: MidWest | D80: Bellen | E80: 3 | F80: 22.95 | G80: 68.85
A81: 2013-11-27 | B81: Billie Chandler | C81: MidWest | D81: Quad | E81: 2 | F81: 33 | G81: 66
A82: 2013-11-19 | B82: Robert Munoz | C82: MidWest | D82: Sunbell | E82: 1 | F82: 24 | G82: 24
A83: 2013-11-16 | B83: Salvador Bass | C83: West | D83: FlatTop | E83: 2 | F83: 27.5 | G83: 55
A84: 2014-12-17 | B84: Salvador Bass | C84: West | D84: Sunset | E84: 3 | F84: 23.5 | G84: 70.5
A85: 2014-11-13 | B85: Bobbie Ryan | C85: East | D85: Carlota | E85: 1 | F85: 21.95 | G85: 21.95
A86: 2014-12-13 | B86: Andrew Meyer | C86: West | D86: Carlota | E86: 2 | F86: 22.95 | G86: 45.9
A87: 2013-10-17 | B87: Drew Rogers | C87: MidWest | D87: Majectic Beaut | E87: 7 | F87: 29 | G87: 203
A88: 2013-11-30 | B88: Isabel Cross | C88: East | D88: Bellen | E88: 3 | F88: 21.95 | G88: 65.85
A89: 2013-12-28 | B89: Della Jensen | C89: East | D89: FlatTop | E89: 1 | F89: 26.5 | G89: 26.5
A90: 2014-12-24 | B90: Lorraine Gibson | C90: East | D90: Carlota | E90: 25 | F90: 20.85 | G90: 521.25
A91: 2013-12-22 | B91: Shari Silva | C91: South | D91: Sunshine | E91: 20 | F91: 18.95 | G91: 379
A92: 2013-12-17 | B92: Drew Rogers | C92: MidWest | D92: Sunshine | E92: 2 | F92: 19.95 | G92: 39.9
A93: 2013-12-06 | B93: Iris Underwood | C93: West | D93: Quad | E93: 3 | F93: 34 | G93: 102
A94: 2013-11-20 | B94: Drew Rogers | C94: MidWest | D94: Quad | E94: 1 | F94: 33 | G94: 33
A95: 2013-01-21 | B95: Jenny Garcia | C95: MidWest | D95: Quad | E95: 3 | F95: 33 | G95: 99
A96: 2013-09-28 | B96: Lorraine Gibson | C96: East | D96: Sunshine | E96: 3 | F96: 18.95 | G96: 56.85
A97: 2014-12-16 | B97: Elaine Ellis | C97: South | D97: Crested Beaut | E97: 1 | F97: 24 | G97: 24
A98: 2014-11-01 | B98: Eric Rose | C98: West | D98: Bellen | E98: 3 | F98: 22.95 | G98: 68.85
A99: 2013-09-27 | B99: Isabel Cross | C99: East | D99: Quad | E99: 1 | F99: 32 | G99: 32
A100: 2013-03-06 | B100: Billie Chandler | C100: MidWest | D100: FlatTop | E100: 21 | F100: 26.13 | G100: 548.73
A101: 2014-12-12 | B101: Woodrow Colon | C101: South | D101: Sunset | E101: 2 | F101: 22.5 | G101: 45
A102: 2013-08-03 | B102: Edwin Malone | C102: East | D102: Sunbell | E102: 1 | F102: 23 | G102: 23
A103: 2013-11-18 | B103: Paulette Spencer | C103: South | D103: Bellen | E103: 3 | F103: 22.95 | G103: 68.85
A104: 2013-12-08 | B104: Cassandra Franklin | C104: MidWest | D104: Bellen | E104: 2 | F104: 22.95 | G104: 45.9
A105: 2014-11-13 | B105: Allan Ramos | C105: MidWest | D105: Sunbell | E105: 2 | F105: 24 | G105: 48
A106: 2014-07-12 | B106: Eric Rose | C106: West | D106: Quad | E106: 1 | F106: 34 | G106: 34
A107: 2014-11-29 | B107: Cassandra Franklin | C107: MidWest | D107: Carlota | E107: 3 | F107: 22.95 | G107: 68.85
A108: 2014-11-28 | B108: Della Jensen | C108: East | D108: Carlota | E108: 3 | F108: 21.95 | G108: 65.85
A109: 2013-12-09 | B109: Shari Silva | C109: South | D109: Carlota | E109: 3 | F109: 22.95 | G109: 68.85
A110: 2014-07-18 | B110: Austin Reynolds | C110: East | D110: Crested Beaut | E110: 3 | F110: 23 | G110: 69
A111: 2014-11-02 | B111: Dan Peterson | C111: MidWest | D111: Sunshine | E111: 2 | F111: 19.95 | G111: 39.9
A112: 2014-11-18 | B112: Elbert Klein | C112: South | D112: Sunshine | E112: 1 | F112: 19.95 | G112: 19.95
A113: 2013-12-19 | B113: Nellie Joseph | C113: East | D113: Aspen | E113: 3 | F113: 19 | G113: 57
A114: 2013-12-09 | B114: Robert Munoz | C114: MidWest | D114: Sunbell | E114: 2 | F114: 24 | G114: 48
A115: 2014-12-04 | B115: Herman Williams | C115: East | D115: Sunset | E115: 3 | F115: 22.5 | G115: 67.5
A116: 2014-12-09 | B116: Cassandra Franklin | C116: MidWest | D116: FlatTop | E116: 3 | F116: 27.5 | G116: 82.5
A117: 2013-11-28 | B117: Woodrow Colon | C117: South | D117: Bellen | E117: 3 | F117: 22.95 | G117: 68.85
A118: 2013-11-13 | B118: Willie Vega | C118: MidWest | D118: Majectic Beaut | E118: 2 | F118: 29 | G118: 58
A119: 2014-12-04 | B119: Cassandra Franklin | C119: MidWest | D119: Doublers | E119: 2 | F119: 79.95 | G119: 159.9
A120: 2014-06-09 | B120: Lorraine Gibson | C120: East | D120: Quad | E120: 2 | F120: 32 | G120: 64
A121: 2013-07-13 | B121: Christina Fuller | C121: West | D121: Bellen | E121: 1 | F121: 22.95 | G121: 22.95
A122: 2013-11-06 | B122: Ivan Adkins | C122: West | D122: Sunshine | E122: 2 | F122: 19.95 | G122: 39.9
A123: 2014-11-19 | B123: Brooke Horton | C123: MidWest | D123: FlatTop | E123: 3 | F123: 27.5 | G123: 82.5
A124: 2014-12-19 | B124: Robert Munoz | C124: MidWest | D124: Sunset | E124: 19 | F124: 22.33 | G124: 424.27
A125: 2014-11-21 | B125: Robert Munoz | C125: MidWest | D125: Crested Beaut | E125: 1 | F125: 24 | G125: 24
A126: 2014-12-31 | B126: Edwin Malone | C126: East | D126: Carlota | E126: 3 | F126: 21.95 | G126: 65.85
A127: 2013-11-10 | B127: Tracy Reed | C127: MidWest | D127: Sunbell | E127: 2 | F127: 24 | G127: 48
A128: 2013-11-25 | B128: Rachel Gomez | C128: MidWest | D128: FlatTop | E128: 3 | F128: 27.5 | G128: 82.5
A129: 2014-12-17 | B129: Elbert Klein | C129: South | D129: Sunset | E129: 16 | F129: 21.38 | G129: 342.08
A130: 2013-11-11 | B130: Lynette Brewer | C130: MidWest | D130: Aspen | E130: 3 | F130: 20 | G130: 60
A131: 2014-11-18 | B131: Kyle Carr | C131: MidWest | D131: Carlota | E131: 2 | F131: 22.95 | G131: 45.9
A132: 2014-12-13 | B132: Max Rodgers | C132: West | D132: Bellen | E132: 7 | F132: 22.95 | G132: 160.65
A133: 2013-12-10 | B133: Carla Mccormick | C133: MidWest | D133: Carlota | E133: 3 | F133: 22.95 | G133: 68.85
A134: 2013-12-04 | B134: Fernando Rowe | C134: West | D134: Sunshine | E134: 1 | F134: 19.95 | G134: 19.95
A135: 2013-11-05 | B135: Jaime Pearson | C135: MidWest | D135: Bellen | E135: 2 | F135: 22.95 | G135: 45.9
A136: 2014-12-15 | B136: Max Rodgers | C136: West | D136: Sunbell | E136: 2 | F136: 25 | G136: 50
A137: 2014-12-27 | B137: Della Jensen | C137: East | D137: Bellen | E137: 2 | F137: 21.95 | G137: 43.9
A138: 2013-08-25 | B138: Donna Reid | C138: West | D138: Carlota | E138: 3 | F138: 22.95 | G138: 68.85
A139: 2014-12-22 | B139: Robert Munoz | C139: MidWest | D139: Carlota | E139: 2 | F139: 22.95 | G139: 45.9
A140: 2014-12-14 | B140: Cindy Becker | C140: South | D140: Majectic Beaut | E140: 1 | F140: 29 | G140: 29
A141: 2014-12-19 | B141: Max Rodgers | C141: West | D141: Sunset | E141: 12 | F141: 22.33 | G141: 267.96
A142: 2013-09-14 | B142: Cindy Becker | C142: South | D142: Aspen | E142: 1 | F142: 20 | G142: 20
A143: 2014-12-22 | B143: Robert Munoz | C143: MidWest | D143: Quad | E143: 3 | F143: 33 | G143: 99
A144: 2013-11-14 | B144: Jenny Garcia | C144: MidWest | D144: Sunset | E144: 3 | F144: 23.5 | G144: 70.5
A145: 2013-02-03 | B145: Pauline Beck | C145: West | D145: Sunbell | E145: 1 | F145: 25 | G145: 25
A146: 2013-12-04 | B146: Max Rodgers | C146: West | D146: Majectic Beaut | E146: 2 | F146: 30 | G146: 60
A147: 2013-12-27 | B147: Cindy Becker | C147: South | D147: Carlota | E147: 1 | F147: 22.95 | G147: 22.95
A148: 2013-11-27 | B148: Rachel Gomez | C148: MidWest | D148: Sunshine | E148: 2 | F148: 19.95 | G148: 39.9
A149: 2013-07-12 | B149: Lorraine Gibson | C149: East | D149: Carlota | E149: 2 | F149: 21.95 | G149: 43.9
A150: 2014-11-10 | B150: Billie Chandler | C150: MidWest | D150: Quad | E150: 8 | F150: 33 | G150: 264
A151: 2013-01-29 | B151: Lee Mack | C151: MidWest | D151: Sunbell | E151: 1 | F151: 24 | G151: 24
A152: 2013-12-23 | B152: Dan Peterson | C152: MidWest | D152: Sunshine | E152: 1 | F152: 19.95 | G152: 19.95
A153: 2014-08-03 | B153: Robert Munoz | C153: MidWest | D153: Quad | E153: 3 | F153: 33 | G153: 99
A154: 2014-11-01 | B154: Eric Rose | C154: West | D154: Sunshine | E154: 1 | F154: 19.95 | G154: 19.95
A155: 2014-12-21 | B155: Christina Fuller | C155: West | D155: Bellen | E155: 2 | F155: 22.95 | G155: 45.9
A156: 2013-11-25 | B156: Jenny Garcia | C156: MidWest | D156: Quad | E156: 4 | F156: 33 | G156: 132
A157: 2014-12-30 | B157: Ellen Weaver | C157: South | D157: Sunset | E157: 1 | F157: 22.5 | G157: 22.5
A158: 2014-12-22 | B158: Eric Rose | C158: West | D158: Carlota | E158: 2 | F158: 22.95 | G158: 45.9
A159: 2013-12-30 | B159: Jaime Pearson | C159: MidWest | D159: Bellen | E159: 2 | F159: 22.95 | G159: 45.9
A160: 2014-12-02 | B160: Marian Hill | C160: South | D160: Sunshine | E160: 2 | F160: 19.95 | G160: 39.9
A161: 2013-10-13 | B161: Blake Bridges | C161: South | D161: Sunshine | E161: 1 | F161: 19.95 | G161: 19.95
A162: 2014-12-14 | B162: Robert Munoz | C162: MidWest | D162: Quad | E162: 5 | F162: 33 | G162: 165
A163: 2013-12-27 | B163: Sandra Floyd | C163: MidWest | D163: Quad | E163: 2 | F163: 33 | G163: 66
A164: 2013-12-29 | B164: Cindy Becker | C164: South | D164: Carlota | E164: 1 | F164: 22.95 | G164: 22.95
A165: 2014-12-31 | B165: Austin Reynolds | C165: East | D165: Bellen | E165: 4 | F165: 21.95 | G165: 87.8
A166: 2013-12-08 | B166: Elvira Bowman | C166: MidWest | D166: Sunshine | E166: 3 | F166: 19.95 | G166: 59.85
A167: 2013-11-23 | B167: Jenny Garcia | C167: MidWest | D167: Quad | E167: 3 | F167: 33 | G167: 99
A168: 2013-12-08 | B168: Salvador Bass | C168: West | D168: Sunbell | E168: 14 | F168: 23.75 | G168: 332.5
A169: 2013-02-19 | B169: Cassandra Franklin | C169: MidWest | D169: Doublers | E169: 4 | F169: 79.95 | G169: 319.8
A170: 2013-12-13 | B170: Ben Perez | C170: West | D170: Crested Beaut | E170: 1 | F170: 25 | G170: 25
A171: 2013-01-29 | B171: Robert Munoz | C171: MidWest | D171: Sunbell | E171: 2 | F171: 24 | G171: 48
A172: 2014-12-11 | B172: Lance Yates | C172: MidWest | D172: Doublers | E172: 2 | F172: 79.95 | G172: 159.9
A173: 2013-12-05 | B173: Beth Tucker | C173: West | D173: Carlota | E173: 14 | F173: 21.8 | G173: 305.2
A174: 2013-03-25 | B174: Cecilia Manning | C174: South | D174: Quad | E174: 3 | F174: 33 | G174: 99
A175: 2014-11-21 | B175: Patty Thompson | C175: West | D175: Bellen | E175: 4 | F175: 22.95 | G175: 91.8
A176: 2013-12-10 | B176: Robert Munoz | C176: MidWest | D176: FlatTop | E176: 2 | F176: 27.5 | G176: 55
A177: 2014-05-07 | B177: Elaine Ellis | C177: South | D177: Sunshine | E177: 2 | F177: 19.95 | G177: 39.9
A178: 2013-11-30 | B178: Isabel Cross | C178: East | D178: Sunshine | E178: 3 | F178: 18.95 | G178: 56.85
A179: 2014-11-14 | B179: Shari Silva | C179: South | D179: Quad | E179: 2 | F179: 33 | G179: 66
A180: 2014-11-13 | B180: Sandra Floyd | C180: MidWest | D180: Sunshine | E180: 2 | F180: 19.95 | G180: 39.9
A181: 2014-12-31 | B181: Shari Silva | C181: South | D181: Bellen | E181: 2 | F181: 22.95 | G181: 45.9
A182: 2013-04-17 | B182: Trevor Jones | C182: West | D182: Sunshine | E182: 1 | F182: 19.95 | G182: 19.95
A183: 2013-12-07 | B183: Robert Munoz | C183: MidWest | D183: Bellen | E183: 5 | F183: 22.95 | G183: 114.75
A184: 2014-11-27 | B184: Brooke Horton | C184: MidWest | D184: Majectic Beaut | E184: 19 | F184: 27.55 | G184: 523.45
A185: 2014-02-26 | B185: Mable Lindsey | C185: West | D185: Quad | E185: 3 | F185: 34 | G185: 102
A186: 2014-12-10 | B186: Drew Rogers | C186: MidWest | D186: Quad | E186: 2 | F186: 33 | G186: 66
A187: 2013-12-21 | B187: Sonya Mullins | C187: East | D187: Quad | E187: 1 | F187: 32 | G187: 32
A188: 2014-11-15 | B188: Jenny Garcia | C188: MidWest | D188: Bellen | E188: 3 | F188: 22.95 | G188: 68.85
A189: 2013-11-10 | B189: Brooke Horton | C189: MidWest | D189: Carlota | E189: 19 | F189: 21.8 | G189: 414.2
A190: 2013-11-15 | B190: Jenny Garcia | C190: MidWest | D190: Aspen | E190: 2 | F190: 20 | G190: 40
A191: 2013-03-04 | B191: Iris Underwood | C191: West | D191: Quad | E191: 2 | F191: 34 | G191: 68
A192: 2014-01-29 | B192: Tiffany May | C192: West | D192: Quad | E192: 3 | F192: 34 | G192: 102
A193: 2013-05-06 | B193: Kyle Carr | C193: MidWest | D193: Quad | E193: 4 | F193: 33 | G193: 132
A194: 2014-04-05 | B194: Salvador Bass | C194: West | D194: Sunbell | E194: 1 | F194: 25 | G194: 25
A195: 2014-11-10 | B195: Kyle Carr | C195: MidWest | D195: Aspen | E195: 11 | F195: 19 | G195: 209
A196: 2014-11-25 | B196: Dan Peterson | C196: MidWest | D196: Crested Beaut | E196: 2 | F196: 24 | G196: 48
A197: 2014-07-05 | B197: Max Rodgers | C197: West | D197: Sunbell | E197: 2 | F197: 25 | G197: 50
A198: 2014-12-26 | B198: Edwin Malone | C198: East | D198: Bellen | E198: 2 | F198: 21.95 | G198: 43.9
A199: 2014-04-10 | B199: Robert Munoz | C199: MidWest | D199: Sunbell | E199: 2 | F199: 24 | G199: 48
A200: 2013-11-17 | B200: Elbert Klein | C200: South | D200: Aspen | E200: 1 | F200: 20 | G200: 20
A201: 2014-12-04 | B201: Isabel Cross | C201: East | D201: Sunbell | E201: 2 | F201: 23 | G201: 46
... 9808 more rows

Sheet Data(5)
A1: 43 | B1: Show Values As: % of Grand Total
A2: 44 | B2: Show Values As: % of Column
A3: 45 | B3: Show Values As: % of Row | G3: 46: Connect One Slicer to many PivotTables
A4: 47 | B4: Show Values As: Running Total
A5: 48 | B5: Show Values As: Difference From
A6: 49 | B6: Show Values As: % Difference From
A7: 50 | B7: Show Values As: % of Parent
A8: 51 | B8: Show Values As: % of Parent Row Total
A9: 52 | B9: Show Values As: % of Parent Column Total
A10: 53 | B10: Show Values As: Rank
A11: 54 | B11: Sort based on Value Field | G11: 55: Create Formula in PivotTable: Sales - Expense
A13: Invoice Number | B13: Date | C13: Time | D13: Internal Toy ID Number | E13: Toy Item Number | F13: Toy Company | G13: Toy Name | H13: Suggested Age | I13: Price Per Toy | J13: Units Sold | K13: Total Line Revenue | L13: Total COGS | M13: Payment | N13: Cashier ID | O13: Member? | P13: Coupon? | Q13: Purchaser Age | R13: Parking Validation?
A14: 654522 | B14: 2010-01-07 | C14: 10:25:37.200 | D14: D255/FE | E14: 192 | F14: Duplo | G14: Policemen | H14: 6 and up | I14: 9.95 | J14: 1 | K14: 9.95 | L14: 5.17 | M14: Cash | N14: V.W.|880-4523 | O14: No | P14: No | Q14: 39 | R14: No
A15: 654526 | B15: 2010-01-07 | C15: 12:00:00 | D15: L217/SN | E15: 255 | F15: Duplo | G15: Farming Scene | H15: 7 and up | I15: 24.95 | J15: 5 | K15: 124.75 | L15: 81.1 | M15: Visa | N15: B.X.|880-9149 | O15: No | P15: No | Q15: 29 | R15: No
A16: 654568 | B16: 2010-01-07 | C16: 14:19:12 | D16: L195/AE | E16: 195 | F16: Lego | G16: Airplane | H16: 8 and up | I16: 5.95 | J16: 1 | K16: 5.95 | L16: 3.09 | M16: Cash | N16: Z.Q.|880-4240 | O16: No | P16: Yes | Q16: 46 | R16: Yes
A17: 654576 | B17: 2010-01-25 | C17: 12:57:00 | D17: L256/PE | E17: 256 | F17: Lego | G17: Police Officers and Motorcycle | H17: 9 and up | I17: 9.95 | J17: 1 | K17: 9.95 | L17: 4.48 | M17: Discover | N17: D.U.|880-2953 | O17: No | P17: No | Q17: 36 | R17: No
A18: 654613 | B18: 2010-02-05 | C18: 14:51:36 | D18: D250/AT | E18: 192 | F18: Duplo | G18: Policemen | H18: 6 and up | I18: 9.95 | J18: 1 | K18: 9.95 | L18: 5.17 | M18: Cash | N18: D.Z.|880-1179 | O18: No | P18: No | Q18: 33 | R18: No
A19: 654624 | B19: 2010-02-05 | C19: 14:36:00 | D19: D250/AT | E19: 192 | F19: Duplo | G19: Policemen | H19: 6 and up | I19: 9.95 | J19: 5 | K19: 49.75 | L19: 25.85 | M19: Cash | N19: L.W.|880-4986 | O19: No | P19: No | Q19: 47 | R19: No
A20: 654650 | B20: 2010-02-06 | C20: 14:33:36 | D20: D250/AT | E20: 192 | F20: Duplo | G20: Policemen | H20: 6 and up | I20: 9.95 | J20: 1 | K20: 9.95 | L20: 5.17 | M20: Mastercard | N20: D.S.|880-7532 | O20: No | P20: No | Q20: 34 | R20: No
A21: 654650 | B21: 2010-02-06 | C21: 14:33:36 | D21: L195/AE | E21: 195 | F21: Lego | G21: Airplane | H21: 8 and up | I21: 5.95 | J21: 2 | K21: 11.9 | L21: 6.18 | M21: Mastercard | N21: D.S.|880-7532 | O21: No | P21: No | Q21: 34 | R21: No
A22: 654668 | B22: 2010-02-11 | C22: 13:42:46.800 | D22: L195/AE | E22: 195 | F22: Lego | G22: Airplane | H22: 8 and up | I22: 5.95 | J22: 1 | K22: 5.95 | L22: 3.09 | M22: Check | N22: D.W.|880-7199 | O22: No | P22: No | Q22: 47 | R22: Yes
A23: 654673 | B23: 2010-02-20 | C23: 15:27:18 | D23: L256/PE | E23: 256 | F23: Lego | G23: Police Officers and Motorcycle | H23: 9 and up | I23: 9.95 | J23: 4 | K23: 39.8 | L23: 17.92 | M23: Cash | N23: W.B.|880-9647 | O23: No | P23: No | Q23: 32 | R23: No
A24: 654693 | B24: 2010-03-11 | C24: 15:45:36 | D24: D254/FE | E24: 192 | F24: Duplo | G24: Policemen | H24: 6 and up | I24: 9.95 | J24: 1 | K24: 9.95 | L24: 5.17 | M24: Cash | N24: B.Y.|880-6845 | O24: No | P24: No | Q24: 36 | R24: No
A25: 654693 | B25: 2010-03-11 | C25: 15:45:36 | D25: L195/AE | E25: 195 | F25: Lego | G25: Airplane | H25: 8 and up | I25: 5.95 | J25: 1 | K25: 5.95 | L25: 3.09 | M25: Cash | N25: B.Y.|880-6845 | O25: No | P25: No | Q25: 36 | R25: No
A26: 654733 | B26: 2010-03-11 | C26: 13:59:24 | D26: L256/PE | E26: 256 | F26: Lego | G26: Police Officers and Motorcycle | H26: 9 and up | I26: 9.95 | J26: 2 | K26: 19.9 | L26: 8.96 | M26: Visa | N26: P.N.|880-3021 | O26: No | P26: No | Q26: 36 | R26: No
A27: 654754 | B27: 2010-03-27 | C27: 12:08:24 | D27: D255/FE | E27: 192 | F27: Duplo | G27: Policemen | H27: 6 and up | I27: 9.95 | J27: 1 | K27: 9.95 | L27: 5.17 | M27: Mastercard | N27: P.N.|880-3021 | O27: No | P27: No | Q27: 33 | R27: No
A28: 654799 | B28: 2010-04-03 | C28: 15:27:36 | D28: D255/FE | E28: 192 | F28: Duplo | G28: Policemen | H28: 6 and up | I28: 9.95 | J28: 3 | K28: 29.85 | L28: 15.51 | M28: Cash | N28: A.U.|880-2167 | O28: Yes | P28: No | Q28: 47 | R28: No
A29: 654827 | B29: 2010-04-09 | C29: 15:58:33.600 | D29: D254/FE | E29: 192 | F29: Duplo | G29: Policemen | H29: 6 and up | I29: 9.95 | J29: 2 | K29: 19.9 | L29: 10.34 | M29: Mastercard | N29: A.U.|880-2167 | O29: No | P29: No | Q29: 35 | R29: Yes
A30: 654834 | B30: 2010-04-09 | C30: 12:06:00 | D30: D254/FE | E30: 192 | F30: Duplo | G30: Policemen | H30: 6 and up | I30: 9.95 | J30: 2 | K30: 19.9 | L30: 10.34 | M30: Visa | N30: Z.Q.|880-4240 | O30: Yes | P30: Yes | Q30: 49 | R30: No
A31: 654860 | B31: 2010-04-09 | C31: 17:12:36 | D31: L195/AE | E31: 195 | F31: Lego | G31: Airplane | H31: 8 and up | I31: 5.95 | J31: 2 | K31: 11.9 | L31: 6.18 | M31: Gift Card | N31: B.B.|880-9330 | O31: No | P31: Yes | Q31: 30 | R31: No
A32: 654883 | B32: 2010-04-09 | C32: 12:59:16.800 | D32: L217/SN | E32: 255 | F32: Duplo | G32: Farming Scene | H32: 7 and up | I32: 24.95 | J32: 3 | K32: 74.85 | L32: 48.66 | M32: Visa | N32: Z.Q.|880-4240 | O32: No | P32: No | Q32: 42 | R32: Yes
A33: 654908 | B33: 2010-04-14 | C33: 19:54:00 | D33: D218/FN | E33: 192 | F33: Duplo | G33: Policemen | H33: 6 and up | I33: 9.95 | J33: 1 | K33: 9.95 | L33: 5.17 | M33: Mastercard | N33: L.C.|880-6872 | O33: No | P33: No | Q33: 39 | R33: No
A34: 654932 | B34: 2010-04-14 | C34: 12:42:00 | D34: D250/AT | E34: 192 | F34: Duplo | G34: Policemen | H34: 6 and up | I34: 9.95 | J34: 1 | K34: 9.95 | L34: 5.17 | M34: Mastercard | N34: U.O.|880-3720 | O34: No | P34: No | Q34: 36 | R34: Yes
A35: 654979 | B35: 2010-04-17 | C35: 14:16:30 | D35: D254/FE | E35: 192 | F35: Duplo | G35: Policemen | H35: 6 and up | I35: 9.95 | J35: 2 | K35: 19.9 | L35: 10.34 | M35: Cash | N35: D.W.|880-7199 | O35: No | P35: Yes | Q35: 39 | R35: No
A36: 655029 | B36: 2010-04-22 | C36: 13:39:36 | D36: L256/PE | E36: 256 | F36: Lego | G36: Police Officers and Motorcycle | H36: 9 and up | I36: 9.95 | J36: 1 | K36: 9.95 | L36: 4.48 | M36: Discover | N36: S.V.|880-5987 | O36: No | P36: Yes | Q36: 63 | R36: No
A37: 655035 | B37: 2010-04-24 | C37: 17:16:48 | D37: L340/FS | E37: 340 | F37: Lego | G37: Fire Trucks | H37: 6 and up | I37: 34.95 | J37: 2 | K37: 69.9 | L37: 39.84 | M37: Mastercard | N37: V.W.|880-4523 | O37: Yes | P37: Yes | Q37: 38 | R37: No
A38: 655083 | B38: 2010-04-25 | C38: 16:52:12 | D38: L256/PE | E38: 256 | F38: Lego | G38: Police Officers and Motorcycle | H38: 9 and up | I38: 9.95 | J38: 2 | K38: 19.9 | L38: 8.96 | M38: Visa | N38: N.W.|880-6237 | O38: No | P38: Yes | Q38: 33 | R38: No
A39: 655105 | B39: 2010-05-01 | C39: 15:27:36 | D39: L256/PE | E39: 256 | F39: Lego | G39: Police Officers and Motorcycle | H39: 9 and up | I39: 9.95 | J39: 1 | K39: 9.95 | L39: 4.48 | M39: Visa | N39: U.W.|880-9683 | O39: No | P39: No | Q39: 33 | R39: No
A40: 655105 | B40: 2010-05-01 | C40: 15:27:36 | D40: L256/PE | E40: 256 | F40: Lego | G40: Police Officers and Motorcycle | H40: 9 and up | I40: 9.95 | J40: 2 | K40: 19.9 | L40: 8.96 | M40: Visa | N40: U.W.|880-9683 | O40: No | P40: No | Q40: 33 | R40: No
A41: 655112 | B41: 2010-05-04 | C41: 14:47:13.200 | D41: D255/FE | E41: 192 | F41: Duplo | G41: Policemen | H41: 6 and up | I41: 9.95 | J41: 1 | K41: 9.95 | L41: 5.17 | M41: Visa | N41: H.B.|880-3254 | O41: Yes | P41: Yes | Q41: 31 | R41: No
A42: 655124 | B42: 2010-05-06 | C42: 12:39:57.600 | D42: D255/FE | E42: 192 | F42: Duplo | G42: Policemen | H42: 6 and up | I42: 9.95 | J42: 1 | K42: 9.95 | L42: 5.17 | M42: Visa | N42: Z.Q.|880-4240 | O42: No | P42: No | Q42: 45 | R42: No
A43: 655165 | B43: 2010-05-30 | C43: 17:40:12 | D43: D250/AT | E43: 192 | F43: Duplo | G43: Policemen | H43: 6 and up | I43: 9.95 | J43: 2 | K43: 19.9 | L43: 10.34 | M43: Cash | N43: D.U.|880-2953 | O43: Yes | P43: Yes | Q43: 29 | R43: No
A44: 655189 | B44: 2010-05-30 | C44: 16:21:00 | D44: L195/AE | E44: 195 | F44: Lego | G44: Airplane | H44: 8 and up | I44: 5.95 | J44: 2 | K44: 11.9 | L44: 6.18 | M44: Visa | N44: B.B.|880-9330 | O44: No | P44: No | Q44: 49 | R44: No
A45: 655232 | B45: 2010-05-30 | C45: 11:17:24 | D45: D250/AT | E45: 192 | F45: Duplo | G45: Policemen | H45: 6 and up | I45: 9.95 | J45: 1 | K45: 9.95 | L45: 5.17 | M45: Cash | N45: H.B.|880-3254 | O45: No | P45: Yes | Q45: 42 | R45: No
A46: 655232 | B46: 2010-05-30 | C46: 11:17:24 | D46: L256/PE | E46: 256 | F46: Lego | G46: Police Officers and Motorcycle | H46: 9 and up | I46: 9.95 | J46: 2 | K46: 19.9 | L46: 8.96 | M46: Cash | N46: H.B.|880-3254 | O46: No | P46: Yes | Q46: 42 | R46: No
A47: 655281 | B47: 2010-06-01 | C47: 15:27:36 | D47: D255/FE | E47: 192 | F47: Duplo | G47: Policemen | H47: 6 and up | I47: 9.95 | J47: 4 | K47: 39.8 | L47: 20.68 | M47: Mastercard | N47: W.C.|880-4861 | O47: No | P47: No | Q47: 34 | R47: Yes
A48: 655298 | B48: 2010-06-09 | C48: 16:28:48 | D48: D255/FE | E48: 192 | F48: Duplo | G48: Policemen | H48: 6 and up | I48: 9.95 | J48: 1 | K48: 9.95 | L48: 5.17 | M48: Discover | N48: V.W.|880-8599 | O48: No | P48: No | Q48: 36 | R48: No
A49: 655323 | B49: 2010-06-13 | C49: 12:18:36 | D49: D255/FE | E49: 192 | F49: Duplo | G49: Policemen | H49: 6 and up | I49: 9.95 | J49: 1 | K49: 9.95 | L49: 5.17 | M49: Mastercard | N49: N.C.|880-3850 | O49: No | P49: No | Q49: 41 | R49: No
A50: 655358 | B50: 2010-06-13 | C50: 19:16:12 | D50: L195/AE | E50: 195 | F50: Lego | G50: Airplane | H50: 8 and up | I50: 5.95 | J50: 2 | K50: 11.9 | L50: 6.18 | M50: Cash | N50: W.C.|880-4861 | O50: No | P50: No | Q50: 32 | R50: Yes
A51: 655358 | B51: 2010-06-13 | C51: 19:16:12 | D51: D254/FE | E51: 192 | F51: Duplo | G51: Policemen | H51: 6 and up | I51: 9.95 | J51: 1 | K51: 9.95 | L51: 5.17 | M51: Cash | N51: W.C.|880-4861 | O51: No | P51: No | Q51: 32 | R51: Yes
A52: 655373 | B52: 2010-06-21 | C52: 12:27:39.600 | D52: L195/AE | E52: 195 | F52: Lego | G52: Airplane | H52: 8 and up | I52: 5.95 | J52: 1 | K52: 5.95 | L52: 3.09 | M52: Visa | N52: N.W.|880-6237 | O52: No | P52: No | Q52: 43 | R52: No
A53: 655385 | B53: 2010-06-21 | C53: 16:05:24 | D53: L256/PE | E53: 256 | F53: Lego | G53: Police Officers and Motorcycle | H53: 9 and up | I53: 9.95 | J53: 2 | K53: 19.9 | L53: 8.96 | M53: Mastercard | N53: W.B.|880-9647 | O53: No | P53: No | Q53: 46 | R53: No
A54: 655412 | B54: 2010-06-24 | C54: 11:39:10.800 | D54: D254/FE | E54: 192 | F54: Duplo | G54: Policemen | H54: 6 and up | I54: 9.95 | J54: 5 | K54: 49.75 | L54: 25.85 | M54: Mastercard | N54: H.B.|880-3254 | O54: No | P54: No | Q54: 65 | R54: No
A55: 655412 | B55: 2010-06-24 | C55: 11:39:10.800 | D55: D250/AT | E55: 192 | F55: Duplo | G55: Policemen | H55: 6 and up | I55: 9.95 | J55: 2 | K55: 19.9 | L55: 10.34 | M55: Mastercard | N55: H.B.|880-3254 | O55: No | P55: No | Q55: 65 | R55: No
A56: 655420 | B56: 2010-06-26 | C56: 16:09:36 | D56: L256/PE | E56: 256 | F56: Lego | G56: Police Officers and Motorcycle | H56: 9 and up | I56: 9.95 | J56: 2 | K56: 19.9 | L56: 8.96 | M56: Mastercard | N56: A.U.|880-2167 | O56: No | P56: No | Q56: 56 | R56: Yes
A57: 655467 | B57: 2010-07-04 | C57: 13:46:48 | D57: L195/AE | E57: 195 | F57: Lego | G57: Airplane | H57: 8 and up | I57: 5.95 | J57: 1 | K57: 5.95 | L57: 3.09 | M57: Cash | N57: Y.P.|880-6894 | O57: No | P57: No | Q57: 34 | R57: Yes
A58: 655505 | B58: 2010-07-09 | C58: 09:10:12 | D58: D254/FE | E58: 192 | F58: Duplo | G58: Policemen | H58: 6 and up | I58: 9.95 | J58: 2 | K58: 19.9 | L58: 10.34 | M58: Gift Card | N58: N.C.|880-3850 | O58: No | P58: No | Q58: 30 | R58: Yes
A59: 655526 | B59: 2010-07-09 | C59: 12:57:36 | D59: D250/AT | E59: 192 | F59: Duplo | G59: Policemen | H59: 6 and up | I59: 9.95 | J59: 3 | K59: 29.85 | L59: 15.51 | M59: Mastercard | N59: Z.Q.|880-4240 | O59: No | P59: No | Q59: 24 | R59: Yes
A60: 655557 | B60: 2010-07-10 | C60: 16:00:00 | D60: L195/AE | E60: 195 | F60: Lego | G60: Airplane | H60: 8 and up | I60: 5.95 | J60: 4 | K60: 23.8 | L60: 12.36 | M60: Visa | N60: V.W.|880-8599 | O60: No | P60: No | Q60: 37 | R60: No
A61: 655557 | B61: 2010-07-10 | C61: 16:00:00 | D61: D255/FE | E61: 192 | F61: Duplo | G61: Policemen | H61: 6 and up | I61: 9.95 | J61: 2 | K61: 19.9 | L61: 10.34 | M61: Visa | N61: V.W.|880-8599 | O61: No | P61: No | Q61: 37 | R61: No
A62: 655570 | B62: 2010-07-18 | C62: 14:46:12 | D62: D255/FE | E62: 192 | F62: Duplo | G62: Policemen | H62: 6 and up | I62: 9.95 | J62: 1 | K62: 9.95 | L62: 5.17 | M62: Cash | N62: L.W.|880-4986 | O62: No | P62: Yes | Q62: 37 | R62: No
A63: 655577 | B63: 2010-07-19 | C63: 11:24:00 | D63: L256/PE | E63: 256 | F63: Lego | G63: Police Officers and Motorcycle | H63: 9 and up | I63: 9.95 | J63: 4 | K63: 39.8 | L63: 17.92 | M63: Mastercard | N63: V.W.|880-8599 | O63: No | P63: No | Q63: 12 | R63: No
A64: 655613 | B64: 2010-07-25 | C64: 12:04:22.800 | D64: D250/AT | E64: 192 | F64: Duplo | G64: Policemen | H64: 6 and up | I64: 9.95 | J64: 2 | K64: 19.9 | L64: 10.34 | M64: Visa | N64: L.W.|880-4986 | O64: No | P64: No | Q64: 64 | R64: No
A65: 655623 | B65: 2010-07-29 | C65: 10:13:48 | D65: D250/AT | E65: 192 | F65: Duplo | G65: Policemen | H65: 6 and up | I65: 9.95 | J65: 1 | K65: 9.95 | L65: 5.17 | M65: Visa | N65: D.U.|880-2953 | O65: No | P65: No | Q65: 43 | R65: No
A66: 655643 | B66: 2010-07-30 | C66: 11:49:48 | D66: L195/AE | E66: 195 | F66: Lego | G66: Airplane | H66: 8 and up | I66: 5.95 | J66: 3 | K66: 17.85 | L66: 9.27 | M66: Gift Card | N66: N.C.|880-3850 | O66: No | P66: No | Q66: 48 | R66: No
A67: 655661 | B67: 2010-08-09 | C67: 16:56:24 | D67: D250/AT | E67: 192 | F67: Duplo | G67: Policemen | H67: 6 and up | I67: 9.95 | J67: 1 | K67: 9.95 | L67: 5.17 | M67: Mastercard | N67: C.X.|880-3590 | O67: Yes | P67: Yes | Q67: 34 | R67: No
A68: 655661 | B68: 2010-08-09 | C68: 16:56:24 | D68: D254/FE | E68: 192 | F68: Duplo | G68: Policemen | H68: 6 and up | I68: 9.95 | J68: 1 | K68: 9.95 | L68: 5.17 | M68: Mastercard | N68: C.X.|880-3590 | O68: Yes | P68: Yes | Q68: 34 | R68: No
A69: 655673 | B69: 2010-08-16 | C69: 15:42:36 | D69: D255/FE | E69: 192 | F69: Duplo | G69: Policemen | H69: 6 and up | I69: 9.95 | J69: 1 | K69: 9.95 | L69: 5.17 | M69: Cash | N69: D.U.|880-2953 | O69: No | P69: No | Q69: 50 | R69: Yes
A70: 655676 | B70: 2010-08-18 | C70: 18:27:36 | D70: D254/FE | E70: 192 | F70: Duplo | G70: Policemen | H70: 6 and up | I70: 9.95 | J70: 1 | K70: 9.95 | L70: 5.17 | M70: Cash | N70: D.Z.|880-1179 | O70: No | P70: No | Q70: 38 | R70: No
A71: 655676 | B71: 2010-08-18 | C71: 18:27:36 | D71: D254/FE | E71: 192 | F71: Duplo | G71: Policemen | H71: 6 and up | I71: 9.95 | J71: 4 | K71: 39.8 | L71: 20.68 | M71: Cash | N71: D.Z.|880-1179 | O71: No | P71: No | Q71: 38 | R71: No
A72: 655679 | B72: 2010-08-24 | C72: 16:49:12 | D72: D250/AT | E72: 192 | F72: Duplo | G72: Policemen | H72: 6 and up | I72: 9.95 | J72: 3 | K72: 29.85 | L72: 15.51 | M72: Gift Card | N72: S.V.|880-5987 | O72: No | P72: No | Q72: 41 | R72: No
A73: 655716 | B73: 2010-09-02 | C73: 16:19:04.800 | D73: D250/AT | E73: 192 | F73: Duplo | G73: Policemen | H73: 6 and up | I73: 9.95 | J73: 1 | K73: 9.95 | L73: 5.17 | M73: Cash | N73: U.W.|880-9683 | O73: Yes | P73: No | Q73: 21 | R73: No
A74: 655731 | B74: 2010-09-05 | C74: 18:17:24 | D74: D254/FE | E74: 192 | F74: Duplo | G74: Policemen | H74: 6 and up | I74: 9.95 | J74: 1 | K74: 9.95 | L74: 5.17 | M74: Visa | N74: Z.T.|880-7477 | O74: No | P74: Yes | Q74: 31 | R74: No
A75: 655768 | B75: 2010-09-12 | C75: 14:41:34.800 | D75: L256/PE | E75: 256 | F75: Lego | G75: Police Officers and Motorcycle | H75: 9 and up | I75: 9.95 | J75: 1 | K75: 9.95 | L75: 4.48 | M75: Mastercard | N75: H.B.|880-3254 | O75: No | P75: No | Q75: 40 | R75: No
A76: 655793 | B76: 2010-09-12 | C76: 17:33:00 | D76: D255/FE | E76: 192 | F76: Duplo | G76: Policemen | H76: 6 and up | I76: 9.95 | J76: 3 | K76: 29.85 | L76: 15.51 | M76: Cash | N76: A.U.|880-2167 | O76: Yes | P76: Yes | Q76: 48 | R76: No
A77: 655793 | B77: 2010-09-12 | C77: 17:33:00 | D77: D254/FE | E77: 192 | F77: Duplo | G77: Policemen | H77: 6 and up | I77: 9.95 | J77: 1 | K77: 9.95 | L77: 5.17 | M77: Cash | N77: A.U.|880-2167 | O77: Yes | P77: Yes | Q77: 48 | R77: No
A78: 655833 | B78: 2010-09-21 | C78: 18:36:36 | D78: L195/AE | E78: 195 | F78: Lego | G78: Airplane | H78: 8 and up | I78: 5.95 | J78: 2 | K78: 11.9 | L78: 6.18 | M78: Discover | N78: H.B.|880-3254 | O78: No | P78: No | Q78: 32 | R78: Yes
A79: 655833 | B79: 2010-09-21 | C79: 18:36:36 | D79: D250/AT | E79: 192 | F79: Duplo | G79: Policemen | H79: 6 and up | I79: 9.95 | J79: 2 | K79: 19.9 | L79: 10.34 | M79: Discover | N79: H.B.|880-3254 | O79: No | P79: No | Q79: 32 | R79: Yes
A80: 655842 | B80: 2010-10-04 | C80: 13:49:12 | D80: D250/AT | E80: 192 | F80: Duplo | G80: Policemen | H80: 6 and up | I80: 9.95 | J80: 2 | K80: 19.9 | L80: 10.34 | M80: Cash | N80: D.W.|880-7199 | O80: No | P80: No | Q80: 44 | R80: No
A81: 655845 | B81: 2010-10-14 | C81: 20:37:48 | D81: L195/AE | E81: 195 | F81: Lego | G81: Airplane | H81: 8 and up | I81: 5.95 | J81: 1 | K81: 5.95 | L81: 3.09 | M81: Mastercard | N81: N.C.|880-3850 | O81: No | P81: No | Q81: 34 | R81: No
A82: 655894 | B82: 2010-10-16 | C82: 16:01:48 | D82: D255/FE | E82: 192 | F82: Duplo | G82: Policemen | H82: 6 and up | I82: 9.95 | J82: 1 | K82: 9.95 | L82: 5.17 | M82: Discover | N82: D.S.|880-7532 | O82: No | P82: No | Q82: 40 | R82: No
A83: 655933 | B83: 2010-10-16 | C83: 10:30:00 | D83: L195/AE | E83: 195 | F83: Lego | G83: Airplane | H83: 8 and up | I83: 5.95 | J83: 2 | K83: 11.9 | L83: 6.18 | M83: Cash | N83: U.W.|880-9683 | O83: No | P83: No | Q83: 31 | R83: No
A84: 655965 | B84: 2010-10-21 | C84: 11:27:28.800 | D84: L196/AR | E84: 196 | F84: Lego | G84: Antique Car | H84: 8 and up | I84: 7.95 | J84: 2 | K84: 15.9 | L84: 8.9 | M84: Visa | N84: W.C.|880-4861 | O84: No | P84: No | Q84: 45 | R84: No
A85: 655965 | B85: 2010-10-21 | C85: 11:27:28.800 | D85: D254/FE | E85: 192 | F85: Duplo | G85: Policemen | H85: 6 and up | I85: 9.95 | J85: 1 | K85: 9.95 | L85: 5.17 | M85: Visa | N85: W.C.|880-4861 | O85: No | P85: No | Q85: 45 | R85: No
A86: 655976 | B86: 2010-11-01 | C86: 08:55:48 | D86: D250/AT | E86: 192 | F86: Duplo | G86: Policemen | H86: 6 and up | I86: 9.95 | J86: 1 | K86: 9.95 | L86: 5.17 | M86: Check | N86: D.W.|880-7199 | O86: No | P86: No | Q86: 34 | R86: No
A87: 656007 | B87: 2010-11-01 | C87: 20:07:48 | D87: D254/FE | E87: 192 | F87: Duplo | G87: Policemen | H87: 6 and up | I87: 9.95 | J87: 1 | K87: 9.95 | L87: 5.17 | M87: Mastercard | N87: Z.T.|880-7477 | O87: No | P87: No | Q87: 43 | R87: No
A88: 656032 | B88: 2010-11-01 | C88: 19:55:48 | D88: L194/FY | E88: 194 | F88: Lego | G88: Family | H88: 4 and up | I88: 14.95 | J88: 1 | K88: 14.95 | L88: 8.37 | M88: Visa | N88: W.B.|880-9647 | O88: No | P88: No | Q88: 43 | R88: No
A89: 656032 | B89: 2010-11-01 | C89: 19:55:48 | D89: D254/FE | E89: 192 | F89: Duplo | G89: Policemen | H89: 6 and up | I89: 9.95 | J89: 1 | K89: 9.95 | L89: 5.17 | M89: Visa | N89: W.B.|880-9647 | O89: No | P89: No | Q89: 43 | R89: No
A90: 656077 | B90: 2010-11-02 | C90: 19:21:00 | D90: L256/PE | E90: 256 | F90: Lego | G90: Police Officers and Motorcycle | H90: 9 and up | I90: 9.95 | J90: 1 | K90: 9.95 | L90: 4.48 | M90: Cash | N90: U.W.|880-9683 | O90: Yes | P90: No | Q90: 37 | R90: No
A91: 656123 | B91: 2010-11-02 | C91: 15:27:36 | D91: L256/PE | E91: 256 | F91: Lego | G91: Police Officers and Motorcycle | H91: 9 and up | I91: 9.95 | J91: 1 | K91: 9.95 | L91: 4.48 | M91: Gift Card | N91: V.W.|880-8599 | O91: No | P91: Yes | Q91: 38 | R91: Yes
A92: 656125 | B92: 2010-11-02 | C92: 11:49:12 | D92: D250/AT | E92: 192 | F92: Duplo | G92: Policemen | H92: 6 and up | I92: 9.95 | J92: 1 | K92: 9.95 | L92: 5.17 | M92: Cash | N92: U.O.|880-3720 | O92: No | P92: No | Q92: 37 | R92: No
A93: 656125 | B93: 2010-11-02 | C93: 11:49:12 | D93: L195/AE | E93: 195 | F93: Lego | G93: Airplane | H93: 8 and up | I93: 5.95 | J93: 1 | K93: 5.95 | L93: 3.09 | M93: Cash | N93: U.O.|880-3720 | O93: No | P93: No | Q93: 37 | R93: No
A94: 656171 | B94: 2010-11-02 | C94: 15:14:24 | D94: L256/PE | E94: 256 | F94: Lego | G94: Police Officers and Motorcycle | H94: 9 and up | I94: 9.95 | J94: 3 | K94: 29.85 | L94: 13.44 | M94: Visa | N94: S.V.|880-5987 | O94: No | P94: No | Q94: 50 | R94: No
A95: 656171 | B95: 2010-11-02 | C95: 15:14:24 | D95: L256/PE | E95: 256 | F95: Lego | G95: Police Officers and Motorcycle | H95: 9 and up | I95: 9.95 | J95: 1 | K95: 9.95 | L95: 4.48 | M95: Visa | N95: S.V.|880-5987 | O95: No | P95: No | Q95: 50 | R95: No
A96: 656207 | B96: 2010-11-02 | C96: 13:25:48 | D96: D255/FE | E96: 192 | F96: Duplo | G96: Policemen | H96: 6 and up | I96: 9.95 | J96: 1 | K96: 9.95 | L96: 5.17 | M96: Cash | N96: N.C.|880-3850 | O96: No | P96: No | Q96: 50 | R96: No
A97: 656246 | B97: 2010-11-02 | C97: 10:59:16.800 | D97: L195/AE | E97: 195 | F97: Lego | G97: Airplane | H97: 8 and up | I97: 5.95 | J97: 1 | K97: 5.95 | L97: 3.09 | M97: Visa | N97: A.U.|880-2167 | O97: No | P97: Yes | Q97: 43 | R97: No
A98: 656246 | B98: 2010-11-02 | C98: 10:59:16.800 | D98: L256/PE | E98: 256 | F98: Lego | G98: Police Officers and Motorcycle | H98: 9 and up | I98: 9.95 | J98: 1 | K98: 9.95 | L98: 4.48 | M98: Visa | N98: A.U.|880-2167 | O98: No | P98: Yes | Q98: 43 | R98: No
A99: 656287 | B99: 2010-11-03 | C99: 15:33:28.800 | D99: D255/FE | E99: 192 | F99: Duplo | G99: Policemen | H99: 6 and up | I99: 9.95 | J99: 1 | K99: 9.95 | L99: 5.17 | M99: Check | N99: C.X.|880-3590 | O99: No | P99: No | Q99: 43 | R99: No
A100: 656300 | B100: 2010-11-03 | C100: 17:16:12 | D100: D255/FE | E100: 192 | F100: Duplo | G100: Policemen | H100: 6 and up | I100: 9.95 | J100: 1 | K100: 9.95 | L100: 5.17 | M100: Cash | N100: N.C.|880-3850 | O100: No | P100: No | Q100: 27 | R100: No
A101: 656314 | B101: 2010-11-03 | C101: 12:48:36 | D101: D255/FE | E101: 192 | F101: Duplo | G101: Policemen | H101: 6 and up | I101: 9.95 | J101: 4 | K101: 39.8 | L101: 20.68 | M101: Visa | N101: D.S.|880-7532 | O101: No | P101: Yes | Q101: 26 | R101: No
A102: 656314 | B102: 2010-11-03 | C102: 12:48:36 | D102: L195/AE | E102: 195 | F102: Lego | G102: Airplane | H102: 8 and up | I102: 5.95 | J102: 5 | K102: 29.75 | L102: 15.45 | M102: Visa | N102: D.S.|880-7532 | O102: No | P102: Yes | Q102: 26 | R102: No
A103: 656314 | B103: 2010-11-03 | C103: 12:48:36 | D103: L195/AE | E103: 195 | F103: Lego | G103: Airplane | H103: 8 and up | I103: 5.95 | J103: 1 | K103: 5.95 | L103: 3.09 | M103: Visa | N103: D.S.|880-7532 | O103: No | P103: Yes | Q103: 26 | R103: No
A104: 656364 | B104: 2010-11-04 | C104: 16:56:24 | D104: L195/AE | E104: 195 | F104: Lego | G104: Airplane | H104: 8 and up | I104: 5.95 | J104: 1 | K104: 5.95 | L104: 3.09 | M104: Visa | N104: C.X.|880-3590 | O104: No | P104: No | Q104: 38 | R104: Yes
A105: 656380 | B105: 2010-11-05 | C105: 15:40:12 | D105: D250/AT | E105: 192 | F105: Duplo | G105: Policemen | H105: 6 and up | I105: 9.95 | J105: 1 | K105: 9.95 | L105: 5.17 | M105: Cash | N105: Z.T.|880-7477 | O105: No | P105: No | Q105: 29 | R105: No
A106: 656416 | B106: 2010-11-05 | C106: 16:06:36 | D106: L256/PE | E106: 256 | F106: Lego | G106: Police Officers and Motorcycle | H106: 9 and up | I106: 9.95 | J106: 4 | K106: 39.8 | L106: 17.92 | M106: Cash | N106: C.X.|880-3590 | O106: Yes | P106: No | Q106: 14 | R106: No
A107: 656416 | B107: 2010-11-05 | C107: 16:06:36 | D107: D254/FE | E107: 192 | F107: Duplo | G107: Policemen | H107: 6 and up | I107: 9.95 | J107: 1 | K107: 9.95 | L107: 5.17 | M107: Cash | N107: C.X.|880-3590 | O107: Yes | P107: No | Q107: 14 | R107: No
A108: 656444 | B108: 2010-11-05 | C108: 15:19:48 | D108: D250/AT | E108: 192 | F108: Duplo | G108: Policemen | H108: 6 and up | I108: 9.95 | J108: 1 | K108: 9.95 | L108: 5.17 | M108: Cash | N108: B.Y.|880-6845 | O108: No | P108: Yes | Q108: 44 | R108: Yes
A109: 656478 | B109: 2010-11-05 | C109: 20:51:36 | D109: L195/AE | E109: 195 | F109: Lego | G109: Airplane | H109: 8 and up | I109: 5.95 | J109: 1 | K109: 5.95 | L109: 3.09 | M109: Visa | N109: W.B.|880-9647 | O109: No | P109: Yes | Q109: 32 | R109: No
A110: 656495 | B110: 2010-11-05 | C110: 13:37:12 | D110: L195/AE | E110: 195 | F110: Lego | G110: Airplane | H110: 8 and up | I110: 5.95 | J110: 2 | K110: 11.9 | L110: 6.18 | M110: Check | N110: D.U.|880-2953 | O110: No | P110: No | Q110: 30 | R110: No
A111: 656518 | B111: 2010-11-05 | C111: 13:12:00 | D111: L256/PE | E111: 256 | F111: Lego | G111: Police Officers and Motorcycle | H111: 9 and up | I111: 9.95 | J111: 1 | K111: 9.95 | L111: 4.48 | M111: Visa | N111: B.B.|880-9330 | O111: No | P111: No | Q111: 19 | R111: No
A112: 656533 | B112: 2010-11-05 | C112: 11:01:58.800 | D112: L256/PE | E112: 256 | F112: Lego | G112: Police Officers and Motorcycle | H112: 9 and up | I112: 9.95 | J112: 1 | K112: 9.95 | L112: 4.48 | M112: Cash | N112: V.W.|880-4523 | O112: No | P112: No | Q112: 50 | R112: No
A113: 656547 | B113: 2010-11-06 | C113: 20:00:00 | D113: L195/AE | E113: 195 | F113: Lego | G113: Airplane | H113: 8 and up | I113: 5.95 | J113: 2 | K113: 11.9 | L113: 6.18 | M113: Visa | N113: D.U.|880-2953 | O113: Yes | P113: No | Q113: 11 | R113: No
A114: 656588 | B114: 2010-11-06 | C114: 13:24:36 | D114: L256/PE | E114: 256 | F114: Lego | G114: Police Officers and Motorcycle | H114: 9 and up | I114: 9.95 | J114: 1 | K114: 9.95 | L114: 4.48 | M114: Visa | N114: H.B.|880-3254 | O114: Yes | P114: Yes | Q114: 41 | R114: Yes
A115: 656617 | B115: 2010-11-06 | C115: 10:52:12 | D115: D250/AT | E115: 192 | F115: Duplo | G115: Policemen | H115: 6 and up | I115: 9.95 | J115: 2 | K115: 19.9 | L115: 10.34 | M115: Visa | N115: A.U.|880-2167 | O115: No | P115: No | Q115: 38 | R115: No
A116: 656617 | B116: 2010-11-06 | C116: 10:52:12 | D116: D255/FE | E116: 192 | F116: Duplo | G116: Policemen | H116: 6 and up | I116: 9.95 | J116: 1 | K116: 9.95 | L116: 5.17 | M116: Visa | N116: A.U.|880-2167 | O116: No | P116: No | Q116: 38 | R116: No
A117: 656628 | B117: 2010-11-06 | C117: 10:15:00 | D117: L330/GN | E117: 330 | F117: Lego | G117: Gas Station | H117: 8 and up | I117: 32.95 | J117: 1 | K117: 32.95 | L117: 19.11 | M117: Discover | N117: U.O.|880-3720 | O117: No | P117: No | Q117: 37 | R117: No
A118: 656637 | B118: 2010-11-06 | C118: 11:00:39.600 | D118: D254/FE | E118: 192 | F118: Duplo | G118: Policemen | H118: 6 and up | I118: 9.95 | J118: 1 | K118: 9.95 | L118: 5.17 | M118: Visa | N118: B.Y.|880-6845 | O118: No | P118: No | Q118: 30 | R118: No
A119: 656648 | B119: 2010-11-06 | C119: 13:24:36 | D119: L195/AE | E119: 195 | F119: Lego | G119: Airplane | H119: 8 and up | I119: 5.95 | J119: 1 | K119: 5.95 | L119: 3.09 | M119: Visa | N119: W.B.|880-9647 | O119: No | P119: No | Q119: 11 | R119: No
A120: 656657 | B120: 2010-11-06 | C120: 15:04:12 | D120: D254/FE | E120: 192 | F120: Duplo | G120: Policemen | H120: 6 and up | I120: 9.95 | J120: 1 | K120: 9.95 | L120: 5.17 | M120: Cash | N120: U.W.|880-9683 | O120: No | P120: No | Q120: 22 | R120: No
A121: 656657 | B121: 2010-11-06 | C121: 15:04:12 | D121: L212/SD | E121: 212 | F121: Lego | G121: Scooter and Stand | H121: 6 and up | I121: 4.95 | J121: 1 | K121: 4.95 | L121: 2.23 | M121: Cash | N121: U.W.|880-9683 | O121: No | P121: No | Q121: 22 | R121: No
A122: 656657 | B122: 2010-11-06 | C122: 15:04:12 | D122: D218/FN | E122: 192 | F122: Duplo | G122: Policemen | H122: 6 and up | I122: 9.95 | J122: 1 | K122: 9.95 | L122: 5.17 | M122: Cash | N122: U.W.|880-9683 | O122: No | P122: No | Q122: 22 | R122: No
A123: 656671 | B123: 2010-11-07 | C123: 13:21:36 | D123: D255/FE | E123: 192 | F123: Duplo | G123: Policemen | H123: 6 and up | I123: 9.95 | J123: 1 | K123: 9.95 | L123: 5.17 | M123: Gift Card | N123: S.V.|880-5987 | O123: No | P123: No | Q123: 37 | R123: No
A124: 656692 | B124: 2010-11-08 | C124: 15:22:12 | D124: L256/PE | E124: 256 | F124: Lego | G124: Police Officers and Motorcycle | H124: 9 and up | I124: 9.95 | J124: 1 | K124: 9.95 | L124: 4.48 | M124: Visa | N124: L.W.|880-4986 | O124: No | P124: No | Q124: 11 | R124: No
A125: 656737 | B125: 2010-11-08 | C125: 19:04:48 | D125: D250/AT | E125: 192 | F125: Duplo | G125: Policemen | H125: 6 and up | I125: 9.95 | J125: 2 | K125: 19.9 | L125: 10.34 | M125: Visa | N125: D.S.|880-7532 | O125: No | P125: No | Q125: 40 | R125: No
A126: 656757 | B126: 2010-11-08 | C126: 09:24:36 | D126: D255/FE | E126: 192 | F126: Duplo | G126: Policemen | H126: 6 and up | I126: 9.95 | J126: 1 | K126: 9.95 | L126: 5.17 | M126: Cash | N126: S.Y.|880-3139 | O126: No | P126: No | Q126: 36 | R126: Yes
A127: 656757 | B127: 2010-11-08 | C127: 09:24:36 | D127: D254/FE | E127: 192 | F127: Duplo | G127: Policemen | H127: 6 and up | I127: 9.95 | J127: 2 | K127: 19.9 | L127: 10.34 | M127: Cash | N127: S.Y.|880-3139 | O127: No | P127: No | Q127: 36 | R127: Yes
A128: 656770 | B128: 2010-11-09 | C128: 14:56:24 | D128: D255/FE | E128: 192 | F128: Duplo | G128: Policemen | H128: 6 and up | I128: 9.95 | J128: 1 | K128: 9.95 | L128: 5.17 | M128: Mastercard | N128: H.B.|880-3254 | O128: No | P128: No | Q128: 66 | R128: No
A129: 656807 | B129: 2010-11-10 | C129: 11:28:48 | D129: L210/CS | E129: 210 | F129: Lego | G129: Cowboys with Horses | H129: 6 and up | I129: 9.45 | J129: 1 | K129: 9.45 | L129: 4.63 | M129: Visa | N129: P.N.|880-3021 | O129: No | P129: No | Q129: 48 | R129: No
A130: 656822 | B130: 2010-11-10 | C130: 08:07:48 | D130: D254/FE | E130: 192 | F130: Duplo | G130: Policemen | H130: 6 and up | I130: 9.95 | J130: 2 | K130: 19.9 | L130: 10.34 | M130: Mastercard | N130: B.B.|880-9330 | O130: No | P130: No | Q130: 57 | R130: No
A131: 656847 | B131: 2010-11-10 | C131: 12:25:12 | D131: D198/LX | E131: 192 | F131: Duplo | G131: Policemen | H131: 6 and up | I131: 9.95 | J131: 2 | K131: 19.9 | L131: 10.34 | M131: Visa | N131: S.Y.|880-3139 | O131: Yes | P131: No | Q131: 38 | R131: No
A132: 656854 | B132: 2010-11-10 | C132: 11:12:00 | D132: L195/AE | E132: 195 | F132: Lego | G132: Airplane | H132: 8 and up | I132: 5.95 | J132: 1 | K132: 5.95 | L132: 3.09 | M132: Mastercard | N132: V.W.|880-4523 | O132: No | P132: Yes | Q132: 31 | R132: No
A133: 656893 | B133: 2010-11-10 | C133: 15:20:24 | D133: L212/SD | E133: 212 | F133: Lego | G133: Scooter and Stand | H133: 6 and up | I133: 4.95 | J133: 1 | K133: 4.95 | L133: 2.23 | M133: Visa | N133: U.O.|880-3720 | O133: No | P133: No | Q133: 45 | R133: No
A134: 656931 | B134: 2010-11-11 | C134: 09:09:00 | D134: D254/FE | E134: 192 | F134: Duplo | G134: Policemen | H134: 6 and up | I134: 9.95 | J134: 1 | K134: 9.95 | L134: 5.17 | M134: Visa | N134: A.U.|880-2167 | O134: No | P134: No | Q134: 30 | R134: No
A135: 656952 | B135: 2010-11-11 | C135: 11:40:55.200 | D135: L195/AE | E135: 195 | F135: Lego | G135: Airplane | H135: 8 and up | I135: 5.95 | J135: 3 | K135: 17.85 | L135: 9.27 | M135: Cash | N135: N.C.|880-3850 | O135: No | P135: No | Q135: 38 | R135: No
A136: 656956 | B136: 2010-11-11 | C136: 12:48:36 | D136: L256/PE | E136: 256 | F136: Lego | G136: Police Officers and Motorcycle | H136: 9 and up | I136: 9.95 | J136: 1 | K136: 9.95 | L136: 4.48 | M136: Mastercard | N136: V.W.|880-8599 | O136: No | P136: No | Q136: 24 | R136: No
A137: 656991 | B137: 2010-11-11 | C137: 15:47:24 | D137: D255/FE | E137: 192 | F137: Duplo | G137: Policemen | H137: 6 and up | I137: 9.95 | J137: 4 | K137: 39.8 | L137: 20.68 | M137: Visa | N137: V.W.|880-4523 | O137: No | P137: Yes | Q137: 43 | R137: No
A138: 656991 | B138: 2010-11-11 | C138: 15:47:24 | D138: D198/LX | E138: 192 | F138: Duplo | G138: Policemen | H138: 6 and up | I138: 9.95 | J138: 2 | K138: 19.9 | L138: 10.34 | M138: Visa | N138: V.W.|880-4523 | O138: No | P138: Yes | Q138: 43 | R138: No
A139: 657009 | B139: 2010-11-11 | C139: 12:02:24 | D139: D255/FE | E139: 192 | F139: Duplo | G139: Policemen | H139: 6 and up | I139: 9.95 | J139: 2 | K139: 19.9 | L139: 10.34 | M139: Cash | N139: V.W.|880-8599 | O139: No | P139: No | Q139: 36 | R139: No
A140: 657052 | B140: 2010-11-11 | C140: 19:45:36 | D140: D254/FE | E140: 192 | F140: Duplo | G140: Policemen | H140: 6 and up | I140: 9.95 | J140: 1 | K140: 9.95 | L140: 5.17 | M140: Check | N140: B.B.|880-9330 | O140: No | P140: Yes | Q140: 34 | R140: Yes
A141: 657052 | B141: 2010-11-11 | C141: 19:45:36 | D141: L256/PE | E141: 256 | F141: Lego | G141: Police Officers and Motorcycle | H141: 9 and up | I141: 9.95 | J141: 1 | K141: 9.95 | L141: 4.48 | M141: Check | N141: B.B.|880-9330 | O141: No | P141: Yes | Q141: 34 | R141: Yes
A142: 657055 | B142: 2010-11-12 | C142: 11:37:12 | D142: D250/AT | E142: 192 | F142: Duplo | G142: Policemen | H142: 6 and up | I142: 9.95 | J142: 2 | K142: 19.9 | L142: 10.34 | M142: Check | N142: D.S.|880-7532 | O142: No | P142: No | Q142: 36 | R142: No
A143: 657055 | B143: 2010-11-12 | C143: 11:37:12 | D143: D250/AT | E143: 192 | F143: Duplo | G143: Policemen | H143: 6 and up | I143: 9.95 | J143: 2 | K143: 19.9 | L143: 10.34 | M143: Check | N143: D.S.|880-7532 | O143: No | P143: No | Q143: 36 | R143: No
A144: 657055 | B144: 2010-11-12 | C144: 11:37:12 | D144: L256/PE | E144: 256 | F144: Lego | G144: Police Officers and Motorcycle | H144: 9 and up | I144: 9.95 | J144: 1 | K144: 9.95 | L144: 4.48 | M144: Check | N144: D.S.|880-7532 | O144: No | P144: No | Q144: 36 | R144: No
A145: 657093 | B145: 2010-11-12 | C145: 13:33:50.400 | D145: D250/AT | E145: 192 | F145: Duplo | G145: Policemen | H145: 6 and up | I145: 9.95 | J145: 5 | K145: 49.75 | L145: 25.85 | M145: Visa | N145: Y.P.|880-6894 | O145: Yes | P145: No | Q145: 31 | R145: Yes
A146: 657101 | B146: 2010-11-13 | C146: 09:53:24 | D146: L195/AE | E146: 195 | F146: Lego | G146: Airplane | H146: 8 and up | I146: 5.95 | J146: 1 | K146: 5.95 | L146: 3.09 | M146: Gift Card | N146: Z.T.|880-7477 | O146: Yes | P146: No | Q146: 41 | R146: Yes
A147: 657140 | B147: 2010-11-13 | C147: 16:50:56.400 | D147: L340/FS | E147: 340 | F147: Lego | G147: Fire Trucks | H147: 6 and up | I147: 34.95 | J147: 2 | K147: 69.9 | L147: 39.84 | M147: Visa | N147: B.Y.|880-6845 | O147: No | P147: No | Q147: 34 | R147: No
A148: 657140 | B148: 2010-11-13 | C148: 16:50:56.400 | D148: D255/FE | E148: 192 | F148: Duplo | G148: Policemen | H148: 6 and up | I148: 9.95 | J148: 1 | K148: 9.95 | L148: 5.17 | M148: Visa | N148: B.Y.|880-6845 | O148: No | P148: No | Q148: 34 | R148: No
A149: 657187 | B149: 2010-11-13 | C149: 10:39:36 | D149: D250/AT | E149: 192 | F149: Duplo | G149: Policemen | H149: 6 and up | I149: 9.95 | J149: 2 | K149: 19.9 | L149: 10.34 | M149: Gift Card | N149: Z.Q.|880-4240 | O149: No | P149: No | Q149: 31 | R149: Yes
A150: 657232 | B150: 2010-11-13 | C150: 20:11:24 | D150: L195/AE | E150: 195 | F150: Lego | G150: Airplane | H150: 8 and up | I150: 5.95 | J150: 3 | K150: 17.85 | L150: 9.27 | M150: Visa | N150: C.X.|880-3590 | O150: No | P150: No | Q150: 31 | R150: Yes
A151: 657255 | B151: 2010-11-14 | C151: 17:18:36 | D151: D254/FE | E151: 192 | F151: Duplo | G151: Policemen | H151: 6 and up | I151: 9.95 | J151: 1 | K151: 9.95 | L151: 5.17 | M151: Check | N151: U.O.|880-3720 | O151: No | P151: No | Q151: 27 | R151: Yes
A152: 657291 | B152: 2010-11-14 | C152: 12:37:48 | D152: L256/PE | E152: 256 | F152: Lego | G152: Police Officers and Motorcycle | H152: 9 and up | I152: 9.95 | J152: 1 | K152: 9.95 | L152: 4.48 | M152: Cash | N152: Z.T.|880-7477 | O152: No | P152: No | Q152: 49 | R152: No
A153: 657306 | B153: 2010-11-14 | C153: 09:50:56.400 | D153: D254/FE | E153: 192 | F153: Duplo | G153: Policemen | H153: 6 and up | I153: 9.95 | J153: 4 | K153: 39.8 | L153: 20.68 | M153: Visa | N153: N.C.|880-3850 | O153: No | P153: No | Q153: 69 | R153: Yes
A154: 657316 | B154: 2010-11-15 | C154: 16:45:36 | D154: L252/LR | E154: 255 | F154: Duplo | G154: Farming Scene | H154: 7 and up | I154: 24.95 | J154: 1 | K154: 24.95 | L154: 16.22 | M154: Mastercard | N154: P.N.|880-3021 | O154: No | P154: No | Q154: 20 | R154: No
A155: 657320 | B155: 2010-11-15 | C155: 08:24:10.800 | D155: D250/AT | E155: 192 | F155: Duplo | G155: Policemen | H155: 6 and up | I155: 9.95 | J155: 1 | K155: 9.95 | L155: 5.17 | M155: Mastercard | N155: B.X.|880-9149 | O155: No | P155: No | Q155: 30 | R155: Yes
A156: 657336 | B156: 2010-11-15 | C156: 08:29:42 | D156: D255/FE | E156: 192 | F156: Duplo | G156: Policemen | H156: 6 and up | I156: 9.95 | J156: 1 | K156: 9.95 | L156: 5.17 | M156: Mastercard | N156: H.B.|880-3254 | O156: No | P156: No | Q156: 37 | R156: Yes
A157: 657336 | B157: 2010-11-15 | C157: 08:29:42 | D157: D250/AT | E157: 192 | F157: Duplo | G157: Policemen | H157: 6 and up | I157: 9.95 | J157: 1 | K157: 9.95 | L157: 5.17 | M157: Mastercard | N157: H.B.|880-3254 | O157: No | P157: No | Q157: 37 | R157: Yes
A158: 657366 | B158: 2010-11-16 | C158: 08:44:42 | D158: L256/PE | E158: 256 | F158: Lego | G158: Police Officers and Motorcycle | H158: 9 and up | I158: 9.95 | J158: 2 | K158: 19.9 | L158: 8.96 | M158: Mastercard | N158: B.X.|880-9149 | O158: No | P158: No | Q158: 42 | R158: No
A159: 657415 | B159: 2010-11-16 | C159: 11:59:56.400 | D159: D250/AT | E159: 192 | F159: Duplo | G159: Policemen | H159: 6 and up | I159: 9.95 | J159: 2 | K159: 19.9 | L159: 10.34 | M159: Visa | N159: S.V.|880-5987 | O159: No | P159: No | Q159: 41 | R159: Yes
A160: 657415 | B160: 2010-11-16 | C160: 11:59:56.400 | D160: D255/FE | E160: 192 | F160: Duplo | G160: Policemen | H160: 6 and up | I160: 9.95 | J160: 2 | K160: 19.9 | L160: 10.34 | M160: Visa | N160: S.V.|880-5987 | O160: No | P160: No | Q160: 41 | R160: Yes
A161: 657447 | B161: 2010-11-17 | C161: 13:42:00 | D161: L195/AE | E161: 195 | F161: Lego | G161: Airplane | H161: 8 and up | I161: 5.95 | J161: 4 | K161: 23.8 | L161: 12.36 | M161: Mastercard | N161: L.W.|880-4986 | O161: No | P161: Yes | Q161: 40 | R161: Yes
A162: 657482 | B162: 2010-11-17 | C162: 10:13:48 | D162: L256/PE | E162: 256 | F162: Lego | G162: Police Officers and Motorcycle | H162: 9 and up | I162: 9.95 | J162: 2 | K162: 19.9 | L162: 8.96 | M162: Discover | N162: D.W.|880-7199 | O162: No | P162: No | Q162: 39 | R162: Yes
A163: 657512 | B163: 2010-11-17 | C163: 11:34:12 | D163: D192/PN | E163: 192 | F163: Duplo | G163: Policemen | H163: 6 and up | I163: 9.95 | J163: 1 | K163: 9.95 | L163: 5.17 | M163: Cash | N163: N.C.|880-3850 | O163: No | P163: No | Q163: 31 | R163: No
A164: 657529 | B164: 2010-11-17 | C164: 15:44:24 | D164: D255/FE | E164: 192 | F164: Duplo | G164: Policemen | H164: 6 and up | I164: 9.95 | J164: 5 | K164: 49.75 | L164: 25.85 | M164: Mastercard | N164: B.Y.|880-6845 | O164: No | P164: No | Q164: 40 | R164: No
A165: 657533 | B165: 2010-11-17 | C165: 16:32:24 | D165: D254/FE | E165: 192 | F165: Duplo | G165: Policemen | H165: 6 and up | I165: 9.95 | J165: 2 | K165: 19.9 | L165: 10.34 | M165: Mastercard | N165: B.B.|880-9330 | O165: Yes | P165: No | Q165: 38 | R165: No
A166: 657533 | B166: 2010-11-17 | C166: 16:32:24 | D166: L195/AE | E166: 195 | F166: Lego | G166: Airplane | H166: 8 and up | I166: 5.95 | J166: 3 | K166: 17.85 | L166: 9.27 | M166: Mastercard | N166: B.B.|880-9330 | O166: Yes | P166: No | Q166: 38 | R166: No
A167: 657533 | B167: 2010-11-17 | C167: 16:32:24 | D167: D254/FE | E167: 192 | F167: Duplo | G167: Policemen | H167: 6 and up | I167: 9.95 | J167: 1 | K167: 9.95 | L167: 5.17 | M167: Mastercard | N167: B.B.|880-9330 | O167: Yes | P167: No | Q167: 38 | R167: No
A168: 657563 | B168: 2010-11-17 | C168: 13:18:36 | D168: L256/PE | E168: 256 | F168: Lego | G168: Police Officers and Motorcycle | H168: 9 and up | I168: 9.95 | J168: 1 | K168: 9.95 | L168: 4.48 | M168: Visa | N168: D.W.|880-7199 | O168: No | P168: No | Q168: 25 | R168: No
A169: 657591 | B169: 2010-11-18 | C169: 19:45:00 | D169: L194/FY | E169: 194 | F169: Lego | G169: Family | H169: 4 and up | I169: 14.95 | J169: 1 | K169: 14.95 | L169: 8.37 | M169: Visa | N169: W.C.|880-4861 | O169: No | P169: No | Q169: 26 | R169: No
A170: 657607 | B170: 2010-11-18 | C170: 13:44:24 | D170: D250/AT | E170: 192 | F170: Duplo | G170: Policemen | H170: 6 and up | I170: 9.95 | J170: 2 | K170: 19.9 | L170: 10.34 | M170: Visa | N170: D.S.|880-7532 | O170: Yes | P170: No | Q170: 44 | R170: No
A171: 657635 | B171: 2010-11-18 | C171: 13:05:52.800 | D171: D255/FE | E171: 192 | F171: Duplo | G171: Policemen | H171: 6 and up | I171: 9.95 | J171: 1 | K171: 9.95 | L171: 5.17 | M171: Cash | N171: D.U.|880-2953 | O171: No | P171: No | Q171: 50 | R171: No
A172: 657663 | B172: 2010-11-19 | C172: 14:05:24 | D172: L330/GN | E172: 330 | F172: Lego | G172: Gas Station | H172: 8 and up | I172: 32.95 | J172: 4 | K172: 131.8 | L172: 76.44 | M172: Visa | N172: D.W.|880-7199 | O172: No | P172: No | Q172: 28 | R172: No
A173: 657663 | B173: 2010-11-19 | C173: 14:05:24 | D173: D255/FE | E173: 192 | F173: Duplo | G173: Policemen | H173: 6 and up | I173: 9.95 | J173: 5 | K173: 49.75 | L173: 25.85 | M173: Visa | N173: D.W.|880-7199 | O173: No | P173: No | Q173: 28 | R173: No
A174: 657686 | B174: 2010-11-19 | C174: 12:06:00 | D174: L195/AE | E174: 195 | F174: Lego | G174: Airplane | H174: 8 and up | I174: 5.95 | J174: 2 | K174: 11.9 | L174: 6.18 | M174: Mastercard | N174: S.Y.|880-3139 | O174: No | P174: No | Q174: 60 | R174: No
A175: 657703 | B175: 2010-11-20 | C175: 11:39:00 | D175: L256/PE | E175: 256 | F175: Lego | G175: Police Officers and Motorcycle | H175: 9 and up | I175: 9.95 | J175: 1 | K175: 9.95 | L175: 4.48 | M175: Discover | N175: U.W.|880-9683 | O175: No | P175: No | Q175: 31 | R175: No
A176: 657712 | B176: 2010-11-20 | C176: 18:11:24 | D176: L195/AE | E176: 195 | F176: Lego | G176: Airplane | H176: 8 and up | I176: 5.95 | J176: 2 | K176: 11.9 | L176: 6.18 | M176: Visa | N176: U.W.|880-9683 | O176: No | P176: No | Q176: 42 | R176: No
A177: 657751 | B177: 2010-11-20 | C177: 10:41:24 | D177: D250/AT | E177: 192 | F177: Duplo | G177: Policemen | H177: 6 and up | I177: 9.95 | J177: 5 | K177: 49.75 | L177: 25.85 | M177: Mastercard | N177: H.B.|880-3254 | O177: No | P177: No | Q177: 48 | R177: No
A178: 657751 | B178: 2010-11-20 | C178: 10:41:24 | D178: D250/AT | E178: 192 | F178: Duplo | G178: Policemen | H178: 6 and up | I178: 9.95 | J178: 2 | K178: 19.9 | L178: 10.34 | M178: Mastercard | N178: H.B.|880-3254 | O178: No | P178: No | Q178: 48 | R178: No
A179: 657769 | B179: 2010-11-20 | C179: 18:34:12 | D179: L256/PE | E179: 256 | F179: Lego | G179: Police Officers and Motorcycle | H179: 9 and up | I179: 9.95 | J179: 3 | K179: 29.85 | L179: 13.44 | M179: Cash | N179: S.V.|880-5987 | O179: No | P179: No | Q179: 30 | R179: No
A180: 657815 | B180: 2010-11-20 | C180: 12:12:00 | D180: D250/AT | E180: 192 | F180: Duplo | G180: Policemen | H180: 6 and up | I180: 9.95 | J180: 2 | K180: 19.9 | L180: 10.34 | M180: Cash | N180: P.N.|880-3021 | O180: No | P180: No | Q180: 44 | R180: No
A181: 657839 | B181: 2010-11-21 | C181: 15:01:48 | D181: L195/AE | E181: 195 | F181: Lego | G181: Airplane | H181: 8 and up | I181: 5.95 | J181: 3 | K181: 17.85 | L181: 9.27 | M181: Mastercard | N181: N.W.|880-6237 | O181: No | P181: No | Q181: 35 | R181: No
A182: 657858 | B182: 2010-11-21 | C182: 12:19:12 | D182: D250/AT | E182: 192 | F182: Duplo | G182: Policemen | H182: 6 and up | I182: 9.95 | J182: 2 | K182: 19.9 | L182: 10.34 | M182: Gift Card | N182: N.C.|880-3850 | O182: No | P182: No | Q182: 50 | R182: No
A183: 657884 | B183: 2010-11-21 | C183: 15:37:12 | D183: D250/AT | E183: 192 | F183: Duplo | G183: Policemen | H183: 6 and up | I183: 9.95 | J183: 1 | K183: 9.95 | L183: 5.17 | M183: Discover | N183: V.W.|880-4523 | O183: No | P183: No | Q183: 30 | R183: No
A184: 657887 | B184: 2010-11-21 | C184: 13:09:36 | D184: L256/PE | E184: 256 | F184: Lego | G184: Police Officers and Motorcycle | H184: 9 and up | I184: 9.95 | J184: 1 | K184: 9.95 | L184: 4.48 | M184: Cash | N184: D.S.|880-7532 | O184: No | P184: No | Q184: 38 | R184: No
A185: 657921 | B185: 2010-11-22 | C185: 08:58:48 | D185: D254/FE | E185: 192 | F185: Duplo | G185: Policemen | H185: 6 and up | I185: 9.95 | J185: 2 | K185: 19.9 | L185: 10.34 | M185: Cash | N185: Y.P.|880-6894 | O185: No | P185: No | Q185: 30 | R185: Yes
A186: 657945 | B186: 2010-11-22 | C186: 13:39:54 | D186: L256/PE | E186: 256 | F186: Lego | G186: Police Officers and Motorcycle | H186: 9 and up | I186: 9.95 | J186: 1 | K186: 9.95 | L186: 4.48 | M186: Cash | N186: S.Y.|880-3139 | O186: No | P186: No | Q186: 30 | R186: No
A187: 657946 | B187: 2010-11-22 | C187: 19:31:48 | D187: L256/PE | E187: 256 | F187: Lego | G187: Police Officers and Motorcycle | H187: 9 and up | I187: 9.95 | J187: 3 | K187: 29.85 | L187: 13.44 | M187: Cash | N187: V.W.|880-8599 | O187: No | P187: No | Q187: 31 | R187: No
A188: 657946 | B188: 2010-11-22 | C188: 19:31:48 | D188: L330/GN | E188: 330 | F188: Lego | G188: Gas Station | H188: 8 and up | I188: 32.95 | J188: 4 | K188: 131.8 | L188: 76.44 | M188: Cash | N188: V.W.|880-8599 | O188: No | P188: No | Q188: 31 | R188: No
A189: 657946 | B189: 2010-11-22 | C189: 19:31:48 | D189: L195/AE | E189: 195 | F189: Lego | G189: Airplane | H189: 8 and up | I189: 5.95 | J189: 2 | K189: 11.9 | L189: 6.18 | M189: Cash | N189: V.W.|880-8599 | O189: No | P189: No | Q189: 31 | R189: No
A190: 657967 | B190: 2010-11-23 | C190: 13:55:51.600 | D190: D254/FE | E190: 192 | F190: Duplo | G190: Policemen | H190: 6 and up | I190: 9.95 | J190: 5 | K190: 49.75 | L190: 25.85 | M190: Mastercard | N190: C.X.|880-3590 | O190: No | P190: No | Q190: 36 | R190: No
A191: 657971 | B191: 2010-11-23 | C191: 10:58:12 | D191: L195/AE | E191: 195 | F191: Lego | G191: Airplane | H191: 8 and up | I191: 5.95 | J191: 2 | K191: 11.9 | L191: 6.18 | M191: Discover | N191: H.B.|880-3254 | O191: No | P191: No | Q191: 50 | R191: Yes
A192: 657973 | B192: 2010-11-23 | C192: 10:14:16.800 | D192: D254/FE | E192: 192 | F192: Duplo | G192: Policemen | H192: 6 and up | I192: 9.95 | J192: 1 | K192: 9.95 | L192: 5.17 | M192: Check | N192: B.Y.|880-6845 | O192: Yes | P192: No | Q192: 25 | R192: No
A193: 657985 | B193: 2010-11-23 | C193: 15:29:52.800 | D193: D254/FE | E193: 192 | F193: Duplo | G193: Policemen | H193: 6 and up | I193: 9.95 | J193: 1 | K193: 9.95 | L193: 5.17 | M193: Cash | N193: U.W.|880-9683 | O193: No | P193: No | Q193: 30 | R193: No
A194: 658025 | B194: 2010-11-23 | C194: 09:24:36 | D194: L256/PE | E194: 256 | F194: Lego | G194: Police Officers and Motorcycle | H194: 9 and up | I194: 9.95 | J194: 3 | K194: 29.85 | L194: 13.44 | M194: Discover | N194: Z.T.|880-7477 | O194: No | P194: No | Q194: 44 | R194: No
A195: 658054 | B195: 2010-11-24 | C195: 14:09:00 | D195: L195/AE | E195: 195 | F195: Lego | G195: Airplane | H195: 8 and up | I195: 5.95 | J195: 2 | K195: 11.9 | L195: 6.18 | M195: Visa | N195: H.B.|880-3254 | O195: No | P195: No | Q195: 29 | R195: No
A196: 658088 | B196: 2010-11-24 | C196: 16:13:55.200 | D196: D250/AT | E196: 192 | F196: Duplo | G196: Policemen | H196: 6 and up | I196: 9.95 | J196: 1 | K196: 9.95 | L196: 5.17 | M196: Mastercard | N196: D.U.|880-2953 | O196: No | P196: No | Q196: 38 | R196: No
A197: 658095 | B197: 2010-11-24 | C197: 18:35:24 | D197: D254/FE | E197: 192 | F197: Duplo | G197: Policemen | H197: 6 and up | I197: 9.95 | J197: 4 | K197: 39.8 | L197: 20.68 | M197: Mastercard | N197: L.C.|880-6872 | O197: Yes | P197: Yes | Q197: 30 | R197: Yes
A198: 658095 | B198: 2010-11-24 | C198: 18:35:24 | D198: D255/FE | E198: 192 | F198: Duplo | G198: Policemen | H198: 6 and up | I198: 9.95 | J198: 1 | K198: 9.95 | L198: 5.17 | M198: Mastercard | N198: L.C.|880-6872 | O198: Yes | P198: Yes | Q198: 30 | R198: Yes
A199: 658135 | B199: 2010-11-25 | C199: 16:22:12 | D199: L194/FY | E199: 194 | F199: Lego | G199: Family | H199: 4 and up | I199: 14.95 | J199: 1 | K199: 14.95 | L199: 8.37 | M199: Visa | N199: U.O.|880-3720 | O199: No | P199: No | Q199: 49 | R199: No
A200: 658157 | B200: 2010-11-26 | C200: 16:59:24 | D200: D255/FE | E200: 192 | F200: Duplo | G200: Policemen | H200: 6 and up | I200: 9.95 | J200: 5 | K200: 49.75 | L200: 25.85 | M200: Visa | N200: Z.Q.|880-4240 | O200: No | P200: No | Q200: 34 | R200: No
A201: 658183 | B201: 2010-11-26 | C201: 15:34:12 | D201: D254/FE | E201: 192 | F201: Duplo | G201: Policemen | H201: 6 and up | I201: 9.95 | J201: 1 | K201: 9.95 | L201: 5.17 | M201: Discover | N201: B.X.|880-9149 | O201: No | P201: No | Q201: 39 | R201: No
... 812 more rows

Sheet Data(6)
A1: 56 | B1: Check Data Model to get 1 new PivotTable function: Distinct Count. This will remove the Product function and in its place will be the Unique Count function
A2: 57 | B2: Use Data Model and Relationships to replace VLOOKUP
A5: Data Model:
A6: To Get Distinct Count
A7: 1) Convert Proper Data Sets to Excel Tables, and Name the Tables.
A8: 2) Create PivotTable from first Table and check "Add data to Data Model" check box in PivotTable Dialog Box.
A9: To Use Two Tables in a PivotTable
A10: 3) From the All Tab in the PivotTable Field List, Right-click second Table and select "Show in Active Tab"
A11: 4) Click inside PivotTable and then on the Analyze Ribbon Tab, click on the Relationships button in Calculations group.
A12: 5) Primary = VLOOKUP Table. Foreign = Table that would get VLOOKUP function.
A13: 6) Now you can build a PivotTable based on two tables
A14: 7) In PivotTable "Summarize Values by": Distinct Count replaces Product.
A15: No Grouping in PivotTable.
A16: Drilldown only goes to record 1000
A18: Transaction Table: | I18: SalesRepRegion Table:
A20: Date | B20: SalesRep | C20: Product | D20: Units | E20: Price | F20: Revenue | I20: SalesRep | J20: Region
A21: 2013-08-31 | B21: Christy Olson | C21: Doublers | D21: 2 | E21: 79.95 | F21: 159.9 | I21: Allan Ramos | J21: MidWest
A22: 2014-11-27 | B22: Dan Peterson | C22: Sunshine | D22: 2 | E22: 19.95 | F22: 39.9 | I22: Andrew Meyer | J22: West
A23: 2013-11-07 | B23: Mable Lindsey | C23: Crested Beaut | D23: 3 | E23: 25 | F23: 75 | I23: Arturo Francis | J23: East
A24: 2014-06-02 | B24: Kyle Carr | C24: Quad | D24: 3 | E24: 33 | F24: 99 | I24: Austin Reynolds | J24: East
A25: 2013-08-01 | B25: Rachel Gomez | C25: Carlota | D25: 2 | E25: 22.95 | F25: 45.9 | I25: Ben Perez | J25: West
A26: 2014-11-14 | B26: Isabel Cross | C26: Majestic Beaut | D26: 1 | E26: 28 | F26: 28 | I26: Bernadette Page | J26: MidWest
A27: 2013-11-13 | B27: Billie Chandler | C27: Sunset | D27: 3 | E27: 23.5 | F27: 70.5 | I27: Beth Tucker | J27: West
A28: 2014-11-04 | B28: Sylvester Morales | C28: Carlota | D28: 2 | E28: 22.95 | F28: 45.9 | I28: Bethany Pena | J28: MidWest
A29: 2014-11-26 | B29: Rachel Gomez | C29: Bellen | D29: 1 | E29: 22.95 | F29: 22.95 | I29: Billie Chandler | J29: MidWest
A30: 2014-07-08 | B30: Beth Tucker | C30: Sunbell | D30: 2 | E30: 25 | F30: 50 | I30: Blake Bridges | J30: South
A31: 2014-12-06 | B31: Shari Silva | C31: Quad | D31: 2 | E31: 33 | F31: 66 | I31: Bobbie Ryan | J31: East
A32: 2013-12-14 | B32: Drew Rogers | C32: Sunset | D32: 1 | E32: 23.5 | F32: 23.5 | I32: Brooke Horton | J32: MidWest
A33: 2013-12-01 | B33: Arturo Francis | C33: Carlota | D33: 4 | E33: 21.95 | F33: 87.8 | I33: Carla Mccormick | J33: MidWest
A34: 2014-11-11 | B34: Mable Lindsey | C34: Quad | D34: 2 | E34: 34 | F34: 68 | I34: Cassandra Franklin | J34: MidWest
A35: 2014-03-13 | B35: Shari Silva | C35: Sunshine | D35: 1 | E35: 19.95 | F35: 19.95 | I35: Cecilia Manning | J35: South
A36: 2013-02-01 | B36: Rachel Gomez | C36: Sunbell | D36: 1 | E36: 24 | F36: 24 | I36: Charlie Wood | J36: MidWest
A37: 2013-01-10 | B37: Jenny Garcia | C37: Doublers | D37: 1 | E37: 79.95 | F37: 79.95 | I37: Christina Fuller | J37: West
A38: 2014-11-15 | B38: Colleen Warren | C38: Quad | D38: 9 | E38: 34 | F38: 306 | I38: Christy Olson | J38: West
A39: 2013-12-12 | B39: Pauline Beck | C39: Sunshine | D39: 1 | E39: 19.95 | F39: 19.95 | I39: Cindy Becker | J39: South
A40: 2014-11-22 | B40: Shari Silva | C40: Carlota | D40: 3 | E40: 22.95 | F40: 68.85 | I40: Colleen Warren | J40: West
A41: 2014-07-10 | B41: Jenny Garcia | C41: Quad | D41: 3 | E41: 33 | F41: 99 | I41: Dan Peterson | J41: MidWest
A42: 2013-12-27 | B42: Ben Perez | C42: Quad | D42: 2 | E42: 34 | F42: 68 | I42: Della Jensen | J42: East
A43: 2013-09-28 | B43: Cassandra Franklin | C43: FlatTop | D43: 1 | E43: 27.5 | F43: 27.5 | I43: Don Gonzales | J43: South
A44: 2013-11-01 | B44: Elaine Ellis | C44: Carlota | D44: 2 | E44: 22.95 | F44: 45.9 | I44: Donna Reid | J44: West
A45: 2013-10-31 | B45: Beth Tucker | C45: Aspen | D45: 24 | E45: 19.95 | F45: 478.8 | I45: Drew Rogers | J45: MidWest
A46: 2014-06-16 | B46: Cassandra Franklin | C46: Sunset | D46: 2 | E46: 23.5 | F46: 47 | I46: Eddie Green | J46: East
A47: 2013-11-21 | B47: Colleen Warren | C47: Sunbell | D47: 3 | E47: 25 | F47: 75 | I47: Edwin Malone | J47: East
A48: 2014-11-23 | B48: Cassandra Franklin | C48: Sunshine | D48: 3 | E48: 19.95 | F48: 59.85 | I48: Elaine Ellis | J48: South
A49: 2013-01-25 | B49: Cassandra Franklin | C49: Sunbell | D49: 2 | E49: 24 | F49: 48 | I49: Elbert Klein | J49: South
A50: 2013-04-25 | B50: Nellie Joseph | C50: Sunbell | D50: 1 | E50: 23 | F50: 23 | I50: Ellen Weaver | J50: South
A51: 2014-11-09 | B51: Guillermo Potter | C51: Aspen | D51: 1 | E51: 20 | F51: 20 | I51: Elvira Bowman | J51: MidWest
A52: 2013-11-22 | B52: Lynette Brewer | C52: Sunshine | D52: 3 | E52: 19.95 | F52: 59.85 | I52: Eric Rose | J52: West
A53: 2013-12-05 | B53: Rachel Gomez | C53: Majestic Beaut | D53: 15 | E53: 27.55 | F53: 413.25 | I53: Ernest Davis | J53: West
A54: 2014-11-16 | B54: Lance Yates | C54: Sunshine | D54: 2 | E54: 19.95 | F54: 39.9 | I54: Felicia Jennings | J54: West
A55: 2014-03-26 | B55: Arturo Francis | C55: Sunshine | D55: 3 | E55: 18.95 | F55: 56.85 | I55: Fernando Rowe | J55: West
A56: 2013-12-29 | B56: Lula Daniels | C56: FlatTop | D56: 3 | E56: 27.5 | F56: 82.5 | I56: Guillermo Potter | J56: MidWest
A57: 2013-11-29 | B57: Bethany Pena | C57: Crested Beaut | D57: 3 | E57: 24 | F57: 72 | I57: Herman Williams | J57: East
A58: 2013-06-17 | B58: Robert Munoz | C58: Aspen | D58: 4 | E58: 20 | F58: 80 | I58: Iris Underwood | J58: West
A59: 2014-11-18 | B59: Shari Silva | C59: Sunshine | D59: 3 | E59: 19.95 | F59: 59.85 | I59: Isabel Cross | J59: East
A60: 2014-11-20 | B60: Cindy Becker | C60: Carlota | D60: 1 | E60: 22.95 | F60: 22.95 | I60: Ivan Adkins | J60: West
A61: 2013-11-11 | B61: Guillermo Potter | C61: Sunshine | D61: 3 | E61: 19.95 | F61: 59.85 | I61: Jaime Pearson | J61: MidWest
A62: 2013-12-23 | B62: Sandra Floyd | C62: Aspen | D62: 2 | E62: 20 | F62: 40 | I62: Jenny Garcia | J62: MidWest
A63: 2013-12-05 | B63: Billie Chandler | C63: Sunshine | D63: 2 | E63: 19.95 | F63: 39.9 | I63: Joey Wong | J63: West
A64: 2013-12-06 | B64: Isabel Cross | C64: Sunshine | D64: 1 | E64: 18.95 | F64: 18.95 | I64: Johanna Boone | J64: South
A65: 2013-01-28 | B65: Bernadette Page | C65: Sunshine | D65: 2 | E65: 19.95 | F65: 39.9 | I65: Kyle Carr | J65: MidWest
A66: 2013-12-01 | B66: Andrew Meyer | C66: Majestic Beaut | D66: 3 | E66: 30 | F66: 90 | I66: Lance Yates | J66: MidWest
A67: 2013-01-25 | B67: Lee Mack | C67: Carlota | D67: 1 | E67: 22.95 | F67: 22.95 | I67: Lee Mack | J67: MidWest
A68: 2014-04-18 | B68: Bobbie Ryan | C68: Crested Beaut | D68: 2 | E68: 23 | F68: 46 | I68: Lorraine Gibson | J68: East
A69: 2014-11-25 | B69: Trevor Jones | C69: FlatTop | D69: 3 | E69: 27.5 | F69: 82.5 | I69: Lula Daniels | J69: MidWest
A70: 2013-03-03 | B70: Eric Rose | C70: Sunbell | D70: 2 | E70: 25 | F70: 50 | I70: Lynette Brewer | J70: MidWest
A71: 2013-12-03 | B71: Donna Reid | C71: Bellen | D71: 2 | E71: 22.95 | F71: 45.9 | I71: Mable Lindsey | J71: West
A72: 2013-11-02 | B72: Ivan Adkins | C72: Carlota | D72: 1 | E72: 22.95 | F72: 22.95 | I72: Marian Hill | J72: South
A73: 2014-11-09 | B73: Billie Chandler | C73: FlatTop | D73: 1 | E73: 27.5 | F73: 27.5 | I73: Marion Glover | J73: East
A74: 2013-11-16 | B74: Jenny Garcia | C74: Crested Beaut | D74: 11 | E74: 22.8 | F74: 250.8 | I74: Max Rodgers | J74: West
A75: 2013-11-09 | B75: Andrew Meyer | C75: Quad | D75: 2 | E75: 34 | F75: 68 | I75: Nellie Joseph | J75: East
A76: 2013-11-09 | B76: Brooke Horton | C76: Doublers | D76: 2 | E76: 79.95 | F76: 159.9 | I76: Patty Thompson | J76: West
A77: 2013-12-05 | B77: Max Rodgers | C77: Sunshine | D77: 3 | E77: 19.95 | F77: 59.85 | I77: Paulette Spencer | J77: South
A78: 2013-11-23 | B78: Eric Rose | C78: Sunbell | D78: 2 | E78: 25 | F78: 50 | I78: Pauline Beck | J78: West
A79: 2014-12-16 | B79: Rachel Gomez | C79: FlatTop | D79: 18 | E79: 26.13 | F79: 470.34 | I79: Peter Hodges | J79: MidWest
A80: 2014-12-24 | B80: Max Rodgers | C80: Quad | D80: 2 | E80: 34 | F80: 68 | I80: Rachel Gomez | J80: MidWest
A81: 2013-04-07 | B81: Robert Munoz | C81: Sunbell | D81: 15 | E81: 22.8 | F81: 342 | I81: Robert Munoz | J81: MidWest
A82: 2013-12-04 | B82: Don Gonzales | C82: Majestic Beaut | D82: 1 | E82: 29 | F82: 29 | I82: Ruben Nunez | J82: West
A83: 2014-07-30 | B83: Cecilia Manning | C83: Bellen | D83: 2 | E83: 22.95 | F83: 45.9 | I83: Salvador Bass | J83: West
A84: 2013-12-25 | B84: Cindy Becker | C84: Bellen | D84: 1 | E84: 22.95 | F84: 22.95 | I84: Sandra Floyd | J84: MidWest
A85: 2014-11-29 | B85: Brooke Horton | C85: Sunbell | D85: 2 | E85: 24 | F85: 48 | I85: Shari Silva | J85: South
A86: 2014-10-21 | B86: Ivan Adkins | C86: V-Rang | D86: 3 | E86: 19 | F86: 57 | I86: Sonya Mullins | J86: East
A87: 2013-09-10 | B87: Christina Fuller | C87: Aspen | D87: 2 | E87: 21 | F87: 42 | I87: Sylvester Morales | J87: West
A88: 2014-12-01 | B88: Peter Hodges | C88: Sunshine | D88: 2 | E88: 19.95 | F88: 39.9 | I88: Tiffany May | J88: West
A89: 2014-11-17 | B89: Ben Perez | C89: Bellen | D89: 1 | E89: 22.95 | F89: 22.95 | I89: Tracy Reed | J89: MidWest
A90: 2014-12-02 | B90: Andrew Meyer | C90: Carlota | D90: 4 | E90: 22.95 | F90: 91.8 | I90: Trevor Jones | J90: West
A91: 2014-11-30 | B91: Peter Hodges | C91: Bellen | D91: 3 | E91: 22.95 | F91: 68.85 | I91: Willie Vega | J91: MidWest
A92: 2013-11-27 | B92: Billie Chandler | C92: Quad | D92: 2 | E92: 33 | F92: 66 | I92: Woodrow Colon | J92: South
A93: 2013-11-19 | B93: Robert Munoz | C93: Sunbell | D93: 1 | E93: 24 | F93: 24
A94: 2013-11-16 | B94: Salvador Bass | C94: FlatTop | D94: 2 | E94: 27.5 | F94: 55
A95: 2014-12-17 | B95: Salvador Bass | C95: Sunset | D95: 3 | E95: 23.5 | F95: 70.5
A96: 2014-11-13 | B96: Bobbie Ryan | C96: Carlota | D96: 1 | E96: 21.95 | F96: 21.95
A97: 2014-12-13 | B97: Andrew Meyer | C97: Carlota | D97: 2 | E97: 22.95 | F97: 45.9
A98: 2013-10-17 | B98: Drew Rogers | C98: Majestic Beaut | D98: 7 | E98: 29 | F98: 203
A99: 2013-11-30 | B99: Isabel Cross | C99: Bellen | D99: 3 | E99: 21.95 | F99: 65.85
A100: 2013-12-28 | B100: Della Jensen | C100: FlatTop | D100: 1 | E100: 26.5 | F100: 26.5
A101: 2014-12-24 | B101: Lorraine Gibson | C101: Carlota | D101: 25 | E101: 20.85 | F101: 521.25
A102: 2013-12-22 | B102: Shari Silva | C102: Sunshine | D102: 20 | E102: 18.95 | F102: 379
A103: 2013-12-17 | B103: Drew Rogers | C103: Sunshine | D103: 2 | E103: 19.95 | F103: 39.9
A104: 2013-12-06 | B104: Iris Underwood | C104: Quad | D104: 3 | E104: 34 | F104: 102
A105: 2013-11-20 | B105: Drew Rogers | C105: Quad | D105: 1 | E105: 33 | F105: 33
A106: 2013-01-21 | B106: Jenny Garcia | C106: Quad | D106: 3 | E106: 33 | F106: 99
A107: 2013-09-28 | B107: Lorraine Gibson | C107: Sunshine | D107: 3 | E107: 18.95 | F107: 56.85
A108: 2014-12-16 | B108: Elaine Ellis | C108: Crested Beaut | D108: 1 | E108: 24 | F108: 24
A109: 2014-11-01 | B109: Eric Rose | C109: Bellen | D109: 3 | E109: 22.95 | F109: 68.85
A110: 2013-09-27 | B110: Isabel Cross | C110: Quad | D110: 1 | E110: 32 | F110: 32
A111: 2013-03-06 | B111: Billie Chandler | C111: FlatTop | D111: 21 | E111: 26.13 | F111: 548.73
A112: 2014-12-12 | B112: Woodrow Colon | C112: Sunset | D112: 2 | E112: 22.5 | F112: 45
A113: 2013-08-03 | B113: Edwin Malone | C113: Sunbell | D113: 1 | E113: 23 | F113: 23
A114: 2013-11-18 | B114: Paulette Spencer | C114: Bellen | D114: 3 | E114: 22.95 | F114: 68.85
A115: 2013-12-08 | B115: Cassandra Franklin | C115: Bellen | D115: 2 | E115: 22.95 | F115: 45.9
A116: 2014-11-13 | B116: Allan Ramos | C116: Sunbell | D116: 2 | E116: 24 | F116: 48
A117: 2014-07-12 | B117: Eric Rose | C117: Quad | D117: 1 | E117: 34 | F117: 34
A118: 2014-11-29 | B118: Cassandra Franklin | C118: Carlota | D118: 3 | E118: 22.95 | F118: 68.85
A119: 2014-11-28 | B119: Della Jensen | C119: Carlota | D119: 3 | E119: 21.95 | F119: 65.85
A120: 2013-12-09 | B120: Shari Silva | C120: Carlota | D120: 3 | E120: 22.95 | F120: 68.85
A121: 2014-07-18 | B121: Austin Reynolds | C121: Crested Beaut | D121: 3 | E121: 23 | F121: 69
A122: 2014-11-02 | B122: Dan Peterson | C122: Sunshine | D122: 2 | E122: 19.95 | F122: 39.9
A123: 2014-11-18 | B123: Elbert Klein | C123: Sunshine | D123: 1 | E123: 19.95 | F123: 19.95
A124: 2013-12-19 | B124: Nellie Joseph | C124: Aspen | D124: 3 | E124: 19 | F124: 57
A125: 2013-12-09 | B125: Robert Munoz | C125: Sunbell | D125: 2 | E125: 24 | F125: 48
A126: 2014-12-04 | B126: Herman Williams | C126: Sunset | D126: 3 | E126: 22.5 | F126: 67.5
A127: 2014-12-09 | B127: Cassandra Franklin | C127: FlatTop | D127: 3 | E127: 27.5 | F127: 82.5
A128: 2013-11-28 | B128: Woodrow Colon | C128: Bellen | D128: 3 | E128: 22.95 | F128: 68.85
A129: 2013-11-13 | B129: Willie Vega | C129: Majestic Beaut | D129: 2 | E129: 29 | F129: 58
A130: 2014-12-04 | B130: Cassandra Franklin | C130: Doublers | D130: 2 | E130: 79.95 | F130: 159.9
A131: 2014-06-09 | B131: Lorraine Gibson | C131: Quad | D131: 2 | E131: 32 | F131: 64
A132: 2013-07-13 | B132: Christina Fuller | C132: Bellen | D132: 1 | E132: 22.95 | F132: 22.95
A133: 2013-11-06 | B133: Ivan Adkins | C133: Sunshine | D133: 2 | E133: 19.95 | F133: 39.9
A134: 2014-11-19 | B134: Brooke Horton | C134: FlatTop | D134: 3 | E134: 27.5 | F134: 82.5
A135: 2014-12-19 | B135: Robert Munoz | C135: Sunset | D135: 19 | E135: 22.33 | F135: 424.27
A136: 2014-11-21 | B136: Robert Munoz | C136: Crested Beaut | D136: 1 | E136: 24 | F136: 24
A137: 2014-12-31 | B137: Edwin Malone | C137: Carlota | D137: 3 | E137: 21.95 | F137: 65.85
A138: 2013-11-10 | B138: Tracy Reed | C138: Sunbell | D138: 2 | E138: 24 | F138: 48
A139: 2013-11-25 | B139: Rachel Gomez | C139: FlatTop | D139: 3 | E139: 27.5 | F139: 82.5
A140: 2014-12-17 | B140: Elbert Klein | C140: Sunset | D140: 16 | E140: 21.38 | F140: 342.08
A141: 2013-11-11 | B141: Lynette Brewer | C141: Aspen | D141: 3 | E141: 20 | F141: 60
A142: 2014-11-18 | B142: Kyle Carr | C142: Carlota | D142: 2 | E142: 22.95 | F142: 45.9
A143: 2014-12-13 | B143: Max Rodgers | C143: Bellen | D143: 7 | E143: 22.95 | F143: 160.65
A144: 2013-12-10 | B144: Carla Mccormick | C144: Carlota | D144: 3 | E144: 22.95 | F144: 68.85
A145: 2013-12-04 | B145: Fernando Rowe | C145: Sunshine | D145: 1 | E145: 19.95 | F145: 19.95
A146: 2013-11-05 | B146: Jaime Pearson | C146: Bellen | D146: 2 | E146: 22.95 | F146: 45.9
A147: 2014-12-15 | B147: Max Rodgers | C147: Sunbell | D147: 2 | E147: 25 | F147: 50
A148: 2014-12-27 | B148: Della Jensen | C148: Bellen | D148: 2 | E148: 21.95 | F148: 43.9
A149: 2013-08-25 | B149: Donna Reid | C149: Carlota | D149: 3 | E149: 22.95 | F149: 68.85
A150: 2014-12-22 | B150: Robert Munoz | C150: Carlota | D150: 2 | E150: 22.95 | F150: 45.9
A151: 2014-12-14 | B151: Cindy Becker | C151: Majestic Beaut | D151: 1 | E151: 29 | F151: 29
A152: 2014-12-19 | B152: Max Rodgers | C152: Sunset | D152: 12 | E152: 22.33 | F152: 267.96
A153: 2013-09-14 | B153: Cindy Becker | C153: Aspen | D153: 1 | E153: 20 | F153: 20
A154: 2014-12-22 | B154: Robert Munoz | C154: Quad | D154: 3 | E154: 33 | F154: 99
A155: 2013-11-14 | B155: Jenny Garcia | C155: Sunset | D155: 3 | E155: 23.5 | F155: 70.5
A156: 2013-02-03 | B156: Pauline Beck | C156: Sunbell | D156: 1 | E156: 25 | F156: 25
A157: 2013-12-04 | B157: Max Rodgers | C157: Majestic Beaut | D157: 2 | E157: 30 | F157: 60
A158: 2013-12-27 | B158: Cindy Becker | C158: Carlota | D158: 1 | E158: 22.95 | F158: 22.95
A159: 2013-11-27 | B159: Rachel Gomez | C159: Sunshine | D159: 2 | E159: 19.95 | F159: 39.9
A160: 2013-07-12 | B160: Lorraine Gibson | C160: Carlota | D160: 2 | E160: 21.95 | F160: 43.9
A161: 2014-11-10 | B161: Billie Chandler | C161: Quad | D161: 8 | E161: 33 | F161: 264
A162: 2013-01-29 | B162: Lee Mack | C162: Sunbell | D162: 1 | E162: 24 | F162: 24
A163: 2013-12-23 | B163: Dan Peterson | C163: Sunshine | D163: 1 | E163: 19.95 | F163: 19.95
A164: 2014-08-03 | B164: Robert Munoz | C164: Quad | D164: 3 | E164: 33 | F164: 99
A165: 2014-11-01 | B165: Eric Rose | C165: Sunshine | D165: 1 | E165: 19.95 | F165: 19.95
A166: 2014-12-21 | B166: Christina Fuller | C166: Bellen | D166: 2 | E166: 22.95 | F166: 45.9
A167: 2013-11-25 | B167: Jenny Garcia | C167: Quad | D167: 4 | E167: 33 | F167: 132
A168: 2014-12-30 | B168: Ellen Weaver | C168: Sunset | D168: 1 | E168: 22.5 | F168: 22.5
A169: 2014-12-22 | B169: Eric Rose | C169: Carlota | D169: 2 | E169: 22.95 | F169: 45.9
A170: 2013-12-30 | B170: Jaime Pearson | C170: Bellen | D170: 2 | E170: 22.95 | F170: 45.9
A171: 2014-12-02 | B171: Marian Hill | C171: Sunshine | D171: 2 | E171: 19.95 | F171: 39.9
A172: 2013-10-13 | B172: Blake Bridges | C172: Sunshine | D172: 1 | E172: 19.95 | F172: 19.95
A173: 2014-12-14 | B173: Robert Munoz | C173: Quad | D173: 5 | E173: 33 | F173: 165
A174: 2013-12-27 | B174: Sandra Floyd | C174: Quad | D174: 2 | E174: 33 | F174: 66
A175: 2013-12-29 | B175: Cindy Becker | C175: Carlota | D175: 1 | E175: 22.95 | F175: 22.95
A176: 2014-12-31 | B176: Austin Reynolds | C176: Bellen | D176: 4 | E176: 21.95 | F176: 87.8
A177: 2013-12-08 | B177: Elvira Bowman | C177: Sunshine | D177: 3 | E177: 19.95 | F177: 59.85
A178: 2013-11-23 | B178: Jenny Garcia | C178: Quad | D178: 3 | E178: 33 | F178: 99
A179: 2013-12-08 | B179: Salvador Bass | C179: Sunbell | D179: 14 | E179: 23.75 | F179: 332.5
A180: 2013-02-19 | B180: Cassandra Franklin | C180: Doublers | D180: 4 | E180: 79.95 | F180: 319.8
A181: 2013-12-13 | B181: Ben Perez | C181: Crested Beaut | D181: 1 | E181: 25 | F181: 25
A182: 2013-01-29 | B182: Robert Munoz | C182: Sunbell | D182: 2 | E182: 24 | F182: 48
A183: 2014-12-11 | B183: Lance Yates | C183: Doublers | D183: 2 | E183: 79.95 | F183: 159.9
A184: 2013-12-05 | B184: Beth Tucker | C184: Carlota | D184: 14 | E184: 21.8 | F184: 305.2
A185: 2013-03-25 | B185: Cecilia Manning | C185: Quad | D185: 3 | E185: 33 | F185: 99
A186: 2014-11-21 | B186: Patty Thompson | C186: Bellen | D186: 4 | E186: 22.95 | F186: 91.8
A187: 2013-12-10 | B187: Robert Munoz | C187: FlatTop | D187: 2 | E187: 27.5 | F187: 55
A188: 2014-05-07 | B188: Elaine Ellis | C188: Sunshine | D188: 2 | E188: 19.95 | F188: 39.9
A189: 2013-11-30 | B189: Isabel Cross | C189: Sunshine | D189: 3 | E189: 18.95 | F189: 56.85
A190: 2014-11-14 | B190: Shari Silva | C190: Quad | D190: 2 | E190: 33 | F190: 66
A191: 2014-11-13 | B191: Sandra Floyd | C191: Sunshine | D191: 2 | E191: 19.95 | F191: 39.9
A192: 2014-12-31 | B192: Shari Silva | C192: Bellen | D192: 2 | E192: 22.95 | F192: 45.9
A193: 2013-04-17 | B193: Trevor Jones | C193: Sunshine | D193: 1 | E193: 19.95 | F193: 19.95
A194: 2013-12-07 | B194: Robert Munoz | C194: Bellen | D194: 5 | E194: 22.95 | F194: 114.75
A195: 2014-11-27 | B195: Brooke Horton | C195: Majestic Beaut | D195: 19 | E195: 27.55 | F195: 523.45
A196: 2014-02-26 | B196: Mable Lindsey | C196: Quad | D196: 3 | E196: 34 | F196: 102
A197: 2014-12-10 | B197: Drew Rogers | C197: Quad | D197: 2 | E197: 33 | F197: 66
A198: 2013-12-21 | B198: Sonya Mullins | C198: Quad | D198: 1 | E198: 32 | F198: 32
A199: 2014-11-15 | B199: Jenny Garcia | C199: Bellen | D199: 3 | E199: 22.95 | F199: 68.85
A200: 2013-11-10 | B200: Brooke Horton | C200: Carlota | D200: 19 | E200: 21.8 | F200: 414.2
A201: 2013-11-15 | B201: Jenny Garcia | C201: Aspen | D201: 2 | E201: 20 | F201: 40
A202: 2013-03-04 | B202: Iris Underwood | C202: Quad | D202: 2 | E202: 34 | F202: 68
A203: 2014-01-29 | B203: Tiffany May | C203: Quad | D203: 3 | E203: 34 | F203: 102
A204: 2013-05-06 | B204: Kyle Carr | C204: Quad | D204: 4 | E204: 33 | F204: 132
... 9816 more rows

Sheet N

Sheet Homework ==>>

Sheet HW(1)
A1: Create a Cross Tabulated PivotTable that shows the sum of "Total Line Revenue" by "Suggested Age" and "Toy Company" on a new sheet.
A3: Invoice Number | B3: Date | C3: Time | D3: Internal Toy ID Number | E3: Toy Item Number | F3: Toy Company | G3: Toy Name | H3: Suggested Age | I3: Price Per Toy | J3: Units Sold | K3: Total Line Revenue | L3: Total COGS | M3: Payment | N3: Cashier ID | O3: Member? | P3: Coupon? | Q3: Purchaser Age | R3: Parking Validation?
A4: 654522 | B4: 2010-01-07 | C4: 10:25:37.200 | D4: D255/FE | E4: 192 | F4: Duplo | G4: Policemen | H4: 6 and up | I4: 9.95 | J4: 1 | K4: 9.95 | L4: 5.17 | M4: Cash | N4: V.W.|880-4523 | O4: No | P4: No | Q4: 39 | R4: No
A5: 654526 | B5: 2010-01-07 | C5: 12:00:00 | D5: L217/SN | E5: 255 | F5: Duplo | G5: Farming Scene | H5: 7 and up | I5: 24.95 | J5: 5 | K5: 124.75 | L5: 81.1 | M5: Visa | N5: B.X.|880-9149 | O5: No | P5: No | Q5: 29 | R5: No
A6: 654568 | B6: 2010-01-07 | C6: 14:19:12 | D6: L195/AE | E6: 195 | F6: Lego | G6: Airplane | H6: 8 and up | I6: 5.95 | J6: 1 | K6: 5.95 | L6: 3.09 | M6: Cash | N6: Z.Q.|880-4240 | O6: No | P6: Yes | Q6: 46 | R6: Yes
A7: 654576 | B7: 2010-01-25 | C7: 12:57:00 | D7: L256/PE | E7: 256 | F7: Lego | G7: Police Officers and Motorcycle | H7: 9 and up | I7: 9.95 | J7: 1 | K7: 9.95 | L7: 4.48 | M7: Discover | N7: D.U.|880-2953 | O7: No | P7: No | Q7: 36 | R7: No
A8: 654613 | B8: 2010-02-05 | C8: 14:51:36 | D8: D250/AT | E8: 192 | F8: Duplo | G8: Policemen | H8: 6 and up | I8: 9.95 | J8: 1 | K8: 9.95 | L8: 5.17 | M8: Cash | N8: D.Z.|880-1179 | O8: No | P8: No | Q8: 33 | R8: No
A9: 654624 | B9: 2010-02-05 | C9: 14:36:00 | D9: D250/AT | E9: 192 | F9: Duplo | G9: Policemen | H9: 6 and up | I9: 9.95 | J9: 5 | K9: 49.75 | L9: 25.85 | M9: Cash | N9: L.W.|880-4986 | O9: No | P9: No | Q9: 47 | R9: No
A10: 654650 | B10: 2010-02-06 | C10: 14:33:36 | D10: D250/AT | E10: 192 | F10: Duplo | G10: Policemen | H10: 6 and up | I10: 9.95 | J10: 1 | K10: 9.95 | L10: 5.17 | M10: Mastercard | N10: D.S.|880-7532 | O10: No | P10: No | Q10: 34 | R10: No
A11: 654650 | B11: 2010-02-06 | C11: 14:33:36 | D11: L195/AE | E11: 195 | F11: Lego | G11: Airplane | H11: 8 and up | I11: 5.95 | J11: 2 | K11: 11.9 | L11: 6.18 | M11: Mastercard | N11: D.S.|880-7532 | O11: No | P11: No | Q11: 34 | R11: No
A12: 654668 | B12: 2010-02-11 | C12: 13:42:46.800 | D12: L195/AE | E12: 195 | F12: Lego | G12: Airplane | H12: 8 and up | I12: 5.95 | J12: 1 | K12: 5.95 | L12: 3.09 | M12: Check | N12: D.W.|880-7199 | O12: No | P12: No | Q12: 47 | R12: Yes
A13: 654673 | B13: 2010-02-20 | C13: 15:27:18 | D13: L256/PE | E13: 256 | F13: Lego | G13: Police Officers and Motorcycle | H13: 9 and up | I13: 9.95 | J13: 4 | K13: 39.8 | L13: 17.92 | M13: Cash | N13: W.B.|880-9647 | O13: No | P13: No | Q13: 32 | R13: No
A14: 654693 | B14: 2010-03-11 | C14: 15:45:36 | D14: D254/FE | E14: 192 | F14: Duplo | G14: Policemen | H14: 6 and up | I14: 9.95 | J14: 1 | K14: 9.95 | L14: 5.17 | M14: Cash | N14: B.Y.|880-6845 | O14: No | P14: No | Q14: 36 | R14: No
A15: 654693 | B15: 2010-03-11 | C15: 15:45:36 | D15: L195/AE | E15: 195 | F15: Lego | G15: Airplane | H15: 8 and up | I15: 5.95 | J15: 1 | K15: 5.95 | L15: 3.09 | M15: Cash | N15: B.Y.|880-6845 | O15: No | P15: No | Q15: 36 | R15: No
A16: 654733 | B16: 2010-03-11 | C16: 13:59:24 | D16: L256/PE | E16: 256 | F16: Lego | G16: Police Officers and Motorcycle | H16: 9 and up | I16: 9.95 | J16: 2 | K16: 19.9 | L16: 8.96 | M16: Visa | N16: P.N.|880-3021 | O16: No | P16: No | Q16: 36 | R16: No
A17: 654754 | B17: 2010-03-27 | C17: 12:08:24 | D17: D255/FE | E17: 192 | F17: Duplo | G17: Policemen | H17: 6 and up | I17: 9.95 | J17: 1 | K17: 9.95 | L17: 5.17 | M17: Mastercard | N17: P.N.|880-3021 | O17: No | P17: No | Q17: 33 | R17: No
A18: 654799 | B18: 2010-04-03 | C18: 15:27:36 | D18: D255/FE | E18: 192 | F18: Duplo | G18: Policemen | H18: 6 and up | I18: 9.95 | J18: 3 | K18: 29.85 | L18: 15.51 | M18: Cash | N18: A.U.|880-2167 | O18: Yes | P18: No | Q18: 47 | R18: No
A19: 654827 | B19: 2010-04-09 | C19: 15:58:33.600 | D19: D254/FE | E19: 192 | F19: Duplo | G19: Policemen | H19: 6 and up | I19: 9.95 | J19: 2 | K19: 19.9 | L19: 10.34 | M19: Mastercard | N19: A.U.|880-2167 | O19: No | P19: No | Q19: 35 | R19: Yes
A20: 654834 | B20: 2010-04-09 | C20: 12:06:00 | D20: D254/FE | E20: 192 | F20: Duplo | G20: Policemen | H20: 6 and up | I20: 9.95 | J20: 2 | K20: 19.9 | L20: 10.34 | M20: Visa | N20: Z.Q.|880-4240 | O20: Yes | P20: Yes | Q20: 49 | R20: No
A21: 654860 | B21: 2010-04-09 | C21: 17:12:36 | D21: L195/AE | E21: 195 | F21: Lego | G21: Airplane | H21: 8 and up | I21: 5.95 | J21: 2 | K21: 11.9 | L21: 6.18 | M21: Gift Card | N21: B.B.|880-9330 | O21: No | P21: Yes | Q21: 30 | R21: No
A22: 654883 | B22: 2010-04-09 | C22: 12:59:16.800 | D22: L217/SN | E22: 255 | F22: Duplo | G22: Farming Scene | H22: 7 and up | I22: 24.95 | J22: 3 | K22: 74.85 | L22: 48.66 | M22: Visa | N22: Z.Q.|880-4240 | O22: No | P22: No | Q22: 42 | R22: Yes
A23: 654908 | B23: 2010-04-14 | C23: 19:54:00 | D23: D218/FN | E23: 192 | F23: Duplo | G23: Policemen | H23: 6 and up | I23: 9.95 | J23: 1 | K23: 9.95 | L23: 5.17 | M23: Mastercard | N23: L.C.|880-6872 | O23: No | P23: No | Q23: 39 | R23: No
A24: 654932 | B24: 2010-04-14 | C24: 12:42:00 | D24: D250/AT | E24: 192 | F24: Duplo | G24: Policemen | H24: 6 and up | I24: 9.95 | J24: 1 | K24: 9.95 | L24: 5.17 | M24: Mastercard | N24: U.O.|880-3720 | O24: No | P24: No | Q24: 36 | R24: Yes
A25: 654979 | B25: 2010-04-17 | C25: 14:16:30 | D25: D254/FE | E25: 192 | F25: Duplo | G25: Policemen | H25: 6 and up | I25: 9.95 | J25: 2 | K25: 19.9 | L25: 10.34 | M25: Cash | N25: D.W.|880-7199 | O25: No | P25: Yes | Q25: 39 | R25: No
A26: 655029 | B26: 2010-04-22 | C26: 13:39:36 | D26: L256/PE | E26: 256 | F26: Lego | G26: Police Officers and Motorcycle | H26: 9 and up | I26: 9.95 | J26: 1 | K26: 9.95 | L26: 4.48 | M26: Discover | N26: S.V.|880-5987 | O26: No | P26: Yes | Q26: 63 | R26: No
A27: 655035 | B27: 2010-04-24 | C27: 17:16:48 | D27: L340/FS | E27: 340 | F27: Lego | G27: Fire Trucks | H27: 6 and up | I27: 34.95 | J27: 2 | K27: 69.9 | L27: 39.84 | M27: Mastercard | N27: V.W.|880-4523 | O27: Yes | P27: Yes | Q27: 38 | R27: No
A28: 655083 | B28: 2010-04-25 | C28: 16:52:12 | D28: L256/PE | E28: 256 | F28: Lego | G28: Police Officers and Motorcycle | H28: 9 and up | I28: 9.95 | J28: 2 | K28: 19.9 | L28: 8.96 | M28: Visa | N28: N.W.|880-6237 | O28: No | P28: Yes | Q28: 33 | R28: No
A29: 655105 | B29: 2010-05-01 | C29: 15:27:36 | D29: L256/PE | E29: 256 | F29: Lego | G29: Police Officers and Motorcycle | H29: 9 and up | I29: 9.95 | J29: 1 | K29: 9.95 | L29: 4.48 | M29: Visa | N29: U.W.|880-9683 | O29: No | P29: No | Q29: 33 | R29: No
A30: 655105 | B30: 2010-05-01 | C30: 15:27:36 | D30: L256/PE | E30: 256 | F30: Lego | G30: Police Officers and Motorcycle | H30: 9 and up | I30: 9.95 | J30: 2 | K30: 19.9 | L30: 8.96 | M30: Visa | N30: U.W.|880-9683 | O30: No | P30: No | Q30: 33 | R30: No
A31: 655112 | B31: 2010-05-04 | C31: 14:47:13.200 | D31: D255/FE | E31: 192 | F31: Duplo | G31: Policemen | H31: 6 and up | I31: 9.95 | J31: 1 | K31: 9.95 | L31: 5.17 | M31: Visa | N31: H.B.|880-3254 | O31: Yes | P31: Yes | Q31: 31 | R31: No
A32: 655124 | B32: 2010-05-06 | C32: 12:39:57.600 | D32: D255/FE | E32: 192 | F32: Duplo | G32: Policemen | H32: 6 and up | I32: 9.95 | J32: 1 | K32: 9.95 | L32: 5.17 | M32: Visa | N32: Z.Q.|880-4240 | O32: No | P32: No | Q32: 45 | R32: No
A33: 655165 | B33: 2010-05-30 | C33: 17:40:12 | D33: D250/AT | E33: 192 | F33: Duplo | G33: Policemen | H33: 6 and up | I33: 9.95 | J33: 2 | K33: 19.9 | L33: 10.34 | M33: Cash | N33: D.U.|880-2953 | O33: Yes | P33: Yes | Q33: 29 | R33: No
A34: 655189 | B34: 2010-05-30 | C34: 16:21:00 | D34: L195/AE | E34: 195 | F34: Lego | G34: Airplane | H34: 8 and up | I34: 5.95 | J34: 2 | K34: 11.9 | L34: 6.18 | M34: Visa | N34: B.B.|880-9330 | O34: No | P34: No | Q34: 49 | R34: No
A35: 655232 | B35: 2010-05-30 | C35: 11:17:24 | D35: D250/AT | E35: 192 | F35: Duplo | G35: Policemen | H35: 6 and up | I35: 9.95 | J35: 1 | K35: 9.95 | L35: 5.17 | M35: Cash | N35: H.B.|880-3254 | O35: No | P35: Yes | Q35: 42 | R35: No
A36: 655232 | B36: 2010-05-30 | C36: 11:17:24 | D36: L256/PE | E36: 256 | F36: Lego | G36: Police Officers and Motorcycle | H36: 9 and up | I36: 9.95 | J36: 2 | K36: 19.9 | L36: 8.96 | M36: Cash | N36: H.B.|880-3254 | O36: No | P36: Yes | Q36: 42 | R36: No
A37: 655281 | B37: 2010-06-01 | C37: 15:27:36 | D37: D255/FE | E37: 192 | F37: Duplo | G37: Policemen | H37: 6 and up | I37: 9.95 | J37: 4 | K37: 39.8 | L37: 20.68 | M37: Mastercard | N37: W.C.|880-4861 | O37: No | P37: No | Q37: 34 | R37: Yes
A38: 655298 | B38: 2010-06-09 | C38: 16:28:48 | D38: D255/FE | E38: 192 | F38: Duplo | G38: Policemen | H38: 6 and up | I38: 9.95 | J38: 1 | K38: 9.95 | L38: 5.17 | M38: Discover | N38: V.W.|880-8599 | O38: No | P38: No | Q38: 36 | R38: No
A39: 655323 | B39: 2010-06-13 | C39: 12:18:36 | D39: D255/FE | E39: 192 | F39: Duplo | G39: Policemen | H39: 6 and up | I39: 9.95 | J39: 1 | K39: 9.95 | L39: 5.17 | M39: Mastercard | N39: N.C.|880-3850 | O39: No | P39: No | Q39: 41 | R39: No
A40: 655358 | B40: 2010-06-13 | C40: 19:16:12 | D40: L195/AE | E40: 195 | F40: Lego | G40: Airplane | H40: 8 and up | I40: 5.95 | J40: 2 | K40: 11.9 | L40: 6.18 | M40: Cash | N40: W.C.|880-4861 | O40: No | P40: No | Q40: 32 | R40: Yes
A41: 655358 | B41: 2010-06-13 | C41: 19:16:12 | D41: D254/FE | E41: 192 | F41: Duplo | G41: Policemen | H41: 6 and up | I41: 9.95 | J41: 1 | K41: 9.95 | L41: 5.17 | M41: Cash | N41: W.C.|880-4861 | O41: No | P41: No | Q41: 32 | R41: Yes
A42: 655373 | B42: 2010-06-21 | C42: 12:27:39.600 | D42: L195/AE | E42: 195 | F42: Lego | G42: Airplane | H42: 8 and up | I42: 5.95 | J42: 1 | K42: 5.95 | L42: 3.09 | M42: Visa | N42: N.W.|880-6237 | O42: No | P42: No | Q42: 43 | R42: No
A43: 655385 | B43: 2010-06-21 | C43: 16:05:24 | D43: L256/PE | E43: 256 | F43: Lego | G43: Police Officers and Motorcycle | H43: 9 and up | I43: 9.95 | J43: 2 | K43: 19.9 | L43: 8.96 | M43: Mastercard | N43: W.B.|880-9647 | O43: No | P43: No | Q43: 46 | R43: No
A44: 655412 | B44: 2010-06-24 | C44: 11:39:10.800 | D44: D254/FE | E44: 192 | F44: Duplo | G44: Policemen | H44: 6 and up | I44: 9.95 | J44: 5 | K44: 49.75 | L44: 25.85 | M44: Mastercard | N44: H.B.|880-3254 | O44: No | P44: No | Q44: 65 | R44: No
A45: 655412 | B45: 2010-06-24 | C45: 11:39:10.800 | D45: D250/AT | E45: 192 | F45: Duplo | G45: Policemen | H45: 6 and up | I45: 9.95 | J45: 2 | K45: 19.9 | L45: 10.34 | M45: Mastercard | N45: H.B.|880-3254 | O45: No | P45: No | Q45: 65 | R45: No
A46: 655420 | B46: 2010-06-26 | C46: 16:09:36 | D46: L256/PE | E46: 256 | F46: Lego | G46: Police Officers and Motorcycle | H46: 9 and up | I46: 9.95 | J46: 2 | K46: 19.9 | L46: 8.96 | M46: Mastercard | N46: A.U.|880-2167 | O46: No | P46: No | Q46: 56 | R46: Yes
A47: 655467 | B47: 2010-07-04 | C47: 13:46:48 | D47: L195/AE | E47: 195 | F47: Lego | G47: Airplane | H47: 8 and up | I47: 5.95 | J47: 1 | K47: 5.95 | L47: 3.09 | M47: Cash | N47: Y.P.|880-6894 | O47: No | P47: No | Q47: 34 | R47: Yes
A48: 655505 | B48: 2010-07-09 | C48: 09:10:12 | D48: D254/FE | E48: 192 | F48: Duplo | G48: Policemen | H48: 6 and up | I48: 9.95 | J48: 2 | K48: 19.9 | L48: 10.34 | M48: Gift Card | N48: N.C.|880-3850 | O48: No | P48: No | Q48: 30 | R48: Yes
A49: 655526 | B49: 2010-07-09 | C49: 12:57:36 | D49: D250/AT | E49: 192 | F49: Duplo | G49: Policemen | H49: 6 and up | I49: 9.95 | J49: 3 | K49: 29.85 | L49: 15.51 | M49: Mastercard | N49: Z.Q.|880-4240 | O49: No | P49: No | Q49: 24 | R49: Yes
A50: 655557 | B50: 2010-07-10 | C50: 16:00:00 | D50: L195/AE | E50: 195 | F50: Lego | G50: Airplane | H50: 8 and up | I50: 5.95 | J50: 4 | K50: 23.8 | L50: 12.36 | M50: Visa | N50: V.W.|880-8599 | O50: No | P50: No | Q50: 37 | R50: No
A51: 655557 | B51: 2010-07-10 | C51: 16:00:00 | D51: D255/FE | E51: 192 | F51: Duplo | G51: Policemen | H51: 6 and up | I51: 9.95 | J51: 2 | K51: 19.9 | L51: 10.34 | M51: Visa | N51: V.W.|880-8599 | O51: No | P51: No | Q51: 37 | R51: No
A52: 655570 | B52: 2010-07-18 | C52: 14:46:12 | D52: D255/FE | E52: 192 | F52: Duplo | G52: Policemen | H52: 6 and up | I52: 9.95 | J52: 1 | K52: 9.95 | L52: 5.17 | M52: Cash | N52: L.W.|880-4986 | O52: No | P52: Yes | Q52: 37 | R52: No
A53: 655577 | B53: 2010-07-19 | C53: 11:24:00 | D53: L256/PE | E53: 256 | F53: Lego | G53: Police Officers and Motorcycle | H53: 9 and up | I53: 9.95 | J53: 4 | K53: 39.8 | L53: 17.92 | M53: Mastercard | N53: V.W.|880-8599 | O53: No | P53: No | Q53: 12 | R53: No
A54: 655613 | B54: 2010-07-25 | C54: 12:04:22.800 | D54: D250/AT | E54: 192 | F54: Duplo | G54: Policemen | H54: 6 and up | I54: 9.95 | J54: 2 | K54: 19.9 | L54: 10.34 | M54: Visa | N54: L.W.|880-4986 | O54: No | P54: No | Q54: 64 | R54: No
A55: 655623 | B55: 2010-07-29 | C55: 10:13:48 | D55: D250/AT | E55: 192 | F55: Duplo | G55: Policemen | H55: 6 and up | I55: 9.95 | J55: 1 | K55: 9.95 | L55: 5.17 | M55: Visa | N55: D.U.|880-2953 | O55: No | P55: No | Q55: 43 | R55: No
A56: 655643 | B56: 2010-07-30 | C56: 11:49:48 | D56: L195/AE | E56: 195 | F56: Lego | G56: Airplane | H56: 8 and up | I56: 5.95 | J56: 3 | K56: 17.85 | L56: 9.27 | M56: Gift Card | N56: N.C.|880-3850 | O56: No | P56: No | Q56: 48 | R56: No
A57: 655661 | B57: 2010-08-09 | C57: 16:56:24 | D57: D250/AT | E57: 192 | F57: Duplo | G57: Policemen | H57: 6 and up | I57: 9.95 | J57: 1 | K57: 9.95 | L57: 5.17 | M57: Mastercard | N57: C.X.|880-3590 | O57: Yes | P57: Yes | Q57: 34 | R57: No
A58: 655661 | B58: 2010-08-09 | C58: 16:56:24 | D58: D254/FE | E58: 192 | F58: Duplo | G58: Policemen | H58: 6 and up | I58: 9.95 | J58: 1 | K58: 9.95 | L58: 5.17 | M58: Mastercard | N58: C.X.|880-3590 | O58: Yes | P58: Yes | Q58: 34 | R58: No
A59: 655673 | B59: 2010-08-16 | C59: 15:42:36 | D59: D255/FE | E59: 192 | F59: Duplo | G59: Policemen | H59: 6 and up | I59: 9.95 | J59: 1 | K59: 9.95 | L59: 5.17 | M59: Cash | N59: D.U.|880-2953 | O59: No | P59: No | Q59: 50 | R59: Yes
A60: 655676 | B60: 2010-08-18 | C60: 18:27:36 | D60: D254/FE | E60: 192 | F60: Duplo | G60: Policemen | H60: 6 and up | I60: 9.95 | J60: 1 | K60: 9.95 | L60: 5.17 | M60: Cash | N60: D.Z.|880-1179 | O60: No | P60: No | Q60: 38 | R60: No
A61: 655676 | B61: 2010-08-18 | C61: 18:27:36 | D61: D254/FE | E61: 192 | F61: Duplo | G61: Policemen | H61: 6 and up | I61: 9.95 | J61: 4 | K61: 39.8 | L61: 20.68 | M61: Cash | N61: D.Z.|880-1179 | O61: No | P61: No | Q61: 38 | R61: No
A62: 655679 | B62: 2010-08-24 | C62: 16:49:12 | D62: D250/AT | E62: 192 | F62: Duplo | G62: Policemen | H62: 6 and up | I62: 9.95 | J62: 3 | K62: 29.85 | L62: 15.51 | M62: Gift Card | N62: S.V.|880-5987 | O62: No | P62: No | Q62: 41 | R62: No
A63: 655716 | B63: 2010-09-02 | C63: 16:19:04.800 | D63: D250/AT | E63: 192 | F63: Duplo | G63: Policemen | H63: 6 and up | I63: 9.95 | J63: 1 | K63: 9.95 | L63: 5.17 | M63: Cash | N63: U.W.|880-9683 | O63: Yes | P63: No | Q63: 21 | R63: No
A64: 655731 | B64: 2010-09-05 | C64: 18:17:24 | D64: D254/FE | E64: 192 | F64: Duplo | G64: Policemen | H64: 6 and up | I64: 9.95 | J64: 1 | K64: 9.95 | L64: 5.17 | M64: Visa | N64: Z.T.|880-7477 | O64: No | P64: Yes | Q64: 31 | R64: No
A65: 655768 | B65: 2010-09-12 | C65: 14:41:34.800 | D65: L256/PE | E65: 256 | F65: Lego | G65: Police Officers and Motorcycle | H65: 9 and up | I65: 9.95 | J65: 1 | K65: 9.95 | L65: 4.48 | M65: Mastercard | N65: H.B.|880-3254 | O65: No | P65: No | Q65: 40 | R65: No
A66: 655793 | B66: 2010-09-12 | C66: 17:33:00 | D66: D255/FE | E66: 192 | F66: Duplo | G66: Policemen | H66: 6 and up | I66: 9.95 | J66: 3 | K66: 29.85 | L66: 15.51 | M66: Cash | N66: A.U.|880-2167 | O66: Yes | P66: Yes | Q66: 48 | R66: No
A67: 655793 | B67: 2010-09-12 | C67: 17:33:00 | D67: D254/FE | E67: 192 | F67: Duplo | G67: Policemen | H67: 6 and up | I67: 9.95 | J67: 1 | K67: 9.95 | L67: 5.17 | M67: Cash | N67: A.U.|880-2167 | O67: Yes | P67: Yes | Q67: 48 | R67: No
A68: 655833 | B68: 2010-09-21 | C68: 18:36:36 | D68: L195/AE | E68: 195 | F68: Lego | G68: Airplane | H68: 8 and up | I68: 5.95 | J68: 2 | K68: 11.9 | L68: 6.18 | M68: Discover | N68: H.B.|880-3254 | O68: No | P68: No | Q68: 32 | R68: Yes
A69: 655833 | B69: 2010-09-21 | C69: 18:36:36 | D69: D250/AT | E69: 192 | F69: Duplo | G69: Policemen | H69: 6 and up | I69: 9.95 | J69: 2 | K69: 19.9 | L69: 10.34 | M69: Discover | N69: H.B.|880-3254 | O69: No | P69: No | Q69: 32 | R69: Yes
A70: 655842 | B70: 2010-10-04 | C70: 13:49:12 | D70: D250/AT | E70: 192 | F70: Duplo | G70: Policemen | H70: 6 and up | I70: 9.95 | J70: 2 | K70: 19.9 | L70: 10.34 | M70: Cash | N70: D.W.|880-7199 | O70: No | P70: No | Q70: 44 | R70: No
A71: 655845 | B71: 2010-10-14 | C71: 20:37:48 | D71: L195/AE | E71: 195 | F71: Lego | G71: Airplane | H71: 8 and up | I71: 5.95 | J71: 1 | K71: 5.95 | L71: 3.09 | M71: Mastercard | N71: N.C.|880-3850 | O71: No | P71: No | Q71: 34 | R71: No
A72: 655894 | B72: 2010-10-16 | C72: 16:01:48 | D72: D255/FE | E72: 192 | F72: Duplo | G72: Policemen | H72: 6 and up | I72: 9.95 | J72: 1 | K72: 9.95 | L72: 5.17 | M72: Discover | N72: D.S.|880-7532 | O72: No | P72: No | Q72: 40 | R72: No
A73: 655933 | B73: 2010-10-16 | C73: 10:30:00 | D73: L195/AE | E73: 195 | F73: Lego | G73: Airplane | H73: 8 and up | I73: 5.95 | J73: 2 | K73: 11.9 | L73: 6.18 | M73: Cash | N73: U.W.|880-9683 | O73: No | P73: No | Q73: 31 | R73: No
A74: 655965 | B74: 2010-10-21 | C74: 11:27:28.800 | D74: L196/AR | E74: 196 | F74: Lego | G74: Antique Car | H74: 8 and up | I74: 7.95 | J74: 2 | K74: 15.9 | L74: 8.9 | M74: Visa | N74: W.C.|880-4861 | O74: No | P74: No | Q74: 45 | R74: No
A75: 655965 | B75: 2010-10-21 | C75: 11:27:28.800 | D75: D254/FE | E75: 192 | F75: Duplo | G75: Policemen | H75: 6 and up | I75: 9.95 | J75: 1 | K75: 9.95 | L75: 5.17 | M75: Visa | N75: W.C.|880-4861 | O75: No | P75: No | Q75: 45 | R75: No
A76: 655976 | B76: 2010-11-01 | C76: 08:55:48 | D76: D250/AT | E76: 192 | F76: Duplo | G76: Policemen | H76: 6 and up | I76: 9.95 | J76: 1 | K76: 9.95 | L76: 5.17 | M76: Check | N76: D.W.|880-7199 | O76: No | P76: No | Q76: 34 | R76: No
A77: 656007 | B77: 2010-11-01 | C77: 20:07:48 | D77: D254/FE | E77: 192 | F77: Duplo | G77: Policemen | H77: 6 and up | I77: 9.95 | J77: 1 | K77: 9.95 | L77: 5.17 | M77: Mastercard | N77: Z.T.|880-7477 | O77: No | P77: No | Q77: 43 | R77: No
A78: 656032 | B78: 2010-11-01 | C78: 19:55:48 | D78: L194/FY | E78: 194 | F78: Lego | G78: Family | H78: 4 and up | I78: 14.95 | J78: 1 | K78: 14.95 | L78: 8.37 | M78: Visa | N78: W.B.|880-9647 | O78: No | P78: No | Q78: 43 | R78: No
A79: 656032 | B79: 2010-11-01 | C79: 19:55:48 | D79: D254/FE | E79: 192 | F79: Duplo | G79: Policemen | H79: 6 and up | I79: 9.95 | J79: 1 | K79: 9.95 | L79: 5.17 | M79: Visa | N79: W.B.|880-9647 | O79: No | P79: No | Q79: 43 | R79: No
A80: 656077 | B80: 2010-11-02 | C80: 19:21:00 | D80: L256/PE | E80: 256 | F80: Lego | G80: Police Officers and Motorcycle | H80: 9 and up | I80: 9.95 | J80: 1 | K80: 9.95 | L80: 4.48 | M80: Cash | N80: U.W.|880-9683 | O80: Yes | P80: No | Q80: 37 | R80: No
A81: 656123 | B81: 2010-11-02 | C81: 15:27:36 | D81: L256/PE | E81: 256 | F81: Lego | G81: Police Officers and Motorcycle | H81: 9 and up | I81: 9.95 | J81: 1 | K81: 9.95 | L81: 4.48 | M81: Gift Card | N81: V.W.|880-8599 | O81: No | P81: Yes | Q81: 38 | R81: Yes
A82: 656125 | B82: 2010-11-02 | C82: 11:49:12 | D82: D250/AT | E82: 192 | F82: Duplo | G82: Policemen | H82: 6 and up | I82: 9.95 | J82: 1 | K82: 9.95 | L82: 5.17 | M82: Cash | N82: U.O.|880-3720 | O82: No | P82: No | Q82: 37 | R82: No
A83: 656125 | B83: 2010-11-02 | C83: 11:49:12 | D83: L195/AE | E83: 195 | F83: Lego | G83: Airplane | H83: 8 and up | I83: 5.95 | J83: 1 | K83: 5.95 | L83: 3.09 | M83: Cash | N83: U.O.|880-3720 | O83: No | P83: No | Q83: 37 | R83: No
A84: 656171 | B84: 2010-11-02 | C84: 15:14:24 | D84: L256/PE | E84: 256 | F84: Lego | G84: Police Officers and Motorcycle | H84: 9 and up | I84: 9.95 | J84: 3 | K84: 29.85 | L84: 13.44 | M84: Visa | N84: S.V.|880-5987 | O84: No | P84: No | Q84: 50 | R84: No
A85: 656171 | B85: 2010-11-02 | C85: 15:14:24 | D85: L256/PE | E85: 256 | F85: Lego | G85: Police Officers and Motorcycle | H85: 9 and up | I85: 9.95 | J85: 1 | K85: 9.95 | L85: 4.48 | M85: Visa | N85: S.V.|880-5987 | O85: No | P85: No | Q85: 50 | R85: No
A86: 656207 | B86: 2010-11-02 | C86: 13:25:48 | D86: D255/FE | E86: 192 | F86: Duplo | G86: Policemen | H86: 6 and up | I86: 9.95 | J86: 1 | K86: 9.95 | L86: 5.17 | M86: Cash | N86: N.C.|880-3850 | O86: No | P86: No | Q86: 50 | R86: No
A87: 656246 | B87: 2010-11-02 | C87: 10:59:16.800 | D87: L195/AE | E87: 195 | F87: Lego | G87: Airplane | H87: 8 and up | I87: 5.95 | J87: 1 | K87: 5.95 | L87: 3.09 | M87: Visa | N87: A.U.|880-2167 | O87: No | P87: Yes | Q87: 43 | R87: No
A88: 656246 | B88: 2010-11-02 | C88: 10:59:16.800 | D88: L256/PE | E88: 256 | F88: Lego | G88: Police Officers and Motorcycle | H88: 9 and up | I88: 9.95 | J88: 1 | K88: 9.95 | L88: 4.48 | M88: Visa | N88: A.U.|880-2167 | O88: No | P88: Yes | Q88: 43 | R88: No
A89: 656287 | B89: 2010-11-03 | C89: 15:33:28.800 | D89: D255/FE | E89: 192 | F89: Duplo | G89: Policemen | H89: 6 and up | I89: 9.95 | J89: 1 | K89: 9.95 | L89: 5.17 | M89: Check | N89: C.X.|880-3590 | O89: No | P89: No | Q89: 43 | R89: No
A90: 656300 | B90: 2010-11-03 | C90: 17:16:12 | D90: D255/FE | E90: 192 | F90: Duplo | G90: Policemen | H90: 6 and up | I90: 9.95 | J90: 1 | K90: 9.95 | L90: 5.17 | M90: Cash | N90: N.C.|880-3850 | O90: No | P90: No | Q90: 27 | R90: No
A91: 656314 | B91: 2010-11-03 | C91: 12:48:36 | D91: D255/FE | E91: 192 | F91: Duplo | G91: Policemen | H91: 6 and up | I91: 9.95 | J91: 4 | K91: 39.8 | L91: 20.68 | M91: Visa | N91: D.S.|880-7532 | O91: No | P91: Yes | Q91: 26 | R91: No
A92: 656314 | B92: 2010-11-03 | C92: 12:48:36 | D92: L195/AE | E92: 195 | F92: Lego | G92: Airplane | H92: 8 and up | I92: 5.95 | J92: 5 | K92: 29.75 | L92: 15.45 | M92: Visa | N92: D.S.|880-7532 | O92: No | P92: Yes | Q92: 26 | R92: No
A93: 656314 | B93: 2010-11-03 | C93: 12:48:36 | D93: L195/AE | E93: 195 | F93: Lego | G93: Airplane | H93: 8 and up | I93: 5.95 | J93: 1 | K93: 5.95 | L93: 3.09 | M93: Visa | N93: D.S.|880-7532 | O93: No | P93: Yes | Q93: 26 | R93: No
A94: 656364 | B94: 2010-11-04 | C94: 16:56:24 | D94: L195/AE | E94: 195 | F94: Lego | G94: Airplane | H94: 8 and up | I94: 5.95 | J94: 1 | K94: 5.95 | L94: 3.09 | M94: Visa | N94: C.X.|880-3590 | O94: No | P94: No | Q94: 38 | R94: Yes
A95: 656380 | B95: 2010-11-05 | C95: 15:40:12 | D95: D250/AT | E95: 192 | F95: Duplo | G95: Policemen | H95: 6 and up | I95: 9.95 | J95: 1 | K95: 9.95 | L95: 5.17 | M95: Cash | N95: Z.T.|880-7477 | O95: No | P95: No | Q95: 29 | R95: No
A96: 656416 | B96: 2010-11-05 | C96: 16:06:36 | D96: L256/PE | E96: 256 | F96: Lego | G96: Police Officers and Motorcycle | H96: 9 and up | I96: 9.95 | J96: 4 | K96: 39.8 | L96: 17.92 | M96: Cash | N96: C.X.|880-3590 | O96: Yes | P96: No | Q96: 14 | R96: No
A97: 656416 | B97: 2010-11-05 | C97: 16:06:36 | D97: D254/FE | E97: 192 | F97: Duplo | G97: Policemen | H97: 6 and up | I97: 9.95 | J97: 1 | K97: 9.95 | L97: 5.17 | M97: Cash | N97: C.X.|880-3590 | O97: Yes | P97: No | Q97: 14 | R97: No
A98: 656444 | B98: 2010-11-05 | C98: 15:19:48 | D98: D250/AT | E98: 192 | F98: Duplo | G98: Policemen | H98: 6 and up | I98: 9.95 | J98: 1 | K98: 9.95 | L98: 5.17 | M98: Cash | N98: B.Y.|880-6845 | O98: No | P98: Yes | Q98: 44 | R98: Yes
A99: 656478 | B99: 2010-11-05 | C99: 20:51:36 | D99: L195/AE | E99: 195 | F99: Lego | G99: Airplane | H99: 8 and up | I99: 5.95 | J99: 1 | K99: 5.95 | L99: 3.09 | M99: Visa | N99: W.B.|880-9647 | O99: No | P99: Yes | Q99: 32 | R99: No
A100: 656495 | B100: 2010-11-05 | C100: 13:37:12 | D100: L195/AE | E100: 195 | F100: Lego | G100: Airplane | H100: 8 and up | I100: 5.95 | J100: 2 | K100: 11.9 | L100: 6.18 | M100: Check | N100: D.U.|880-2953 | O100: No | P100: No | Q100: 30 | R100: No
A101: 656518 | B101: 2010-11-05 | C101: 13:12:00 | D101: L256/PE | E101: 256 | F101: Lego | G101: Police Officers and Motorcycle | H101: 9 and up | I101: 9.95 | J101: 1 | K101: 9.95 | L101: 4.48 | M101: Visa | N101: B.B.|880-9330 | O101: No | P101: No | Q101: 19 | R101: No
A102: 656533 | B102: 2010-11-05 | C102: 11:01:58.800 | D102: L256/PE | E102: 256 | F102: Lego | G102: Police Officers and Motorcycle | H102: 9 and up | I102: 9.95 | J102: 1 | K102: 9.95 | L102: 4.48 | M102: Cash | N102: V.W.|880-4523 | O102: No | P102: No | Q102: 50 | R102: No
A103: 656547 | B103: 2010-11-06 | C103: 20:00:00 | D103: L195/AE | E103: 195 | F103: Lego | G103: Airplane | H103: 8 and up | I103: 5.95 | J103: 2 | K103: 11.9 | L103: 6.18 | M103: Visa | N103: D.U.|880-2953 | O103: Yes | P103: No | Q103: 11 | R103: No
A104: 656588 | B104: 2010-11-06 | C104: 13:24:36 | D104: L256/PE | E104: 256 | F104: Lego | G104: Police Officers and Motorcycle | H104: 9 and up | I104: 9.95 | J104: 1 | K104: 9.95 | L104: 4.48 | M104: Visa | N104: H.B.|880-3254 | O104: Yes | P104: Yes | Q104: 41 | R104: Yes
A105: 656617 | B105: 2010-11-06 | C105: 10:52:12 | D105: D250/AT | E105: 192 | F105: Duplo | G105: Policemen | H105: 6 and up | I105: 9.95 | J105: 2 | K105: 19.9 | L105: 10.34 | M105: Visa | N105: A.U.|880-2167 | O105: No | P105: No | Q105: 38 | R105: No
A106: 656617 | B106: 2010-11-06 | C106: 10:52:12 | D106: D255/FE | E106: 192 | F106: Duplo | G106: Policemen | H106: 6 and up | I106: 9.95 | J106: 1 | K106: 9.95 | L106: 5.17 | M106: Visa | N106: A.U.|880-2167 | O106: No | P106: No | Q106: 38 | R106: No
A107: 656628 | B107: 2010-11-06 | C107: 10:15:00 | D107: L330/GN | E107: 330 | F107: Lego | G107: Gas Station | H107: 8 and up | I107: 32.95 | J107: 1 | K107: 32.95 | L107: 19.11 | M107: Discover | N107: U.O.|880-3720 | O107: No | P107: No | Q107: 37 | R107: No
A108: 656637 | B108: 2010-11-06 | C108: 11:00:39.600 | D108: D254/FE | E108: 192 | F108: Duplo | G108: Policemen | H108: 6 and up | I108: 9.95 | J108: 1 | K108: 9.95 | L108: 5.17 | M108: Visa | N108: B.Y.|880-6845 | O108: No | P108: No | Q108: 30 | R108: No
A109: 656648 | B109: 2010-11-06 | C109: 13:24:36 | D109: L195/AE | E109: 195 | F109: Lego | G109: Airplane | H109: 8 and up | I109: 5.95 | J109: 1 | K109: 5.95 | L109: 3.09 | M109: Visa | N109: W.B.|880-9647 | O109: No | P109: No | Q109: 11 | R109: No
A110: 656657 | B110: 2010-11-06 | C110: 15:04:12 | D110: D254/FE | E110: 192 | F110: Duplo | G110: Policemen | H110: 6 and up | I110: 9.95 | J110: 1 | K110: 9.95 | L110: 5.17 | M110: Cash | N110: U.W.|880-9683 | O110: No | P110: No | Q110: 22 | R110: No
A111: 656657 | B111: 2010-11-06 | C111: 15:04:12 | D111: L212/SD | E111: 212 | F111: Lego | G111: Scooter and Stand | H111: 6 and up | I111: 4.95 | J111: 1 | K111: 4.95 | L111: 2.23 | M111: Cash | N111: U.W.|880-9683 | O111: No | P111: No | Q111: 22 | R111: No
A112: 656657 | B112: 2010-11-06 | C112: 15:04:12 | D112: D218/FN | E112: 192 | F112: Duplo | G112: Policemen | H112: 6 and up | I112: 9.95 | J112: 1 | K112: 9.95 | L112: 5.17 | M112: Cash | N112: U.W.|880-9683 | O112: No | P112: No | Q112: 22 | R112: No
A113: 656671 | B113: 2010-11-07 | C113: 13:21:36 | D113: D255/FE | E113: 192 | F113: Duplo | G113: Policemen | H113: 6 and up | I113: 9.95 | J113: 1 | K113: 9.95 | L113: 5.17 | M113: Gift Card | N113: S.V.|880-5987 | O113: No | P113: No | Q113: 37 | R113: No
A114: 656692 | B114: 2010-11-08 | C114: 15:22:12 | D114: L256/PE | E114: 256 | F114: Lego | G114: Police Officers and Motorcycle | H114: 9 and up | I114: 9.95 | J114: 1 | K114: 9.95 | L114: 4.48 | M114: Visa | N114: L.W.|880-4986 | O114: No | P114: No | Q114: 11 | R114: No
A115: 656737 | B115: 2010-11-08 | C115: 19:04:48 | D115: D250/AT | E115: 192 | F115: Duplo | G115: Policemen | H115: 6 and up | I115: 9.95 | J115: 2 | K115: 19.9 | L115: 10.34 | M115: Visa | N115: D.S.|880-7532 | O115: No | P115: No | Q115: 40 | R115: No
A116: 656757 | B116: 2010-11-08 | C116: 09:24:36 | D116: D255/FE | E116: 192 | F116: Duplo | G116: Policemen | H116: 6 and up | I116: 9.95 | J116: 1 | K116: 9.95 | L116: 5.17 | M116: Cash | N116: S.Y.|880-3139 | O116: No | P116: No | Q116: 36 | R116: Yes
A117: 656757 | B117: 2010-11-08 | C117: 09:24:36 | D117: D254/FE | E117: 192 | F117: Duplo | G117: Policemen | H117: 6 and up | I117: 9.95 | J117: 2 | K117: 19.9 | L117: 10.34 | M117: Cash | N117: S.Y.|880-3139 | O117: No | P117: No | Q117: 36 | R117: Yes
A118: 656770 | B118: 2010-11-09 | C118: 14:56:24 | D118: D255/FE | E118: 192 | F118: Duplo | G118: Policemen | H118: 6 and up | I118: 9.95 | J118: 1 | K118: 9.95 | L118: 5.17 | M118: Mastercard | N118: H.B.|880-3254 | O118: No | P118: No | Q118: 66 | R118: No
A119: 656807 | B119: 2010-11-10 | C119: 11:28:48 | D119: L210/CS | E119: 210 | F119: Lego | G119: Cowboys with Horses | H119: 6 and up | I119: 9.45 | J119: 1 | K119: 9.45 | L119: 4.63 | M119: Visa | N119: P.N.|880-3021 | O119: No | P119: No | Q119: 48 | R119: No
A120: 656822 | B120: 2010-11-10 | C120: 08:07:48 | D120: D254/FE | E120: 192 | F120: Duplo | G120: Policemen | H120: 6 and up | I120: 9.95 | J120: 2 | K120: 19.9 | L120: 10.34 | M120: Mastercard | N120: B.B.|880-9330 | O120: No | P120: No | Q120: 57 | R120: No
A121: 656847 | B121: 2010-11-10 | C121: 12:25:12 | D121: D198/LX | E121: 192 | F121: Duplo | G121: Policemen | H121: 6 and up | I121: 9.95 | J121: 2 | K121: 19.9 | L121: 10.34 | M121: Visa | N121: S.Y.|880-3139 | O121: Yes | P121: No | Q121: 38 | R121: No
A122: 656854 | B122: 2010-11-10 | C122: 11:12:00 | D122: L195/AE | E122: 195 | F122: Lego | G122: Airplane | H122: 8 and up | I122: 5.95 | J122: 1 | K122: 5.95 | L122: 3.09 | M122: Mastercard | N122: V.W.|880-4523 | O122: No | P122: Yes | Q122: 31 | R122: No
A123: 656893 | B123: 2010-11-10 | C123: 15:20:24 | D123: L212/SD | E123: 212 | F123: Lego | G123: Scooter and Stand | H123: 6 and up | I123: 4.95 | J123: 1 | K123: 4.95 | L123: 2.23 | M123: Visa | N123: U.O.|880-3720 | O123: No | P123: No | Q123: 45 | R123: No
A124: 656931 | B124: 2010-11-11 | C124: 09:09:00 | D124: D254/FE | E124: 192 | F124: Duplo | G124: Policemen | H124: 6 and up | I124: 9.95 | J124: 1 | K124: 9.95 | L124: 5.17 | M124: Visa | N124: A.U.|880-2167 | O124: No | P124: No | Q124: 30 | R124: No
A125: 656952 | B125: 2010-11-11 | C125: 11:40:55.200 | D125: L195/AE | E125: 195 | F125: Lego | G125: Airplane | H125: 8 and up | I125: 5.95 | J125: 3 | K125: 17.85 | L125: 9.27 | M125: Cash | N125: N.C.|880-3850 | O125: No | P125: No | Q125: 38 | R125: No
A126: 656956 | B126: 2010-11-11 | C126: 12:48:36 | D126: L256/PE | E126: 256 | F126: Lego | G126: Police Officers and Motorcycle | H126: 9 and up | I126: 9.95 | J126: 1 | K126: 9.95 | L126: 4.48 | M126: Mastercard | N126: V.W.|880-8599 | O126: No | P126: No | Q126: 24 | R126: No
A127: 656991 | B127: 2010-11-11 | C127: 15:47:24 | D127: D255/FE | E127: 192 | F127: Duplo | G127: Policemen | H127: 6 and up | I127: 9.95 | J127: 4 | K127: 39.8 | L127: 20.68 | M127: Visa | N127: V.W.|880-4523 | O127: No | P127: Yes | Q127: 43 | R127: No
A128: 656991 | B128: 2010-11-11 | C128: 15:47:24 | D128: D198/LX | E128: 192 | F128: Duplo | G128: Policemen | H128: 6 and up | I128: 9.95 | J128: 2 | K128: 19.9 | L128: 10.34 | M128: Visa | N128: V.W.|880-4523 | O128: No | P128: Yes | Q128: 43 | R128: No
A129: 657009 | B129: 2010-11-11 | C129: 12:02:24 | D129: D255/FE | E129: 192 | F129: Duplo | G129: Policemen | H129: 6 and up | I129: 9.95 | J129: 2 | K129: 19.9 | L129: 10.34 | M129: Cash | N129: V.W.|880-8599 | O129: No | P129: No | Q129: 36 | R129: No
A130: 657052 | B130: 2010-11-11 | C130: 19:45:36 | D130: D254/FE | E130: 192 | F130: Duplo | G130: Policemen | H130: 6 and up | I130: 9.95 | J130: 1 | K130: 9.95 | L130: 5.17 | M130: Check | N130: B.B.|880-9330 | O130: No | P130: Yes | Q130: 34 | R130: Yes
A131: 657052 | B131: 2010-11-11 | C131: 19:45:36 | D131: L256/PE | E131: 256 | F131: Lego | G131: Police Officers and Motorcycle | H131: 9 and up | I131: 9.95 | J131: 1 | K131: 9.95 | L131: 4.48 | M131: Check | N131: B.B.|880-9330 | O131: No | P131: Yes | Q131: 34 | R131: Yes
A132: 657055 | B132: 2010-11-12 | C132: 11:37:12 | D132: D250/AT | E132: 192 | F132: Duplo | G132: Policemen | H132: 6 and up | I132: 9.95 | J132: 2 | K132: 19.9 | L132: 10.34 | M132: Check | N132: D.S.|880-7532 | O132: No | P132: No | Q132: 36 | R132: No
A133: 657055 | B133: 2010-11-12 | C133: 11:37:12 | D133: D250/AT | E133: 192 | F133: Duplo | G133: Policemen | H133: 6 and up | I133: 9.95 | J133: 2 | K133: 19.9 | L133: 10.34 | M133: Check | N133: D.S.|880-7532 | O133: No | P133: No | Q133: 36 | R133: No
A134: 657055 | B134: 2010-11-12 | C134: 11:37:12 | D134: L256/PE | E134: 256 | F134: Lego | G134: Police Officers and Motorcycle | H134: 9 and up | I134: 9.95 | J134: 1 | K134: 9.95 | L134: 4.48 | M134: Check | N134: D.S.|880-7532 | O134: No | P134: No | Q134: 36 | R134: No
A135: 657093 | B135: 2010-11-12 | C135: 13:33:50.400 | D135: D250/AT | E135: 192 | F135: Duplo | G135: Policemen | H135: 6 and up | I135: 9.95 | J135: 5 | K135: 49.75 | L135: 25.85 | M135: Visa | N135: Y.P.|880-6894 | O135: Yes | P135: No | Q135: 31 | R135: Yes
A136: 657101 | B136: 2010-11-13 | C136: 09:53:24 | D136: L195/AE | E136: 195 | F136: Lego | G136: Airplane | H136: 8 and up | I136: 5.95 | J136: 1 | K136: 5.95 | L136: 3.09 | M136: Gift Card | N136: Z.T.|880-7477 | O136: Yes | P136: No | Q136: 41 | R136: Yes
A137: 657140 | B137: 2010-11-13 | C137: 16:50:56.400 | D137: L340/FS | E137: 340 | F137: Lego | G137: Fire Trucks | H137: 6 and up | I137: 34.95 | J137: 2 | K137: 69.9 | L137: 39.84 | M137: Visa | N137: B.Y.|880-6845 | O137: No | P137: No | Q137: 34 | R137: No
A138: 657140 | B138: 2010-11-13 | C138: 16:50:56.400 | D138: D255/FE | E138: 192 | F138: Duplo | G138: Policemen | H138: 6 and up | I138: 9.95 | J138: 1 | K138: 9.95 | L138: 5.17 | M138: Visa | N138: B.Y.|880-6845 | O138: No | P138: No | Q138: 34 | R138: No
A139: 657187 | B139: 2010-11-13 | C139: 10:39:36 | D139: D250/AT | E139: 192 | F139: Duplo | G139: Policemen | H139: 6 and up | I139: 9.95 | J139: 2 | K139: 19.9 | L139: 10.34 | M139: Gift Card | N139: Z.Q.|880-4240 | O139: No | P139: No | Q139: 31 | R139: Yes
A140: 657232 | B140: 2010-11-13 | C140: 20:11:24 | D140: L195/AE | E140: 195 | F140: Lego | G140: Airplane | H140: 8 and up | I140: 5.95 | J140: 3 | K140: 17.85 | L140: 9.27 | M140: Visa | N140: C.X.|880-3590 | O140: No | P140: No | Q140: 31 | R140: Yes
A141: 657255 | B141: 2010-11-14 | C141: 17:18:36 | D141: D254/FE | E141: 192 | F141: Duplo | G141: Policemen | H141: 6 and up | I141: 9.95 | J141: 1 | K141: 9.95 | L141: 5.17 | M141: Check | N141: U.O.|880-3720 | O141: No | P141: No | Q141: 27 | R141: Yes
A142: 657291 | B142: 2010-11-14 | C142: 12:37:48 | D142: L256/PE | E142: 256 | F142: Lego | G142: Police Officers and Motorcycle | H142: 9 and up | I142: 9.95 | J142: 1 | K142: 9.95 | L142: 4.48 | M142: Cash | N142: Z.T.|880-7477 | O142: No | P142: No | Q142: 49 | R142: No
A143: 657306 | B143: 2010-11-14 | C143: 09:50:56.400 | D143: D254/FE | E143: 192 | F143: Duplo | G143: Policemen | H143: 6 and up | I143: 9.95 | J143: 4 | K143: 39.8 | L143: 20.68 | M143: Visa | N143: N.C.|880-3850 | O143: No | P143: No | Q143: 69 | R143: Yes
A144: 657316 | B144: 2010-11-15 | C144: 16:45:36 | D144: L252/LR | E144: 255 | F144: Duplo | G144: Farming Scene | H144: 7 and up | I144: 24.95 | J144: 1 | K144: 24.95 | L144: 16.22 | M144: Mastercard | N144: P.N.|880-3021 | O144: No | P144: No | Q144: 20 | R144: No
A145: 657320 | B145: 2010-11-15 | C145: 08:24:10.800 | D145: D250/AT | E145: 192 | F145: Duplo | G145: Policemen | H145: 6 and up | I145: 9.95 | J145: 1 | K145: 9.95 | L145: 5.17 | M145: Mastercard | N145: B.X.|880-9149 | O145: No | P145: No | Q145: 30 | R145: Yes
A146: 657336 | B146: 2010-11-15 | C146: 08:29:42 | D146: D255/FE | E146: 192 | F146: Duplo | G146: Policemen | H146: 6 and up | I146: 9.95 | J146: 1 | K146: 9.95 | L146: 5.17 | M146: Mastercard | N146: H.B.|880-3254 | O146: No | P146: No | Q146: 37 | R146: Yes
A147: 657336 | B147: 2010-11-15 | C147: 08:29:42 | D147: D250/AT | E147: 192 | F147: Duplo | G147: Policemen | H147: 6 and up | I147: 9.95 | J147: 1 | K147: 9.95 | L147: 5.17 | M147: Mastercard | N147: H.B.|880-3254 | O147: No | P147: No | Q147: 37 | R147: Yes
A148: 657366 | B148: 2010-11-16 | C148: 08:44:42 | D148: L256/PE | E148: 256 | F148: Lego | G148: Police Officers and Motorcycle | H148: 9 and up | I148: 9.95 | J148: 2 | K148: 19.9 | L148: 8.96 | M148: Mastercard | N148: B.X.|880-9149 | O148: No | P148: No | Q148: 42 | R148: No
A149: 657415 | B149: 2010-11-16 | C149: 11:59:56.400 | D149: D250/AT | E149: 192 | F149: Duplo | G149: Policemen | H149: 6 and up | I149: 9.95 | J149: 2 | K149: 19.9 | L149: 10.34 | M149: Visa | N149: S.V.|880-5987 | O149: No | P149: No | Q149: 41 | R149: Yes
A150: 657415 | B150: 2010-11-16 | C150: 11:59:56.400 | D150: D255/FE | E150: 192 | F150: Duplo | G150: Policemen | H150: 6 and up | I150: 9.95 | J150: 2 | K150: 19.9 | L150: 10.34 | M150: Visa | N150: S.V.|880-5987 | O150: No | P150: No | Q150: 41 | R150: Yes
A151: 657447 | B151: 2010-11-17 | C151: 13:42:00 | D151: L195/AE | E151: 195 | F151: Lego | G151: Airplane | H151: 8 and up | I151: 5.95 | J151: 4 | K151: 23.8 | L151: 12.36 | M151: Mastercard | N151: L.W.|880-4986 | O151: No | P151: Yes | Q151: 40 | R151: Yes
A152: 657482 | B152: 2010-11-17 | C152: 10:13:48 | D152: L256/PE | E152: 256 | F152: Lego | G152: Police Officers and Motorcycle | H152: 9 and up | I152: 9.95 | J152: 2 | K152: 19.9 | L152: 8.96 | M152: Discover | N152: D.W.|880-7199 | O152: No | P152: No | Q152: 39 | R152: Yes
A153: 657512 | B153: 2010-11-17 | C153: 11:34:12 | D153: D192/PN | E153: 192 | F153: Duplo | G153: Policemen | H153: 6 and up | I153: 9.95 | J153: 1 | K153: 9.95 | L153: 5.17 | M153: Cash | N153: N.C.|880-3850 | O153: No | P153: No | Q153: 31 | R153: No
A154: 657529 | B154: 2010-11-17 | C154: 15:44:24 | D154: D255/FE | E154: 192 | F154: Duplo | G154: Policemen | H154: 6 and up | I154: 9.95 | J154: 5 | K154: 49.75 | L154: 25.85 | M154: Mastercard | N154: B.Y.|880-6845 | O154: No | P154: No | Q154: 40 | R154: No
A155: 657533 | B155: 2010-11-17 | C155: 16:32:24 | D155: D254/FE | E155: 192 | F155: Duplo | G155: Policemen | H155: 6 and up | I155: 9.95 | J155: 2 | K155: 19.9 | L155: 10.34 | M155: Mastercard | N155: B.B.|880-9330 | O155: Yes | P155: No | Q155: 38 | R155: No
A156: 657533 | B156: 2010-11-17 | C156: 16:32:24 | D156: L195/AE | E156: 195 | F156: Lego | G156: Airplane | H156: 8 and up | I156: 5.95 | J156: 3 | K156: 17.85 | L156: 9.27 | M156: Mastercard | N156: B.B.|880-9330 | O156: Yes | P156: No | Q156: 38 | R156: No
A157: 657533 | B157: 2010-11-17 | C157: 16:32:24 | D157: D254/FE | E157: 192 | F157: Duplo | G157: Policemen | H157: 6 and up | I157: 9.95 | J157: 1 | K157: 9.95 | L157: 5.17 | M157: Mastercard | N157: B.B.|880-9330 | O157: Yes | P157: No | Q157: 38 | R157: No
A158: 657563 | B158: 2010-11-17 | C158: 13:18:36 | D158: L256/PE | E158: 256 | F158: Lego | G158: Police Officers and Motorcycle | H158: 9 and up | I158: 9.95 | J158: 1 | K158: 9.95 | L158: 4.48 | M158: Visa | N158: D.W.|880-7199 | O158: No | P158: No | Q158: 25 | R158: No
A159: 657591 | B159: 2010-11-18 | C159: 19:45:00 | D159: L194/FY | E159: 194 | F159: Lego | G159: Family | H159: 4 and up | I159: 14.95 | J159: 1 | K159: 14.95 | L159: 8.37 | M159: Visa | N159: W.C.|880-4861 | O159: No | P159: No | Q159: 26 | R159: No
A160: 657607 | B160: 2010-11-18 | C160: 13:44:24 | D160: D250/AT | E160: 192 | F160: Duplo | G160: Policemen | H160: 6 and up | I160: 9.95 | J160: 2 | K160: 19.9 | L160: 10.34 | M160: Visa | N160: D.S.|880-7532 | O160: Yes | P160: No | Q160: 44 | R160: No
A161: 657635 | B161: 2010-11-18 | C161: 13:05:52.800 | D161: D255/FE | E161: 192 | F161: Duplo | G161: Policemen | H161: 6 and up | I161: 9.95 | J161: 1 | K161: 9.95 | L161: 5.17 | M161: Cash | N161: D.U.|880-2953 | O161: No | P161: No | Q161: 50 | R161: No
A162: 657663 | B162: 2010-11-19 | C162: 14:05:24 | D162: L330/GN | E162: 330 | F162: Lego | G162: Gas Station | H162: 8 and up | I162: 32.95 | J162: 4 | K162: 131.8 | L162: 76.44 | M162: Visa | N162: D.W.|880-7199 | O162: No | P162: No | Q162: 28 | R162: No
A163: 657663 | B163: 2010-11-19 | C163: 14:05:24 | D163: D255/FE | E163: 192 | F163: Duplo | G163: Policemen | H163: 6 and up | I163: 9.95 | J163: 5 | K163: 49.75 | L163: 25.85 | M163: Visa | N163: D.W.|880-7199 | O163: No | P163: No | Q163: 28 | R163: No
A164: 657686 | B164: 2010-11-19 | C164: 12:06:00 | D164: L195/AE | E164: 195 | F164: Lego | G164: Airplane | H164: 8 and up | I164: 5.95 | J164: 2 | K164: 11.9 | L164: 6.18 | M164: Mastercard | N164: S.Y.|880-3139 | O164: No | P164: No | Q164: 60 | R164: No
A165: 657703 | B165: 2010-11-20 | C165: 11:39:00 | D165: L256/PE | E165: 256 | F165: Lego | G165: Police Officers and Motorcycle | H165: 9 and up | I165: 9.95 | J165: 1 | K165: 9.95 | L165: 4.48 | M165: Discover | N165: U.W.|880-9683 | O165: No | P165: No | Q165: 31 | R165: No
A166: 657712 | B166: 2010-11-20 | C166: 18:11:24 | D166: L195/AE | E166: 195 | F166: Lego | G166: Airplane | H166: 8 and up | I166: 5.95 | J166: 2 | K166: 11.9 | L166: 6.18 | M166: Visa | N166: U.W.|880-9683 | O166: No | P166: No | Q166: 42 | R166: No
A167: 657751 | B167: 2010-11-20 | C167: 10:41:24 | D167: D250/AT | E167: 192 | F167: Duplo | G167: Policemen | H167: 6 and up | I167: 9.95 | J167: 5 | K167: 49.75 | L167: 25.85 | M167: Mastercard | N167: H.B.|880-3254 | O167: No | P167: No | Q167: 48 | R167: No
A168: 657751 | B168: 2010-11-20 | C168: 10:41:24 | D168: D250/AT | E168: 192 | F168: Duplo | G168: Policemen | H168: 6 and up | I168: 9.95 | J168: 2 | K168: 19.9 | L168: 10.34 | M168: Mastercard | N168: H.B.|880-3254 | O168: No | P168: No | Q168: 48 | R168: No
A169: 657769 | B169: 2010-11-20 | C169: 18:34:12 | D169: L256/PE | E169: 256 | F169: Lego | G169: Police Officers and Motorcycle | H169: 9 and up | I169: 9.95 | J169: 3 | K169: 29.85 | L169: 13.44 | M169: Cash | N169: S.V.|880-5987 | O169: No | P169: No | Q169: 30 | R169: No
A170: 657815 | B170: 2010-11-20 | C170: 12:12:00 | D170: D250/AT | E170: 192 | F170: Duplo | G170: Policemen | H170: 6 and up | I170: 9.95 | J170: 2 | K170: 19.9 | L170: 10.34 | M170: Cash | N170: P.N.|880-3021 | O170: No | P170: No | Q170: 44 | R170: No
A171: 657839 | B171: 2010-11-21 | C171: 15:01:48 | D171: L195/AE | E171: 195 | F171: Lego | G171: Airplane | H171: 8 and up | I171: 5.95 | J171: 3 | K171: 17.85 | L171: 9.27 | M171: Mastercard | N171: N.W.|880-6237 | O171: No | P171: No | Q171: 35 | R171: No
A172: 657858 | B172: 2010-11-21 | C172: 12:19:12 | D172: D250/AT | E172: 192 | F172: Duplo | G172: Policemen | H172: 6 and up | I172: 9.95 | J172: 2 | K172: 19.9 | L172: 10.34 | M172: Gift Card | N172: N.C.|880-3850 | O172: No | P172: No | Q172: 50 | R172: No
A173: 657884 | B173: 2010-11-21 | C173: 15:37:12 | D173: D250/AT | E173: 192 | F173: Duplo | G173: Policemen | H173: 6 and up | I173: 9.95 | J173: 1 | K173: 9.95 | L173: 5.17 | M173: Discover | N173: V.W.|880-4523 | O173: No | P173: No | Q173: 30 | R173: No
A174: 657887 | B174: 2010-11-21 | C174: 13:09:36 | D174: L256/PE | E174: 256 | F174: Lego | G174: Police Officers and Motorcycle | H174: 9 and up | I174: 9.95 | J174: 1 | K174: 9.95 | L174: 4.48 | M174: Cash | N174: D.S.|880-7532 | O174: No | P174: No | Q174: 38 | R174: No
A175: 657921 | B175: 2010-11-22 | C175: 08:58:48 | D175: D254/FE | E175: 192 | F175: Duplo | G175: Policemen | H175: 6 and up | I175: 9.95 | J175: 2 | K175: 19.9 | L175: 10.34 | M175: Cash | N175: Y.P.|880-6894 | O175: No | P175: No | Q175: 30 | R175: Yes
A176: 657945 | B176: 2010-11-22 | C176: 13:39:54 | D176: L256/PE | E176: 256 | F176: Lego | G176: Police Officers and Motorcycle | H176: 9 and up | I176: 9.95 | J176: 1 | K176: 9.95 | L176: 4.48 | M176: Cash | N176: S.Y.|880-3139 | O176: No | P176: No | Q176: 30 | R176: No
A177: 657946 | B177: 2010-11-22 | C177: 19:31:48 | D177: L256/PE | E177: 256 | F177: Lego | G177: Police Officers and Motorcycle | H177: 9 and up | I177: 9.95 | J177: 3 | K177: 29.85 | L177: 13.44 | M177: Cash | N177: V.W.|880-8599 | O177: No | P177: No | Q177: 31 | R177: No
A178: 657946 | B178: 2010-11-22 | C178: 19:31:48 | D178: L330/GN | E178: 330 | F178: Lego | G178: Gas Station | H178: 8 and up | I178: 32.95 | J178: 4 | K178: 131.8 | L178: 76.44 | M178: Cash | N178: V.W.|880-8599 | O178: No | P178: No | Q178: 31 | R178: No
A179: 657946 | B179: 2010-11-22 | C179: 19:31:48 | D179: L195/AE | E179: 195 | F179: Lego | G179: Airplane | H179: 8 and up | I179: 5.95 | J179: 2 | K179: 11.9 | L179: 6.18 | M179: Cash | N179: V.W.|880-8599 | O179: No | P179: No | Q179: 31 | R179: No
A180: 657967 | B180: 2010-11-23 | C180: 13:55:51.600 | D180: D254/FE | E180: 192 | F180: Duplo | G180: Policemen | H180: 6 and up | I180: 9.95 | J180: 5 | K180: 49.75 | L180: 25.85 | M180: Mastercard | N180: C.X.|880-3590 | O180: No | P180: No | Q180: 36 | R180: No
A181: 657971 | B181: 2010-11-23 | C181: 10:58:12 | D181: L195/AE | E181: 195 | F181: Lego | G181: Airplane | H181: 8 and up | I181: 5.95 | J181: 2 | K181: 11.9 | L181: 6.18 | M181: Discover | N181: H.B.|880-3254 | O181: No | P181: No | Q181: 50 | R181: Yes
A182: 657973 | B182: 2010-11-23 | C182: 10:14:16.800 | D182: D254/FE | E182: 192 | F182: Duplo | G182: Policemen | H182: 6 and up | I182: 9.95 | J182: 1 | K182: 9.95 | L182: 5.17 | M182: Check | N182: B.Y.|880-6845 | O182: Yes | P182: No | Q182: 25 | R182: No
A183: 657985 | B183: 2010-11-23 | C183: 15:29:52.800 | D183: D254/FE | E183: 192 | F183: Duplo | G183: Policemen | H183: 6 and up | I183: 9.95 | J183: 1 | K183: 9.95 | L183: 5.17 | M183: Cash | N183: U.W.|880-9683 | O183: No | P183: No | Q183: 30 | R183: No
A184: 658025 | B184: 2010-11-23 | C184: 09:24:36 | D184: L256/PE | E184: 256 | F184: Lego | G184: Police Officers and Motorcycle | H184: 9 and up | I184: 9.95 | J184: 3 | K184: 29.85 | L184: 13.44 | M184: Discover | N184: Z.T.|880-7477 | O184: No | P184: No | Q184: 44 | R184: No
A185: 658054 | B185: 2010-11-24 | C185: 14:09:00 | D185: L195/AE | E185: 195 | F185: Lego | G185: Airplane | H185: 8 and up | I185: 5.95 | J185: 2 | K185: 11.9 | L185: 6.18 | M185: Visa | N185: H.B.|880-3254 | O185: No | P185: No | Q185: 29 | R185: No
A186: 658088 | B186: 2010-11-24 | C186: 16:13:55.200 | D186: D250/AT | E186: 192 | F186: Duplo | G186: Policemen | H186: 6 and up | I186: 9.95 | J186: 1 | K186: 9.95 | L186: 5.17 | M186: Mastercard | N186: D.U.|880-2953 | O186: No | P186: No | Q186: 38 | R186: No
A187: 658095 | B187: 2010-11-24 | C187: 18:35:24 | D187: D254/FE | E187: 192 | F187: Duplo | G187: Policemen | H187: 6 and up | I187: 9.95 | J187: 4 | K187: 39.8 | L187: 20.68 | M187: Mastercard | N187: L.C.|880-6872 | O187: Yes | P187: Yes | Q187: 30 | R187: Yes
A188: 658095 | B188: 2010-11-24 | C188: 18:35:24 | D188: D255/FE | E188: 192 | F188: Duplo | G188: Policemen | H188: 6 and up | I188: 9.95 | J188: 1 | K188: 9.95 | L188: 5.17 | M188: Mastercard | N188: L.C.|880-6872 | O188: Yes | P188: Yes | Q188: 30 | R188: Yes
A189: 658135 | B189: 2010-11-25 | C189: 16:22:12 | D189: L194/FY | E189: 194 | F189: Lego | G189: Family | H189: 4 and up | I189: 14.95 | J189: 1 | K189: 14.95 | L189: 8.37 | M189: Visa | N189: U.O.|880-3720 | O189: No | P189: No | Q189: 49 | R189: No
A190: 658157 | B190: 2010-11-26 | C190: 16:59:24 | D190: D255/FE | E190: 192 | F190: Duplo | G190: Policemen | H190: 6 and up | I190: 9.95 | J190: 5 | K190: 49.75 | L190: 25.85 | M190: Visa | N190: Z.Q.|880-4240 | O190: No | P190: No | Q190: 34 | R190: No
A191: 658183 | B191: 2010-11-26 | C191: 15:34:12 | D191: D254/FE | E191: 192 | F191: Duplo | G191: Policemen | H191: 6 and up | I191: 9.95 | J191: 1 | K191: 9.95 | L191: 5.17 | M191: Discover | N191: B.X.|880-9149 | O191: No | P191: No | Q191: 39 | R191: No
A192: 658183 | B192: 2010-11-26 | C192: 15:34:12 | D192: D250/AT | E192: 192 | F192: Duplo | G192: Policemen | H192: 6 and up | I192: 9.95 | J192: 4 | K192: 39.8 | L192: 20.68 | M192: Discover | N192: B.X.|880-9149 | O192: No | P192: No | Q192: 39 | R192: No
A193: 658221 | B193: 2010-11-26 | C193: 15:21:25.200 | D193: D254/FE | E193: 192 | F193: Duplo | G193: Policemen | H193: 6 and up | I193: 9.95 | J193: 1 | K193: 9.95 | L193: 5.17 | M193: Visa | N193: L.C.|880-6872 | O193: No | P193: No | Q193: 11 | R193: No
A194: 658267 | B194: 2010-11-26 | C194: 18:50:24 | D194: L195/AE | E194: 195 | F194: Lego | G194: Airplane | H194: 8 and up | I194: 5.95 | J194: 2 | K194: 11.9 | L194: 6.18 | M194: Visa | N194: N.C.|880-3850 | O194: No | P194: No | Q194: 34 | R194: No
A195: 658278 | B195: 2010-11-26 | C195: 19:56:24 | D195: L256/PE | E195: 256 | F195: Lego | G195: Police Officers and Motorcycle | H195: 9 and up | I195: 9.95 | J195: 1 | K195: 9.95 | L195: 4.48 | M195: Visa | N195: L.W.|880-4986 | O195: No | P195: No | Q195: 36 | R195: No
A196: 658280 | B196: 2010-11-26 | C196: 11:15:00 | D196: D254/FE | E196: 192 | F196: Duplo | G196: Policemen | H196: 6 and up | I196: 9.95 | J196: 5 | K196: 49.75 | L196: 25.85 | M196: Discover | N196: S.Y.|880-3139 | O196: No | P196: No | Q196: 32 | R196: No
A197: 658330 | B197: 2010-11-26 | C197: 19:00:36 | D197: L195/AE | E197: 195 | F197: Lego | G197: Airplane | H197: 8 and up | I197: 5.95 | J197: 2 | K197: 11.9 | L197: 6.18 | M197: Cash | N197: U.O.|880-3720 | O197: No | P197: No | Q197: 36 | R197: No
A198: 658361 | B198: 2010-11-27 | C198: 15:36:36 | D198: L330/GN | E198: 330 | F198: Lego | G198: Gas Station | H198: 8 and up | I198: 32.95 | J198: 1 | K198: 32.95 | L198: 19.11 | M198: Visa | N198: B.Y.|880-6845 | O198: No | P198: Yes | Q198: 47 | R198: No
A199: 658387 | B199: 2010-11-27 | C199: 12:25:12 | D199: L256/PE | E199: 256 | F199: Lego | G199: Police Officers and Motorcycle | H199: 9 and up | I199: 9.95 | J199: 2 | K199: 19.9 | L199: 8.96 | M199: Discover | N199: N.W.|880-6237 | O199: No | P199: No | Q199: 32 | R199: No
A200: 658404 | B200: 2010-11-27 | C200: 12:16:12 | D200: D250/AT | E200: 192 | F200: Duplo | G200: Policemen | H200: 6 and up | I200: 9.95 | J200: 1 | K200: 9.95 | L200: 5.17 | M200: Discover | N200: S.V.|880-5987 | O200: No | P200: Yes | Q200: 21 | R200: No
A201: 658406 | B201: 2010-11-27 | C201: 10:55:48 | D201: D255/FE | E201: 192 | F201: Duplo | G201: Policemen | H201: 6 and up | I201: 9.95 | J201: 2 | K201: 19.9 | L201: 10.34 | M201: Gift Card | N201: B.Y.|880-6845 | O201: No | P201: No | Q201: 34 | R201: No
... 802 more rows

Sheet HW(1an)
A3: Sum of Total Line Revenue | B3: Toy Company
A4: Suggested Age | B4: Duplo | C4: Lego | D4: Grand Total
A5: 4 and up | B5: 173.25 | C5: 224.25 | D5: 397.5
A6: 6 and up | B6: 9950 | C6: 767.4 | D6: 10717.4
A7: 7 and up | B7: 948.1 | D7: 948.1
A8: 8 and up | C8: 2818.2 | D8: 2818.2
A9: 9 and up | C9: 3084.5 | D9: 3084.5
A10: Grand Total | B10: 11071.35 | C10: 6894.35 | D10: 17965.7

Sheet HW(2)
A1: Create a PivotTable that shows number of transactions by the Hour on a new sheet (drop any text field into Values to count).
A3: Invoice Number | B3: Date | C3: Time | D3: Internal Toy ID Number | E3: Toy Item Number | F3: Toy Company | G3: Toy Name | H3: Suggested Age | I3: Price Per Toy | J3: Units Sold | K3: Total Line Revenue | L3: Total COGS | M3: Payment | N3: Cashier ID | O3: Member? | P3: Coupon? | Q3: Purchaser Age | R3: Parking Validation?
A4: 654522 | B4: 2010-01-07 | C4: 10:25:37.200 | D4: D255/FE | E4: 192 | F4: Duplo | G4: Policemen | H4: 6 and up | I4: 9.95 | J4: 1 | K4: 9.95 | L4: 5.17 | M4: Cash | N4: V.W.|880-4523 | O4: No | P4: No | Q4: 39 | R4: No
A5: 654526 | B5: 2010-01-07 | C5: 12:00:00 | D5: L217/SN | E5: 255 | F5: Duplo | G5: Farming Scene | H5: 7 and up | I5: 24.95 | J5: 5 | K5: 124.75 | L5: 81.1 | M5: Visa | N5: B.X.|880-9149 | O5: No | P5: No | Q5: 29 | R5: No
A6: 654568 | B6: 2010-01-07 | C6: 14:19:12 | D6: L195/AE | E6: 195 | F6: Lego | G6: Airplane | H6: 8 and up | I6: 5.95 | J6: 1 | K6: 5.95 | L6: 3.09 | M6: Cash | N6: Z.Q.|880-4240 | O6: No | P6: Yes | Q6: 46 | R6: Yes
A7: 654576 | B7: 2010-01-25 | C7: 12:57:00 | D7: L256/PE | E7: 256 | F7: Lego | G7: Police Officers and Motorcycle | H7: 9 and up | I7: 9.95 | J7: 1 | K7: 9.95 | L7: 4.48 | M7: Discover | N7: D.U.|880-2953 | O7: No | P7: No | Q7: 36 | R7: No
A8: 654613 | B8: 2010-02-05 | C8: 14:51:36 | D8: D250/AT | E8: 192 | F8: Duplo | G8: Policemen | H8: 6 and up | I8: 9.95 | J8: 1 | K8: 9.95 | L8: 5.17 | M8: Cash | N8: D.Z.|880-1179 | O8: No | P8: No | Q8: 33 | R8: No
A9: 654624 | B9: 2010-02-05 | C9: 14:36:00 | D9: D250/AT | E9: 192 | F9: Duplo | G9: Policemen | H9: 6 and up | I9: 9.95 | J9: 5 | K9: 49.75 | L9: 25.85 | M9: Cash | N9: L.W.|880-4986 | O9: No | P9: No | Q9: 47 | R9: No
A10: 654650 | B10: 2010-02-06 | C10: 14:33:36 | D10: D250/AT | E10: 192 | F10: Duplo | G10: Policemen | H10: 6 and up | I10: 9.95 | J10: 1 | K10: 9.95 | L10: 5.17 | M10: Mastercard | N10: D.S.|880-7532 | O10: No | P10: No | Q10: 34 | R10: No
A11: 654650 | B11: 2010-02-06 | C11: 14:33:36 | D11: L195/AE | E11: 195 | F11: Lego | G11: Airplane | H11: 8 and up | I11: 5.95 | J11: 2 | K11: 11.9 | L11: 6.18 | M11: Mastercard | N11: D.S.|880-7532 | O11: No | P11: No | Q11: 34 | R11: No
A12: 654668 | B12: 2010-02-11 | C12: 13:42:46.800 | D12: L195/AE | E12: 195 | F12: Lego | G12: Airplane | H12: 8 and up | I12: 5.95 | J12: 1 | K12: 5.95 | L12: 3.09 | M12: Check | N12: D.W.|880-7199 | O12: No | P12: No | Q12: 47 | R12: Yes
A13: 654673 | B13: 2010-02-20 | C13: 15:27:18 | D13: L256/PE | E13: 256 | F13: Lego | G13: Police Officers and Motorcycle | H13: 9 and up | I13: 9.95 | J13: 4 | K13: 39.8 | L13: 17.92 | M13: Cash | N13: W.B.|880-9647 | O13: No | P13: No | Q13: 32 | R13: No
A14: 654693 | B14: 2010-03-11 | C14: 15:45:36 | D14: D254/FE | E14: 192 | F14: Duplo | G14: Policemen | H14: 6 and up | I14: 9.95 | J14: 1 | K14: 9.95 | L14: 5.17 | M14: Cash | N14: B.Y.|880-6845 | O14: No | P14: No | Q14: 36 | R14: No
A15: 654693 | B15: 2010-03-11 | C15: 15:45:36 | D15: L195/AE | E15: 195 | F15: Lego | G15: Airplane | H15: 8 and up | I15: 5.95 | J15: 1 | K15: 5.95 | L15: 3.09 | M15: Cash | N15: B.Y.|880-6845 | O15: No | P15: No | Q15: 36 | R15: No
A16: 654733 | B16: 2010-03-11 | C16: 13:59:24 | D16: L256/PE | E16: 256 | F16: Lego | G16: Police Officers and Motorcycle | H16: 9 and up | I16: 9.95 | J16: 2 | K16: 19.9 | L16: 8.96 | M16: Visa | N16: P.N.|880-3021 | O16: No | P16: No | Q16: 36 | R16: No
A17: 654754 | B17: 2010-03-27 | C17: 12:08:24 | D17: D255/FE | E17: 192 | F17: Duplo | G17: Policemen | H17: 6 and up | I17: 9.95 | J17: 1 | K17: 9.95 | L17: 5.17 | M17: Mastercard | N17: P.N.|880-3021 | O17: No | P17: No | Q17: 33 | R17: No
A18: 654799 | B18: 2010-04-03 | C18: 15:27:36 | D18: D255/FE | E18: 192 | F18: Duplo | G18: Policemen | H18: 6 and up | I18: 9.95 | J18: 3 | K18: 29.85 | L18: 15.51 | M18: Cash | N18: A.U.|880-2167 | O18: Yes | P18: No | Q18: 47 | R18: No
A19: 654827 | B19: 2010-04-09 | C19: 15:58:33.600 | D19: D254/FE | E19: 192 | F19: Duplo | G19: Policemen | H19: 6 and up | I19: 9.95 | J19: 2 | K19: 19.9 | L19: 10.34 | M19: Mastercard | N19: A.U.|880-2167 | O19: No | P19: No | Q19: 35 | R19: Yes
A20: 654834 | B20: 2010-04-09 | C20: 12:06:00 | D20: D254/FE | E20: 192 | F20: Duplo | G20: Policemen | H20: 6 and up | I20: 9.95 | J20: 2 | K20: 19.9 | L20: 10.34 | M20: Visa | N20: Z.Q.|880-4240 | O20: Yes | P20: Yes | Q20: 49 | R20: No
A21: 654860 | B21: 2010-04-09 | C21: 17:12:36 | D21: L195/AE | E21: 195 | F21: Lego | G21: Airplane | H21: 8 and up | I21: 5.95 | J21: 2 | K21: 11.9 | L21: 6.18 | M21: Gift Card | N21: B.B.|880-9330 | O21: No | P21: Yes | Q21: 30 | R21: No
A22: 654883 | B22: 2010-04-09 | C22: 12:59:16.800 | D22: L217/SN | E22: 255 | F22: Duplo | G22: Farming Scene | H22: 7 and up | I22: 24.95 | J22: 3 | K22: 74.85 | L22: 48.66 | M22: Visa | N22: Z.Q.|880-4240 | O22: No | P22: No | Q22: 42 | R22: Yes
A23: 654908 | B23: 2010-04-14 | C23: 19:54:00 | D23: D218/FN | E23: 192 | F23: Duplo | G23: Policemen | H23: 6 and up | I23: 9.95 | J23: 1 | K23: 9.95 | L23: 5.17 | M23: Mastercard | N23: L.C.|880-6872 | O23: No | P23: No | Q23: 39 | R23: No
A24: 654932 | B24: 2010-04-14 | C24: 12:42:00 | D24: D250/AT | E24: 192 | F24: Duplo | G24: Policemen | H24: 6 and up | I24: 9.95 | J24: 1 | K24: 9.95 | L24: 5.17 | M24: Mastercard | N24: U.O.|880-3720 | O24: No | P24: No | Q24: 36 | R24: Yes
A25: 654979 | B25: 2010-04-17 | C25: 14:16:30 | D25: D254/FE | E25: 192 | F25: Duplo | G25: Policemen | H25: 6 and up | I25: 9.95 | J25: 2 | K25: 19.9 | L25: 10.34 | M25: Cash | N25: D.W.|880-7199 | O25: No | P25: Yes | Q25: 39 | R25: No
A26: 655029 | B26: 2010-04-22 | C26: 13:39:36 | D26: L256/PE | E26: 256 | F26: Lego | G26: Police Officers and Motorcycle | H26: 9 and up | I26: 9.95 | J26: 1 | K26: 9.95 | L26: 4.48 | M26: Discover | N26: S.V.|880-5987 | O26: No | P26: Yes | Q26: 63 | R26: No
A27: 655035 | B27: 2010-04-24 | C27: 17:16:48 | D27: L340/FS | E27: 340 | F27: Lego | G27: Fire Trucks | H27: 6 and up | I27: 34.95 | J27: 2 | K27: 69.9 | L27: 39.84 | M27: Mastercard | N27: V.W.|880-4523 | O27: Yes | P27: Yes | Q27: 38 | R27: No
A28: 655083 | B28: 2010-04-25 | C28: 16:52:12 | D28: L256/PE | E28: 256 | F28: Lego | G28: Police Officers and Motorcycle | H28: 9 and up | I28: 9.95 | J28: 2 | K28: 19.9 | L28: 8.96 | M28: Visa | N28: N.W.|880-6237 | O28: No | P28: Yes | Q28: 33 | R28: No
A29: 655105 | B29: 2010-05-01 | C29: 15:27:36 | D29: L256/PE | E29: 256 | F29: Lego | G29: Police Officers and Motorcycle | H29: 9 and up | I29: 9.95 | J29: 1 | K29: 9.95 | L29: 4.48 | M29: Visa | N29: U.W.|880-9683 | O29: No | P29: No | Q29: 33 | R29: No
A30: 655105 | B30: 2010-05-01 | C30: 15:27:36 | D30: L256/PE | E30: 256 | F30: Lego | G30: Police Officers and Motorcycle | H30: 9 and up | I30: 9.95 | J30: 2 | K30: 19.9 | L30: 8.96 | M30: Visa | N30: U.W.|880-9683 | O30: No | P30: No | Q30: 33 | R30: No
A31: 655112 | B31: 2010-05-04 | C31: 14:47:13.200 | D31: D255/FE | E31: 192 | F31: Duplo | G31: Policemen | H31: 6 and up | I31: 9.95 | J31: 1 | K31: 9.95 | L31: 5.17 | M31: Visa | N31: H.B.|880-3254 | O31: Yes | P31: Yes | Q31: 31 | R31: No
A32: 655124 | B32: 2010-05-06 | C32: 12:39:57.600 | D32: D255/FE | E32: 192 | F32: Duplo | G32: Policemen | H32: 6 and up | I32: 9.95 | J32: 1 | K32: 9.95 | L32: 5.17 | M32: Visa | N32: Z.Q.|880-4240 | O32: No | P32: No | Q32: 45 | R32: No
A33: 655165 | B33: 2010-05-30 | C33: 17:40:12 | D33: D250/AT | E33: 192 | F33: Duplo | G33: Policemen | H33: 6 and up | I33: 9.95 | J33: 2 | K33: 19.9 | L33: 10.34 | M33: Cash | N33: D.U.|880-2953 | O33: Yes | P33: Yes | Q33: 29 | R33: No
A34: 655189 | B34: 2010-05-30 | C34: 16:21:00 | D34: L195/AE | E34: 195 | F34: Lego | G34: Airplane | H34: 8 and up | I34: 5.95 | J34: 2 | K34: 11.9 | L34: 6.18 | M34: Visa | N34: B.B.|880-9330 | O34: No | P34: No | Q34: 49 | R34: No
A35: 655232 | B35: 2010-05-30 | C35: 11:17:24 | D35: D250/AT | E35: 192 | F35: Duplo | G35: Policemen | H35: 6 and up | I35: 9.95 | J35: 1 | K35: 9.95 | L35: 5.17 | M35: Cash | N35: H.B.|880-3254 | O35: No | P35: Yes | Q35: 42 | R35: No
A36: 655232 | B36: 2010-05-30 | C36: 11:17:24 | D36: L256/PE | E36: 256 | F36: Lego | G36: Police Officers and Motorcycle | H36: 9 and up | I36: 9.95 | J36: 2 | K36: 19.9 | L36: 8.96 | M36: Cash | N36: H.B.|880-3254 | O36: No | P36: Yes | Q36: 42 | R36: No
A37: 655281 | B37: 2010-06-01 | C37: 15:27:36 | D37: D255/FE | E37: 192 | F37: Duplo | G37: Policemen | H37: 6 and up | I37: 9.95 | J37: 4 | K37: 39.8 | L37: 20.68 | M37: Mastercard | N37: W.C.|880-4861 | O37: No | P37: No | Q37: 34 | R37: Yes
A38: 655298 | B38: 2010-06-09 | C38: 16:28:48 | D38: D255/FE | E38: 192 | F38: Duplo | G38: Policemen | H38: 6 and up | I38: 9.95 | J38: 1 | K38: 9.95 | L38: 5.17 | M38: Discover | N38: V.W.|880-8599 | O38: No | P38: No | Q38: 36 | R38: No
A39: 655323 | B39: 2010-06-13 | C39: 12:18:36 | D39: D255/FE | E39: 192 | F39: Duplo | G39: Policemen | H39: 6 and up | I39: 9.95 | J39: 1 | K39: 9.95 | L39: 5.17 | M39: Mastercard | N39: N.C.|880-3850 | O39: No | P39: No | Q39: 41 | R39: No
A40: 655358 | B40: 2010-06-13 | C40: 19:16:12 | D40: L195/AE | E40: 195 | F40: Lego | G40: Airplane | H40: 8 and up | I40: 5.95 | J40: 2 | K40: 11.9 | L40: 6.18 | M40: Cash | N40: W.C.|880-4861 | O40: No | P40: No | Q40: 32 | R40: Yes
A41: 655358 | B41: 2010-06-13 | C41: 19:16:12 | D41: D254/FE | E41: 192 | F41: Duplo | G41: Policemen | H41: 6 and up | I41: 9.95 | J41: 1 | K41: 9.95 | L41: 5.17 | M41: Cash | N41: W.C.|880-4861 | O41: No | P41: No | Q41: 32 | R41: Yes
A42: 655373 | B42: 2010-06-21 | C42: 12:27:39.600 | D42: L195/AE | E42: 195 | F42: Lego | G42: Airplane | H42: 8 and up | I42: 5.95 | J42: 1 | K42: 5.95 | L42: 3.09 | M42: Visa | N42: N.W.|880-6237 | O42: No | P42: No | Q42: 43 | R42: No
A43: 655385 | B43: 2010-06-21 | C43: 16:05:24 | D43: L256/PE | E43: 256 | F43: Lego | G43: Police Officers and Motorcycle | H43: 9 and up | I43: 9.95 | J43: 2 | K43: 19.9 | L43: 8.96 | M43: Mastercard | N43: W.B.|880-9647 | O43: No | P43: No | Q43: 46 | R43: No
A44: 655412 | B44: 2010-06-24 | C44: 11:39:10.800 | D44: D254/FE | E44: 192 | F44: Duplo | G44: Policemen | H44: 6 and up | I44: 9.95 | J44: 5 | K44: 49.75 | L44: 25.85 | M44: Mastercard | N44: H.B.|880-3254 | O44: No | P44: No | Q44: 65 | R44: No
A45: 655412 | B45: 2010-06-24 | C45: 11:39:10.800 | D45: D250/AT | E45: 192 | F45: Duplo | G45: Policemen | H45: 6 and up | I45: 9.95 | J45: 2 | K45: 19.9 | L45: 10.34 | M45: Mastercard | N45: H.B.|880-3254 | O45: No | P45: No | Q45: 65 | R45: No
A46: 655420 | B46: 2010-06-26 | C46: 16:09:36 | D46: L256/PE | E46: 256 | F46: Lego | G46: Police Officers and Motorcycle | H46: 9 and up | I46: 9.95 | J46: 2 | K46: 19.9 | L46: 8.96 | M46: Mastercard | N46: A.U.|880-2167 | O46: No | P46: No | Q46: 56 | R46: Yes
A47: 655467 | B47: 2010-07-04 | C47: 13:46:48 | D47: L195/AE | E47: 195 | F47: Lego | G47: Airplane | H47: 8 and up | I47: 5.95 | J47: 1 | K47: 5.95 | L47: 3.09 | M47: Cash | N47: Y.P.|880-6894 | O47: No | P47: No | Q47: 34 | R47: Yes
A48: 655505 | B48: 2010-07-09 | C48: 09:10:12 | D48: D254/FE | E48: 192 | F48: Duplo | G48: Policemen | H48: 6 and up | I48: 9.95 | J48: 2 | K48: 19.9 | L48: 10.34 | M48: Gift Card | N48: N.C.|880-3850 | O48: No | P48: No | Q48: 30 | R48: Yes
A49: 655526 | B49: 2010-07-09 | C49: 12:57:36 | D49: D250/AT | E49: 192 | F49: Duplo | G49: Policemen | H49: 6 and up | I49: 9.95 | J49: 3 | K49: 29.85 | L49: 15.51 | M49: Mastercard | N49: Z.Q.|880-4240 | O49: No | P49: No | Q49: 24 | R49: Yes
A50: 655557 | B50: 2010-07-10 | C50: 16:00:00 | D50: L195/AE | E50: 195 | F50: Lego | G50: Airplane | H50: 8 and up | I50: 5.95 | J50: 4 | K50: 23.8 | L50: 12.36 | M50: Visa | N50: V.W.|880-8599 | O50: No | P50: No | Q50: 37 | R50: No
A51: 655557 | B51: 2010-07-10 | C51: 16:00:00 | D51: D255/FE | E51: 192 | F51: Duplo | G51: Policemen | H51: 6 and up | I51: 9.95 | J51: 2 | K51: 19.9 | L51: 10.34 | M51: Visa | N51: V.W.|880-8599 | O51: No | P51: No | Q51: 37 | R51: No
A52: 655570 | B52: 2010-07-18 | C52: 14:46:12 | D52: D255/FE | E52: 192 | F52: Duplo | G52: Policemen | H52: 6 and up | I52: 9.95 | J52: 1 | K52: 9.95 | L52: 5.17 | M52: Cash | N52: L.W.|880-4986 | O52: No | P52: Yes | Q52: 37 | R52: No
A53: 655577 | B53: 2010-07-19 | C53: 11:24:00 | D53: L256/PE | E53: 256 | F53: Lego | G53: Police Officers and Motorcycle | H53: 9 and up | I53: 9.95 | J53: 4 | K53: 39.8 | L53: 17.92 | M53: Mastercard | N53: V.W.|880-8599 | O53: No | P53: No | Q53: 12 | R53: No
A54: 655613 | B54: 2010-07-25 | C54: 12:04:22.800 | D54: D250/AT | E54: 192 | F54: Duplo | G54: Policemen | H54: 6 and up | I54: 9.95 | J54: 2 | K54: 19.9 | L54: 10.34 | M54: Visa | N54: L.W.|880-4986 | O54: No | P54: No | Q54: 64 | R54: No
A55: 655623 | B55: 2010-07-29 | C55: 10:13:48 | D55: D250/AT | E55: 192 | F55: Duplo | G55: Policemen | H55: 6 and up | I55: 9.95 | J55: 1 | K55: 9.95 | L55: 5.17 | M55: Visa | N55: D.U.|880-2953 | O55: No | P55: No | Q55: 43 | R55: No
A56: 655643 | B56: 2010-07-30 | C56: 11:49:48 | D56: L195/AE | E56: 195 | F56: Lego | G56: Airplane | H56: 8 and up | I56: 5.95 | J56: 3 | K56: 17.85 | L56: 9.27 | M56: Gift Card | N56: N.C.|880-3850 | O56: No | P56: No | Q56: 48 | R56: No
A57: 655661 | B57: 2010-08-09 | C57: 16:56:24 | D57: D250/AT | E57: 192 | F57: Duplo | G57: Policemen | H57: 6 and up | I57: 9.95 | J57: 1 | K57: 9.95 | L57: 5.17 | M57: Mastercard | N57: C.X.|880-3590 | O57: Yes | P57: Yes | Q57: 34 | R57: No
A58: 655661 | B58: 2010-08-09 | C58: 16:56:24 | D58: D254/FE | E58: 192 | F58: Duplo | G58: Policemen | H58: 6 and up | I58: 9.95 | J58: 1 | K58: 9.95 | L58: 5.17 | M58: Mastercard | N58: C.X.|880-3590 | O58: Yes | P58: Yes | Q58: 34 | R58: No
A59: 655673 | B59: 2010-08-16 | C59: 15:42:36 | D59: D255/FE | E59: 192 | F59: Duplo | G59: Policemen | H59: 6 and up | I59: 9.95 | J59: 1 | K59: 9.95 | L59: 5.17 | M59: Cash | N59: D.U.|880-2953 | O59: No | P59: No | Q59: 50 | R59: Yes
A60: 655676 | B60: 2010-08-18 | C60: 18:27:36 | D60: D254/FE | E60: 192 | F60: Duplo | G60: Policemen | H60: 6 and up | I60: 9.95 | J60: 1 | K60: 9.95 | L60: 5.17 | M60: Cash | N60: D.Z.|880-1179 | O60: No | P60: No | Q60: 38 | R60: No
A61: 655676 | B61: 2010-08-18 | C61: 18:27:36 | D61: D254/FE | E61: 192 | F61: Duplo | G61: Policemen | H61: 6 and up | I61: 9.95 | J61: 4 | K61: 39.8 | L61: 20.68 | M61: Cash | N61: D.Z.|880-1179 | O61: No | P61: No | Q61: 38 | R61: No
A62: 655679 | B62: 2010-08-24 | C62: 16:49:12 | D62: D250/AT | E62: 192 | F62: Duplo | G62: Policemen | H62: 6 and up | I62: 9.95 | J62: 3 | K62: 29.85 | L62: 15.51 | M62: Gift Card | N62: S.V.|880-5987 | O62: No | P62: No | Q62: 41 | R62: No
A63: 655716 | B63: 2010-09-02 | C63: 16:19:04.800 | D63: D250/AT | E63: 192 | F63: Duplo | G63: Policemen | H63: 6 and up | I63: 9.95 | J63: 1 | K63: 9.95 | L63: 5.17 | M63: Cash | N63: U.W.|880-9683 | O63: Yes | P63: No | Q63: 21 | R63: No
A64: 655731 | B64: 2010-09-05 | C64: 18:17:24 | D64: D254/FE | E64: 192 | F64: Duplo | G64: Policemen | H64: 6 and up | I64: 9.95 | J64: 1 | K64: 9.95 | L64: 5.17 | M64: Visa | N64: Z.T.|880-7477 | O64: No | P64: Yes | Q64: 31 | R64: No
A65: 655768 | B65: 2010-09-12 | C65: 14:41:34.800 | D65: L256/PE | E65: 256 | F65: Lego | G65: Police Officers and Motorcycle | H65: 9 and up | I65: 9.95 | J65: 1 | K65: 9.95 | L65: 4.48 | M65: Mastercard | N65: H.B.|880-3254 | O65: No | P65: No | Q65: 40 | R65: No
A66: 655793 | B66: 2010-09-12 | C66: 17:33:00 | D66: D255/FE | E66: 192 | F66: Duplo | G66: Policemen | H66: 6 and up | I66: 9.95 | J66: 3 | K66: 29.85 | L66: 15.51 | M66: Cash | N66: A.U.|880-2167 | O66: Yes | P66: Yes | Q66: 48 | R66: No
A67: 655793 | B67: 2010-09-12 | C67: 17:33:00 | D67: D254/FE | E67: 192 | F67: Duplo | G67: Policemen | H67: 6 and up | I67: 9.95 | J67: 1 | K67: 9.95 | L67: 5.17 | M67: Cash | N67: A.U.|880-2167 | O67: Yes | P67: Yes | Q67: 48 | R67: No
A68: 655833 | B68: 2010-09-21 | C68: 18:36:36 | D68: L195/AE | E68: 195 | F68: Lego | G68: Airplane | H68: 8 and up | I68: 5.95 | J68: 2 | K68: 11.9 | L68: 6.18 | M68: Discover | N68: H.B.|880-3254 | O68: No | P68: No | Q68: 32 | R68: Yes
A69: 655833 | B69: 2010-09-21 | C69: 18:36:36 | D69: D250/AT | E69: 192 | F69: Duplo | G69: Policemen | H69: 6 and up | I69: 9.95 | J69: 2 | K69: 19.9 | L69: 10.34 | M69: Discover | N69: H.B.|880-3254 | O69: No | P69: No | Q69: 32 | R69: Yes
A70: 655842 | B70: 2010-10-04 | C70: 13:49:12 | D70: D250/AT | E70: 192 | F70: Duplo | G70: Policemen | H70: 6 and up | I70: 9.95 | J70: 2 | K70: 19.9 | L70: 10.34 | M70: Cash | N70: D.W.|880-7199 | O70: No | P70: No | Q70: 44 | R70: No
A71: 655845 | B71: 2010-10-14 | C71: 20:37:48 | D71: L195/AE | E71: 195 | F71: Lego | G71: Airplane | H71: 8 and up | I71: 5.95 | J71: 1 | K71: 5.95 | L71: 3.09 | M71: Mastercard | N71: N.C.|880-3850 | O71: No | P71: No | Q71: 34 | R71: No
A72: 655894 | B72: 2010-10-16 | C72: 16:01:48 | D72: D255/FE | E72: 192 | F72: Duplo | G72: Policemen | H72: 6 and up | I72: 9.95 | J72: 1 | K72: 9.95 | L72: 5.17 | M72: Discover | N72: D.S.|880-7532 | O72: No | P72: No | Q72: 40 | R72: No
A73: 655933 | B73: 2010-10-16 | C73: 10:30:00 | D73: L195/AE | E73: 195 | F73: Lego | G73: Airplane | H73: 8 and up | I73: 5.95 | J73: 2 | K73: 11.9 | L73: 6.18 | M73: Cash | N73: U.W.|880-9683 | O73: No | P73: No | Q73: 31 | R73: No
A74: 655965 | B74: 2010-10-21 | C74: 11:27:28.800 | D74: L196/AR | E74: 196 | F74: Lego | G74: Antique Car | H74: 8 and up | I74: 7.95 | J74: 2 | K74: 15.9 | L74: 8.9 | M74: Visa | N74: W.C.|880-4861 | O74: No | P74: No | Q74: 45 | R74: No
A75: 655965 | B75: 2010-10-21 | C75: 11:27:28.800 | D75: D254/FE | E75: 192 | F75: Duplo | G75: Policemen | H75: 6 and up | I75: 9.95 | J75: 1 | K75: 9.95 | L75: 5.17 | M75: Visa | N75: W.C.|880-4861 | O75: No | P75: No | Q75: 45 | R75: No
A76: 655976 | B76: 2010-11-01 | C76: 08:55:48 | D76: D250/AT | E76: 192 | F76: Duplo | G76: Policemen | H76: 6 and up | I76: 9.95 | J76: 1 | K76: 9.95 | L76: 5.17 | M76: Check | N76: D.W.|880-7199 | O76: No | P76: No | Q76: 34 | R76: No
A77: 656007 | B77: 2010-11-01 | C77: 20:07:48 | D77: D254/FE | E77: 192 | F77: Duplo | G77: Policemen | H77: 6 and up | I77: 9.95 | J77: 1 | K77: 9.95 | L77: 5.17 | M77: Mastercard | N77: Z.T.|880-7477 | O77: No | P77: No | Q77: 43 | R77: No
A78: 656032 | B78: 2010-11-01 | C78: 19:55:48 | D78: L194/FY | E78: 194 | F78: Lego | G78: Family | H78: 4 and up | I78: 14.95 | J78: 1 | K78: 14.95 | L78: 8.37 | M78: Visa | N78: W.B.|880-9647 | O78: No | P78: No | Q78: 43 | R78: No
A79: 656032 | B79: 2010-11-01 | C79: 19:55:48 | D79: D254/FE | E79: 192 | F79: Duplo | G79: Policemen | H79: 6 and up | I79: 9.95 | J79: 1 | K79: 9.95 | L79: 5.17 | M79: Visa | N79: W.B.|880-9647 | O79: No | P79: No | Q79: 43 | R79: No
A80: 656077 | B80: 2010-11-02 | C80: 19:21:00 | D80: L256/PE | E80: 256 | F80: Lego | G80: Police Officers and Motorcycle | H80: 9 and up | I80: 9.95 | J80: 1 | K80: 9.95 | L80: 4.48 | M80: Cash | N80: U.W.|880-9683 | O80: Yes | P80: No | Q80: 37 | R80: No
A81: 656123 | B81: 2010-11-02 | C81: 15:27:36 | D81: L256/PE | E81: 256 | F81: Lego | G81: Police Officers and Motorcycle | H81: 9 and up | I81: 9.95 | J81: 1 | K81: 9.95 | L81: 4.48 | M81: Gift Card | N81: V.W.|880-8599 | O81: No | P81: Yes | Q81: 38 | R81: Yes
A82: 656125 | B82: 2010-11-02 | C82: 11:49:12 | D82: D250/AT | E82: 192 | F82: Duplo | G82: Policemen | H82: 6 and up | I82: 9.95 | J82: 1 | K82: 9.95 | L82: 5.17 | M82: Cash | N82: U.O.|880-3720 | O82: No | P82: No | Q82: 37 | R82: No
A83: 656125 | B83: 2010-11-02 | C83: 11:49:12 | D83: L195/AE | E83: 195 | F83: Lego | G83: Airplane | H83: 8 and up | I83: 5.95 | J83: 1 | K83: 5.95 | L83: 3.09 | M83: Cash | N83: U.O.|880-3720 | O83: No | P83: No | Q83: 37 | R83: No
A84: 656171 | B84: 2010-11-02 | C84: 15:14:24 | D84: L256/PE | E84: 256 | F84: Lego | G84: Police Officers and Motorcycle | H84: 9 and up | I84: 9.95 | J84: 3 | K84: 29.85 | L84: 13.44 | M84: Visa | N84: S.V.|880-5987 | O84: No | P84: No | Q84: 50 | R84: No
A85: 656171 | B85: 2010-11-02 | C85: 15:14:24 | D85: L256/PE | E85: 256 | F85: Lego | G85: Police Officers and Motorcycle | H85: 9 and up | I85: 9.95 | J85: 1 | K85: 9.95 | L85: 4.48 | M85: Visa | N85: S.V.|880-5987 | O85: No | P85: No | Q85: 50 | R85: No
A86: 656207 | B86: 2010-11-02 | C86: 13:25:48 | D86: D255/FE | E86: 192 | F86: Duplo | G86: Policemen | H86: 6 and up | I86: 9.95 | J86: 1 | K86: 9.95 | L86: 5.17 | M86: Cash | N86: N.C.|880-3850 | O86: No | P86: No | Q86: 50 | R86: No
A87: 656246 | B87: 2010-11-02 | C87: 10:59:16.800 | D87: L195/AE | E87: 195 | F87: Lego | G87: Airplane | H87: 8 and up | I87: 5.95 | J87: 1 | K87: 5.95 | L87: 3.09 | M87: Visa | N87: A.U.|880-2167 | O87: No | P87: Yes | Q87: 43 | R87: No
A88: 656246 | B88: 2010-11-02 | C88: 10:59:16.800 | D88: L256/PE | E88: 256 | F88: Lego | G88: Police Officers and Motorcycle | H88: 9 and up | I88: 9.95 | J88: 1 | K88: 9.95 | L88: 4.48 | M88: Visa | N88: A.U.|880-2167 | O88: No | P88: Yes | Q88: 43 | R88: No
A89: 656287 | B89: 2010-11-03 | C89: 15:33:28.800 | D89: D255/FE | E89: 192 | F89: Duplo | G89: Policemen | H89: 6 and up | I89: 9.95 | J89: 1 | K89: 9.95 | L89: 5.17 | M89: Check | N89: C.X.|880-3590 | O89: No | P89: No | Q89: 43 | R89: No
A90: 656300 | B90: 2010-11-03 | C90: 17:16:12 | D90: D255/FE | E90: 192 | F90: Duplo | G90: Policemen | H90: 6 and up | I90: 9.95 | J90: 1 | K90: 9.95 | L90: 5.17 | M90: Cash | N90: N.C.|880-3850 | O90: No | P90: No | Q90: 27 | R90: No
A91: 656314 | B91: 2010-11-03 | C91: 12:48:36 | D91: D255/FE | E91: 192 | F91: Duplo | G91: Policemen | H91: 6 and up | I91: 9.95 | J91: 4 | K91: 39.8 | L91: 20.68 | M91: Visa | N91: D.S.|880-7532 | O91: No | P91: Yes | Q91: 26 | R91: No
A92: 656314 | B92: 2010-11-03 | C92: 12:48:36 | D92: L195/AE | E92: 195 | F92: Lego | G92: Airplane | H92: 8 and up | I92: 5.95 | J92: 5 | K92: 29.75 | L92: 15.45 | M92: Visa | N92: D.S.|880-7532 | O92: No | P92: Yes | Q92: 26 | R92: No
A93: 656314 | B93: 2010-11-03 | C93: 12:48:36 | D93: L195/AE | E93: 195 | F93: Lego | G93: Airplane | H93: 8 and up | I93: 5.95 | J93: 1 | K93: 5.95 | L93: 3.09 | M93: Visa | N93: D.S.|880-7532 | O93: No | P93: Yes | Q93: 26 | R93: No
A94: 656364 | B94: 2010-11-04 | C94: 16:56:24 | D94: L195/AE | E94: 195 | F94: Lego | G94: Airplane | H94: 8 and up | I94: 5.95 | J94: 1 | K94: 5.95 | L94: 3.09 | M94: Visa | N94: C.X.|880-3590 | O94: No | P94: No | Q94: 38 | R94: Yes
A95: 656380 | B95: 2010-11-05 | C95: 15:40:12 | D95: D250/AT | E95: 192 | F95: Duplo | G95: Policemen | H95: 6 and up | I95: 9.95 | J95: 1 | K95: 9.95 | L95: 5.17 | M95: Cash | N95: Z.T.|880-7477 | O95: No | P95: No | Q95: 29 | R95: No
A96: 656416 | B96: 2010-11-05 | C96: 16:06:36 | D96: L256/PE | E96: 256 | F96: Lego | G96: Police Officers and Motorcycle | H96: 9 and up | I96: 9.95 | J96: 4 | K96: 39.8 | L96: 17.92 | M96: Cash | N96: C.X.|880-3590 | O96: Yes | P96: No | Q96: 14 | R96: No
A97: 656416 | B97: 2010-11-05 | C97: 16:06:36 | D97: D254/FE | E97: 192 | F97: Duplo | G97: Policemen | H97: 6 and up | I97: 9.95 | J97: 1 | K97: 9.95 | L97: 5.17 | M97: Cash | N97: C.X.|880-3590 | O97: Yes | P97: No | Q97: 14 | R97: No
A98: 656444 | B98: 2010-11-05 | C98: 15:19:48 | D98: D250/AT | E98: 192 | F98: Duplo | G98: Policemen | H98: 6 and up | I98: 9.95 | J98: 1 | K98: 9.95 | L98: 5.17 | M98: Cash | N98: B.Y.|880-6845 | O98: No | P98: Yes | Q98: 44 | R98: Yes
A99: 656478 | B99: 2010-11-05 | C99: 20:51:36 | D99: L195/AE | E99: 195 | F99: Lego | G99: Airplane | H99: 8 and up | I99: 5.95 | J99: 1 | K99: 5.95 | L99: 3.09 | M99: Visa | N99: W.B.|880-9647 | O99: No | P99: Yes | Q99: 32 | R99: No
A100: 656495 | B100: 2010-11-05 | C100: 13:37:12 | D100: L195/AE | E100: 195 | F100: Lego | G100: Airplane | H100: 8 and up | I100: 5.95 | J100: 2 | K100: 11.9 | L100: 6.18 | M100: Check | N100: D.U.|880-2953 | O100: No | P100: No | Q100: 30 | R100: No
A101: 656518 | B101: 2010-11-05 | C101: 13:12:00 | D101: L256/PE | E101: 256 | F101: Lego | G101: Police Officers and Motorcycle | H101: 9 and up | I101: 9.95 | J101: 1 | K101: 9.95 | L101: 4.48 | M101: Visa | N101: B.B.|880-9330 | O101: No | P101: No | Q101: 19 | R101: No
A102: 656533 | B102: 2010-11-05 | C102: 11:01:58.800 | D102: L256/PE | E102: 256 | F102: Lego | G102: Police Officers and Motorcycle | H102: 9 and up | I102: 9.95 | J102: 1 | K102: 9.95 | L102: 4.48 | M102: Cash | N102: V.W.|880-4523 | O102: No | P102: No | Q102: 50 | R102: No
A103: 656547 | B103: 2010-11-06 | C103: 20:00:00 | D103: L195/AE | E103: 195 | F103: Lego | G103: Airplane | H103: 8 and up | I103: 5.95 | J103: 2 | K103: 11.9 | L103: 6.18 | M103: Visa | N103: D.U.|880-2953 | O103: Yes | P103: No | Q103: 11 | R103: No
A104: 656588 | B104: 2010-11-06 | C104: 13:24:36 | D104: L256/PE | E104: 256 | F104: Lego | G104: Police Officers and Motorcycle | H104: 9 and up | I104: 9.95 | J104: 1 | K104: 9.95 | L104: 4.48 | M104: Visa | N104: H.B.|880-3254 | O104: Yes | P104: Yes | Q104: 41 | R104: Yes
A105: 656617 | B105: 2010-11-06 | C105: 10:52:12 | D105: D250/AT | E105: 192 | F105: Duplo | G105: Policemen | H105: 6 and up | I105: 9.95 | J105: 2 | K105: 19.9 | L105: 10.34 | M105: Visa | N105: A.U.|880-2167 | O105: No | P105: No | Q105: 38 | R105: No
A106: 656617 | B106: 2010-11-06 | C106: 10:52:12 | D106: D255/FE | E106: 192 | F106: Duplo | G106: Policemen | H106: 6 and up | I106: 9.95 | J106: 1 | K106: 9.95 | L106: 5.17 | M106: Visa | N106: A.U.|880-2167 | O106: No | P106: No | Q106: 38 | R106: No
A107: 656628 | B107: 2010-11-06 | C107: 10:15:00 | D107: L330/GN | E107: 330 | F107: Lego | G107: Gas Station | H107: 8 and up | I107: 32.95 | J107: 1 | K107: 32.95 | L107: 19.11 | M107: Discover | N107: U.O.|880-3720 | O107: No | P107: No | Q107: 37 | R107: No
A108: 656637 | B108: 2010-11-06 | C108: 11:00:39.600 | D108: D254/FE | E108: 192 | F108: Duplo | G108: Policemen | H108: 6 and up | I108: 9.95 | J108: 1 | K108: 9.95 | L108: 5.17 | M108: Visa | N108: B.Y.|880-6845 | O108: No | P108: No | Q108: 30 | R108: No
A109: 656648 | B109: 2010-11-06 | C109: 13:24:36 | D109: L195/AE | E109: 195 | F109: Lego | G109: Airplane | H109: 8 and up | I109: 5.95 | J109: 1 | K109: 5.95 | L109: 3.09 | M109: Visa | N109: W.B.|880-9647 | O109: No | P109: No | Q109: 11 | R109: No
A110: 656657 | B110: 2010-11-06 | C110: 15:04:12 | D110: D254/FE | E110: 192 | F110: Duplo | G110: Policemen | H110: 6 and up | I110: 9.95 | J110: 1 | K110: 9.95 | L110: 5.17 | M110: Cash | N110: U.W.|880-9683 | O110: No | P110: No | Q110: 22 | R110: No
A111: 656657 | B111: 2010-11-06 | C111: 15:04:12 | D111: L212/SD | E111: 212 | F111: Lego | G111: Scooter and Stand | H111: 6 and up | I111: 4.95 | J111: 1 | K111: 4.95 | L111: 2.23 | M111: Cash | N111: U.W.|880-9683 | O111: No | P111: No | Q111: 22 | R111: No
A112: 656657 | B112: 2010-11-06 | C112: 15:04:12 | D112: D218/FN | E112: 192 | F112: Duplo | G112: Policemen | H112: 6 and up | I112: 9.95 | J112: 1 | K112: 9.95 | L112: 5.17 | M112: Cash | N112: U.W.|880-9683 | O112: No | P112: No | Q112: 22 | R112: No
A113: 656671 | B113: 2010-11-07 | C113: 13:21:36 | D113: D255/FE | E113: 192 | F113: Duplo | G113: Policemen | H113: 6 and up | I113: 9.95 | J113: 1 | K113: 9.95 | L113: 5.17 | M113: Gift Card | N113: S.V.|880-5987 | O113: No | P113: No | Q113: 37 | R113: No
A114: 656692 | B114: 2010-11-08 | C114: 15:22:12 | D114: L256/PE | E114: 256 | F114: Lego | G114: Police Officers and Motorcycle | H114: 9 and up | I114: 9.95 | J114: 1 | K114: 9.95 | L114: 4.48 | M114: Visa | N114: L.W.|880-4986 | O114: No | P114: No | Q114: 11 | R114: No
A115: 656737 | B115: 2010-11-08 | C115: 19:04:48 | D115: D250/AT | E115: 192 | F115: Duplo | G115: Policemen | H115: 6 and up | I115: 9.95 | J115: 2 | K115: 19.9 | L115: 10.34 | M115: Visa | N115: D.S.|880-7532 | O115: No | P115: No | Q115: 40 | R115: No
A116: 656757 | B116: 2010-11-08 | C116: 09:24:36 | D116: D255/FE | E116: 192 | F116: Duplo | G116: Policemen | H116: 6 and up | I116: 9.95 | J116: 1 | K116: 9.95 | L116: 5.17 | M116: Cash | N116: S.Y.|880-3139 | O116: No | P116: No | Q116: 36 | R116: Yes
A117: 656757 | B117: 2010-11-08 | C117: 09:24:36 | D117: D254/FE | E117: 192 | F117: Duplo | G117: Policemen | H117: 6 and up | I117: 9.95 | J117: 2 | K117: 19.9 | L117: 10.34 | M117: Cash | N117: S.Y.|880-3139 | O117: No | P117: No | Q117: 36 | R117: Yes
A118: 656770 | B118: 2010-11-09 | C118: 14:56:24 | D118: D255/FE | E118: 192 | F118: Duplo | G118: Policemen | H118: 6 and up | I118: 9.95 | J118: 1 | K118: 9.95 | L118: 5.17 | M118: Mastercard | N118: H.B.|880-3254 | O118: No | P118: No | Q118: 66 | R118: No
A119: 656807 | B119: 2010-11-10 | C119: 11:28:48 | D119: L210/CS | E119: 210 | F119: Lego | G119: Cowboys with Horses | H119: 6 and up | I119: 9.45 | J119: 1 | K119: 9.45 | L119: 4.63 | M119: Visa | N119: P.N.|880-3021 | O119: No | P119: No | Q119: 48 | R119: No
A120: 656822 | B120: 2010-11-10 | C120: 08:07:48 | D120: D254/FE | E120: 192 | F120: Duplo | G120: Policemen | H120: 6 and up | I120: 9.95 | J120: 2 | K120: 19.9 | L120: 10.34 | M120: Mastercard | N120: B.B.|880-9330 | O120: No | P120: No | Q120: 57 | R120: No
A121: 656847 | B121: 2010-11-10 | C121: 12:25:12 | D121: D198/LX | E121: 192 | F121: Duplo | G121: Policemen | H121: 6 and up | I121: 9.95 | J121: 2 | K121: 19.9 | L121: 10.34 | M121: Visa | N121: S.Y.|880-3139 | O121: Yes | P121: No | Q121: 38 | R121: No
A122: 656854 | B122: 2010-11-10 | C122: 11:12:00 | D122: L195/AE | E122: 195 | F122: Lego | G122: Airplane | H122: 8 and up | I122: 5.95 | J122: 1 | K122: 5.95 | L122: 3.09 | M122: Mastercard | N122: V.W.|880-4523 | O122: No | P122: Yes | Q122: 31 | R122: No
A123: 656893 | B123: 2010-11-10 | C123: 15:20:24 | D123: L212/SD | E123: 212 | F123: Lego | G123: Scooter and Stand | H123: 6 and up | I123: 4.95 | J123: 1 | K123: 4.95 | L123: 2.23 | M123: Visa | N123: U.O.|880-3720 | O123: No | P123: No | Q123: 45 | R123: No
A124: 656931 | B124: 2010-11-11 | C124: 09:09:00 | D124: D254/FE | E124: 192 | F124: Duplo | G124: Policemen | H124: 6 and up | I124: 9.95 | J124: 1 | K124: 9.95 | L124: 5.17 | M124: Visa | N124: A.U.|880-2167 | O124: No | P124: No | Q124: 30 | R124: No
A125: 656952 | B125: 2010-11-11 | C125: 11:40:55.200 | D125: L195/AE | E125: 195 | F125: Lego | G125: Airplane | H125: 8 and up | I125: 5.95 | J125: 3 | K125: 17.85 | L125: 9.27 | M125: Cash | N125: N.C.|880-3850 | O125: No | P125: No | Q125: 38 | R125: No
A126: 656956 | B126: 2010-11-11 | C126: 12:48:36 | D126: L256/PE | E126: 256 | F126: Lego | G126: Police Officers and Motorcycle | H126: 9 and up | I126: 9.95 | J126: 1 | K126: 9.95 | L126: 4.48 | M126: Mastercard | N126: V.W.|880-8599 | O126: No | P126: No | Q126: 24 | R126: No
A127: 656991 | B127: 2010-11-11 | C127: 15:47:24 | D127: D255/FE | E127: 192 | F127: Duplo | G127: Policemen | H127: 6 and up | I127: 9.95 | J127: 4 | K127: 39.8 | L127: 20.68 | M127: Visa | N127: V.W.|880-4523 | O127: No | P127: Yes | Q127: 43 | R127: No
A128: 656991 | B128: 2010-11-11 | C128: 15:47:24 | D128: D198/LX | E128: 192 | F128: Duplo | G128: Policemen | H128: 6 and up | I128: 9.95 | J128: 2 | K128: 19.9 | L128: 10.34 | M128: Visa | N128: V.W.|880-4523 | O128: No | P128: Yes | Q128: 43 | R128: No
A129: 657009 | B129: 2010-11-11 | C129: 12:02:24 | D129: D255/FE | E129: 192 | F129: Duplo | G129: Policemen | H129: 6 and up | I129: 9.95 | J129: 2 | K129: 19.9 | L129: 10.34 | M129: Cash | N129: V.W.|880-8599 | O129: No | P129: No | Q129: 36 | R129: No
A130: 657052 | B130: 2010-11-11 | C130: 19:45:36 | D130: D254/FE | E130: 192 | F130: Duplo | G130: Policemen | H130: 6 and up | I130: 9.95 | J130: 1 | K130: 9.95 | L130: 5.17 | M130: Check | N130: B.B.|880-9330 | O130: No | P130: Yes | Q130: 34 | R130: Yes
A131: 657052 | B131: 2010-11-11 | C131: 19:45:36 | D131: L256/PE | E131: 256 | F131: Lego | G131: Police Officers and Motorcycle | H131: 9 and up | I131: 9.95 | J131: 1 | K131: 9.95 | L131: 4.48 | M131: Check | N131: B.B.|880-9330 | O131: No | P131: Yes | Q131: 34 | R131: Yes
A132: 657055 | B132: 2010-11-12 | C132: 11:37:12 | D132: D250/AT | E132: 192 | F132: Duplo | G132: Policemen | H132: 6 and up | I132: 9.95 | J132: 2 | K132: 19.9 | L132: 10.34 | M132: Check | N132: D.S.|880-7532 | O132: No | P132: No | Q132: 36 | R132: No
A133: 657055 | B133: 2010-11-12 | C133: 11:37:12 | D133: D250/AT | E133: 192 | F133: Duplo | G133: Policemen | H133: 6 and up | I133: 9.95 | J133: 2 | K133: 19.9 | L133: 10.34 | M133: Check | N133: D.S.|880-7532 | O133: No | P133: No | Q133: 36 | R133: No
A134: 657055 | B134: 2010-11-12 | C134: 11:37:12 | D134: L256/PE | E134: 256 | F134: Lego | G134: Police Officers and Motorcycle | H134: 9 and up | I134: 9.95 | J134: 1 | K134: 9.95 | L134: 4.48 | M134: Check | N134: D.S.|880-7532 | O134: No | P134: No | Q134: 36 | R134: No
A135: 657093 | B135: 2010-11-12 | C135: 13:33:50.400 | D135: D250/AT | E135: 192 | F135: Duplo | G135: Policemen | H135: 6 and up | I135: 9.95 | J135: 5 | K135: 49.75 | L135: 25.85 | M135: Visa | N135: Y.P.|880-6894 | O135: Yes | P135: No | Q135: 31 | R135: Yes
A136: 657101 | B136: 2010-11-13 | C136: 09:53:24 | D136: L195/AE | E136: 195 | F136: Lego | G136: Airplane | H136: 8 and up | I136: 5.95 | J136: 1 | K136: 5.95 | L136: 3.09 | M136: Gift Card | N136: Z.T.|880-7477 | O136: Yes | P136: No | Q136: 41 | R136: Yes
A137: 657140 | B137: 2010-11-13 | C137: 16:50:56.400 | D137: L340/FS | E137: 340 | F137: Lego | G137: Fire Trucks | H137: 6 and up | I137: 34.95 | J137: 2 | K137: 69.9 | L137: 39.84 | M137: Visa | N137: B.Y.|880-6845 | O137: No | P137: No | Q137: 34 | R137: No
A138: 657140 | B138: 2010-11-13 | C138: 16:50:56.400 | D138: D255/FE | E138: 192 | F138: Duplo | G138: Policemen | H138: 6 and up | I138: 9.95 | J138: 1 | K138: 9.95 | L138: 5.17 | M138: Visa | N138: B.Y.|880-6845 | O138: No | P138: No | Q138: 34 | R138: No
A139: 657187 | B139: 2010-11-13 | C139: 10:39:36 | D139: D250/AT | E139: 192 | F139: Duplo | G139: Policemen | H139: 6 and up | I139: 9.95 | J139: 2 | K139: 19.9 | L139: 10.34 | M139: Gift Card | N139: Z.Q.|880-4240 | O139: No | P139: No | Q139: 31 | R139: Yes
A140: 657232 | B140: 2010-11-13 | C140: 20:11:24 | D140: L195/AE | E140: 195 | F140: Lego | G140: Airplane | H140: 8 and up | I140: 5.95 | J140: 3 | K140: 17.85 | L140: 9.27 | M140: Visa | N140: C.X.|880-3590 | O140: No | P140: No | Q140: 31 | R140: Yes
A141: 657255 | B141: 2010-11-14 | C141: 17:18:36 | D141: D254/FE | E141: 192 | F141: Duplo | G141: Policemen | H141: 6 and up | I141: 9.95 | J141: 1 | K141: 9.95 | L141: 5.17 | M141: Check | N141: U.O.|880-3720 | O141: No | P141: No | Q141: 27 | R141: Yes
A142: 657291 | B142: 2010-11-14 | C142: 12:37:48 | D142: L256/PE | E142: 256 | F142: Lego | G142: Police Officers and Motorcycle | H142: 9 and up | I142: 9.95 | J142: 1 | K142: 9.95 | L142: 4.48 | M142: Cash | N142: Z.T.|880-7477 | O142: No | P142: No | Q142: 49 | R142: No
A143: 657306 | B143: 2010-11-14 | C143: 09:50:56.400 | D143: D254/FE | E143: 192 | F143: Duplo | G143: Policemen | H143: 6 and up | I143: 9.95 | J143: 4 | K143: 39.8 | L143: 20.68 | M143: Visa | N143: N.C.|880-3850 | O143: No | P143: No | Q143: 69 | R143: Yes
A144: 657316 | B144: 2010-11-15 | C144: 16:45:36 | D144: L252/LR | E144: 255 | F144: Duplo | G144: Farming Scene | H144: 7 and up | I144: 24.95 | J144: 1 | K144: 24.95 | L144: 16.22 | M144: Mastercard | N144: P.N.|880-3021 | O144: No | P144: No | Q144: 20 | R144: No
A145: 657320 | B145: 2010-11-15 | C145: 08:24:10.800 | D145: D250/AT | E145: 192 | F145: Duplo | G145: Policemen | H145: 6 and up | I145: 9.95 | J145: 1 | K145: 9.95 | L145: 5.17 | M145: Mastercard | N145: B.X.|880-9149 | O145: No | P145: No | Q145: 30 | R145: Yes
A146: 657336 | B146: 2010-11-15 | C146: 08:29:42 | D146: D255/FE | E146: 192 | F146: Duplo | G146: Policemen | H146: 6 and up | I146: 9.95 | J146: 1 | K146: 9.95 | L146: 5.17 | M146: Mastercard | N146: H.B.|880-3254 | O146: No | P146: No | Q146: 37 | R146: Yes
A147: 657336 | B147: 2010-11-15 | C147: 08:29:42 | D147: D250/AT | E147: 192 | F147: Duplo | G147: Policemen | H147: 6 and up | I147: 9.95 | J147: 1 | K147: 9.95 | L147: 5.17 | M147: Mastercard | N147: H.B.|880-3254 | O147: No | P147: No | Q147: 37 | R147: Yes
A148: 657366 | B148: 2010-11-16 | C148: 08:44:42 | D148: L256/PE | E148: 256 | F148: Lego | G148: Police Officers and Motorcycle | H148: 9 and up | I148: 9.95 | J148: 2 | K148: 19.9 | L148: 8.96 | M148: Mastercard | N148: B.X.|880-9149 | O148: No | P148: No | Q148: 42 | R148: No
A149: 657415 | B149: 2010-11-16 | C149: 11:59:56.400 | D149: D250/AT | E149: 192 | F149: Duplo | G149: Policemen | H149: 6 and up | I149: 9.95 | J149: 2 | K149: 19.9 | L149: 10.34 | M149: Visa | N149: S.V.|880-5987 | O149: No | P149: No | Q149: 41 | R149: Yes
A150: 657415 | B150: 2010-11-16 | C150: 11:59:56.400 | D150: D255/FE | E150: 192 | F150: Duplo | G150: Policemen | H150: 6 and up | I150: 9.95 | J150: 2 | K150: 19.9 | L150: 10.34 | M150: Visa | N150: S.V.|880-5987 | O150: No | P150: No | Q150: 41 | R150: Yes
A151: 657447 | B151: 2010-11-17 | C151: 13:42:00 | D151: L195/AE | E151: 195 | F151: Lego | G151: Airplane | H151: 8 and up | I151: 5.95 | J151: 4 | K151: 23.8 | L151: 12.36 | M151: Mastercard | N151: L.W.|880-4986 | O151: No | P151: Yes | Q151: 40 | R151: Yes
A152: 657482 | B152: 2010-11-17 | C152: 10:13:48 | D152: L256/PE | E152: 256 | F152: Lego | G152: Police Officers and Motorcycle | H152: 9 and up | I152: 9.95 | J152: 2 | K152: 19.9 | L152: 8.96 | M152: Discover | N152: D.W.|880-7199 | O152: No | P152: No | Q152: 39 | R152: Yes
A153: 657512 | B153: 2010-11-17 | C153: 11:34:12 | D153: D192/PN | E153: 192 | F153: Duplo | G153: Policemen | H153: 6 and up | I153: 9.95 | J153: 1 | K153: 9.95 | L153: 5.17 | M153: Cash | N153: N.C.|880-3850 | O153: No | P153: No | Q153: 31 | R153: No
A154: 657529 | B154: 2010-11-17 | C154: 15:44:24 | D154: D255/FE | E154: 192 | F154: Duplo | G154: Policemen | H154: 6 and up | I154: 9.95 | J154: 5 | K154: 49.75 | L154: 25.85 | M154: Mastercard | N154: B.Y.|880-6845 | O154: No | P154: No | Q154: 40 | R154: No
A155: 657533 | B155: 2010-11-17 | C155: 16:32:24 | D155: D254/FE | E155: 192 | F155: Duplo | G155: Policemen | H155: 6 and up | I155: 9.95 | J155: 2 | K155: 19.9 | L155: 10.34 | M155: Mastercard | N155: B.B.|880-9330 | O155: Yes | P155: No | Q155: 38 | R155: No
A156: 657533 | B156: 2010-11-17 | C156: 16:32:24 | D156: L195/AE | E156: 195 | F156: Lego | G156: Airplane | H156: 8 and up | I156: 5.95 | J156: 3 | K156: 17.85 | L156: 9.27 | M156: Mastercard | N156: B.B.|880-9330 | O156: Yes | P156: No | Q156: 38 | R156: No
A157: 657533 | B157: 2010-11-17 | C157: 16:32:24 | D157: D254/FE | E157: 192 | F157: Duplo | G157: Policemen | H157: 6 and up | I157: 9.95 | J157: 1 | K157: 9.95 | L157: 5.17 | M157: Mastercard | N157: B.B.|880-9330 | O157: Yes | P157: No | Q157: 38 | R157: No
A158: 657563 | B158: 2010-11-17 | C158: 13:18:36 | D158: L256/PE | E158: 256 | F158: Lego | G158: Police Officers and Motorcycle | H158: 9 and up | I158: 9.95 | J158: 1 | K158: 9.95 | L158: 4.48 | M158: Visa | N158: D.W.|880-7199 | O158: No | P158: No | Q158: 25 | R158: No
A159: 657591 | B159: 2010-11-18 | C159: 19:45:00 | D159: L194/FY | E159: 194 | F159: Lego | G159: Family | H159: 4 and up | I159: 14.95 | J159: 1 | K159: 14.95 | L159: 8.37 | M159: Visa | N159: W.C.|880-4861 | O159: No | P159: No | Q159: 26 | R159: No
A160: 657607 | B160: 2010-11-18 | C160: 13:44:24 | D160: D250/AT | E160: 192 | F160: Duplo | G160: Policemen | H160: 6 and up | I160: 9.95 | J160: 2 | K160: 19.9 | L160: 10.34 | M160: Visa | N160: D.S.|880-7532 | O160: Yes | P160: No | Q160: 44 | R160: No
A161: 657635 | B161: 2010-11-18 | C161: 13:05:52.800 | D161: D255/FE | E161: 192 | F161: Duplo | G161: Policemen | H161: 6 and up | I161: 9.95 | J161: 1 | K161: 9.95 | L161: 5.17 | M161: Cash | N161: D.U.|880-2953 | O161: No | P161: No | Q161: 50 | R161: No
A162: 657663 | B162: 2010-11-19 | C162: 14:05:24 | D162: L330/GN | E162: 330 | F162: Lego | G162: Gas Station | H162: 8 and up | I162: 32.95 | J162: 4 | K162: 131.8 | L162: 76.44 | M162: Visa | N162: D.W.|880-7199 | O162: No | P162: No | Q162: 28 | R162: No
A163: 657663 | B163: 2010-11-19 | C163: 14:05:24 | D163: D255/FE | E163: 192 | F163: Duplo | G163: Policemen | H163: 6 and up | I163: 9.95 | J163: 5 | K163: 49.75 | L163: 25.85 | M163: Visa | N163: D.W.|880-7199 | O163: No | P163: No | Q163: 28 | R163: No
A164: 657686 | B164: 2010-11-19 | C164: 12:06:00 | D164: L195/AE | E164: 195 | F164: Lego | G164: Airplane | H164: 8 and up | I164: 5.95 | J164: 2 | K164: 11.9 | L164: 6.18 | M164: Mastercard | N164: S.Y.|880-3139 | O164: No | P164: No | Q164: 60 | R164: No
A165: 657703 | B165: 2010-11-20 | C165: 11:39:00 | D165: L256/PE | E165: 256 | F165: Lego | G165: Police Officers and Motorcycle | H165: 9 and up | I165: 9.95 | J165: 1 | K165: 9.95 | L165: 4.48 | M165: Discover | N165: U.W.|880-9683 | O165: No | P165: No | Q165: 31 | R165: No
A166: 657712 | B166: 2010-11-20 | C166: 18:11:24 | D166: L195/AE | E166: 195 | F166: Lego | G166: Airplane | H166: 8 and up | I166: 5.95 | J166: 2 | K166: 11.9 | L166: 6.18 | M166: Visa | N166: U.W.|880-9683 | O166: No | P166: No | Q166: 42 | R166: No
A167: 657751 | B167: 2010-11-20 | C167: 10:41:24 | D167: D250/AT | E167: 192 | F167: Duplo | G167: Policemen | H167: 6 and up | I167: 9.95 | J167: 5 | K167: 49.75 | L167: 25.85 | M167: Mastercard | N167: H.B.|880-3254 | O167: No | P167: No | Q167: 48 | R167: No
A168: 657751 | B168: 2010-11-20 | C168: 10:41:24 | D168: D250/AT | E168: 192 | F168: Duplo | G168: Policemen | H168: 6 and up | I168: 9.95 | J168: 2 | K168: 19.9 | L168: 10.34 | M168: Mastercard | N168: H.B.|880-3254 | O168: No | P168: No | Q168: 48 | R168: No
A169: 657769 | B169: 2010-11-20 | C169: 18:34:12 | D169: L256/PE | E169: 256 | F169: Lego | G169: Police Officers and Motorcycle | H169: 9 and up | I169: 9.95 | J169: 3 | K169: 29.85 | L169: 13.44 | M169: Cash | N169: S.V.|880-5987 | O169: No | P169: No | Q169: 30 | R169: No
A170: 657815 | B170: 2010-11-20 | C170: 12:12:00 | D170: D250/AT | E170: 192 | F170: Duplo | G170: Policemen | H170: 6 and up | I170: 9.95 | J170: 2 | K170: 19.9 | L170: 10.34 | M170: Cash | N170: P.N.|880-3021 | O170: No | P170: No | Q170: 44 | R170: No
A171: 657839 | B171: 2010-11-21 | C171: 15:01:48 | D171: L195/AE | E171: 195 | F171: Lego | G171: Airplane | H171: 8 and up | I171: 5.95 | J171: 3 | K171: 17.85 | L171: 9.27 | M171: Mastercard | N171: N.W.|880-6237 | O171: No | P171: No | Q171: 35 | R171: No
A172: 657858 | B172: 2010-11-21 | C172: 12:19:12 | D172: D250/AT | E172: 192 | F172: Duplo | G172: Policemen | H172: 6 and up | I172: 9.95 | J172: 2 | K172: 19.9 | L172: 10.34 | M172: Gift Card | N172: N.C.|880-3850 | O172: No | P172: No | Q172: 50 | R172: No
A173: 657884 | B173: 2010-11-21 | C173: 15:37:12 | D173: D250/AT | E173: 192 | F173: Duplo | G173: Policemen | H173: 6 and up | I173: 9.95 | J173: 1 | K173: 9.95 | L173: 5.17 | M173: Discover | N173: V.W.|880-4523 | O173: No | P173: No | Q173: 30 | R173: No
A174: 657887 | B174: 2010-11-21 | C174: 13:09:36 | D174: L256/PE | E174: 256 | F174: Lego | G174: Police Officers and Motorcycle | H174: 9 and up | I174: 9.95 | J174: 1 | K174: 9.95 | L174: 4.48 | M174: Cash | N174: D.S.|880-7532 | O174: No | P174: No | Q174: 38 | R174: No
A175: 657921 | B175: 2010-11-22 | C175: 08:58:48 | D175: D254/FE | E175: 192 | F175: Duplo | G175: Policemen | H175: 6 and up | I175: 9.95 | J175: 2 | K175: 19.9 | L175: 10.34 | M175: Cash | N175: Y.P.|880-6894 | O175: No | P175: No | Q175: 30 | R175: Yes
A176: 657945 | B176: 2010-11-22 | C176: 13:39:54 | D176: L256/PE | E176: 256 | F176: Lego | G176: Police Officers and Motorcycle | H176: 9 and up | I176: 9.95 | J176: 1 | K176: 9.95 | L176: 4.48 | M176: Cash | N176: S.Y.|880-3139 | O176: No | P176: No | Q176: 30 | R176: No
A177: 657946 | B177: 2010-11-22 | C177: 19:31:48 | D177: L256/PE | E177: 256 | F177: Lego | G177: Police Officers and Motorcycle | H177: 9 and up | I177: 9.95 | J177: 3 | K177: 29.85 | L177: 13.44 | M177: Cash | N177: V.W.|880-8599 | O177: No | P177: No | Q177: 31 | R177: No
A178: 657946 | B178: 2010-11-22 | C178: 19:31:48 | D178: L330/GN | E178: 330 | F178: Lego | G178: Gas Station | H178: 8 and up | I178: 32.95 | J178: 4 | K178: 131.8 | L178: 76.44 | M178: Cash | N178: V.W.|880-8599 | O178: No | P178: No | Q178: 31 | R178: No
A179: 657946 | B179: 2010-11-22 | C179: 19:31:48 | D179: L195/AE | E179: 195 | F179: Lego | G179: Airplane | H179: 8 and up | I179: 5.95 | J179: 2 | K179: 11.9 | L179: 6.18 | M179: Cash | N179: V.W.|880-8599 | O179: No | P179: No | Q179: 31 | R179: No
A180: 657967 | B180: 2010-11-23 | C180: 13:55:51.600 | D180: D254/FE | E180: 192 | F180: Duplo | G180: Policemen | H180: 6 and up | I180: 9.95 | J180: 5 | K180: 49.75 | L180: 25.85 | M180: Mastercard | N180: C.X.|880-3590 | O180: No | P180: No | Q180: 36 | R180: No
A181: 657971 | B181: 2010-11-23 | C181: 10:58:12 | D181: L195/AE | E181: 195 | F181: Lego | G181: Airplane | H181: 8 and up | I181: 5.95 | J181: 2 | K181: 11.9 | L181: 6.18 | M181: Discover | N181: H.B.|880-3254 | O181: No | P181: No | Q181: 50 | R181: Yes
A182: 657973 | B182: 2010-11-23 | C182: 10:14:16.800 | D182: D254/FE | E182: 192 | F182: Duplo | G182: Policemen | H182: 6 and up | I182: 9.95 | J182: 1 | K182: 9.95 | L182: 5.17 | M182: Check | N182: B.Y.|880-6845 | O182: Yes | P182: No | Q182: 25 | R182: No
A183: 657985 | B183: 2010-11-23 | C183: 15:29:52.800 | D183: D254/FE | E183: 192 | F183: Duplo | G183: Policemen | H183: 6 and up | I183: 9.95 | J183: 1 | K183: 9.95 | L183: 5.17 | M183: Cash | N183: U.W.|880-9683 | O183: No | P183: No | Q183: 30 | R183: No
A184: 658025 | B184: 2010-11-23 | C184: 09:24:36 | D184: L256/PE | E184: 256 | F184: Lego | G184: Police Officers and Motorcycle | H184: 9 and up | I184: 9.95 | J184: 3 | K184: 29.85 | L184: 13.44 | M184: Discover | N184: Z.T.|880-7477 | O184: No | P184: No | Q184: 44 | R184: No
A185: 658054 | B185: 2010-11-24 | C185: 14:09:00 | D185: L195/AE | E185: 195 | F185: Lego | G185: Airplane | H185: 8 and up | I185: 5.95 | J185: 2 | K185: 11.9 | L185: 6.18 | M185: Visa | N185: H.B.|880-3254 | O185: No | P185: No | Q185: 29 | R185: No
A186: 658088 | B186: 2010-11-24 | C186: 16:13:55.200 | D186: D250/AT | E186: 192 | F186: Duplo | G186: Policemen | H186: 6 and up | I186: 9.95 | J186: 1 | K186: 9.95 | L186: 5.17 | M186: Mastercard | N186: D.U.|880-2953 | O186: No | P186: No | Q186: 38 | R186: No
A187: 658095 | B187: 2010-11-24 | C187: 18:35:24 | D187: D254/FE | E187: 192 | F187: Duplo | G187: Policemen | H187: 6 and up | I187: 9.95 | J187: 4 | K187: 39.8 | L187: 20.68 | M187: Mastercard | N187: L.C.|880-6872 | O187: Yes | P187: Yes | Q187: 30 | R187: Yes
A188: 658095 | B188: 2010-11-24 | C188: 18:35:24 | D188: D255/FE | E188: 192 | F188: Duplo | G188: Policemen | H188: 6 and up | I188: 9.95 | J188: 1 | K188: 9.95 | L188: 5.17 | M188: Mastercard | N188: L.C.|880-6872 | O188: Yes | P188: Yes | Q188: 30 | R188: Yes
A189: 658135 | B189: 2010-11-25 | C189: 16:22:12 | D189: L194/FY | E189: 194 | F189: Lego | G189: Family | H189: 4 and up | I189: 14.95 | J189: 1 | K189: 14.95 | L189: 8.37 | M189: Visa | N189: U.O.|880-3720 | O189: No | P189: No | Q189: 49 | R189: No
A190: 658157 | B190: 2010-11-26 | C190: 16:59:24 | D190: D255/FE | E190: 192 | F190: Duplo | G190: Policemen | H190: 6 and up | I190: 9.95 | J190: 5 | K190: 49.75 | L190: 25.85 | M190: Visa | N190: Z.Q.|880-4240 | O190: No | P190: No | Q190: 34 | R190: No
A191: 658183 | B191: 2010-11-26 | C191: 15:34:12 | D191: D254/FE | E191: 192 | F191: Duplo | G191: Policemen | H191: 6 and up | I191: 9.95 | J191: 1 | K191: 9.95 | L191: 5.17 | M191: Discover | N191: B.X.|880-9149 | O191: No | P191: No | Q191: 39 | R191: No
A192: 658183 | B192: 2010-11-26 | C192: 15:34:12 | D192: D250/AT | E192: 192 | F192: Duplo | G192: Policemen | H192: 6 and up | I192: 9.95 | J192: 4 | K192: 39.8 | L192: 20.68 | M192: Discover | N192: B.X.|880-9149 | O192: No | P192: No | Q192: 39 | R192: No
A193: 658221 | B193: 2010-11-26 | C193: 15:21:25.200 | D193: D254/FE | E193: 192 | F193: Duplo | G193: Policemen | H193: 6 and up | I193: 9.95 | J193: 1 | K193: 9.95 | L193: 5.17 | M193: Visa | N193: L.C.|880-6872 | O193: No | P193: No | Q193: 11 | R193: No
A194: 658267 | B194: 2010-11-26 | C194: 18:50:24 | D194: L195/AE | E194: 195 | F194: Lego | G194: Airplane | H194: 8 and up | I194: 5.95 | J194: 2 | K194: 11.9 | L194: 6.18 | M194: Visa | N194: N.C.|880-3850 | O194: No | P194: No | Q194: 34 | R194: No
A195: 658278 | B195: 2010-11-26 | C195: 19:56:24 | D195: L256/PE | E195: 256 | F195: Lego | G195: Police Officers and Motorcycle | H195: 9 and up | I195: 9.95 | J195: 1 | K195: 9.95 | L195: 4.48 | M195: Visa | N195: L.W.|880-4986 | O195: No | P195: No | Q195: 36 | R195: No
A196: 658280 | B196: 2010-11-26 | C196: 11:15:00 | D196: D254/FE | E196: 192 | F196: Duplo | G196: Policemen | H196: 6 and up | I196: 9.95 | J196: 5 | K196: 49.75 | L196: 25.85 | M196: Discover | N196: S.Y.|880-3139 | O196: No | P196: No | Q196: 32 | R196: No
A197: 658330 | B197: 2010-11-26 | C197: 19:00:36 | D197: L195/AE | E197: 195 | F197: Lego | G197: Airplane | H197: 8 and up | I197: 5.95 | J197: 2 | K197: 11.9 | L197: 6.18 | M197: Cash | N197: U.O.|880-3720 | O197: No | P197: No | Q197: 36 | R197: No
A198: 658361 | B198: 2010-11-27 | C198: 15:36:36 | D198: L330/GN | E198: 330 | F198: Lego | G198: Gas Station | H198: 8 and up | I198: 32.95 | J198: 1 | K198: 32.95 | L198: 19.11 | M198: Visa | N198: B.Y.|880-6845 | O198: No | P198: Yes | Q198: 47 | R198: No
A199: 658387 | B199: 2010-11-27 | C199: 12:25:12 | D199: L256/PE | E199: 256 | F199: Lego | G199: Police Officers and Motorcycle | H199: 9 and up | I199: 9.95 | J199: 2 | K199: 19.9 | L199: 8.96 | M199: Discover | N199: N.W.|880-6237 | O199: No | P199: No | Q199: 32 | R199: No
A200: 658404 | B200: 2010-11-27 | C200: 12:16:12 | D200: D250/AT | E200: 192 | F200: Duplo | G200: Policemen | H200: 6 and up | I200: 9.95 | J200: 1 | K200: 9.95 | L200: 5.17 | M200: Discover | N200: S.V.|880-5987 | O200: No | P200: Yes | Q200: 21 | R200: No
A201: 658406 | B201: 2010-11-27 | C201: 10:55:48 | D201: D255/FE | E201: 192 | F201: Duplo | G201: Policemen | H201: 6 and up | I201: 9.95 | J201: 2 | K201: 19.9 | L201: 10.34 | M201: Gift Card | N201: B.Y.|880-6845 | O201: No | P201: No | Q201: 34 | R201: No
... 802 more rows

Sheet HW3Data (hidden)
A1: Create a PivotTable that shows number of transactions by the Hour on a new sheet (drop any text field into Values to count).
A3: Invoice Number | B3: Date | C3: Time | D3: Internal Toy ID Number | E3: Toy Item Number | F3: Toy Company | G3: Toy Name | H3: Suggested Age | I3: Price Per Toy | J3: Units Sold | K3: Total Line Revenue | L3: Total COGS | M3: Payment | N3: Cashier ID | O3: Member? | P3: Coupon? | Q3: Purchaser Age | R3: Parking Validation?
A4: 654522 | B4: 2010-01-07 | C4: 10:25:37.200 | D4: D255/FE | E4: 192 | F4: Duplo | G4: Policemen | H4: 6 and up | I4: 9.95 | J4: 1 | K4: 9.95 | L4: 5.17 | M4: Cash | N4: V.W.|880-4523 | O4: No | P4: No | Q4: 39 | R4: No
A5: 654526 | B5: 2010-01-07 | C5: 12:00:00 | D5: L217/SN | E5: 255 | F5: Duplo | G5: Farming Scene | H5: 7 and up | I5: 24.95 | J5: 5 | K5: 124.75 | L5: 81.1 | M5: Visa | N5: B.X.|880-9149 | O5: No | P5: No | Q5: 29 | R5: No
A6: 654568 | B6: 2010-01-07 | C6: 14:19:12 | D6: L195/AE | E6: 195 | F6: Lego | G6: Airplane | H6: 8 and up | I6: 5.95 | J6: 1 | K6: 5.95 | L6: 3.09 | M6: Cash | N6: Z.Q.|880-4240 | O6: No | P6: Yes | Q6: 46 | R6: Yes
A7: 654576 | B7: 2010-01-25 | C7: 12:57:00 | D7: L256/PE | E7: 256 | F7: Lego | G7: Police Officers and Motorcycle | H7: 9 and up | I7: 9.95 | J7: 1 | K7: 9.95 | L7: 4.48 | M7: Discover | N7: D.U.|880-2953 | O7: No | P7: No | Q7: 36 | R7: No
A8: 654613 | B8: 2010-02-05 | C8: 14:51:36 | D8: D250/AT | E8: 192 | F8: Duplo | G8: Policemen | H8: 6 and up | I8: 9.95 | J8: 1 | K8: 9.95 | L8: 5.17 | M8: Cash | N8: D.Z.|880-1179 | O8: No | P8: No | Q8: 33 | R8: No
A9: 654624 | B9: 2010-02-05 | C9: 14:36:00 | D9: D250/AT | E9: 192 | F9: Duplo | G9: Policemen | H9: 6 and up | I9: 9.95 | J9: 5 | K9: 49.75 | L9: 25.85 | M9: Cash | N9: L.W.|880-4986 | O9: No | P9: No | Q9: 47 | R9: No
A10: 654650 | B10: 2010-02-06 | C10: 14:33:36 | D10: D250/AT | E10: 192 | F10: Duplo | G10: Policemen | H10: 6 and up | I10: 9.95 | J10: 1 | K10: 9.95 | L10: 5.17 | M10: Mastercard | N10: D.S.|880-7532 | O10: No | P10: No | Q10: 34 | R10: No
A11: 654650 | B11: 2010-02-06 | C11: 14:33:36 | D11: L195/AE | E11: 195 | F11: Lego | G11: Airplane | H11: 8 and up | I11: 5.95 | J11: 2 | K11: 11.9 | L11: 6.18 | M11: Mastercard | N11: D.S.|880-7532 | O11: No | P11: No | Q11: 34 | R11: No
A12: 654668 | B12: 2010-02-11 | C12: 13:42:46.800 | D12: L195/AE | E12: 195 | F12: Lego | G12: Airplane | H12: 8 and up | I12: 5.95 | J12: 1 | K12: 5.95 | L12: 3.09 | M12: Check | N12: D.W.|880-7199 | O12: No | P12: No | Q12: 47 | R12: Yes
A13: 654673 | B13: 2010-02-20 | C13: 15:27:18 | D13: L256/PE | E13: 256 | F13: Lego | G13: Police Officers and Motorcycle | H13: 9 and up | I13: 9.95 | J13: 4 | K13: 39.8 | L13: 17.92 | M13: Cash | N13: W.B.|880-9647 | O13: No | P13: No | Q13: 32 | R13: No
A14: 654693 | B14: 2010-03-11 | C14: 15:45:36 | D14: D254/FE | E14: 192 | F14: Duplo | G14: Policemen | H14: 6 and up | I14: 9.95 | J14: 1 | K14: 9.95 | L14: 5.17 | M14: Cash | N14: B.Y.|880-6845 | O14: No | P14: No | Q14: 36 | R14: No
A15: 654693 | B15: 2010-03-11 | C15: 15:45:36 | D15: L195/AE | E15: 195 | F15: Lego | G15: Airplane | H15: 8 and up | I15: 5.95 | J15: 1 | K15: 5.95 | L15: 3.09 | M15: Cash | N15: B.Y.|880-6845 | O15: No | P15: No | Q15: 36 | R15: No
A16: 654733 | B16: 2010-03-11 | C16: 13:59:24 | D16: L256/PE | E16: 256 | F16: Lego | G16: Police Officers and Motorcycle | H16: 9 and up | I16: 9.95 | J16: 2 | K16: 19.9 | L16: 8.96 | M16: Visa | N16: P.N.|880-3021 | O16: No | P16: No | Q16: 36 | R16: No
A17: 654754 | B17: 2010-03-27 | C17: 12:08:24 | D17: D255/FE | E17: 192 | F17: Duplo | G17: Policemen | H17: 6 and up | I17: 9.95 | J17: 1 | K17: 9.95 | L17: 5.17 | M17: Mastercard | N17: P.N.|880-3021 | O17: No | P17: No | Q17: 33 | R17: No
A18: 654799 | B18: 2010-04-03 | C18: 15:27:36 | D18: D255/FE | E18: 192 | F18: Duplo | G18: Policemen | H18: 6 and up | I18: 9.95 | J18: 3 | K18: 29.85 | L18: 15.51 | M18: Cash | N18: A.U.|880-2167 | O18: Yes | P18: No | Q18: 47 | R18: No
A19: 654827 | B19: 2010-04-09 | C19: 15:58:33.600 | D19: D254/FE | E19: 192 | F19: Duplo | G19: Policemen | H19: 6 and up | I19: 9.95 | J19: 2 | K19: 19.9 | L19: 10.34 | M19: Mastercard | N19: A.U.|880-2167 | O19: No | P19: No | Q19: 35 | R19: Yes
A20: 654834 | B20: 2010-04-09 | C20: 12:06:00 | D20: D254/FE | E20: 192 | F20: Duplo | G20: Policemen | H20: 6 and up | I20: 9.95 | J20: 2 | K20: 19.9 | L20: 10.34 | M20: Visa | N20: Z.Q.|880-4240 | O20: Yes | P20: Yes | Q20: 49 | R20: No
A21: 654860 | B21: 2010-04-09 | C21: 17:12:36 | D21: L195/AE | E21: 195 | F21: Lego | G21: Airplane | H21: 8 and up | I21: 5.95 | J21: 2 | K21: 11.9 | L21: 6.18 | M21: Gift Card | N21: B.B.|880-9330 | O21: No | P21: Yes | Q21: 30 | R21: No
A22: 654883 | B22: 2010-04-09 | C22: 12:59:16.800 | D22: L217/SN | E22: 255 | F22: Duplo | G22: Farming Scene | H22: 7 and up | I22: 24.95 | J22: 3 | K22: 74.85 | L22: 48.66 | M22: Visa | N22: Z.Q.|880-4240 | O22: No | P22: No | Q22: 42 | R22: Yes
A23: 654908 | B23: 2010-04-14 | C23: 19:54:00 | D23: D218/FN | E23: 192 | F23: Duplo | G23: Policemen | H23: 6 and up | I23: 9.95 | J23: 1 | K23: 9.95 | L23: 5.17 | M23: Mastercard | N23: L.C.|880-6872 | O23: No | P23: No | Q23: 39 | R23: No
A24: 654932 | B24: 2010-04-14 | C24: 12:42:00 | D24: D250/AT | E24: 192 | F24: Duplo | G24: Policemen | H24: 6 and up | I24: 9.95 | J24: 1 | K24: 9.95 | L24: 5.17 | M24: Mastercard | N24: U.O.|880-3720 | O24: No | P24: No | Q24: 36 | R24: Yes
A25: 654979 | B25: 2010-04-17 | C25: 14:16:30 | D25: D254/FE | E25: 192 | F25: Duplo | G25: Policemen | H25: 6 and up | I25: 9.95 | J25: 2 | K25: 19.9 | L25: 10.34 | M25: Cash | N25: D.W.|880-7199 | O25: No | P25: Yes | Q25: 39 | R25: No
A26: 655029 | B26: 2010-04-22 | C26: 13:39:36 | D26: L256/PE | E26: 256 | F26: Lego | G26: Police Officers and Motorcycle | H26: 9 and up | I26: 9.95 | J26: 1 | K26: 9.95 | L26: 4.48 | M26: Discover | N26: S.V.|880-5987 | O26: No | P26: Yes | Q26: 63 | R26: No
A27: 655035 | B27: 2010-04-24 | C27: 17:16:48 | D27: L340/FS | E27: 340 | F27: Lego | G27: Fire Trucks | H27: 6 and up | I27: 34.95 | J27: 2 | K27: 69.9 | L27: 39.84 | M27: Mastercard | N27: V.W.|880-4523 | O27: Yes | P27: Yes | Q27: 38 | R27: No
A28: 655083 | B28: 2010-04-25 | C28: 16:52:12 | D28: L256/PE | E28: 256 | F28: Lego | G28: Police Officers and Motorcycle | H28: 9 and up | I28: 9.95 | J28: 2 | K28: 19.9 | L28: 8.96 | M28: Visa | N28: N.W.|880-6237 | O28: No | P28: Yes | Q28: 33 | R28: No
A29: 655105 | B29: 2010-05-01 | C29: 15:27:36 | D29: L256/PE | E29: 256 | F29: Lego | G29: Police Officers and Motorcycle | H29: 9 and up | I29: 9.95 | J29: 1 | K29: 9.95 | L29: 4.48 | M29: Visa | N29: U.W.|880-9683 | O29: No | P29: No | Q29: 33 | R29: No
A30: 655105 | B30: 2010-05-01 | C30: 15:27:36 | D30: L256/PE | E30: 256 | F30: Lego | G30: Police Officers and Motorcycle | H30: 9 and up | I30: 9.95 | J30: 2 | K30: 19.9 | L30: 8.96 | M30: Visa | N30: U.W.|880-9683 | O30: No | P30: No | Q30: 33 | R30: No
A31: 655112 | B31: 2010-05-04 | C31: 14:47:13.200 | D31: D255/FE | E31: 192 | F31: Duplo | G31: Policemen | H31: 6 and up | I31: 9.95 | J31: 1 | K31: 9.95 | L31: 5.17 | M31: Visa | N31: H.B.|880-3254 | O31: Yes | P31: Yes | Q31: 31 | R31: No
A32: 655124 | B32: 2010-05-06 | C32: 12:39:57.600 | D32: D255/FE | E32: 192 | F32: Duplo | G32: Policemen | H32: 6 and up | I32: 9.95 | J32: 1 | K32: 9.95 | L32: 5.17 | M32: Visa | N32: Z.Q.|880-4240 | O32: No | P32: No | Q32: 45 | R32: No
A33: 655165 | B33: 2010-05-30 | C33: 17:40:12 | D33: D250/AT | E33: 192 | F33: Duplo | G33: Policemen | H33: 6 and up | I33: 9.95 | J33: 2 | K33: 19.9 | L33: 10.34 | M33: Cash | N33: D.U.|880-2953 | O33: Yes | P33: Yes | Q33: 29 | R33: No
A34: 655189 | B34: 2010-05-30 | C34: 16:21:00 | D34: L195/AE | E34: 195 | F34: Lego | G34: Airplane | H34: 8 and up | I34: 5.95 | J34: 2 | K34: 11.9 | L34: 6.18 | M34: Visa | N34: B.B.|880-9330 | O34: No | P34: No | Q34: 49 | R34: No
A35: 655232 | B35: 2010-05-30 | C35: 11:17:24 | D35: D250/AT | E35: 192 | F35: Duplo | G35: Policemen | H35: 6 and up | I35: 9.95 | J35: 1 | K35: 9.95 | L35: 5.17 | M35: Cash | N35: H.B.|880-3254 | O35: No | P35: Yes | Q35: 42 | R35: No
A36: 655232 | B36: 2010-05-30 | C36: 11:17:24 | D36: L256/PE | E36: 256 | F36: Lego | G36: Police Officers and Motorcycle | H36: 9 and up | I36: 9.95 | J36: 2 | K36: 19.9 | L36: 8.96 | M36: Cash | N36: H.B.|880-3254 | O36: No | P36: Yes | Q36: 42 | R36: No
A37: 655281 | B37: 2010-06-01 | C37: 15:27:36 | D37: D255/FE | E37: 192 | F37: Duplo | G37: Policemen | H37: 6 and up | I37: 9.95 | J37: 4 | K37: 39.8 | L37: 20.68 | M37: Mastercard | N37: W.C.|880-4861 | O37: No | P37: No | Q37: 34 | R37: Yes
A38: 655298 | B38: 2010-06-09 | C38: 16:28:48 | D38: D255/FE | E38: 192 | F38: Duplo | G38: Policemen | H38: 6 and up | I38: 9.95 | J38: 1 | K38: 9.95 | L38: 5.17 | M38: Discover | N38: V.W.|880-8599 | O38: No | P38: No | Q38: 36 | R38: No
A39: 655323 | B39: 2010-06-13 | C39: 12:18:36 | D39: D255/FE | E39: 192 | F39: Duplo | G39: Policemen | H39: 6 and up | I39: 9.95 | J39: 1 | K39: 9.95 | L39: 5.17 | M39: Mastercard | N39: N.C.|880-3850 | O39: No | P39: No | Q39: 41 | R39: No
A40: 655358 | B40: 2010-06-13 | C40: 19:16:12 | D40: L195/AE | E40: 195 | F40: Lego | G40: Airplane | H40: 8 and up | I40: 5.95 | J40: 2 | K40: 11.9 | L40: 6.18 | M40: Cash | N40: W.C.|880-4861 | O40: No | P40: No | Q40: 32 | R40: Yes
A41: 655358 | B41: 2010-06-13 | C41: 19:16:12 | D41: D254/FE | E41: 192 | F41: Duplo | G41: Policemen | H41: 6 and up | I41: 9.95 | J41: 1 | K41: 9.95 | L41: 5.17 | M41: Cash | N41: W.C.|880-4861 | O41: No | P41: No | Q41: 32 | R41: Yes
A42: 655373 | B42: 2010-06-21 | C42: 12:27:39.600 | D42: L195/AE | E42: 195 | F42: Lego | G42: Airplane | H42: 8 and up | I42: 5.95 | J42: 1 | K42: 5.95 | L42: 3.09 | M42: Visa | N42: N.W.|880-6237 | O42: No | P42: No | Q42: 43 | R42: No
A43: 655385 | B43: 2010-06-21 | C43: 16:05:24 | D43: L256/PE | E43: 256 | F43: Lego | G43: Police Officers and Motorcycle | H43: 9 and up | I43: 9.95 | J43: 2 | K43: 19.9 | L43: 8.96 | M43: Mastercard | N43: W.B.|880-9647 | O43: No | P43: No | Q43: 46 | R43: No
A44: 655412 | B44: 2010-06-24 | C44: 11:39:10.800 | D44: D254/FE | E44: 192 | F44: Duplo | G44: Policemen | H44: 6 and up | I44: 9.95 | J44: 5 | K44: 49.75 | L44: 25.85 | M44: Mastercard | N44: H.B.|880-3254 | O44: No | P44: No | Q44: 65 | R44: No
A45: 655412 | B45: 2010-06-24 | C45: 11:39:10.800 | D45: D250/AT | E45: 192 | F45: Duplo | G45: Policemen | H45: 6 and up | I45: 9.95 | J45: 2 | K45: 19.9 | L45: 10.34 | M45: Mastercard | N45: H.B.|880-3254 | O45: No | P45: No | Q45: 65 | R45: No
A46: 655420 | B46: 2010-06-26 | C46: 16:09:36 | D46: L256/PE | E46: 256 | F46: Lego | G46: Police Officers and Motorcycle | H46: 9 and up | I46: 9.95 | J46: 2 | K46: 19.9 | L46: 8.96 | M46: Mastercard | N46: A.U.|880-2167 | O46: No | P46: No | Q46: 56 | R46: Yes
A47: 655467 | B47: 2010-07-04 | C47: 13:46:48 | D47: L195/AE | E47: 195 | F47: Lego | G47: Airplane | H47: 8 and up | I47: 5.95 | J47: 1 | K47: 5.95 | L47: 3.09 | M47: Cash | N47: Y.P.|880-6894 | O47: No | P47: No | Q47: 34 | R47: Yes
A48: 655505 | B48: 2010-07-09 | C48: 09:10:12 | D48: D254/FE | E48: 192 | F48: Duplo | G48: Policemen | H48: 6 and up | I48: 9.95 | J48: 2 | K48: 19.9 | L48: 10.34 | M48: Gift Card | N48: N.C.|880-3850 | O48: No | P48: No | Q48: 30 | R48: Yes
A49: 655526 | B49: 2010-07-09 | C49: 12:57:36 | D49: D250/AT | E49: 192 | F49: Duplo | G49: Policemen | H49: 6 and up | I49: 9.95 | J49: 3 | K49: 29.85 | L49: 15.51 | M49: Mastercard | N49: Z.Q.|880-4240 | O49: No | P49: No | Q49: 24 | R49: Yes
A50: 655557 | B50: 2010-07-10 | C50: 16:00:00 | D50: L195/AE | E50: 195 | F50: Lego | G50: Airplane | H50: 8 and up | I50: 5.95 | J50: 4 | K50: 23.8 | L50: 12.36 | M50: Visa | N50: V.W.|880-8599 | O50: No | P50: No | Q50: 37 | R50: No
A51: 655557 | B51: 2010-07-10 | C51: 16:00:00 | D51: D255/FE | E51: 192 | F51: Duplo | G51: Policemen | H51: 6 and up | I51: 9.95 | J51: 2 | K51: 19.9 | L51: 10.34 | M51: Visa | N51: V.W.|880-8599 | O51: No | P51: No | Q51: 37 | R51: No
A52: 655570 | B52: 2010-07-18 | C52: 14:46:12 | D52: D255/FE | E52: 192 | F52: Duplo | G52: Policemen | H52: 6 and up | I52: 9.95 | J52: 1 | K52: 9.95 | L52: 5.17 | M52: Cash | N52: L.W.|880-4986 | O52: No | P52: Yes | Q52: 37 | R52: No
A53: 655577 | B53: 2010-07-19 | C53: 11:24:00 | D53: L256/PE | E53: 256 | F53: Lego | G53: Police Officers and Motorcycle | H53: 9 and up | I53: 9.95 | J53: 4 | K53: 39.8 | L53: 17.92 | M53: Mastercard | N53: V.W.|880-8599 | O53: No | P53: No | Q53: 12 | R53: No
A54: 655613 | B54: 2010-07-25 | C54: 12:04:22.800 | D54: D250/AT | E54: 192 | F54: Duplo | G54: Policemen | H54: 6 and up | I54: 9.95 | J54: 2 | K54: 19.9 | L54: 10.34 | M54: Visa | N54: L.W.|880-4986 | O54: No | P54: No | Q54: 64 | R54: No
A55: 655623 | B55: 2010-07-29 | C55: 10:13:48 | D55: D250/AT | E55: 192 | F55: Duplo | G55: Policemen | H55: 6 and up | I55: 9.95 | J55: 1 | K55: 9.95 | L55: 5.17 | M55: Visa | N55: D.U.|880-2953 | O55: No | P55: No | Q55: 43 | R55: No
A56: 655643 | B56: 2010-07-30 | C56: 11:49:48 | D56: L195/AE | E56: 195 | F56: Lego | G56: Airplane | H56: 8 and up | I56: 5.95 | J56: 3 | K56: 17.85 | L56: 9.27 | M56: Gift Card | N56: N.C.|880-3850 | O56: No | P56: No | Q56: 48 | R56: No
A57: 655661 | B57: 2010-08-09 | C57: 16:56:24 | D57: D250/AT | E57: 192 | F57: Duplo | G57: Policemen | H57: 6 and up | I57: 9.95 | J57: 1 | K57: 9.95 | L57: 5.17 | M57: Mastercard | N57: C.X.|880-3590 | O57: Yes | P57: Yes | Q57: 34 | R57: No
A58: 655661 | B58: 2010-08-09 | C58: 16:56:24 | D58: D254/FE | E58: 192 | F58: Duplo | G58: Policemen | H58: 6 and up | I58: 9.95 | J58: 1 | K58: 9.95 | L58: 5.17 | M58: Mastercard | N58: C.X.|880-3590 | O58: Yes | P58: Yes | Q58: 34 | R58: No
A59: 655673 | B59: 2010-08-16 | C59: 15:42:36 | D59: D255/FE | E59: 192 | F59: Duplo | G59: Policemen | H59: 6 and up | I59: 9.95 | J59: 1 | K59: 9.95 | L59: 5.17 | M59: Cash | N59: D.U.|880-2953 | O59: No | P59: No | Q59: 50 | R59: Yes
A60: 655676 | B60: 2010-08-18 | C60: 18:27:36 | D60: D254/FE | E60: 192 | F60: Duplo | G60: Policemen | H60: 6 and up | I60: 9.95 | J60: 1 | K60: 9.95 | L60: 5.17 | M60: Cash | N60: D.Z.|880-1179 | O60: No | P60: No | Q60: 38 | R60: No
A61: 655676 | B61: 2010-08-18 | C61: 18:27:36 | D61: D254/FE | E61: 192 | F61: Duplo | G61: Policemen | H61: 6 and up | I61: 9.95 | J61: 4 | K61: 39.8 | L61: 20.68 | M61: Cash | N61: D.Z.|880-1179 | O61: No | P61: No | Q61: 38 | R61: No
A62: 655679 | B62: 2010-08-24 | C62: 16:49:12 | D62: D250/AT | E62: 192 | F62: Duplo | G62: Policemen | H62: 6 and up | I62: 9.95 | J62: 3 | K62: 29.85 | L62: 15.51 | M62: Gift Card | N62: S.V.|880-5987 | O62: No | P62: No | Q62: 41 | R62: No
A63: 655716 | B63: 2010-09-02 | C63: 16:19:04.800 | D63: D250/AT | E63: 192 | F63: Duplo | G63: Policemen | H63: 6 and up | I63: 9.95 | J63: 1 | K63: 9.95 | L63: 5.17 | M63: Cash | N63: U.W.|880-9683 | O63: Yes | P63: No | Q63: 21 | R63: No
A64: 655731 | B64: 2010-09-05 | C64: 18:17:24 | D64: D254/FE | E64: 192 | F64: Duplo | G64: Policemen | H64: 6 and up | I64: 9.95 | J64: 1 | K64: 9.95 | L64: 5.17 | M64: Visa | N64: Z.T.|880-7477 | O64: No | P64: Yes | Q64: 31 | R64: No
A65: 655768 | B65: 2010-09-12 | C65: 14:41:34.800 | D65: L256/PE | E65: 256 | F65: Lego | G65: Police Officers and Motorcycle | H65: 9 and up | I65: 9.95 | J65: 1 | K65: 9.95 | L65: 4.48 | M65: Mastercard | N65: H.B.|880-3254 | O65: No | P65: No | Q65: 40 | R65: No
A66: 655793 | B66: 2010-09-12 | C66: 17:33:00 | D66: D255/FE | E66: 192 | F66: Duplo | G66: Policemen | H66: 6 and up | I66: 9.95 | J66: 3 | K66: 29.85 | L66: 15.51 | M66: Cash | N66: A.U.|880-2167 | O66: Yes | P66: Yes | Q66: 48 | R66: No
A67: 655793 | B67: 2010-09-12 | C67: 17:33:00 | D67: D254/FE | E67: 192 | F67: Duplo | G67: Policemen | H67: 6 and up | I67: 9.95 | J67: 1 | K67: 9.95 | L67: 5.17 | M67: Cash | N67: A.U.|880-2167 | O67: Yes | P67: Yes | Q67: 48 | R67: No
A68: 655833 | B68: 2010-09-21 | C68: 18:36:36 | D68: L195/AE | E68: 195 | F68: Lego | G68: Airplane | H68: 8 and up | I68: 5.95 | J68: 2 | K68: 11.9 | L68: 6.18 | M68: Discover | N68: H.B.|880-3254 | O68: No | P68: No | Q68: 32 | R68: Yes
A69: 655833 | B69: 2010-09-21 | C69: 18:36:36 | D69: D250/AT | E69: 192 | F69: Duplo | G69: Policemen | H69: 6 and up | I69: 9.95 | J69: 2 | K69: 19.9 | L69: 10.34 | M69: Discover | N69: H.B.|880-3254 | O69: No | P69: No | Q69: 32 | R69: Yes
A70: 655842 | B70: 2010-10-04 | C70: 13:49:12 | D70: D250/AT | E70: 192 | F70: Duplo | G70: Policemen | H70: 6 and up | I70: 9.95 | J70: 2 | K70: 19.9 | L70: 10.34 | M70: Cash | N70: D.W.|880-7199 | O70: No | P70: No | Q70: 44 | R70: No
A71: 655845 | B71: 2010-10-14 | C71: 20:37:48 | D71: L195/AE | E71: 195 | F71: Lego | G71: Airplane | H71: 8 and up | I71: 5.95 | J71: 1 | K71: 5.95 | L71: 3.09 | M71: Mastercard | N71: N.C.|880-3850 | O71: No | P71: No | Q71: 34 | R71: No
A72: 655894 | B72: 2010-10-16 | C72: 16:01:48 | D72: D255/FE | E72: 192 | F72: Duplo | G72: Policemen | H72: 6 and up | I72: 9.95 | J72: 1 | K72: 9.95 | L72: 5.17 | M72: Discover | N72: D.S.|880-7532 | O72: No | P72: No | Q72: 40 | R72: No
A73: 655933 | B73: 2010-10-16 | C73: 10:30:00 | D73: L195/AE | E73: 195 | F73: Lego | G73: Airplane | H73: 8 and up | I73: 5.95 | J73: 2 | K73: 11.9 | L73: 6.18 | M73: Cash | N73: U.W.|880-9683 | O73: No | P73: No | Q73: 31 | R73: No
A74: 655965 | B74: 2010-10-21 | C74: 11:27:28.800 | D74: L196/AR | E74: 196 | F74: Lego | G74: Antique Car | H74: 8 and up | I74: 7.95 | J74: 2 | K74: 15.9 | L74: 8.9 | M74: Visa | N74: W.C.|880-4861 | O74: No | P74: No | Q74: 45 | R74: No
A75: 655965 | B75: 2010-10-21 | C75: 11:27:28.800 | D75: D254/FE | E75: 192 | F75: Duplo | G75: Policemen | H75: 6 and up | I75: 9.95 | J75: 1 | K75: 9.95 | L75: 5.17 | M75: Visa | N75: W.C.|880-4861 | O75: No | P75: No | Q75: 45 | R75: No
A76: 655976 | B76: 2010-11-01 | C76: 08:55:48 | D76: D250/AT | E76: 192 | F76: Duplo | G76: Policemen | H76: 6 and up | I76: 9.95 | J76: 1 | K76: 9.95 | L76: 5.17 | M76: Check | N76: D.W.|880-7199 | O76: No | P76: No | Q76: 34 | R76: No
A77: 656007 | B77: 2010-11-01 | C77: 20:07:48 | D77: D254/FE | E77: 192 | F77: Duplo | G77: Policemen | H77: 6 and up | I77: 9.95 | J77: 1 | K77: 9.95 | L77: 5.17 | M77: Mastercard | N77: Z.T.|880-7477 | O77: No | P77: No | Q77: 43 | R77: No
A78: 656032 | B78: 2010-11-01 | C78: 19:55:48 | D78: L194/FY | E78: 194 | F78: Lego | G78: Family | H78: 4 and up | I78: 14.95 | J78: 1 | K78: 14.95 | L78: 8.37 | M78: Visa | N78: W.B.|880-9647 | O78: No | P78: No | Q78: 43 | R78: No
A79: 656032 | B79: 2010-11-01 | C79: 19:55:48 | D79: D254/FE | E79: 192 | F79: Duplo | G79: Policemen | H79: 6 and up | I79: 9.95 | J79: 1 | K79: 9.95 | L79: 5.17 | M79: Visa | N79: W.B.|880-9647 | O79: No | P79: No | Q79: 43 | R79: No
A80: 656077 | B80: 2010-11-02 | C80: 19:21:00 | D80: L256/PE | E80: 256 | F80: Lego | G80: Police Officers and Motorcycle | H80: 9 and up | I80: 9.95 | J80: 1 | K80: 9.95 | L80: 4.48 | M80: Cash | N80: U.W.|880-9683 | O80: Yes | P80: No | Q80: 37 | R80: No
A81: 656123 | B81: 2010-11-02 | C81: 15:27:36 | D81: L256/PE | E81: 256 | F81: Lego | G81: Police Officers and Motorcycle | H81: 9 and up | I81: 9.95 | J81: 1 | K81: 9.95 | L81: 4.48 | M81: Gift Card | N81: V.W.|880-8599 | O81: No | P81: Yes | Q81: 38 | R81: Yes
A82: 656125 | B82: 2010-11-02 | C82: 11:49:12 | D82: D250/AT | E82: 192 | F82: Duplo | G82: Policemen | H82: 6 and up | I82: 9.95 | J82: 1 | K82: 9.95 | L82: 5.17 | M82: Cash | N82: U.O.|880-3720 | O82: No | P82: No | Q82: 37 | R82: No
A83: 656125 | B83: 2010-11-02 | C83: 11:49:12 | D83: L195/AE | E83: 195 | F83: Lego | G83: Airplane | H83: 8 and up | I83: 5.95 | J83: 1 | K83: 5.95 | L83: 3.09 | M83: Cash | N83: U.O.|880-3720 | O83: No | P83: No | Q83: 37 | R83: No
A84: 656171 | B84: 2010-11-02 | C84: 15:14:24 | D84: L256/PE | E84: 256 | F84: Lego | G84: Police Officers and Motorcycle | H84: 9 and up | I84: 9.95 | J84: 3 | K84: 29.85 | L84: 13.44 | M84: Visa | N84: S.V.|880-5987 | O84: No | P84: No | Q84: 50 | R84: No
A85: 656171 | B85: 2010-11-02 | C85: 15:14:24 | D85: L256/PE | E85: 256 | F85: Lego | G85: Police Officers and Motorcycle | H85: 9 and up | I85: 9.95 | J85: 1 | K85: 9.95 | L85: 4.48 | M85: Visa | N85: S.V.|880-5987 | O85: No | P85: No | Q85: 50 | R85: No
A86: 656207 | B86: 2010-11-02 | C86: 13:25:48 | D86: D255/FE | E86: 192 | F86: Duplo | G86: Policemen | H86: 6 and up | I86: 9.95 | J86: 1 | K86: 9.95 | L86: 5.17 | M86: Cash | N86: N.C.|880-3850 | O86: No | P86: No | Q86: 50 | R86: No
A87: 656246 | B87: 2010-11-02 | C87: 10:59:16.800 | D87: L195/AE | E87: 195 | F87: Lego | G87: Airplane | H87: 8 and up | I87: 5.95 | J87: 1 | K87: 5.95 | L87: 3.09 | M87: Visa | N87: A.U.|880-2167 | O87: No | P87: Yes | Q87: 43 | R87: No
A88: 656246 | B88: 2010-11-02 | C88: 10:59:16.800 | D88: L256/PE | E88: 256 | F88: Lego | G88: Police Officers and Motorcycle | H88: 9 and up | I88: 9.95 | J88: 1 | K88: 9.95 | L88: 4.48 | M88: Visa | N88: A.U.|880-2167 | O88: No | P88: Yes | Q88: 43 | R88: No
A89: 656287 | B89: 2010-11-03 | C89: 15:33:28.800 | D89: D255/FE | E89: 192 | F89: Duplo | G89: Policemen | H89: 6 and up | I89: 9.95 | J89: 1 | K89: 9.95 | L89: 5.17 | M89: Check | N89: C.X.|880-3590 | O89: No | P89: No | Q89: 43 | R89: No
A90: 656300 | B90: 2010-11-03 | C90: 17:16:12 | D90: D255/FE | E90: 192 | F90: Duplo | G90: Policemen | H90: 6 and up | I90: 9.95 | J90: 1 | K90: 9.95 | L90: 5.17 | M90: Cash | N90: N.C.|880-3850 | O90: No | P90: No | Q90: 27 | R90: No
A91: 656314 | B91: 2010-11-03 | C91: 12:48:36 | D91: D255/FE | E91: 192 | F91: Duplo | G91: Policemen | H91: 6 and up | I91: 9.95 | J91: 4 | K91: 39.8 | L91: 20.68 | M91: Visa | N91: D.S.|880-7532 | O91: No | P91: Yes | Q91: 26 | R91: No
A92: 656314 | B92: 2010-11-03 | C92: 12:48:36 | D92: L195/AE | E92: 195 | F92: Lego | G92: Airplane | H92: 8 and up | I92: 5.95 | J92: 5 | K92: 29.75 | L92: 15.45 | M92: Visa | N92: D.S.|880-7532 | O92: No | P92: Yes | Q92: 26 | R92: No
A93: 656314 | B93: 2010-11-03 | C93: 12:48:36 | D93: L195/AE | E93: 195 | F93: Lego | G93: Airplane | H93: 8 and up | I93: 5.95 | J93: 1 | K93: 5.95 | L93: 3.09 | M93: Visa | N93: D.S.|880-7532 | O93: No | P93: Yes | Q93: 26 | R93: No
A94: 656364 | B94: 2010-11-04 | C94: 16:56:24 | D94: L195/AE | E94: 195 | F94: Lego | G94: Airplane | H94: 8 and up | I94: 5.95 | J94: 1 | K94: 5.95 | L94: 3.09 | M94: Visa | N94: C.X.|880-3590 | O94: No | P94: No | Q94: 38 | R94: Yes
A95: 656380 | B95: 2010-11-05 | C95: 15:40:12 | D95: D250/AT | E95: 192 | F95: Duplo | G95: Policemen | H95: 6 and up | I95: 9.95 | J95: 1 | K95: 9.95 | L95: 5.17 | M95: Cash | N95: Z.T.|880-7477 | O95: No | P95: No | Q95: 29 | R95: No
A96: 656416 | B96: 2010-11-05 | C96: 16:06:36 | D96: L256/PE | E96: 256 | F96: Lego | G96: Police Officers and Motorcycle | H96: 9 and up | I96: 9.95 | J96: 4 | K96: 39.8 | L96: 17.92 | M96: Cash | N96: C.X.|880-3590 | O96: Yes | P96: No | Q96: 14 | R96: No
A97: 656416 | B97: 2010-11-05 | C97: 16:06:36 | D97: D254/FE | E97: 192 | F97: Duplo | G97: Policemen | H97: 6 and up | I97: 9.95 | J97: 1 | K97: 9.95 | L97: 5.17 | M97: Cash | N97: C.X.|880-3590 | O97: Yes | P97: No | Q97: 14 | R97: No
A98: 656444 | B98: 2010-11-05 | C98: 15:19:48 | D98: D250/AT | E98: 192 | F98: Duplo | G98: Policemen | H98: 6 and up | I98: 9.95 | J98: 1 | K98: 9.95 | L98: 5.17 | M98: Cash | N98: B.Y.|880-6845 | O98: No | P98: Yes | Q98: 44 | R98: Yes
A99: 656478 | B99: 2010-11-05 | C99: 20:51:36 | D99: L195/AE | E99: 195 | F99: Lego | G99: Airplane | H99: 8 and up | I99: 5.95 | J99: 1 | K99: 5.95 | L99: 3.09 | M99: Visa | N99: W.B.|880-9647 | O99: No | P99: Yes | Q99: 32 | R99: No
A100: 656495 | B100: 2010-11-05 | C100: 13:37:12 | D100: L195/AE | E100: 195 | F100: Lego | G100: Airplane | H100: 8 and up | I100: 5.95 | J100: 2 | K100: 11.9 | L100: 6.18 | M100: Check | N100: D.U.|880-2953 | O100: No | P100: No | Q100: 30 | R100: No
A101: 656518 | B101: 2010-11-05 | C101: 13:12:00 | D101: L256/PE | E101: 256 | F101: Lego | G101: Police Officers and Motorcycle | H101: 9 and up | I101: 9.95 | J101: 1 | K101: 9.95 | L101: 4.48 | M101: Visa | N101: B.B.|880-9330 | O101: No | P101: No | Q101: 19 | R101: No
A102: 656533 | B102: 2010-11-05 | C102: 11:01:58.800 | D102: L256/PE | E102: 256 | F102: Lego | G102: Police Officers and Motorcycle | H102: 9 and up | I102: 9.95 | J102: 1 | K102: 9.95 | L102: 4.48 | M102: Cash | N102: V.W.|880-4523 | O102: No | P102: No | Q102: 50 | R102: No
A103: 656547 | B103: 2010-11-06 | C103: 20:00:00 | D103: L195/AE | E103: 195 | F103: Lego | G103: Airplane | H103: 8 and up | I103: 5.95 | J103: 2 | K103: 11.9 | L103: 6.18 | M103: Visa | N103: D.U.|880-2953 | O103: Yes | P103: No | Q103: 11 | R103: No
A104: 656588 | B104: 2010-11-06 | C104: 13:24:36 | D104: L256/PE | E104: 256 | F104: Lego | G104: Police Officers and Motorcycle | H104: 9 and up | I104: 9.95 | J104: 1 | K104: 9.95 | L104: 4.48 | M104: Visa | N104: H.B.|880-3254 | O104: Yes | P104: Yes | Q104: 41 | R104: Yes
A105: 656617 | B105: 2010-11-06 | C105: 10:52:12 | D105: D250/AT | E105: 192 | F105: Duplo | G105: Policemen | H105: 6 and up | I105: 9.95 | J105: 2 | K105: 19.9 | L105: 10.34 | M105: Visa | N105: A.U.|880-2167 | O105: No | P105: No | Q105: 38 | R105: No
A106: 656617 | B106: 2010-11-06 | C106: 10:52:12 | D106: D255/FE | E106: 192 | F106: Duplo | G106: Policemen | H106: 6 and up | I106: 9.95 | J106: 1 | K106: 9.95 | L106: 5.17 | M106: Visa | N106: A.U.|880-2167 | O106: No | P106: No | Q106: 38 | R106: No
A107: 656628 | B107: 2010-11-06 | C107: 10:15:00 | D107: L330/GN | E107: 330 | F107: Lego | G107: Gas Station | H107: 8 and up | I107: 32.95 | J107: 1 | K107: 32.95 | L107: 19.11 | M107: Discover | N107: U.O.|880-3720 | O107: No | P107: No | Q107: 37 | R107: No
A108: 656637 | B108: 2010-11-06 | C108: 11:00:39.600 | D108: D254/FE | E108: 192 | F108: Duplo | G108: Policemen | H108: 6 and up | I108: 9.95 | J108: 1 | K108: 9.95 | L108: 5.17 | M108: Visa | N108: B.Y.|880-6845 | O108: No | P108: No | Q108: 30 | R108: No
A109: 656648 | B109: 2010-11-06 | C109: 13:24:36 | D109: L195/AE | E109: 195 | F109: Lego | G109: Airplane | H109: 8 and up | I109: 5.95 | J109: 1 | K109: 5.95 | L109: 3.09 | M109: Visa | N109: W.B.|880-9647 | O109: No | P109: No | Q109: 11 | R109: No
A110: 656657 | B110: 2010-11-06 | C110: 15:04:12 | D110: D254/FE | E110: 192 | F110: Duplo | G110: Policemen | H110: 6 and up | I110: 9.95 | J110: 1 | K110: 9.95 | L110: 5.17 | M110: Cash | N110: U.W.|880-9683 | O110: No | P110: No | Q110: 22 | R110: No
A111: 656657 | B111: 2010-11-06 | C111: 15:04:12 | D111: L212/SD | E111: 212 | F111: Lego | G111: Scooter and Stand | H111: 6 and up | I111: 4.95 | J111: 1 | K111: 4.95 | L111: 2.23 | M111: Cash | N111: U.W.|880-9683 | O111: No | P111: No | Q111: 22 | R111: No
A112: 656657 | B112: 2010-11-06 | C112: 15:04:12 | D112: D218/FN | E112: 192 | F112: Duplo | G112: Policemen | H112: 6 and up | I112: 9.95 | J112: 1 | K112: 9.95 | L112: 5.17 | M112: Cash | N112: U.W.|880-9683 | O112: No | P112: No | Q112: 22 | R112: No
A113: 656671 | B113: 2010-11-07 | C113: 13:21:36 | D113: D255/FE | E113: 192 | F113: Duplo | G113: Policemen | H113: 6 and up | I113: 9.95 | J113: 1 | K113: 9.95 | L113: 5.17 | M113: Gift Card | N113: S.V.|880-5987 | O113: No | P113: No | Q113: 37 | R113: No
A114: 656692 | B114: 2010-11-08 | C114: 15:22:12 | D114: L256/PE | E114: 256 | F114: Lego | G114: Police Officers and Motorcycle | H114: 9 and up | I114: 9.95 | J114: 1 | K114: 9.95 | L114: 4.48 | M114: Visa | N114: L.W.|880-4986 | O114: No | P114: No | Q114: 11 | R114: No
A115: 656737 | B115: 2010-11-08 | C115: 19:04:48 | D115: D250/AT | E115: 192 | F115: Duplo | G115: Policemen | H115: 6 and up | I115: 9.95 | J115: 2 | K115: 19.9 | L115: 10.34 | M115: Visa | N115: D.S.|880-7532 | O115: No | P115: No | Q115: 40 | R115: No
A116: 656757 | B116: 2010-11-08 | C116: 09:24:36 | D116: D255/FE | E116: 192 | F116: Duplo | G116: Policemen | H116: 6 and up | I116: 9.95 | J116: 1 | K116: 9.95 | L116: 5.17 | M116: Cash | N116: S.Y.|880-3139 | O116: No | P116: No | Q116: 36 | R116: Yes
A117: 656757 | B117: 2010-11-08 | C117: 09:24:36 | D117: D254/FE | E117: 192 | F117: Duplo | G117: Policemen | H117: 6 and up | I117: 9.95 | J117: 2 | K117: 19.9 | L117: 10.34 | M117: Cash | N117: S.Y.|880-3139 | O117: No | P117: No | Q117: 36 | R117: Yes
A118: 656770 | B118: 2010-11-09 | C118: 14:56:24 | D118: D255/FE | E118: 192 | F118: Duplo | G118: Policemen | H118: 6 and up | I118: 9.95 | J118: 1 | K118: 9.95 | L118: 5.17 | M118: Mastercard | N118: H.B.|880-3254 | O118: No | P118: No | Q118: 66 | R118: No
A119: 656807 | B119: 2010-11-10 | C119: 11:28:48 | D119: L210/CS | E119: 210 | F119: Lego | G119: Cowboys with Horses | H119: 6 and up | I119: 9.45 | J119: 1 | K119: 9.45 | L119: 4.63 | M119: Visa | N119: P.N.|880-3021 | O119: No | P119: No | Q119: 48 | R119: No
A120: 656822 | B120: 2010-11-10 | C120: 08:07:48 | D120: D254/FE | E120: 192 | F120: Duplo | G120: Policemen | H120: 6 and up | I120: 9.95 | J120: 2 | K120: 19.9 | L120: 10.34 | M120: Mastercard | N120: B.B.|880-9330 | O120: No | P120: No | Q120: 57 | R120: No
A121: 656847 | B121: 2010-11-10 | C121: 12:25:12 | D121: D198/LX | E121: 192 | F121: Duplo | G121: Policemen | H121: 6 and up | I121: 9.95 | J121: 2 | K121: 19.9 | L121: 10.34 | M121: Visa | N121: S.Y.|880-3139 | O121: Yes | P121: No | Q121: 38 | R121: No
A122: 656854 | B122: 2010-11-10 | C122: 11:12:00 | D122: L195/AE | E122: 195 | F122: Lego | G122: Airplane | H122: 8 and up | I122: 5.95 | J122: 1 | K122: 5.95 | L122: 3.09 | M122: Mastercard | N122: V.W.|880-4523 | O122: No | P122: Yes | Q122: 31 | R122: No
A123: 656893 | B123: 2010-11-10 | C123: 15:20:24 | D123: L212/SD | E123: 212 | F123: Lego | G123: Scooter and Stand | H123: 6 and up | I123: 4.95 | J123: 1 | K123: 4.95 | L123: 2.23 | M123: Visa | N123: U.O.|880-3720 | O123: No | P123: No | Q123: 45 | R123: No
